Workbook

Sheet Notes
A1: MeasuringMarketCycles.xlsm; Traders Tip spreadsheet created for the September 2016 Issue
A2: Coded beginning 2016-June-08 by Ronald McAllister (rpmac_xltt@sprynet.com)
A4: This Workbook demonstrates an EXCEL version of the ideas presented
A5: by Vitali Apirine in an article titled "The Middle-High-Low Moving Average"
A6: which originally appeared in the August 2016 issue of
A7: "Technical Analysis of Stocks and Commodities" magazine.
O8: =17*49 -> 833
A9: CalculationsAndCharts construction Notes:
B11: The code in the Easylanguage side bar for this article would require more than 17 columns of formulas to compute the final power value for each
B12: of the 49 (8 to 48) final value columns. That works out to more than 833 columns and the logic would become difficult to follow (and debug!) at best.
B14: So I have broken the computations and final display into three logical parts.
B15: - EXCEL provides a built in Pearson's Rho correlation function. The tab named CalcFilterAndPearsonsValues performs computations that are equivalent
B16: to the computations in the side bar code that ends at the comment line "//Compute the Fourier Transform…"
B17: - Next I built a User Defined Function named "CycleAndPower" which performs the power computations which are the equivalent of the side bar code
B18: down to the line which reads "Plot as Heatmap". This is an array entered formula which is used on the CalculationsAndCharts page in columns J thru GB.
B19: A potential benefit of this separation of calculations from chart display is that the output power values are available for any useful computations beyond those described in this article.
B20: - Set up a 3D Surface Chart to display the computed power values as a "Heat Map".
B22: The heat map display used in the spreadsheet leans heavily on the Heat Map logic I first built for Mr. Ehlers "Swami Charts" Traders Tip which appeared in the March of 2012 issue.
C23: A major improvement for the current version of the heat map is that I have found a method to control the size and shape of the 3D surface chart which displays the heat map.
C24: This has allowed me to provide a more consistent left and right edge alignment of the heat map chart with the other charts displayed
C25: See the tab labeled HeatMapDevNotes for some of the details.
A27: Be Patient!!: This spreadsheet is slow to react and settle on a final display after any change.
B28: Reason: There is a lot of computation happening on the spreadsheet and there is a lot of behind the scenes graphics engine work to render the 3D chart that is the Heatmap.
B31: Dates and symbol that may be used to approximate Figure 1 from Mr. Ehlers article.
C32: Figure 1 | D32: 2014-12-31 | E32: 2015-12-31 | F32: SPY | G32: With User Controls: AvgLength: 3, and Enhanced Resolution: Not Checked
A34: Development Notes:
C35: This workbook contains and uses VBA macros and may use VBA Class structures.
C36: Input Data
C37: The data in this workbook is sorted date descending (most recent date at the top). All formulas and
C38: VBA routines are built accordingly.
A40: Calculation and Chart Worksheet Usage Comments:
C41: In General, Items in Bolded BLUE are items you may freely change to play what-if games.
C42: Be sure to have a backup copy of the spreadsheet before you alter anything else.
A44: Features carried forward from the June 2016 version of my T-Tips Template
A45: Added a pair of buttons near cell F12 that will allow the user to step the charting window forward or backward one bar for each click.
A46: I find this to be a good way to test my understanding of the author's ideas as I step through the evolution of the price behavior and the indicators.
B48: First: In the "Help! I would like to plot data" area.
B49: Added button to resolve #NA problems by locating the bar in the input data with a slightly more recent date than what the user actually requested.
B50: I find this particularly useful when I have a general idea of where I want to be date wise. Now I can pick a set of dates "out of the air".
B51: If either (or both) of my date specifications fall between dates that are available in the price history,
B52: this button will resolve them to the dates of the nearest, slightly more recent input bars.
B53: I can then refine my data interval search as necessary from there.
B54: Really great when working with Weekly or Monthly studies!
C55: 2016Jun11 - added logic to the "I would like to chart.." button to detect #N/A values and terminate
C56: gracefully with a message instead of blowing up in the charting logic.
B58: Second: In the "Price Chart Windowing Controls" area. (A11 and A12)
B59: When retrieving data for a new symbol or when changing from daily to weekly or monthly data, there was the possibility that the
B60: residual settings in A11 and A12 would fall outside of the number bars available on the input data tab after the new data retrieval.
B61: In certain combinations, this could create a serious error in the chart sizing logic and crash the spreadsheet.
B62: I have taken this opportunity to update the validity checking logic used in the chart sizing macros
B63: to adjust these values as necessary so that they fall within the boundaries of the newly retrieved input data.
A64: Features carried forward from the October 2015 Traders Tips Template
B65: Improved automation: changes to any of the following will automatically initiate calculations appropriate to reflect a change.
C66: Changing either of cells A11 (pan) or A12 (zoom) will automatically initiate the same chart sizing macros that the manual
C67: "Set Chart" button uses.
B69: Added fail-over capability to attempt to retrieve company name and basic last trade info via screen scraper logic
C70: using the Yahoo stock Summary page. Until now, the way I have been doing this reports that ^DJI is Not Found!
C71: when there is history available. Will still report correctly for a truly Not Found Symbol
C72: Minor drawbacks to the screen scrape of the stock summary page include:
C73: Only date on the page is the date we request the page. I will use this date for now as the last trade date…
C74: But the user should be aware that this is not necessarily the correct date if you are making the inquiry on
C75: a weekend or market holiday.
C76: This is not a big issue as the last real trade will already be accounted for in the history download by about 6 pm on the real date of the trade.
C77: Note: This failover mechanism is only used if what I have been doing all along reports a "not found" for the requested symbol.

Sheet InputPriceData
A1: SPDR S&P 500 (SPY) -PCX (Daily)
A2: Last Trade: | B2: 2016-07-07 | C2: 209.87 | D2: 210.65 | E2: 208.72 | F2: 209.06 | G2: 46635548 | H2: 2:26pm | I2: -0.6 | J2: =IFERROR(OFFSET(J2,0,-1,1,1)/(OFFSET(J2,0,-4,1,1)-OFFSET(J2,0,-1,1,1)),"") -> -0.002861776209 | L2: Notes: | M2: Online Yahoo Finance Query Interfaces used in the VBA code to obtain this data: | IJ2: 241.79
A3: Request Online Yahoo History for: | M3: A.) Price History Only: "http://ichart.finance.yahoo.com/table.csv"
A4: Symbol | B4: SPY | D4: Valid | I4: =OFFSET(I4,-2,0,1,1) -> -0.6 | M4: B.) Price History w/ imbedded divs n splits: "http://ichart.finance.yahoo.com/x"
A5: From | B5: 1977-01-07 | D5: Data | AF5: Trailing 12 Div return (Cur Close)
A6: To | B6: =TODAY() -> 2016-07-13 | D6: Types | E6: =VLOOKUP(B7,D7:E10,2,FALSE) -> d | M6: C.) Fundamentals (in this case name and exchange):
A7: Data Type | B7: Daily | D7: Daily | E7: d | M7: "http://download.finance.yahoo.com/d/quotes.csv?"
D8: Weekly | E8: w | M8: For some how-to doc regarding this particular interface, including a list of the
A9: Available Data | D9: Monthly | E9: m | M9: specific fields you can include in a request to this interface see:
A10: Bar Count: | B10: =COUNTA(B15:B70000)-1 -> 5903 | M10: http://www.gummy-stuff.org/Yahoo-data.htm | AF10: =OFFSET(AC15,1,0,1,1)/OFFSET(N15,1,0,1,1) -> 0.02091743997
A11: From: | B11: =IF(B10<=0,"",OFFSET(B15,B10,IF(HistReqDataType="v",1,0),1,1)) -> 1993-01-29 | M11: This web site includes a downloadable working EXCEL/VBA example | W11: Trailing 12 Month Dividend Returns
A12: To: | B12: =IF(B10<=0,"",IF(HistReqDataType="v",OFFSET(B15,2,1,1,1),OFFSET(B15,1,0,1,1))) -> 2016-07-07 | M12: of the capabilities of this interface. | W12: Raw Close price on Dividend date | X12: Div Year and Month | Y12: Looking for year ago Div Year and Month | Z12: Year ago Div Date we found | AA12: row offset to year ago div Date | AB12: Same month flag | AC12: Trailing 12 Div Total | AD12: Trailing 12 Div return
Q13: Split History | S13: =COUNT(Q16:Q3919) -> 0 | T13: Running | U13: Dividend History
B14: Raw Data Values | H14: Adjusted | I14: Price Adjust | J14: Vol Adjust | K14: Adjusted Values | P14: Last | Q14: Effective | R14: Shares | T14: Vol Adjust | V14: =COUNT(U16:U3919) -> 98
A15: RelRow | B15: Date | C15: Open | D15: High | E15: Low | F15: Close | G15: Volume | H15: Close | I15: Factor | J15: Factor | K15: Open | L15: High | M15: Low | N15: Close | O15: Volume | P15: Trade | Q15: 42559 | R15: New | S15: Old | T15: 1 | U15: Date | V15: $ / Share
A16: 1 | B16: 2016-07-07 | C16: 209.87 | D16: 210.65 | E16: 208.72 | F16: 209.06 | G16: 46635548 | H16: 209.06 | I16: =H16/F16 -> 1 | J16: =INDEX(OFFSET($T$15,0,0,$S$13+1,1),MATCH(B16,OFFSET($Q$15,0,0,$S$13+1,1),-1)) -> 1 | K16: =ROUND($I16*C16,2) -> 209.87 | L16: =ROUND($I16*D16,2) -> 210.65 | M16: =ROUND($I16*E16,2) -> 208.72 | N16: =ROUND($I16*F16,2) -> 209.06 | O16: =G16*J16 -> 46635548 | P16: 2:26pm | U16: 2016-06-17 | V16: 1.078 | W16: =(INDEX(OFFSET($F$15,1,0,$B$10,1),MATCH(U16,OFFSET($B$15,1,0,$B$10,1),-1))) -> 206.520004 | X16: =YEAR(U16)&RIGHT("0"&MONTH(U16),2) -> 201606 | Y16: =YEAR(U16)-1&RIGHT("0"&MONTH(U16),2) -> 201506 | Z16: =OFFSET(U15,AA16,0,1,1) -> 2015-06-19 | AA16: =MATCH(Y16,OFFSET($X$15,A16,0,$V$14+1-A16,1),-1) -> 5 | AB16: =IF(OR(AND(YEAR(U16)=YEAR(Z16),MONTH(U16)=MONTH(Z16)),MONTH(U16)=MONTH(Z16)),1,0) -> 1 | AC16: =(V16+IF(AA16-AB16=0,0,IFERROR(SUM(OFFSET(V16,1,0,AA16-AB16-1,1)),0))) -> 4.373 | AD16: =AC16/(INDEX(OFFSET($F$15,1,0,$B$10,1),MATCH(U16,OFFSET($B$15,1,0,$B$10,1),-1))) -> 0.02117470422
A17: 2 | B17: 2016-07-06 | C17: 207.830002 | D17: 209.800003 | E17: 207.059998 | F17: 209.660004 | G17: 93535500 | H17: 209.660004 | I17: =H17/F17 -> 1 | J17: =INDEX(OFFSET($T$15,0,0,$S$13+1,1),MATCH(B17,OFFSET($Q$15,0,0,$S$13+1,1),-1)) -> 1 | K17: 207.83 | L17: 209.8 | M17: 207.06 | N17: 209.66 | O17: =G17*J17 -> 93535500 | U17: 2016-03-18 | V17: 1.05 | W17: =(INDEX(OFFSET($F$15,1,0,$B$10,1),MATCH(U17,OFFSET($B$15,1,0,$B$10,1),-1))) -> 204.380005 | X17: =YEAR(U17)&RIGHT("0"&MONTH(U17),2) -> 201603 | Y17: =YEAR(U17)-1&RIGHT("0"&MONTH(U17),2) -> 201503 | Z17: =OFFSET(U16,AA17,0,1,1) -> 2015-03-20 | AA17: =MATCH(Y17,OFFSET($X$15,A17,0,$V$14+1-A17,1),-1) -> 5 | AB17: =IF(OR(AND(YEAR(U17)=YEAR(Z17),MONTH(U17)=MONTH(Z17)),MONTH(U17)=MONTH(Z17)),1,0) -> 1 | AC17: =(V17+IF(AA17-AB17=0,0,IFERROR(SUM(OFFSET(V17,1,0,AA17-AB17-1,1)),0))) -> 4.325 | AD17: =AC17/(INDEX(OFFSET($F$15,1,0,$B$10,1),MATCH(U17,OFFSET($B$15,1,0,$B$10,1),-1))) -> 0.02116156128
A18: 3 | B18: 2016-07-05 | C18: 208.949997 | D18: 209.080002 | E18: 207.710007 | F18: 208.410004 | G18: 109803700 | H18: 208.410004 | I18: =H18/F18 -> 1 | J18: =INDEX(OFFSET($T$15,0,0,$S$13+1,1),MATCH(B18,OFFSET($Q$15,0,0,$S$13+1,1),-1)) -> 1 | K18: 208.95 | L18: 209.08 | M18: 207.71 | N18: 208.41 | O18: =G18*J18 -> 109803700 | U18: 2015-12-18 | V18: 1.212 | W18: 200.020004 | X18: 201512 | Y18: 201412 | Z18: 2014-12-19 | AA18: 5 | AB18: 1 | AC18: 4.206 | AD18: 0.02102789679
A19: 4 | B19: 2016-07-01 | C19: 209.479996 | D19: 210.490005 | E19: 209.289993 | F19: 209.919998 | G19: 106055300 | H19: 209.919998 | I19: 1 | J19: 1 | K19: 209.48 | L19: 210.49 | M19: 209.29 | N19: 209.92 | O19: 106055300 | U19: 2015-09-18 | V19: 1.033 | W19: 195.449997 | X19: 201509 | Y19: 201409 | Z19: 2014-09-19 | AA19: 5 | AB19: 1 | AC19: 4.129 | AD19: 0.0211256079
A20: 5 | B20: 2016-06-30 | C20: 207.210007 | D20: 209.539993 | E20: 206.559998 | F20: 209.479996 | G20: 165021900 | H20: 209.479996 | I20: 1 | J20: 1 | K20: 207.21 | L20: 209.54 | M20: 206.56 | N20: 209.48 | O20: 165021900 | U20: 2015-06-19 | V20: 1.03 | W20: 210.809998 | X20: 201506 | Y20: 201406 | Z20: 2014-06-20 | AA20: 5 | AB20: 1 | AC20: 4.035 | AD20: 0.01914045841
A21: 6 | B21: 2016-06-29 | C21: 204.839996 | D21: 206.929993 | E21: 204.720001 | F21: 206.660004 | G21: 137328600 | H21: 206.660004 | I21: 1 | J21: 1 | K21: 204.84 | L21: 206.93 | M21: 204.72 | N21: 206.66 | O21: 137328600 | U21: 2015-03-20 | V21: 0.931 | W21: 210.410004 | X21: 201503 | Y21: 201403 | Z21: 2014-03-21 | AA21: 5 | AB21: 1 | AC21: 3.942 | AD21: 0.01873485065
A22: 7 | B22: 2016-06-28 | C22: 201.479996 | D22: 203.229996 | E22: 201.119995 | F22: 203.199997 | G22: 159382400 | H22: 203.199997 | I22: 1 | J22: 1 | K22: 201.48 | L22: 203.23 | M22: 201.12 | N22: 203.2 | O22: 159382400 | U22: 2014-12-19 | V22: 1.135 | W22: 206.520004 | X22: 201412 | Y22: 201312 | Z22: 2013-12-20 | AA22: 5 | AB22: 1 | AC22: 3.836 | AD22: 0.01857447185
A23: 8 | B23: 2016-06-27 | C23: 201.589996 | D23: 201.600006 | E23: 198.649994 | F23: 199.600006 | G23: 230775800 | H23: 199.600006 | I23: 1 | J23: 1 | K23: 201.59 | L23: 201.6 | M23: 198.65 | N23: 199.6 | O23: 230775800 | U23: 2014-09-19 | V23: 0.939 | W23: 200.699997 | X23: 201409 | Y23: 201309 | Z23: 2013-09-20 | AA23: 5 | AB23: 1 | AC23: 3.681 | AD23: 0.01834080745
A24: 9 | B24: 2016-06-24 | C24: 203.630005 | D24: 210.850006 | E24: 202.720001 | F24: 203.240005 | G24: 333444400 | H24: 203.240005 | I24: 1 | J24: 1 | K24: 203.63 | L24: 210.85 | M24: 202.72 | N24: 203.24 | O24: 333444400 | U24: 2014-06-20 | V24: 0.937 | W24: 195.940002 | X24: 201406 | Y24: 201306 | Z24: 2013-06-21 | AA24: 5 | AB24: 1 | AC24: 3.58 | AD24: 0.01827089907
A25: 10 | B25: 2016-06-23 | C25: 209.809998 | D25: 210.869995 | E25: 209.270004 | F25: 210.809998 | G25: 102731400 | H25: 210.809998 | I25: 1 | J25: 1 | K25: 209.81 | L25: 210.87 | M25: 209.27 | N25: 210.81 | O25: 102731400 | U25: 2014-03-21 | V25: 0.825 | W25: 186.199997 | X25: 201403 | Y25: 201303 | Z25: 2013-03-15 | AA25: 5 | AB25: 1 | AC25: 3.482 | AD25: 0.01870032254
A26: 11 | B26: 2016-06-22 | C26: 208.649994 | D26: 209.5 | E26: 207.929993 | F26: 208.100006 | G26: 95560500 | H26: 208.100006 | I26: 1 | J26: 1 | K26: 208.65 | L26: 209.5 | M26: 207.93 | N26: 208.1 | O26: 95560500 | U26: 2013-12-20 | V26: 0.98 | W26: 181.559998 | X26: 201312 | Y26: 201212 | Z26: 2012-12-21 | AA26: 5 | AB26: 1 | AC26: 3.351 | AD26: 0.01845670873
A27: 12 | B27: 2016-06-21 | C27: 208.300003 | D27: 208.919998 | E27: 207.779999 | F27: 208.440002 | G27: 72461700 | H27: 208.440002 | I27: 1 | J27: 1 | K27: 208.3 | L27: 208.92 | M27: 207.78 | N27: 208.44 | O27: 72461700 | U27: 2013-09-20 | V27: 0.838 | W27: 170.720001 | X27: 201309 | Y27: 201209 | Z27: 2012-09-21 | AA27: 5 | AB27: 1 | AC27: 3.393 | AD27: 0.01987464843
A28: 13 | B28: 2016-06-20 | C28: 208.820007 | D28: 209.610001 | E28: 207.75 | F28: 207.850006 | G28: 82789600 | H28: 207.850006 | I28: 1 | J28: 1 | K28: 208.82 | L28: 209.61 | M28: 207.75 | N28: 207.85 | O28: 82789600 | U28: 2013-06-21 | V28: 0.839 | W28: 159.070007 | X28: 201306 | Y28: 201206 | Z28: 2012-06-15 | AA28: 5 | AB28: 1 | AC28: 3.334 | AD28: 0.02095932516
A29: 14 | B29: 2016-06-17 | C29: 207.169998 | D29: 207.199997 | E29: 205.75 | F29: 206.520004 | G29: 117055700 | H29: 206.520004 | I29: 1 | J29: 1 | K29: 207.17 | L29: 207.2 | M29: 205.75 | N29: 206.52 | O29: 117055700 | U29: 2013-03-15 | V29: 0.694 | W29: 155.830002 | X29: 201303 | Y29: 201203 | Z29: 2012-03-16 | AA29: 5 | AB29: 1 | AC29: 3.183 | AD29: 0.02042610511
A30: 15 | B30: 2016-06-16 | C30: 207.75 | D30: 208.570007 | E30: 205.589996 | F30: 208.369995 | G30: 149533100 | H30: 207.291992 | I30: 0.994826496 | J30: 1 | K30: 206.68 | L30: 207.49 | M30: 204.53 | N30: 207.29 | O30: 149533100 | U30: 2012-12-21 | V30: 1.022 | W30: 142.789993 | X30: 201212 | Y30: 201112 | Z30: 2011-12-16 | AA30: 5 | AB30: 1 | AC30: 3.103 | AD30: 0.02173121474
A31: 16 | B31: 2016-06-15 | C31: 208.039993 | D31: 209.360001 | E31: 207.529999 | F31: 207.75 | G31: 109124500 | H31: 206.675204 | I31: 0.9948264934 | J31: 1 | K31: 206.96 | L31: 208.28 | M31: 206.46 | N31: 206.68 | O31: 109124500 | U31: 2012-09-21 | V31: 0.779 | W31: 145.869995 | X31: 201209 | Y31: 201109 | Z31: 2011-09-16 | AA31: 5 | AB31: 1 | AC31: 2.851 | AD31: 0.01954480083
A32: 17 | B32: 2016-06-14 | C32: 208 | D32: 208.740005 | E32: 206.919998 | F32: 208.039993 | G32: 125059300 | H32: 206.963697 | I32: 0.9948264947 | J32: 1 | K32: 206.92 | L32: 207.66 | M32: 205.85 | N32: 206.96 | O32: 125059300 | U32: 2012-06-15 | V32: 0.688 | W32: 134.139999 | X32: 201206 | Y32: 201106 | Z32: 2011-06-17 | AA32: 5 | AB32: 1 | AC32: 2.697 | AD32: 0.0201058597
A33: 18 | B33: 2016-06-13 | C33: 209.360001 | D33: 210.369995 | E33: 208.350006 | F33: 208.449997 | G33: 117751200 | H33: 207.37158 | I33: 0.9948264955 | J33: 1 | K33: 208.28 | L33: 209.28 | M33: 207.27 | N33: 207.37 | O33: 117751200 | U33: 2012-03-16 | V33: 0.614 | W33: 140.300003 | X33: 201203 | Y33: 201103 | Z33: 2011-03-18 | AA33: 5 | AB33: 1 | AC33: 2.637 | AD33: 0.01879543794
A34: 19 | B34: 2016-06-10 | C34: 210.460007 | D34: 210.860001 | E34: 209.429993 | F34: 210.070007 | G34: 113829200 | H34: 208.983209 | I34: 0.9948264961 | J34: 1 | K34: 209.37 | L34: 209.77 | M34: 208.35 | N34: 208.98 | O34: 113829200 | U34: 2011-12-16 | V34: 0.77 | W34: 121.589996 | X34: 201112 | Y34: 201012 | Z34: 2010-12-17 | AA34: 5 | AB34: 1 | AC34: 2.576 | AD34: 0.02118595349
A35: 20 | B35: 2016-06-09 | C35: 211.509995 | D35: 212.220001 | E35: 211.190002 | F35: 212.080002 | G35: 73786900 | H35: 210.982805 | I35: 0.9948264948 | J35: 1 | K35: 210.42 | L35: 211.12 | M35: 210.1 | N35: 210.98 | O35: 73786900 | U35: 2011-09-16 | V35: 0.625 | W35: 121.519997 | X35: 201109 | Y35: 201009 | Z35: 2010-09-17 | AA35: 5 | AB35: 1 | AC35: 2.459 | AD35: 0.0202353527
A36: 21 | B36: 2016-06-08 | C36: 211.839996 | D36: 212.520004 | E36: 211.690002 | F36: 212.369995 | G36: 66170900 | H36: 211.271298 | I36: 0.9948264961 | J36: 1 | K36: 210.74 | L36: 211.42 | M36: 210.59 | N36: 211.27 | O36: 66170900 | U36: 2011-06-17 | V36: 0.628 | W36: 127.050003 | X36: 201106 | Y36: 201006 | Z36: 2010-06-18 | AA36: 5 | AB36: 1 | AC36: 2.436 | AD36: 0.01917355327
A37: 22 | B37: 2016-06-07 | C37: 211.529999 | D37: 212.339996 | E37: 211.5 | F37: 211.679993 | G37: 60974800 | H37: 210.584865 | I37: 0.9948264926 | J37: 1 | K37: 210.44 | L37: 211.24 | M37: 210.41 | N37: 210.58 | O37: 60974800 | U37: 2011-03-18 | V37: 0.553 | W37: 127.760002 | X37: 201103 | Y37: 201003 | Z37: 2010-03-19 | AA37: 5 | AB37: 1 | AC37: 2.339 | AD37: 0.01830776427
A38: 23 | B38: 2016-06-06 | C38: 210.699997 | D38: 211.770004 | E38: 210.509995 | F38: 211.350006 | G38: 64887000 | H38: 210.256586 | I38: 0.9948264965 | J38: 1 | K38: 209.61 | L38: 210.67 | M38: 209.42 | N38: 210.26 | O38: 64887000 | U38: 2010-12-17 | V38: 0.653 | W38: 124.300003 | X38: 201012 | Y38: 200912 | Z38: 2009-12-18 | AA38: 5 | AB38: 1 | AC38: 2.266 | AD38: 0.01823008806
A39: 24 | B39: 2016-06-03 | C39: 210.25 | D39: 210.690002 | E39: 208.860001 | F39: 210.279999 | G39: 101757100 | H39: 209.192114 | I39: 0.9948264932 | J39: 1 | K39: 209.16 | L39: 209.6 | M39: 207.78 | N39: 209.19 | O39: 101757100 | U39: 2010-09-17 | V39: 0.602 | W39: 112.489998 | X39: 201009 | Y39: 200909 | Z39: 2009-09-18 | AA39: 5 | AB39: 1 | AC39: 2.203 | AD39: 0.01958396337
A40: 25 | B40: 2016-06-02 | C40: 209.800003 | D40: 210.929993 | E40: 209.240005 | F40: 210.910004 | G40: 63044700 | H40: 209.81886 | I40: 0.9948264948 | J40: 1 | K40: 208.71 | L40: 209.84 | M40: 208.16 | N40: 209.82 | O40: 63044700 | U40: 2010-06-18 | V40: 0.531 | W40: 111.730003 | X40: 201006 | Y40: 200906 | Z40: 2009-06-19 | AA40: 5 | AB40: 1 | AC40: 2.109 | AD40: 0.01887586094
A41: 26 | B41: 2016-06-01 | C41: 209.119995 | D41: 210.479996 | E41: 208.889999 | F41: 210.270004 | G41: 69936200 | H41: 209.182171 | I41: 0.9948264946 | J41: 1 | K41: 208.04 | L41: 209.39 | M41: 207.81 | N41: 209.18 | O41: 69936200 | U41: 2010-03-19 | V41: 0.48 | W41: 115.970001 | X41: 201003 | Y41: 200903 | Z41: 2009-03-20 | AA41: 5 | AB41: 1 | AC41: 2.096 | AD41: 0.01807363958
A42: 27 | B42: 2016-05-31 | C42: 210.559998 | D42: 210.690002 | E42: 209.179993 | F42: 209.839996 | G42: 109879400 | H42: 208.754388 | I42: 0.9948264963 | J42: 1 | K42: 209.47 | L42: 209.6 | M42: 208.1 | N42: 208.75 | O42: 109879400 | U42: 2009-12-18 | V42: 0.59 | W42: 110.209999 | X42: 200912 | Y42: 200812 | Z42: 2008-12-19 | AA42: 5 | AB42: 1 | AC42: 2.177 | AD42: 0.01975319862
A43: 28 | B43: 2016-05-27 | C43: 209.529999 | D43: 210.25 | E43: 209.470001 | F43: 210.240005 | G43: 64211200 | H43: 209.152328 | I43: 0.9948264984 | J43: 1 | K43: 208.45 | L43: 209.16 | M43: 208.39 | N43: 209.15 | O43: 64211200 | U43: 2009-09-18 | V43: 0.508 | W43: 106.720001 | X43: 200909 | Y43: 200809 | Z43: 2008-09-19 | AA43: 5 | AB43: 1 | AC43: 2.306 | AD43: 0.02160794582
A44: 29 | B44: 2016-05-26 | C44: 209.440002 | D44: 209.710007 | E44: 208.970001 | F44: 209.339996 | G44: 55280700 | H44: 208.256975 | I44: 0.9948264975 | J44: 1 | K44: 208.36 | L44: 208.63 | M44: 207.89 | N44: 208.26 | O44: 55280700 | U44: 2009-06-19 | V44: 0.518 | W44: 92.040001 | X44: 200906 | Y44: 200806 | Z44: 2008-06-20 | AA44: 5 | AB44: 1 | AC44: 2.489 | AD44: 0.02704258988
A45: 30 | B45: 2016-05-25 | C45: 208.669998 | D45: 209.770004 | E45: 207.869995 | F45: 209.279999 | G45: 76621400 | H45: 208.197288 | I45: 0.9948264956 | J45: 1 | K45: 207.59 | L45: 208.68 | M45: 206.79 | N45: 208.2 | O45: 76621400 | U45: 2009-03-20 | V45: 0.561 | W45: 76.709999 | X45: 200903 | Y45: 200803 | Z45: 2008-03-20 | AA45: 5 | AB45: 1 | AC45: 2.64 | AD45: 0.03441533091
A46: 31 | B46: 2016-05-24 | C46: 206.169998 | D46: 208.240005 | E46: 206.139999 | F46: 207.869995 | G46: 93537800 | H46: 206.794579 | I46: 0.9948264972 | J46: 1 | K46: 205.1 | L46: 207.16 | M46: 205.07 | N46: 206.79 | O46: 93537800 | U46: 2008-12-19 | V46: 0.719 | W46: 88.190002 | X46: 200812 | Y46: 200712 | Z46: 2007-12-21 | AA46: 5 | AB46: 1 | AC46: 2.721 | AD46: 0.0308538376
A47: 32 | B47: 2016-05-23 | C47: 205.509995 | D47: 205.839996 | E47: 204.990005 | F47: 205.210007 | G47: 58682600 | H47: 204.148352 | I47: 0.994826495 | J47: 1 | K47: 204.45 | L47: 204.78 | M47: 203.93 | N47: 204.15 | O47: 58682600 | U47: 2008-09-19 | V47: 0.691 | W47: 124.120003 | X47: 200809 | Y47: 200709 | Z47: 2007-09-21 | AA47: 5 | AB47: 1 | AC47: 2.777 | AD47: 0.02237350897
A48: 33 | B48: 2016-05-20 | C48: 204.919998 | D48: 206.100006 | E48: 204.860001 | F48: 205.490005 | G48: 104990400 | H48: 204.426902 | I48: 0.9948264978 | J48: 1 | K48: 203.86 | L48: 205.03 | M48: 203.8 | N48: 204.43 | O48: 104990400 | U48: 2008-06-20 | V48: 0.669 | W48: 131.580002 | X48: 200806 | Y48: 200706 | Z48: 2007-06-15 | AA48: 5 | AB48: 1 | AC48: 2.805 | AD48: 0.02131782913
A49: 34 | B49: 2016-05-19 | C49: 204.059998 | D49: 204.539993 | E49: 202.779999 | F49: 204.199997 | G49: 115430500 | H49: 203.143567 | I49: 0.9948264936 | J49: 1 | K49: 203 | L49: 203.48 | M49: 201.73 | N49: 203.14 | O49: 115430500 | U49: 2008-03-20 | V49: 0.642 | W49: 132.080002 | X49: 200803 | Y49: 200703 | Z49: 2007-03-16 | AA49: 5 | AB49: 1 | AC49: 2.792 | AD49: 0.0211387035
A50: 35 | B50: 2016-05-18 | C50: 204.440002 | D50: 206.300003 | E50: 203.630005 | F50: 204.910004 | G50: 123493400 | H50: 203.849901 | I50: 0.9948264947 | J50: 1 | K50: 203.38 | L50: 205.23 | M50: 202.58 | N50: 203.85 | O50: 123493400 | U50: 2007-12-21 | V50: 0.775 | W50: 148.130005 | X50: 200712 | Y50: 200612 | Z50: 2006-12-15 | AA50: 5 | AB50: 1 | AC50: 2.701 | AD50: 0.01823398305
A51: 36 | B51: 2016-05-17 | C51: 206.460007 | D51: 206.800003 | E51: 204.229996 | F51: 204.850006 | G51: 114924900 | H51: 203.790214 | I51: 0.9948264976 | J51: 1 | K51: 205.39 | L51: 205.73 | M51: 203.17 | N51: 203.79 | O51: 114924900 | U51: 2007-09-21 | V51: 0.719 | W51: 151.970001 | X51: 200709 | Y51: 200609 | Z51: 2006-09-15 | AA51: 5 | AB51: 1 | AC51: 2.719 | AD51: 0.01789168903
A52: 37 | B52: 2016-05-16 | C52: 204.960007 | D52: 207.339996 | E52: 204.889999 | F52: 206.779999 | G52: 77486800 | H52: 205.710222 | I52: 0.9948264967 | J52: 1 | K52: 203.9 | L52: 206.27 | M52: 203.83 | N52: 205.71 | O52: 77486800 | U52: 2007-06-15 | V52: 0.656 | W52: 153.070007 | X52: 200706 | Y52: 200606 | Z52: 2006-06-16 | AA52: 5 | AB52: 1 | AC52: 2.579 | AD52: 0.01684849992
A53: 38 | B53: 2016-05-13 | C53: 206.210007 | D53: 206.860001 | E53: 204.380005 | F53: 204.759995 | G53: 96474600 | H53: 203.700668 | I53: 0.9948264943 | J53: 1 | K53: 205.14 | L53: 205.79 | M53: 203.32 | N53: 203.7 | O53: 96474600 | U53: 2007-03-16 | V53: 0.551 | W53: 138.529999 | X53: 200703 | Y53: 200603 | Z53: 2006-03-17 | AA53: 5 | AB53: 1 | AC53: 2.478 | AD53: 0.01788782226
A54: 39 | B54: 2016-05-12 | C54: 207.289993 | D54: 207.490005 | E54: 205.369995 | F54: 206.559998 | G54: 89586300 | H54: 205.491359 | I54: 0.9948264959 | J54: 1 | K54: 206.22 | L54: 206.42 | M54: 204.31 | N54: 205.49 | O54: 89586300 | U54: 2006-12-15 | V54: 0.793 | W54: 142.339996 | X54: 200612 | Y54: 200512 | Z54: 2005-12-16 | AA54: 5 | AB54: 1 | AC54: 2.446 | AD54: 0.01718420731
A55: 40 | B55: 2016-05-11 | C55: 207.910004 | D55: 208.539993 | E55: 206.5 | F55: 206.5 | G55: 81727000 | H55: 205.431671 | I55: 0.9948264939 | J55: 1 | K55: 206.83 | L55: 207.46 | M55: 205.43 | N55: 205.43 | O55: 81727000 | U55: 2006-09-15 | V55: 0.579 | W55: 131.960007 | X55: 200609 | Y55: 200509 | Z55: 2005-09-16 | AA55: 5 | AB55: 1 | AC55: 2.325 | AD55: 0.01761897451
A56: 41 | B56: 2016-05-10 | C56: 206.720001 | D56: 208.470001 | E56: 206.639999 | F56: 208.449997 | G56: 77472200 | H56: 207.37158 | I56: 0.9948264955 | J56: 1 | K56: 205.65 | L56: 207.39 | M56: 205.57 | N56: 207.37 | O56: 77472200 | U56: 2006-06-16 | V56: 0.555 | W56: 124.650002 | X56: 200606 | Y56: 200506 | Z56: 2005-06-17 | AA56: 5 | AB56: 1 | AC56: 2.268 | AD56: 0.01819494556
A57: 42 | B57: 2016-05-09 | C57: 205.570007 | D57: 206.399994 | E57: 205.360001 | F57: 205.889999 | G57: 74374900 | H57: 204.824827 | I57: 0.9948264996 | J57: 1 | K57: 204.51 | L57: 205.33 | M57: 204.3 | N57: 204.82 | O57: 74374900 | U57: 2006-03-17 | V57: 0.519 | W57: 130.619995 | X57: 200603 | Y57: 200503 | Z57: 2005-03-18 | AA57: 5 | AB57: 1 | AC57: 2.201 | AD57: 0.0168504064
A58: 43 | B58: 2016-05-06 | C58: 204.059998 | D58: 205.770004 | E58: 203.880005 | F58: 205.720001 | G58: 89315000 | H58: 204.655708 | I58: 0.9948264972 | J58: 1 | K58: 203 | L58: 204.71 | M58: 202.83 | N58: 204.66 | O58: 89315000 | U58: 2005-12-16 | V58: 0.672 | W58: 126.360001 | X58: 200512 | Y58: 200412 | Z58: 2004-12-17 | AA58: 5 | AB58: 1 | AC58: 2.149 | AD58: 0.01700696409
A59: 44 | B59: 2016-05-05 | C59: 205.559998 | D59: 205.979996 | E59: 204.470001 | F59: 204.970001 | G59: 67619200 | H59: 203.909588 | I59: 0.9948264966 | J59: 1 | K59: 204.5 | L59: 204.91 | M59: 203.41 | N59: 203.91 | O59: 67619200 | U59: 2005-09-16 | V59: 0.522 | W59: 123.5 | X59: 200509 | Y59: 200409 | Z59: 2004-09-17 | AA59: 6 | AB59: 1 | AC59: 2.396 | AD59: 0.01940080972
A60: 45 | B60: 2016-05-04 | C60: 204.990005 | D60: 205.850006 | E60: 204.419998 | F60: 205.009995 | G60: 92243800 | H60: 203.949374 | I60: 0.9948264913 | J60: 1 | K60: 203.93 | L60: 204.79 | M60: 203.36 | N60: 203.95 | O60: 92243800 | U60: 2005-06-17 | V60: 0.488 | W60: 121.360001 | X60: 200506 | Y60: 200406 | Z60: 2004-06-18 | AA60: 6 | AB60: 1 | AC60: 2.343 | AD60: 0.01930619628
A61: 46 | B61: 2016-05-03 | C61: 206.520004 | D61: 206.800003 | E61: 205.279999 | F61: 206.160004 | G61: 106422100 | H61: 205.093434 | I61: 0.9948264941 | J61: 1 | K61: 205.45 | L61: 205.73 | M61: 204.22 | N61: 205.09 | O61: 106422100 | U61: 2005-03-18 | V61: 0.467 | W61: 118.540001 | X61: 200503 | Y61: 200403 | Z61: 2004-03-19 | AA61: 6 | AB61: 1 | AC61: 2.269 | AD61: 0.01914121799
A62: 47 | B62: 2016-05-02 | C62: 206.919998 | D62: 208.179993 | E62: 206.410004 | F62: 207.970001 | G62: 62188000 | H62: 206.894068 | I62: 0.994826499 | J62: 1 | K62: 205.85 | L62: 207.1 | M62: 205.34 | N62: 206.89 | O62: 62188000 | U62: 2004-12-17 | V62: 0.568 | W62: 119.440002 | X62: 200412 | Y62: 200312 | Z62: 2003-12-19 | AA62: 6 | AB62: 1 | AC62: 2.197 | AD62: 0.0183941725
A63: 48 | B63: 2016-04-29 | C63: 206.720001 | D63: 207.130005 | E63: 205.029999 | F63: 206.330002 | G63: 142424100 | H63: 205.262553 | I63: 0.9948264964 | J63: 1 | K63: 205.65 | L63: 206.06 | M63: 203.97 | N63: 205.26 | O63: 142424100 | U63: 2004-11-15 | V63: 0.351 | W63: 118.730003 | X63: 200411 | Y63: 200311 | Z63: 2003-12-19 | AA63: 5 | AB63: 0 | AC63: 2.145 | AD63: 0.01806620017
A64: 49 | B64: 2016-04-28 | C64: 208.460007 | D64: 209.759995 | E64: 206.960007 | F64: 207.449997 | G64: 97216200 | H64: 206.376753 | I64: 0.9948264931 | J64: 1 | K64: 207.38 | L64: 208.67 | M64: 205.89 | N64: 206.38 | O64: 97216200 | U64: 2004-09-17 | V64: 0.469 | W64: 113.150002 | X64: 200409 | Y64: 200309 | Z64: 2003-09-19 | AA64: 5 | AB64: 1 | AC64: 1.794 | AD64: 0.01585505938
A65: 50 | B65: 2016-04-27 | C65: 208.470001 | D65: 209.809998 | E65: 208.050003 | F65: 209.350006 | G65: 77329400 | H65: 208.266933 | I65: 0.9948264964 | J65: 1 | K65: 207.39 | L65: 208.72 | M65: 206.97 | N65: 208.27 | O65: 77329400 | U65: 2004-06-18 | V65: 0.414 | W65: 113.629997 | X65: 200406 | Y65: 200306 | Z65: 2003-06-20 | AA65: 5 | AB65: 1 | AC65: 1.725 | AD65: 0.01518085053
A66: 51 | B66: 2016-04-26 | C66: 209.039993 | D66: 209.520004 | E66: 208.360001 | F66: 208.919998 | G66: 75864200 | H66: 207.83915 | I66: 0.9948264981 | J66: 1 | K66: 207.96 | L66: 208.44 | M66: 207.28 | N66: 207.84 | O66: 75864200 | U66: 2004-03-19 | V66: 0.395 | W66: 111.059998 | X66: 200403 | Y66: 200303 | Z66: 2003-03-21 | AA66: 5 | AB66: 1 | AC66: 1.671 | AD66: 0.01504592139
A67: 52 | B67: 2016-04-25 | C67: 208.259995 | D67: 208.660004 | E67: 207.539993 | F67: 208.610001 | G67: 66166500 | H67: 207.530756 | I67: 0.9948264944 | J67: 1 | K67: 207.18 | L67: 207.58 | M67: 206.47 | N67: 207.53 | O67: 66166500 | U67: 2003-12-19 | V67: 0.516 | W67: 108.900002 | X67: 200312 | Y67: 200212 | Z67: 2002-12-20 | AA67: 5 | AB67: 1 | AC67: 1.63 | AD67: 0.01496786015
A68: 53 | B68: 2016-04-22 | C68: 208.550003 | D68: 209.289993 | E68: 207.910004 | F68: 208.970001 | G68: 99251700 | H68: 207.888894 | I68: 0.9948264967 | J68: 1 | K68: 207.47 | L68: 208.21 | M68: 206.83 | N68: 207.89 | O68: 99251700 | U68: 2003-09-19 | V68: 0.4 | W68: 103.669998 | X68: 200309 | Y68: 200209 | Z68: 2002-09-20 | AA68: 5 | AB68: 1 | AC68: 1.55 | AD68: 0.01495128803
A69: 54 | B69: 2016-04-21 | C69: 210.119995 | D69: 210.25 | E69: 208.649994 | F69: 208.970001 | G69: 85695000 | H69: 207.888894 | I69: 0.9948264967 | J69: 1 | K69: 209.03 | L69: 209.16 | M69: 207.57 | N69: 207.89 | O69: 85695000 | U69: 2003-06-20 | V69: 0.36 | W69: 99.440002 | X69: 200306 | Y69: 200206 | Z69: 2002-06-21 | AA69: 5 | AB69: 1 | AC69: 1.528 | AD69: 0.01536604957
A70: 55 | B70: 2016-04-20 | C70: 209.949997 | D70: 210.919998 | E70: 209.389999 | F70: 210.100006 | G70: 81100300 | H70: 209.013053 | I70: 0.9948264971 | J70: 1 | K70: 208.86 | L70: 209.83 | M70: 208.31 | N70: 209.01 | O70: 81100300 | U70: 2003-03-21 | V70: 0.354 | W70: 89.669998 | X70: 200303 | Y70: 200203 | Z70: 2002-03-15 | AA70: 5 | AB70: 1 | AC70: 1.521 | AD70: 0.01696219509
A71: 56 | B71: 2016-04-19 | C71: 209.740005 | D71: 210.199997 | E71: 208.940002 | F71: 209.899994 | G71: 88316100 | H71: 208.814075 | I71: 0.9948264934 | J71: 1 | K71: 208.65 | L71: 209.11 | M71: 207.86 | N71: 208.81 | O71: 88316100 | U71: 2002-12-20 | V71: 0.436 | W71: 89.989998 | X71: 200212 | Y71: 200112 | Z71: 2001-12-21 | AA71: 5 | AB71: 1 | AC71: 1.498 | AD71: 0.0166462944
A72: 57 | B72: 2016-04-18 | C72: 207.779999 | D72: 209.279999 | E72: 207 | F72: 209.240005 | G72: 82531000 | H72: 208.157501 | I72: 0.994826496 | J72: 1 | K72: 206.71 | L72: 208.2 | M72: 205.93 | N72: 208.16 | O72: 82531000 | U72: 2002-09-20 | V72: 0.378 | W72: 84.349998 | X72: 200209 | Y72: 200109 | Z72: 2001-09-21 | AA72: 5 | AB72: 1 | AC72: 1.455 | AD72: 0.01724955583
A73: 58 | B73: 2016-04-15 | C73: 208.009995 | D73: 208.169998 | E73: 207.399994 | F73: 207.779999 | G73: 75761600 | H73: 206.705048 | I73: 0.9948264943 | J73: 1 | K73: 206.93 | L73: 207.09 | M73: 206.33 | N73: 206.71 | O73: 75761600 | U73: 2002-06-21 | V73: 0.353 | W73: 99.279999 | X73: 200206 | Y73: 200106 | Z73: 2001-06-15 | AA73: 5 | AB73: 1 | AC73: 1.446 | AD73: 0.01456486719
A74: 59 | B74: 2016-04-14 | C74: 208.070007 | D74: 208.600006 | E74: 207.600006 | F74: 208.009995 | G74: 65212900 | H74: 206.933854 | I74: 0.9948264938 | J74: 1 | K74: 206.99 | L74: 207.52 | M74: 206.53 | N74: 206.93 | O74: 65212900 | U74: 2002-03-15 | V74: 0.331 | W74: 116.650002 | X74: 200203 | Y74: 200103 | Z74: 2001-03-16 | AA74: 5 | AB74: 1 | AC74: 1.439 | AD74: 0.0123360478
A75: 60 | B75: 2016-04-13 | C75: 207 | D75: 208.100006 | E75: 206.839996 | F75: 208 | G75: 96336400 | H75: 206.923911 | I75: 0.9948264952 | J75: 1 | K75: 205.93 | L75: 207.02 | M75: 205.77 | N75: 206.92 | O75: 96336400 | U75: 2001-12-21 | V75: 0.393 | W75: 114.949997 | X75: 200112 | Y75: 200012 | Z75: 2000-12-27 | AA75: 5 | AB75: 1 | AC75: 1.424 | AD75: 0.0123879951
A76: 61 | B76: 2016-04-12 | C76: 204.220001 | D76: 206.25 | E76: 203.699997 | F76: 205.919998 | G76: 115350600 | H76: 204.85467 | I76: 0.9948264957 | J76: 1 | K76: 203.16 | L76: 205.18 | M76: 202.65 | N76: 204.85 | O76: 115350600 | U76: 2001-09-21 | V76: 0.369 | W76: 97.279999 | X76: 200109 | Y76: 200009 | Z76: 2000-09-15 | AA76: 6 | AB76: 1 | AC76: 1.442 | AD76: 0.01482319094
A77: 62 | B77: 2016-04-11 | C77: 205.25 | D77: 206.070007 | E77: 203.910004 | F77: 204.020004 | G77: 83757500 | H77: 202.964506 | I77: 0.9948264975 | J77: 1 | K77: 204.19 | L77: 205 | M77: 202.86 | N77: 202.96 | O77: 83757500 | U77: 2001-06-15 | V77: 0.346 | W77: 121.849998 | X77: 200106 | Y77: 200006 | Z77: 2000-06-16 | AA77: 7 | AB77: 1 | AC77: 1.448 | AD77: 0.01188346347
A78: 63 | B78: 2016-04-08 | C78: 205.339996 | D78: 205.850006 | E78: 203.869995 | F78: 204.5 | G78: 95040600 | H78: 203.442018 | I78: 0.9948264939 | J78: 1 | K78: 204.28 | L78: 204.79 | M78: 202.82 | N78: 203.44 | O78: 95040600 | U78: 2001-03-16 | V78: 0.316 | W78: 115.010002 | X78: 200103 | Y78: 200003 | Z78: 2000-03-17 | AA78: 7 | AB78: 1 | AC78: 1.45 | AD78: 0.01260759912
A79: 64 | B79: 2016-04-07 | C79: 205.139999 | D79: 206.419998 | E79: 203.089996 | F79: 203.949997 | G79: 113859000 | H79: 202.894861 | I79: 0.9948264966 | J79: 1 | K79: 204.08 | L79: 205.35 | M79: 202.04 | N79: 202.89 | O79: 113859000 | U79: 2000-12-27 | V79: 0 | W79: 133.3125 | X79: 200012 | Y79: 199912 | Z79: 1999-12-17 | AA79: 7 | AB79: 1 | AC79: 1.505 | AD79: 0.01128926395
A80: 65 | B80: 2016-04-06 | C80: 204.190002 | D80: 206.490005 | E80: 203.979996 | F80: 206.419998 | G80: 91839800 | H80: 205.352083 | I80: 0.9948264945 | J80: 1 | K80: =ROUND($I80*C80,2) -> 203.13 | L80: =ROUND($I80*D80,2) -> 205.42 | M80: =ROUND($I80*E80,2) -> 202.92 | N80: =ROUND($I80*F80,2) -> 205.35 | O80: 91839800 | U80: 2000-12-15 | V80: 0.411 | W80: 130.968704 | X80: 200012 | Y80: 199912 | Z80: 1999-12-17 | AA80: 6 | AB80: 1 | AC80: 1.505 | AD80: 0.0114912949
A81: 66 | B81: 2016-04-05 | C81: 204.669998 | D81: 206.259995 | E81: 203.889999 | F81: 204.190002 | G81: 99662200 | H81: 203.133625 | I81: 0.9948264999 | J81: 1 | K81: 203.61 | L81: 205.19 | M81: 202.84 | N81: 203.13 | O81: 99662200 | U81: 2000-09-15 | V81: 0.375 | W81: =(INDEX(OFFSET($F$15,1,0,$B$10,1),MATCH(U81,OFFSET($B$15,1,0,$B$10,1),-1))) -> 146 | X81: =YEAR(U81)&RIGHT("0"&MONTH(U81),2) -> 200009 | Y81: =YEAR(U81)-1&RIGHT("0"&MONTH(U81),2) -> 199909 | Z81: =OFFSET(U80,AA81,0,1,1) -> 1999-09-17 | AA81: =MATCH(Y81,OFFSET($X$15,A81,0,$V$14+1-A81,1),-1) -> 6 | AB81: =IF(OR(AND(YEAR(U81)=YEAR(Z81),MONTH(U81)=MONTH(Z81)),MONTH(U81)=MONTH(Z81)),1,0) -> 1 | AC81: =(V81+IF(AA81-AB81=0,0,IFERROR(SUM(OFFSET(V81,1,0,AA81-AB81-1,1)),0))) -> 1.442 | AD81: =AC81/(INDEX(OFFSET($F$15,1,0,$B$10,1),MATCH(U81,OFFSET($B$15,1,0,$B$10,1),-1))) -> 0.009876712329
A82: 67 | B82: 2016-04-04 | C82: 206.830002 | D82: 207.070007 | E82: 205.889999 | F82: 206.25 | G82: 63497000 | H82: 205.182965 | I82: =H82/F82 -> 0.994826497 | J82: =INDEX(OFFSET($T$15,0,0,$S$13+1,1),MATCH(B82,OFFSET($Q$15,0,0,$S$13+1,1),-1)) -> 1 | K82: 205.76 | L82: 206 | M82: 204.82 | N82: 205.18 | O82: =G82*J82 -> 63497000 | U82: 2000-09-14 | V82: 0 | W82: 149.640594 | X82: 200009 | Y82: 199909 | Z82: 1999-09-17 | AA82: 5 | AB82: 1 | AC82: 1.067 | AD82: 0.0071304181
A83: 68 | B83: 2016-04-01 | C83: 204.350006 | D83: 207.139999 | E83: 203.979996 | F83: 206.919998 | G83: 114423500 | H83: 205.849497 | I83: 0.9948264981 | J83: 1 | K83: 203.29 | L83: 206.07 | M83: 202.92 | N83: 205.85 | O83: 114423500 | U83: 2000-06-16 | V83: 0.348 | W83: 146.593704 | X83: 200006 | Y83: 199906 | Z83: 1999-06-18 | AA83: 5 | AB83: 1 | AC83: 1.439 | AD83: 0.009816246952
A84: 69 | B84: 2016-03-31 | C84: 205.910004 | D84: 206.410004 | E84: 205.330002 | F84: 205.520004 | G84: 94584100 | H84: 204.456746 | I84: 0.9948264987 | J84: 1 | K84: 204.84 | L84: 205.34 | M84: 204.27 | N84: 204.46 | O84: 94584100 | U84: 2000-03-17 | V84: 0.371 | W84: 146.9375 | X84: 200003 | Y84: 199903 | Z84: 1999-03-19 | AA84: 5 | AB84: 1 | AC84: 1.496 | AD84: 0.01018119949
A85: 70 | B85: 2016-03-30 | C85: 206.300003 | D85: 206.869995 | E85: 205.589996 | F85: 206.020004 | G85: 86365300 | H85: 204.954159 | I85: 0.9948264975 | J85: 1 | K85: 205.23 | L85: 205.8 | M85: 204.53 | N85: 204.95 | O85: 86365300 | U85: 1999-12-17 | V85: 0.348 | W85: 142.6875 | X85: 199912 | Y85: 199812 | Z85: 1998-12-18 | AA85: 5 | AB85: 1 | AC85: 1.445 | AD85: 0.01012702584
A86: 71 | B86: 2016-03-29 | C86: 202.759995 | D86: 205.25 | E86: 202.399994 | F86: 205.119995 | G86: 92922900 | H86: 204.058806 | I86: 0.9948264966 | J86: 1 | K86: 201.71 | L86: 204.19 | M86: 201.35 | N86: 204.06 | O86: 92922900 | U86: 1999-09-17 | V86: 0.372 | W86: 133.75 | X86: 199909 | Y86: 199809 | Z86: 1998-09-18 | AA86: 5 | AB86: 1 | AC86: 1.489 | AD86: 0.01113271028
A87: 72 | B87: 2016-03-28 | C87: 203.610001 | D87: 203.860001 | E87: 202.710007 | F87: 203.240005 | G87: 62408200 | H87: 202.188542 | I87: 0.9948264959 | J87: 1 | K87: 202.56 | L87: 202.81 | M87: 201.66 | N87: 202.19 | O87: 62408200 | U87: 1999-06-18 | V87: 0.405 | W87: 134.3125 | X87: 199906 | Y87: 199806 | Z87: 1998-06-19 | AA87: 5 | AB87: 1 | AC87: 1.476 | AD87: 0.01098929735
A88: 73 | B88: 2016-03-24 | C88: 202 | D88: 203.160004 | E88: 201.740005 | F88: 203.119995 | G88: 84360900 | H88: 202.069153 | I88: 0.9948264965 | J88: 1 | K88: 200.95 | L88: 202.11 | M88: 200.7 | N88: 202.07 | O88: 84360900 | U88: 1999-03-19 | V88: 0.32 | W88: 129.6875 | X88: 199903 | Y88: 199803 | Z88: 1998-03-20 | AA88: 5 | AB88: 1 | AC88: 1.423 | AD88: 0.01097253012
A89: 74 | B89: 2016-03-23 | C89: 204.110001 | D89: 204.330002 | E89: 203.009995 | F89: 203.210007 | G89: 81052500 | H89: 202.158699 | I89: 0.9948264949 | J89: 1 | K89: 203.05 | L89: 203.27 | M89: 201.96 | N89: 202.16 | O89: 81052500 | U89: 1998-12-18 | V89: 0.392 | W89: 118.5 | X89: 199812 | Y89: 199712 | Z89: 1997-12-19 | AA89: 5 | AB89: 1 | AC89: 1.416 | AD89: 0.01194936709
A90: 75 | B90: 2016-03-22 | C90: 203.759995 | D90: 205.229996 | E90: 203.570007 | F90: 204.559998 | G90: 97471900 | H90: 203.501706 | I90: 0.9948264958 | J90: 1 | K90: 202.71 | L90: 204.17 | M90: 202.52 | N90: 203.5 | O90: 97471900 | U90: 1998-09-18 | V90: 0.359 | W90: 102.093697 | X90: 199809 | Y90: 199709 | Z90: 1997-09-19 | AA90: 5 | AB90: 1 | AC90: 1.404 | AD90: 0.01375207325
A91: 76 | B91: 2016-03-21 | C91: 204.070007 | D91: 204.940002 | E91: 203.800003 | F91: 204.669998 | G91: 72926700 | H91: 203.611137 | I91: 0.9948264963 | J91: 1 | K91: 203.01 | L91: 203.88 | M91: 202.75 | N91: 203.61 | O91: 72926700 | U91: 1998-06-19 | V91: 0.352 | W91: 110.0625 | X91: 199806 | Y91: 199706 | Z91: 1997-06-20 | AA91: 5 | AB91: 1 | AC91: 1.393 | AD91: 0.0126564452
A92: 77 | B92: 2016-03-18 | C92: 204.169998 | D92: 204.779999 | E92: 203.800003 | F92: 204.380005 | G92: 138372400 | H92: 203.322644 | I92: 0.9948264949 | J92: 1 | K92: 203.11 | L92: 203.72 | M92: 202.75 | N92: 203.32 | O92: 138372400 | U92: 1998-03-20 | V92: 0.313 | W92: 109.875 | X92: 199803 | Y92: 199703 | Z92: 1997-03-21 | AA92: 5 | AB92: 1 | AC92: 1.391 | AD92: 0.01265984073
A93: 78 | B93: 2016-03-17 | C93: 203.240005 | D93: 205.229996 | E93: 202.770004 | F93: 204.630005 | G93: 134278500 | H93: 202.526784 | I93: 0.9897218348 | J93: 1 | K93: 201.15 | L93: 203.12 | M93: 200.69 | N93: 202.53 | O93: 134278500 | U93: 1997-12-19 | V93: 0.38 | W93: 94.781197 | X93: 199712 | Y93: 199612 | Z93: 1996-12-20 | AA93: 5 | AB93: 1 | AC93: 1.377 | AD93: 0.01452819803
A94: 79 | B94: 2016-03-16 | C94: 201.600006 | D94: 203.820007 | E94: 201.550003 | F94: 203.339996 | G94: 129303200 | H94: 201.250034 | I94: 0.9897218351 | J94: 1 | K94: 199.53 | L94: 201.73 | M94: 199.48 | N94: 201.25 | O94: 129303200 | U94: 1997-09-19 | V94: 0.348 | W94: 95.031197 | X94: 199709 | Y94: 199609 | Z94: 1996-09-20 | AA94: 5 | AB94: 1 | AC94: 1.364 | AD94: 0.0143531813
A95: 80 | B95: 2016-03-15 | C95: 201.360001 | D95: 202.529999 | E95: 201.050003 | F95: 202.169998 | G95: 93169100 | H95: 200.092062 | I95: 0.989721838 | J95: 1 | K95: 199.29 | L95: 200.45 | M95: 198.98 | N95: 200.09 | O95: 93169100 | U95: 1997-06-20 | V95: 0.35 | W95: 89.578102 | X95: 199706 | Y95: 199606 | Z95: 1996-06-21 | AA95: 5 | AB95: 1 | AC95: 1.368 | AD95: 0.01527158948
A96: 81 | B96: 2016-03-14 | C96: 202.160004 | D96: 203.039993 | E96: 201.770004 | F96: 202.5 | G96: 73612000 | H96: 200.418672 | I96: 0.989721837 | J96: 1 | K96: 200.08 | L96: 200.95 | M96: 199.7 | N96: 200.42 | O96: 73612000 | U96: 1997-03-21 | V96: 0.299 | W96: 78.4375 | X96: 199703 | Y96: 199603 | Z96: 1996-03-15 | AA96: 5 | AB96: 1 | AC96: 1.369 | AD96: 0.01745338645
A97: 82 | B97: 2016-03-11 | C97: 201.259995 | D97: 202.809998 | E97: 199.520004 | F97: 202.759995 | G97: 137964500 | H97: 200.675994 | I97: 0.9897218334 | J97: 1 | K97: 199.19 | L97: 200.73 | M97: 197.47 | N97: 200.68 | O97: 137964500 | U97: 1996-12-20 | V97: 0.367 | W97: 74.843697 | X97: 199612 | Y97: 199512 | Z97: 1995-12-15 | AA97: 5 | AB97: 1 | AC97: 1.355 | AD97: 0.01810439695
A98: 83 | B98: 2016-03-10 | C98: 199.960007 | D98: 201.070007 | E98: 197.380005 | F98: 199.539993 | G98: 156838700 | H98: 197.489088 | I98: 0.9897218349 | J98: 1 | K98: 197.9 | L98: 199 | M98: 195.35 | N98: 197.49 | O98: 156838700 | U98: 1996-09-20 | V98: 0.352 | W98: 68.640602 | X98: 199609 | Y98: 199509 | Z98: 1995-09-15 | AA98: 5 | AB98: 1 | AC98: 1.37 | AD98: 0.01995903241
A99: 84 | B99: 2016-03-09 | C99: 199.360001 | D99: 199.789993 | E99: 198.429993 | F99: 199.380005 | G99: 94801200 | H99: 197.330744 | I99: 0.9897218329 | J99: 1 | K99: 197.31 | L99: 197.74 | M99: 196.39 | N99: 197.33 | O99: 94801200 | U99: 1996-06-21 | V99: 0.351 | W99: 66.8125 | X99: 199606 | Y99: 199506 | Z99: 1995-06-16 | AA99: 5 | AB99: 1 | AC99: 1.33 | AD99: 0.01990645463
A100: 85 | B100: 2016-03-08 | C100: 199.320007 | D100: 199.919998 | E100: 198.210007 | F100: 198.399994 | G100: 123974900 | H100: 196.360806 | I100: 0.9897218344 | J100: 1 | K100: 197.27 | L100: 197.87 | M100: 196.17 | N100: 196.36 | O100: 123974900 | U100: 1996-03-15 | V100: 0.285 | W100: 64.125 | X100: 199603 | Y100: 199503 | Z100: 1995-03-17 | AA100: 5 | AB100: 1 | AC100: 1.295 | AD100: 0.02019493177
A101: 86 | B101: 2016-03-07 | C101: 199.339996 | D101: 201.070007 | E101: 199.25 | F101: 200.589996 | G101: 100219000 | H101: 198.528299 | I101: 0.9897218354 | J101: 1 | K101: 197.29 | L101: 199 | M101: 197.2 | N101: 198.53 | O101: 100219000 | U101: 1995-12-15 | V101: 0.382 | W101: 61.8125 | X101: 199512 | Y101: 199412 | Z101: 1994-12-16 | AA101: 5 | AB101: 1 | AC101: 1.278 | AD101: 0.02067542973
A102: 87 | B102: 2016-03-04 | C102: 200.009995 | D102: 201.350006 | E102: 199.029999 | F102: 200.429993 | G102: 129293600 | H102: 198.36994 | I102: 0.9897218327 | J102: 1 | K102: 197.95 | L102: 199.28 | M102: 196.98 | N102: 198.37 | O102: 129293600 | U102: 1995-09-15 | V102: 0.312 | W102: 58.4375 | X102: 199509 | Y102: 199409 | Z102: 1994-09-19 | AA102: 5 | AB102: 1 | AC102: 1.259 | AD102: 0.02154438503
A103: 88 | B103: 2016-03-03 | C103: 198.789993 | D103: 199.800003 | E103: 198.110001 | F103: 199.779999 | G103: 95172200 | H103: 197.726627 | I103: 0.989721834 | J103: 1 | K103: 196.75 | L103: 197.75 | M103: 196.07 | N103: 197.73 | O103: 95172200 | U103: 1995-06-16 | V103: 0.316 | W103: 53.9687 | X103: 199506 | Y103: 199406 | Z103: 1994-06-17 | AA103: 6 | AB103: 1 | AC103: 1.235 | AD103: 0.0228836344
A104: 89 | B104: 2016-03-02 | C104: 197.740005 | D104: 199.059998 | E104: 197.25 | F104: 199 | G104: 102415000 | H104: 196.954645 | I104: 0.9897218342 | J104: 1 | K104: 195.71 | L104: 197.01 | M104: 195.22 | N104: 196.95 | O104: 102415000 | U104: 1995-03-17 | V104: 0.268 | W104: 49.5625 | X104: 199503 | Y104: 199403 | Z104: 1994-03-18 | AA104: 6 | AB104: 1 | AC104: 1.224 | AD104: 0.02469609079
A105: 90 | B105: 2016-03-01 | C105: 195.009995 | D105: 198.210007 | E105: 194.449997 | F105: 198.110001 | G105: 141799700 | H105: 196.073793 | I105: 0.9897218314 | J105: 1 | K105: 193.01 | L105: 196.17 | M105: 192.45 | N105: 196.07 | O105: 141799700 | U105: 1994-12-16 | V105: 0.363 | W105: 45.75 | X105: 199412 | Y105: 199312 | Z105: 1993-12-17 | AA105: 6 | AB105: 1 | AC105: 1.227 | AD105: 0.02681967213
A106: 91 | B106: 2016-02-29 | C106: 195.110001 | D106: 196.229996 | E106: 193.330002 | F106: 193.559998 | G106: 125918100 | H106: 191.570556 | I106: 0.9897218329 | J106: 1 | K106: 193.1 | L106: 194.21 | M106: 191.34 | N106: 191.57 | O106: 125918100 | U106: 1994-09-19 | V106: 0 | W106: 47.0625 | X106: 199409 | Y106: 199309 | Z106: 1993-09-17 | AA106: 6 | AB106: 1 | AC106: 1.181 | AD106: 0.02509428951
A107: 92 | B107: 2016-02-26 | C107: 196.570007 | D107: 196.679993 | E107: 194.899994 | F107: 195.089996 | G107: 129833700 | H107: 193.084829 | I107: 0.9897218359 | J107: 1 | K107: 194.55 | L107: 194.66 | M107: 192.9 | N107: 193.08 | O107: 129833700 | U107: 1994-09-16 | V107: 0.288 | W107: 47.015598 | X107: 199409 | Y107: 199309 | Z107: 1993-09-17 | AA107: 5 | AB107: 1 | AC107: 1.181 | AD107: 0.02511932317
A108: 93 | B108: 2016-02-25 | C108: 193.729996 | D108: 195.550003 | E108: 192.830002 | F108: 195.539993 | G108: 110728300 | H108: 193.530201 | I108: 0.9897218366 | J108: 1 | K108: 191.74 | L108: 193.54 | M108: 190.85 | N108: 193.53 | O108: 110728300 | U108: 1994-06-17 | V108: 0.305 | W108: 45.875 | X108: 199406 | Y108: 199306 | Z108: 1993-06-18 | AA108: 5 | AB108: 1 | AC108: 1.179 | AD108: 0.02570027248
A109: 94 | B109: 2016-02-24 | C109: 190.630005 | D109: 193.529999 | E109: 189.320007 | F109: 193.199997 | G109: 150812200 | H109: 191.214255 | I109: 0.9897218321 | J109: 1 | K109: 188.67 | L109: 191.54 | M109: 187.37 | N109: 191.21 | O109: 150812200 | U109: 1994-03-18 | V109: 0.271 | W109: 46.9687 | X109: 199403 | Y109: 199303 | Z109: 1993-03-19 | AA109: 5 | AB109: 1 | AC109: 1.192 | AD109: 0.0253786032
A110: 95 | B110: 2016-02-23 | C110: 194 | D110: 194.320007 | E110: 192.179993 | F110: 192.320007 | G110: 111455300 | H110: 190.34331 | I110: 0.9897218338 | J110: 1 | K110: 192.01 | L110: 192.32 | M110: 190.2 | N110: 190.34 | O110: 111455300 | U110: 1993-12-17 | V110: 0.317 | W110: 46.5625 | X110: 199312 | Y110: 199212 | Z110: 1993-03-19 | AA110: 4 | AB110: 0 | AC110: 1.134 | AD110: 0.02435436242
A111: 96 | B111: 2016-02-22 | C111: 193.869995 | D111: 194.949997 | E111: 193.789993 | F111: 194.779999 | G111: 103640300 | H111: 192.778018 | I111: 0.9897218348 | J111: 1 | K111: 191.88 | L111: 192.95 | M111: 191.8 | N111: 192.78 | O111: 103640300 | U111: 1993-09-17 | V111: 0.286 | W111: 45.8125 | X111: 199309 | Y111: 199209 | Z111: 1993-03-19 | AA111: 3 | AB111: 0 | AC111: 0.817 | AD111: 0.01783356071
A112: 97 | B112: 2016-02-19 | C112: 191.169998 | D112: 192.179993 | E112: 190.449997 | F112: 192 | G112: 114793000 | H112: 190.026592 | I112: 0.9897218333 | J112: 1 | K112: 189.21 | L112: 190.2 | M112: 188.49 | N112: 190.03 | O112: 114793000 | U112: 1993-06-18 | V112: 0.318 | W112: 44.5 | X112: 199306 | Y112: 199206 | Z112: 1993-03-19 | AA112: 2 | AB112: 0 | AC112: 0.531 | AD112: 0.01193258427
A113: 98 | B113: 2016-02-18 | C113: 193.199997 | D113: 193.270004 | E113: 191.720001 | F113: 192.089996 | G113: 102343000 | H113: 190.115664 | I113: 0.9897218385 | J113: 1 | K113: 191.21 | L113: 191.28 | M113: 189.75 | N113: 190.12 | O113: 102343000 | U113: 1993-03-19 | V113: 0.213 | W113: 45.0312 | X113: 199303 | Y113: 199203 | Z113: 1993-03-19 | AA113: 1 | AB113: 1 | AC113: 0.213 | AD113: 0.004730053829
A114: 99 | B114: 2016-02-17 | C114: 191.160004 | D114: 193.320007 | E114: 191.009995 | F114: 192.880005 | G114: 136009500 | H114: 190.897552 | I114: 0.9897218325 | J114: 1 | K114: 189.2 | L114: 191.33 | M114: 189.05 | N114: 190.9 | O114: 136009500
A115: 100 | B115: 2016-02-16 | C115: 188.770004 | D115: 189.809998 | E115: 187.630005 | F115: 189.779999 | G115: 120250700 | H115: 187.829409 | I115: 0.9897218358 | J115: 1 | K115: 186.83 | L115: 187.86 | M115: 185.7 | N115: 187.83 | O115: 120250700
A116: 101 | B116: 2016-02-12 | C116: 184.960007 | D116: 186.649994 | E116: 183.960007 | F116: 186.630005 | G116: 127632400 | H116: 184.711791 | I116: 0.9897218349 | J116: 1 | K116: 183.06 | L116: 184.73 | M116: 182.07 | N116: 184.71 | O116: 127632400
A117: 102 | B117: 2016-02-11 | C117: 182.339996 | D117: 184.100006 | E117: 181.089996 | F117: 182.860001 | G117: 219058900 | H117: 180.980535 | I117: 0.989721831 | J117: 1 | K117: 180.47 | L117: 182.21 | M117: 179.23 | N117: 180.98 | O117: 219058900
A118: 103 | B118: 2016-02-10 | C118: 186.410004 | D118: 188.339996 | E118: 185.119995 | F118: 185.270004 | G118: 148214100 | H118: 183.365769 | I118: 0.9897218386 | J118: 1 | K118: 184.49 | L118: 186.4 | M118: 183.22 | N118: 183.37 | O118: 148214100
A119: 104 | B119: 2016-02-09 | C119: 183.360001 | D119: 186.940002 | E119: 183.199997 | F119: 185.429993 | G119: 184513100 | H119: 183.524113 | I119: 0.9897218353 | J119: 1 | K119: 181.48 | L119: 185.02 | M119: 181.32 | N119: 183.52 | O119: 184513100
A120: 105 | B120: 2016-02-08 | C120: 185.770004 | D120: 186.119995 | E120: 182.800003 | F120: 185.419998 | G120: 191526700 | H120: 183.514221 | I120: 0.9897218368 | J120: 1 | K120: 183.86 | L120: 184.21 | M120: 180.92 | N120: 183.51 | O120: 191526700
A121: 106 | B121: 2016-02-05 | C121: 190.990005 | D121: 191.669998 | E121: 187.199997 | F121: 187.949997 | G121: 180788300 | H121: 186.018216 | I121: 0.9897218354 | J121: 1 | K121: 189.03 | L121: 189.7 | M121: 185.28 | N121: 186.02 | O121: 180788300
A122: 107 | B122: 2016-02-04 | C122: 190.710007 | D122: 192.75 | E122: 189.960007 | F122: 191.600006 | G122: 139531800 | H122: 189.63071 | I122: 0.9897218375 | J122: 1 | K122: 188.75 | L122: 190.77 | M122: 188.01 | N122: 189.63 | O122: 139531800
A123: 108 | B123: 2016-02-03 | C123: 191.410004 | D123: 191.779999 | E123: 187.100006 | F123: 191.300003 | G123: 205054900 | H123: 189.33379 | I123: 0.989721835 | J123: 1 | K123: 189.44 | L123: 189.81 | M123: 185.18 | N123: 189.33 | O123: 205054900
A124: 109 | B124: 2016-02-02 | C124: 191.960007 | D124: 191.970001 | E124: 189.539993 | F124: 190.160004 | G124: 182564900 | H124: 188.205508 | I124: 0.9897218345 | J124: 1 | K124: 189.99 | L124: 190 | M124: 187.59 | N124: 188.21 | O124: 182564900
A125: 110 | B125: 2016-02-01 | C125: 192.529999 | D125: 194.580002 | E125: 191.839996 | F125: 193.649994 | G125: 136061600 | H125: 191.659627 | I125: 0.9897218329 | J125: 1 | K125: 190.55 | L125: 192.58 | M125: 189.87 | N125: 191.66 | O125: 136061600
A126: 111 | B126: 2016-01-29 | C126: 190.020004 | D126: 193.880005 | E126: 189.880005 | F126: 193.720001 | G126: 210529300 | H126: 191.728915 | I126: 0.9897218357 | J126: 1 | K126: 188.07 | L126: 191.89 | M126: 187.93 | N126: 191.73 | O126: 210529300
A127: 112 | B127: 2016-01-28 | C127: 189.960007 | D127: 190.199997 | E127: 187.160004 | F127: 189.110001 | G127: 143798800 | H127: 187.166297 | I127: 0.9897218339 | J127: 1 | K127: 188.01 | L127: 188.25 | M127: 185.24 | N127: 187.17 | O127: 143798800
A128: 113 | B128: 2016-01-27 | C128: 189.580002 | D128: 191.559998 | E128: 187.059998 | F128: 188.130005 | G128: 185681700 | H128: 186.196374 | I128: 0.9897218362 | J128: 1 | K128: 187.63 | L128: 189.59 | M128: 185.14 | N128: 186.2 | O128: 185681700
A129: 114 | B129: 2016-01-26 | C129: 188.419998 | D129: 190.529999 | E129: 188.020004 | F129: 190.199997 | G129: 141036800 | H129: 188.24509 | I129: 0.9897218347 | J129: 1 | K129: 186.48 | L129: 188.57 | M129: 186.09 | N129: 188.25 | O129: 141036800
A130: 115 | B130: 2016-01-25 | C130: 189.919998 | D130: 190.149994 | E130: 187.410004 | F130: 187.639999 | G130: 130371700 | H130: 185.711404 | I130: 0.9897218343 | J130: 1 | K130: 187.97 | L130: 188.2 | M130: 185.48 | N130: 185.71 | O130: 130371700
A131: 116 | B131: 2016-01-22 | C131: 189.779999 | D131: 190.759995 | E131: 188.880005 | F131: 190.520004 | G131: 168319600 | H131: 188.561808 | I131: 0.9897218352 | J131: 1 | K131: 187.83 | L131: 188.8 | M131: 186.94 | N131: 188.56 | O131: 168319600
A132: 117 | B132: 2016-01-21 | C132: 186.210007 | D132: 188.869995 | E132: 184.639999 | F132: 186.690002 | G132: 195772900 | H132: 184.771172 | I132: 0.9897218385 | J132: 1 | K132: 184.3 | L132: 186.93 | M132: 182.74 | N132: 184.77 | O132: 195772900
A133: 118 | B133: 2016-01-20 | C133: 185.029999 | D133: 187.5 | E133: 181.020004 | F133: 185.649994 | G133: 286547800 | H133: 183.741853 | I133: 0.9897218365 | J133: 1 | K133: 183.13 | L133: 185.57 | M133: 179.16 | N133: 183.74 | O133: 286547800
A134: 119 | B134: 2016-01-19 | C134: 189.960007 | D134: 190.110001 | E134: 186.199997 | F134: 188.059998 | G134: 195244400 | H134: 186.127086 | I134: 0.9897218333 | J134: 1 | K134: 188.01 | L134: 188.16 | M134: 184.29 | N134: 186.13 | O134: 195244400
A135: 120 | B135: 2016-01-15 | C135: 186.770004 | D135: 188.759995 | E135: 185.520004 | F135: 187.809998 | G135: 324846400 | H135: 185.879655 | I135: 0.9897218305 | J135: 1 | K135: 184.85 | L135: 186.82 | M135: 183.61 | N135: 185.88 | O135: 324846400
A136: 121 | B136: 2016-01-14 | C136: 189.550003 | D136: 193.259995 | E136: 187.660004 | F136: 191.929993 | G136: 240795600 | H136: 189.957304 | I136: 0.9897218305 | J136: 1 | K136: 187.6 | L136: 191.27 | M136: 185.73 | N136: 189.96 | O136: 240795600
A137: 122 | B137: 2016-01-13 | C137: 194.449997 | D137: 194.860001 | E137: 188.380005 | F137: 188.830002 | G137: 221168900 | H137: 186.889176 | I137: 0.9897218346 | J137: 1 | K137: 192.45 | L137: 192.86 | M137: 186.44 | N137: 186.89 | O137: 221168900
A138: 123 | B138: 2016-01-12 | C138: 193.820007 | D138: 194.550003 | E138: 191.139999 | F138: 193.660004 | G138: 172330500 | H138: 191.669534 | I138: 0.9897218323 | J138: 1 | K138: 191.83 | L138: 192.55 | M138: 189.18 | N138: 191.67 | O138: 172330500
A139: 124 | B139: 2016-01-11 | C139: 193.009995 | D139: 193.410004 | E139: 189.820007 | F139: 192.110001 | G139: 187941300 | H139: 190.135462 | I139: 0.9897218313 | J139: 1 | K139: 191.03 | L139: 191.42 | M139: 187.87 | N139: 190.14 | O139: 187941300
A140: 125 | B140: 2016-01-08 | C140: 195.190002 | D140: 195.850006 | E140: 191.580002 | F140: 191.919998 | G140: 209817200 | H140: 189.947413 | I140: 0.9897218371 | J140: 1 | K140: 193.18 | L140: 193.84 | M140: 189.61 | N140: 189.95 | O140: 209817200
A141: 126 | B141: 2016-01-07 | C141: 195.330002 | D141: 197.440002 | E141: 193.589996 | F141: 194.050003 | G141: 213436100 | H141: 192.055525 | I141: 0.9897218347 | J141: 1 | K141: 193.32 | L141: 195.41 | M141: 191.6 | N141: 192.06 | O141: 213436100
A142: 127 | B142: 2016-01-06 | C142: 198.339996 | D142: 200.059998 | E142: 197.600006 | F142: 198.820007 | G142: 152112600 | H142: 196.776502 | I142: 0.9897218342 | J142: 1 | K142: 196.3 | L142: 198 | M142: 195.57 | N142: 196.78 | O142: 152112600
A143: 128 | B143: 2016-01-05 | C143: 201.399994 | D143: 201.899994 | E143: 200.050003 | F143: 201.360001 | G143: 110845800 | H143: 199.290389 | I143: 0.9897218316 | J143: 1 | K143: 199.33 | L143: 199.82 | M143: 197.99 | N143: 199.29 | O143: 110845800
A144: 129 | B144: 2016-01-04 | C144: 200.490005 | D144: 201.029999 | E144: 198.589996 | F144: 201.020004 | G144: 222353500 | H144: 198.953887 | I144: 0.9897218339 | J144: 1 | K144: =ROUND($I144*C144,2) -> 198.43 | L144: =ROUND($I144*D144,2) -> 198.96 | M144: =ROUND($I144*E144,2) -> 196.55 | N144: =ROUND($I144*F144,2) -> 198.95 | O144: 222353500
A145: 130 | B145: 2015-12-31 | C145: 205.130005 | D145: 205.889999 | E145: 203.869995 | F145: 203.869995 | G145: 114877900 | H145: 201.774586 | I145: 0.9897218372 | J145: 1 | K145: 203.02 | L145: 203.77 | M145: 201.77 | N145: 201.77 | O145: 114877900
A146: 131 | B146: 2015-12-30 | C146: 207.110001 | D146: 207.210007 | E146: 205.759995 | F146: 205.929993 | G146: 63317700 | H146: 203.81341 | I146: =H146/F146 -> 0.9897218323 | J146: =INDEX(OFFSET($T$15,0,0,$S$13+1,1),MATCH(B146,OFFSET($Q$15,0,0,$S$13+1,1),-1)) -> 1 | K146: 204.98 | L146: 205.08 | M146: 203.65 | N146: 203.81 | O146: =G146*J146 -> 63317700
A147: 132 | B147: 2015-12-29 | C147: 206.509995 | D147: 207.789993 | E147: 206.470001 | F147: 207.399994 | G147: 92640700 | H147: 205.268302 | I147: 0.9897218319 | J147: 1 | K147: 204.39 | L147: 205.65 | M147: 204.35 | N147: 205.27 | O147: 92640700
A148: 133 | B148: 2015-12-28 | C148: 204.860001 | D148: 205.259995 | E148: 203.940002 | F148: 205.210007 | G148: 65899900 | H148: 203.100824 | I148: 0.9897218316 | J148: 1 | K148: 202.75 | L148: 203.15 | M148: 201.84 | N148: 203.1 | O148: 65899900
A149: 134 | B149: 2015-12-24 | C149: 205.720001 | D149: 206.330002 | E149: 205.419998 | F149: 205.679993 | G149: 48542200 | H149: 203.56598 | I149: 0.9897218345 | J149: 1 | K149: 203.61 | L149: 204.21 | M149: 203.31 | N149: 203.57 | O149: 48542200
A150: 135 | B150: 2015-12-23 | C150: 204.690002 | D150: 206.070007 | E150: 204.580002 | F150: 206.020004 | G150: 110987200 | H150: 203.902497 | I150: 0.9897218379 | J150: 1 | K150: 202.59 | L150: 203.95 | M150: 202.48 | N150: 203.9 | O150: 110987200
A151: 136 | B151: 2015-12-22 | C151: 202.720001 | D151: 203.850006 | E151: 201.550003 | F151: 203.5 | G151: 111026200 | H151: 201.408393 | I151: 0.9897218329 | J151: 1 | K151: 200.64 | L151: 201.75 | M151: 199.48 | N151: 201.41 | O151: 111026200
A152: 137 | B152: 2015-12-21 | C152: 201.410004 | D152: 201.880005 | E152: 200.089996 | F152: 201.669998 | G152: 99094300 | H152: 199.597201 | I152: 0.9897218376 | J152: 1 | K152: 199.34 | L152: 199.81 | M152: 198.03 | N152: 199.6 | O152: 99094300
A153: 138 | B153: 2015-12-18 | C153: 202.770004 | D153: 202.929993 | E153: 199.830002 | F153: 200.020004 | G153: 251393500 | H153: 197.964166 | I153: 0.989721838 | J153: 1 | K153: 200.69 | L153: 200.84 | M153: 197.78 | N153: 197.96 | O153: 251393500
A154: 139 | B154: 2015-12-17 | C154: 208.399994 | D154: 208.479996 | E154: 204.839996 | F154: 204.860001 | G154: 173092500 | H154: 201.55487 | I154: 0.9838663918 | J154: 1 | K154: 205.04 | L154: 205.12 | M154: 201.54 | N154: 201.55 | O154: 173092500
A155: 140 | B155: 2015-12-16 | C155: 206.369995 | D155: 208.389999 | E155: 204.800003 | F155: 208.029999 | G155: 197017000 | H155: 204.673725 | I155: 0.9838663942 | J155: 1 | K155: 203.04 | L155: 205.03 | M155: 201.5 | N155: 204.67 | O155: 197017000
A156: 141 | B156: 2015-12-15 | C156: 204.699997 | D156: 206.110001 | E156: 202.869995 | F156: 205.029999 | G156: 154069600 | H156: 201.722125 | I156: 0.9838663902 | J156: 1 | K156: 201.4 | L156: 202.78 | M156: 199.6 | N156: 201.72 | O156: 154069600
A157: 142 | B157: 2015-12-14 | C157: 202.070007 | D157: 203.050003 | E157: 199.949997 | F157: 202.899994 | G157: 182385200 | H157: 199.626485 | I157: 0.9838663918 | J157: 1 | K157: 198.81 | L157: 199.77 | M157: 196.72 | N157: 199.63 | O157: 182385200
A158: 143 | B158: 2015-12-11 | C158: 203.350006 | D158: 204.139999 | E158: 201.509995 | F158: 201.880005 | G158: 211173300 | H158: 198.622952 | I158: 0.9838663913 | J158: 1 | K158: 200.07 | L158: 200.85 | M158: 198.26 | N158: 198.62 | O158: 211173300
A159: 144 | B159: 2015-12-10 | C159: 205.419998 | D159: 207.429993 | E159: 205.139999 | F159: 205.869995 | G159: 116128900 | H159: 202.54857 | I159: 0.9838663959 | J159: 1 | K159: 202.11 | L159: 204.08 | M159: 201.83 | N159: 202.55 | O159: 116128900
A160: 145 | B160: 2015-12-09 | C160: 206.190002 | D160: 208.679993 | E160: 204.179993 | F160: 205.339996 | G160: 162401500 | H160: 202.027122 | I160: 0.9838663969 | J160: 1 | K160: 202.86 | L160: 205.31 | M160: 200.89 | N160: 202.03 | O160: 162401500
A161: 146 | B161: 2015-12-08 | C161: 206.490005 | D161: 208.289993 | E161: 205.779999 | F161: 206.949997 | G161: 103372400 | H161: 203.611147 | I161: 0.9838663926 | J161: 1 | K161: 203.16 | L161: 204.93 | M161: 202.46 | N161: 203.61 | O161: 103372400
A162: 147 | B162: 2015-12-07 | C162: 209.229996 | D162: 209.729996 | E162: 207.199997 | F162: 208.350006 | G162: 102027100 | H162: 204.988569 | I162: 0.9838663936 | J162: 1 | K162: 205.85 | L162: 206.35 | M162: 203.86 | N162: 204.99 | O162: 102027100
A163: 148 | B163: 2015-12-04 | C163: 205.610001 | D163: 209.970001 | E163: 205.610001 | F163: 209.619995 | G163: 192913900 | H163: 206.238069 | I163: 0.983866396 | J163: 1 | K163: 202.29 | L163: 206.58 | M163: 202.29 | N163: 206.24 | O163: 192913900
A164: 149 | B164: 2015-12-03 | C164: 208.830002 | D164: 209.149994 | E164: 204.75 | F164: 205.610001 | G164: 166224200 | H164: 202.29277 | I164: 0.9838663928 | J164: 1 | K164: 205.46 | L164: 205.78 | M164: 201.45 | N164: 202.29 | O164: 166224200
A165: 150 | B165: 2015-12-02 | C165: 210.619995 | D165: 211 | E165: 208.229996 | F165: 208.529999 | G165: 108441300 | H165: 205.165658 | I165: 0.9838663932 | J165: 1 | K165: 207.22 | L165: 207.6 | M165: 204.87 | N165: 205.17 | O165: 108441300
A166: 151 | B166: 2015-12-01 | C166: 209.440002 | D166: 210.820007 | E166: 209.110001 | F166: 210.679993 | G166: 97858400 | H166: 207.280965 | I166: 0.983866394 | J166: 1 | K166: 206.06 | L166: 207.42 | M166: 205.74 | N166: 207.28 | O166: 97858400
A167: 152 | B167: 2015-11-30 | C167: 209.75 | D167: 209.889999 | E167: 208.559998 | F167: 208.690002 | G167: 112822700 | H167: 205.32308 | I167: 0.9838663953 | J167: 1 | K167: 206.37 | L167: 206.5 | M167: 205.2 | N167: 205.32 | O167: 112822700
A168: 153 | B168: 2015-11-27 | C168: 209.429993 | D168: 209.800003 | E168: 208.860001 | F168: 209.559998 | G168: 37317800 | H168: 206.179039 | I168: 0.9838663913 | J168: 1 | K168: 206.05 | L168: 206.42 | M168: 205.49 | N168: 206.18 | O168: 37317800
A169: 154 | B169: 2015-11-25 | C169: 209.5 | D169: 209.740005 | E169: 209.009995 | F169: 209.320007 | G169: 51980100 | H169: 205.942921 | I169: 0.9838663965 | J169: 1 | K169: 206.12 | L169: 206.36 | M169: 205.64 | N169: 205.94 | O169: 51980100
A170: 155 | B170: 2015-11-24 | C170: 207.869995 | D170: 209.830002 | E170: 207.410004 | F170: 209.350006 | G170: 98874400 | H170: 205.972435 | I170: 0.9838663917 | J170: 1 | K170: 204.52 | L170: 206.44 | M170: 204.06 | N170: 205.97 | O170: 98874400
A171: 156 | B171: 2015-11-23 | C171: 209.380005 | D171: 209.979996 | E171: 208.520004 | F171: 209.070007 | G171: 64931200 | H171: 205.696954 | I171: 0.9838663946 | J171: 1 | K171: 206 | L171: 206.59 | M171: 205.16 | N171: 205.7 | O171: 64931200
A172: 157 | B172: 2015-11-20 | C172: 209.449997 | D172: 210.119995 | E172: 208.860001 | F172: 209.309998 | G172: 94011500 | H172: 205.933072 | I172: 0.9838663894 | J172: 1 | K172: 206.07 | L172: 206.73 | M172: 205.49 | N172: 205.93 | O172: 94011500
A173: 158 | B173: 2015-11-19 | C173: 208.589996 | D173: 209.050003 | E173: 208.199997 | F173: 208.550003 | G173: 88220500 | H173: 205.185339 | I173: 0.983866392 | J173: 1 | K173: 205.22 | L173: 205.68 | M173: 204.84 | N173: 205.19 | O173: 88220500
A174: 159 | B174: 2015-11-18 | C174: 206.039993 | D174: 208.899994 | E174: 205.990005 | F174: 208.729996 | G174: 121342500 | H174: 205.362428 | I174: 0.9838663917 | J174: 1 | K174: 202.72 | L174: 205.53 | M174: 202.67 | N174: 205.36 | O174: 121342500
A175: 160 | B175: 2015-11-17 | C175: 205.990005 | D175: 207.039993 | E175: 204.880005 | F175: 205.470001 | G175: 121123700 | H175: 202.155029 | I175: 0.9838663942 | J175: 1 | K175: 202.67 | L175: 203.7 | M175: 201.57 | N175: 202.16 | O175: 121123700
A176: 161 | B176: 2015-11-16 | C176: 202.320007 | D176: 205.690002 | E176: 202.179993 | F176: 205.619995 | G176: 117645200 | H176: 202.302603 | I176: 0.9838663939 | J176: 1 | K176: 199.06 | L176: 202.37 | M176: 198.92 | N176: 202.3 | O176: 117645200
A177: 162 | B177: 2015-11-13 | C177: 204.350006 | D177: 204.669998 | E177: 202.440002 | F177: 202.539993 | G177: 153577100 | H177: 199.272293 | I177: 0.9838663962 | J177: 1 | K177: 201.05 | L177: 201.37 | M177: 199.17 | N177: 199.27 | O177: 153577100
A178: 163 | B178: 2015-11-12 | C178: 206.5 | D178: 207.059998 | E178: 204.820007 | F178: 204.839996 | G178: 121315200 | H178: 201.535188 | I178: 0.983866393 | J178: 1 | K178: 203.17 | L178: 203.72 | M178: 201.52 | N178: 201.54 | O178: 121315200
A179: 164 | B179: 2015-11-11 | C179: 208.880005 | D179: 208.940002 | E179: 207.660004 | F179: 207.740005 | G179: 67846000 | H179: 204.38841 | I179: 0.9838663959 | J179: 1 | K179: 205.51 | L179: 205.57 | M179: 204.31 | N179: 204.39 | O179: 67846000
A180: 165 | B180: 2015-11-10 | C180: 207.509995 | D180: 208.600006 | E180: 207.190002 | F180: 208.559998 | G180: 75874600 | H180: 205.195173 | I180: 0.9838663932 | J180: 1 | K180: 204.16 | L180: 205.23 | M180: 203.85 | N180: 205.2 | O180: 75874600
A181: 166 | B181: 2015-11-09 | C181: 209.309998 | D181: 209.490005 | E181: 206.949997 | F181: 208.080002 | G181: 131008700 | H181: 204.722921 | I181: 0.9838663929 | J181: 1 | K181: 205.93 | L181: 206.11 | M181: 203.61 | N181: 204.72 | O181: 131008700
A182: 167 | B182: 2015-11-06 | C182: 209.740005 | D182: 210.320007 | E182: 208.460007 | F182: 210.039993 | G182: 110471500 | H182: 206.651291 | I182: 0.9838663963 | J182: 1 | K182: 206.36 | L182: 206.93 | M182: 205.1 | N182: 206.65 | O182: 110471500
A183: 168 | B183: 2015-11-05 | C183: 210.429993 | D183: 210.979996 | E183: 209.089996 | F183: 210.149994 | G183: 78408700 | H183: 206.759517 | I183: 0.983866395 | J183: 1 | K183: 207.03 | L183: 207.58 | M183: 205.72 | N183: 206.76 | O183: 78408700
A184: 169 | B184: 2015-11-04 | C184: 211.350006 | D184: 211.5 | E184: 209.720001 | F184: 210.360001 | G184: 96224500 | H184: 206.966135 | I184: 0.983866391 | J184: 1 | K184: 207.94 | L184: 208.09 | M184: 206.34 | N184: 206.97 | O184: 96224500
A185: 170 | B185: 2015-11-03 | C185: 209.970001 | D185: 211.660004 | E185: 209.699997 | F185: 211 | G185: 95246100 | H185: 207.595809 | I185: 0.9838663934 | J185: 1 | K185: 206.58 | L185: 208.25 | M185: 206.32 | N185: 207.6 | O185: 95246100
A186: 171 | B186: 2015-11-02 | C186: 208.320007 | D186: 210.619995 | E186: 208.169998 | F186: 210.389999 | G186: 86270800 | H186: 206.99565 | I186: 0.9838663957 | J186: 1 | K186: 204.96 | L186: 207.22 | M186: 204.81 | N186: 207 | O186: 86270800
A187: 172 | B187: 2015-10-30 | C187: 209.059998 | D187: 209.440002 | E187: 207.740005 | F187: 207.929993 | G187: 131076900 | H187: 204.575332 | I187: 0.983866392 | J187: 1 | K187: 205.69 | L187: 206.06 | M187: 204.39 | N187: 204.58 | O187: 131076900
A188: 173 | B188: 2015-10-29 | C188: 208.350006 | D188: 209.270004 | E188: 208.210007 | F188: 208.830002 | G188: 90525500 | H188: 205.460821 | I188: 0.9838663939 | J188: 1 | K188: 204.99 | L188: 205.89 | M188: 204.85 | N188: 205.46 | O188: 90525500
A189: 174 | B189: 2015-10-28 | C189: 207 | D189: 208.979996 | E189: 206.210007 | F189: 208.949997 | G189: 135906700 | H189: 205.57888 | I189: 0.9838663936 | J189: 1 | K189: 203.66 | L189: 205.61 | M189: 202.88 | N189: 205.58 | O189: 135906700
A190: 175 | B190: 2015-10-27 | C190: 206.199997 | D190: 207 | E190: 205.789993 | F190: 206.600006 | G190: 77905800 | H190: 203.266803 | I190: 0.9838663945 | J190: 1 | K190: 202.87 | L190: 203.66 | M190: 202.47 | N190: 203.27 | O190: 77905800
A191: 176 | B191: 2015-10-26 | C191: 207.300003 | D191: 207.369995 | E191: 206.559998 | F191: 207 | G191: 69033000 | H191: 203.660343 | I191: 0.9838663913 | J191: 1 | K191: 203.96 | L191: 204.02 | M191: 203.23 | N191: 203.66 | O191: 69033000
A192: 177 | B192: 2015-10-23 | C192: 207.25 | D192: 207.949997 | E192: 206.300003 | F192: 207.509995 | G192: 144442300 | H192: 204.16211 | I192: 0.9838663916 | J192: 1 | K192: 203.91 | L192: 204.6 | M192: 202.97 | N192: 204.16 | O192: 144442300
A193: 178 | B193: 2015-10-22 | C193: 202.979996 | D193: 205.509995 | E193: 201.850006 | F193: 205.259995 | G193: 174911700 | H193: 201.948411 | I193: 0.9838663934 | J193: 1 | K193: 199.71 | L193: 202.19 | M193: 198.59 | N193: 201.95 | O193: 174911700
A194: 179 | B194: 2015-10-21 | C194: 203.610001 | D194: 203.789993 | E194: 201.649994 | F194: 201.850006 | G194: 102038000 | H194: 198.593438 | I194: 0.9838663963 | J194: 1 | K194: 200.33 | L194: 200.5 | M194: 198.4 | N194: 198.59 | O194: 102038000
A195: 180 | B195: 2015-10-20 | C195: 202.850006 | D195: 203.839996 | E195: 202.550003 | F195: 203.110001 | G195: 78448500 | H195: 199.833104 | I195: 0.9838663927 | J195: 1 | K195: 199.58 | L195: 200.55 | M195: 199.28 | N195: 199.83 | O195: 78448500
A196: 181 | B196: 2015-10-19 | C196: 202.5 | D196: 203.369995 | E196: 202.130005 | F196: 203.369995 | G196: 76523900 | H196: 200.088904 | I196: 0.9838663958 | J196: 1 | K196: 199.23 | L196: 200.09 | M196: 198.87 | N196: 200.09 | O196: 76523900
A197: 182 | B197: 2015-10-16 | C197: 202.830002 | D197: 203.289993 | E197: 201.919998 | F197: 203.270004 | G197: 109692900 | H197: 199.990526 | I197: 0.9838663948 | J197: 1 | K197: 199.56 | L197: 200.01 | M197: 198.66 | N197: 199.99 | O197: 109692900
A198: 183 | B198: 2015-10-15 | C198: 200.080002 | D198: 202.360001 | E198: 199.639999 | F198: 202.350006 | G198: 134142200 | H198: 199.085371 | I198: 0.9838663953 | J198: 1 | K198: 196.85 | L198: 199.1 | M198: 196.42 | N198: 199.09 | O198: 134142200
A199: 184 | B199: 2015-10-14 | C199: 200.179993 | D199: 200.869995 | E199: 198.940002 | F199: 199.289993 | G199: 99106200 | H199: 196.074727 | I199: 0.9838663951 | J199: 1 | K199: 196.95 | L199: 197.63 | M199: 195.73 | N199: 196.07 | O199: 99106200
A200: 185 | B200: 2015-10-13 | C200: 200.649994 | D200: 202.160004 | E200: 200.050003 | F200: 200.25 | G200: 88038700 | H200: 197.019245 | I200: 0.983866392 | J200: 1 | K200: 197.41 | L200: 198.9 | M200: 196.82 | N200: 197.02 | O200: 88038700
... 5718 more rows

Sheet CalculationsAndCharts
A1: MeasuringMarketCycles
A2: =InputPriceData!A1 -> SPDR S&P 500 (SPY) -PCX (Daily)
A4: User Charting Controls | E4: Click to Shift Chart One Bar:
A5: Data Control
A6: =InputPriceData!$B$10 -> 5903 | B6: Available Input Data Rows | E6: Earliest: | F6: =OFFSET(InputPriceData!B15,CalculationsAndCharts!A6,0,1,1) -> 1993-01-29
B7: Use Close Adjusted: | C7: TRUE | E7: Latest: | F7: =OFFSET(InputPriceData!B15,1,0,1,1) -> 2016-07-07
A8: =MAX(A33:A5000) -> 1073 | B8: Last RelRow | E8: $ Change: | F8: =InputPriceData!I4 -> -0.6
A9: =MIN(A6-A11,A8)-48 -> 1025 | B9: Logically Available for Calc / Plot
A10: Price Chart Windowing Controls | F10: Y-axis Range
A11: 129 | B11: Input Data Offset (Pan) | D11: Depth Percent | E11: Max High+ | F11: =CEILING(MAX(OFFSET($E$33,0,0,$A$12,1))+2*F14,0.1) -> 211.8
A12: 253 | B12: Data Points to Plot (Zoom) | D12: 58 | E12: Min Low- | F12: =FLOOR(MIN(OFFSET($F$33,0,0,$A$12,1))-2*F14,0.1) -> 175.4 | K12: =$A$9+48 -> 1073
B13: First: | C13: =OFFSET(B32,A12,0,1,1) -> 2014-12-31 | E13: White space %: | F13: 0.05
B14: ="Last: " & OFFSET(InputPriceData!P15,1+A11,0,1,1) -> Last: | C14: =B33 -> 2015-12-31 | E14: Allowance: | F14: =FLOOR((CEILING(MAX(MAX(OFFSET($E$33,0,0,$A$12,1))),1)-FLOOR(MIN(MIN(OFFSET($F$33,0,0,$A$12,1))),1))*F13,0.01) -> 1.55
A15: User Controls
B16: AvgLength: | C16: 3
C17: FALSE
A23: Help! I would like to plot data
A24: From | B24: 2014-12-31 | C24: =OFFSET(InputPriceData!$A$15,MATCH(B24,OFFSET(InputPriceData!B15,1,0,InputPriceData!$B$10,1),0),0,1,1)-C25 -> 253 | E24: 62
A25: To | B25: 2015-12-31 | C25: =OFFSET(InputPriceData!$A$15,MATCH(B25,OFFSET(InputPriceData!$B$15,1,0,InputPriceData!$B$10,1),0),0,1,1)-1 -> 129 | E25: =$A$12-$E$24+1 -> 192
H28: @ Cursor => | I28: =OFFSET(A32,$E$25,0,1,1)&"(RR)" -> 192(RR) | J28: =OFFSET($B$32,E25,0,1,1) -> 2015-03-31 | K28: =TEXT(OFFSET(D32,$E$25,0,1,1),"#,##0.00")&"(o)" -> 201.88(o) | L28: =TEXT(OFFSET(E32,$E$25,0,1,1),"#,##0.00")&"(h)" -> 202.70(h) | M28: =TEXT(OFFSET(F32,$E$25,0,1,1),"#,##0.00")&"(l)" -> 201.00(l) | N28: =TEXT(OFFSET(G32,$E$25,0,1,1),"#,##0.00")&"(c)" -> 201.07(c) | O28: =TEXT(OFFSET(J32,$E$25,0,1,1),"#,##0.00")&"(DomCycle)" -> 32.02(DomCycle)
E29: Cursor ==> | BH29: Chart cursors
BH30: Work area
A31: Rel Row | H31: Used To Color Vol Bars | J31: Dom Cycle | K31: Power at Cycle Count
B32: Date | C32: Volume | D32: Open | E32: High | F32: Low | G32: Close | H32: Up Vol | I32: Dn Vol | K32: 0 | L32: 1 | M32: 2 | N32: 3 | O32: 4 | P32: 5 | Q32: 6 | R32: 7 | S32: 8 | T32: 9 | U32: 10 | V32: 11 | W32: 12 | X32: 13 | Y32: 14 | Z32: 15 | AA32: 16 | AB32: 17 | AC32: 18 | AD32: 19 | AE32: 20 | AF32: 21 | AG32: 22 | AH32: 23 | AI32: 24 | AJ32: 25 | AK32: 26 | AL32: 27 | AM32: 28 | AN32: 29 | AO32: 30 | AP32: 31 | AQ32: 32 | AR32: 33 | AS32: 34 | AT32: 35 | AU32: 36 | AV32: 37 | AW32: 38 | AX32: 39 | AY32: 40 | AZ32: 41 | BA32: 42 | BB32: 43 | BC32: 44 | BD32: 45 | BE32: 46 | BF32: 47 | BG32: 48 | BH32: Volume Cursor | BJ32: =MAX(OFFSET(C33,0,0,A12,1)) -> 507244300 | BK32: Price Chart Cursor
A33: 1 | B33: =OFFSET(InputPriceData!B$15,CalculationsAndCharts!$A33+$A$11,0,1,1) -> 2015-12-31 | C33: =OFFSET(InputPriceData!G$15,CalculationsAndCharts!$A33+$A$11,IF($C$7,8,0),1,1) -> 114877900 | D33: =OFFSET(InputPriceData!C$15,CalculationsAndCharts!$A33+$A$11,IF($C$7,8,0),1,1) -> 203.02 | E33: =OFFSET(InputPriceData!D$15,CalculationsAndCharts!$A33+$A$11,IF($C$7,8,0),1,1) -> 203.77 | F33: =OFFSET(InputPriceData!E$15,CalculationsAndCharts!$A33+$A$11,IF($C$7,8,0),1,1) -> 201.77 | G33: =OFFSET(InputPriceData!F$15,CalculationsAndCharts!$A33+$A$11,IF($C$7,8,0),1,1) -> 201.77 | H33: =IF(G33>=D33,C33,NA()) ->  | I33: =IF(G33<D33,C33,NA()) -> 114877900 | J33: =CycleAndPower($C$17,OFFSET(CalcFilterAndPearsonsVals!$G$18,1,0,CalculationsAndCharts!$K$12,48)) -> 18.72881394 | K33: 0 | L33: 0 | M33: 0 | N33: 0.0005531412368 | O33: 0.0009135541433 | P33: 0.03076624542 | Q33: 0.2027536231 | R33: 0.04702699697 | S33: 0.01025018941 | T33: 0.1697033996 | U33: 0.07048251224 | V33: 0.03890030512 | W33: 0.008478304843 | X33: 0.01571752229 | Y33: 0.08213318936 | Z33: 0.2917958307 | AA33: 0.5929817343 | AB33: 0.8512871201 | AC33: 0.9907889422 | AD33: 1 | AE33: 0.9036635908 | AF33: 0.7442444968 | AG33: 0.5656558153 | AH33: 0.4007194078 | AI33: 0.2667528802 | AJ33: 0.1680045794 | AK33: 0.1007841666 | AL33: 0.05812953982 | AM33: 0.03281612572 | AN33: 0.01879633056 | AO33: 0.01160200468 | AP33: 0.008218388356 | AQ33: 0.006766528382 | AR33: 0.006170728758 | AS33: 0.005882351096 | AT33: 0.005675654886 | AU33: 0.005507691129 | AV33: 0.00542743002 | AW33: 0.005519821629 | AX33: 0.005873398274 | AY33: 0.006563143241 | AZ33: 0.007642917905 | BA33: 0.009143633767 | BB33: 0.01107467784 | BC33: 0.01342699537 | BD33: 0.01617683161 | BE33: 0.01928953022 | BF33: 0.02272304559 | BG33: 0.02643099571 | BH33: =$E$25 -> 192 | BJ33: 0 | BK33: =$E$25 -> 192 | BL33: =$F$11 -> 211.8
A34: 2 | B34: =OFFSET(InputPriceData!B$15,CalculationsAndCharts!$A34+$A$11,0,1,1) -> 2015-12-30 | C34: =OFFSET(InputPriceData!G$15,CalculationsAndCharts!$A34+$A$11,IF($C$7,8,0),1,1) -> 63317700 | D34: =OFFSET(InputPriceData!C$15,CalculationsAndCharts!$A34+$A$11,IF($C$7,8,0),1,1) -> 204.98 | E34: =OFFSET(InputPriceData!D$15,CalculationsAndCharts!$A34+$A$11,IF($C$7,8,0),1,1) -> 205.08 | F34: =OFFSET(InputPriceData!E$15,CalculationsAndCharts!$A34+$A$11,IF($C$7,8,0),1,1) -> 203.65 | G34: =OFFSET(InputPriceData!F$15,CalculationsAndCharts!$A34+$A$11,IF($C$7,8,0),1,1) -> 203.81 | I34: 63317700 | J34: 18.71890688 | K34: 0 | L34: 0 | M34: 0 | N34: 0.0003501552343 | O34: 0.0008958511511 | P34: 0.03039110437 | Q34: 0.1983859682 | R34: 0.04684462848 | S34: 0.00999328683 | T34: 0.1686763657 | U34: 0.07081528895 | V34: 0.03919580227 | W34: 0.008325675104 | X34: 0.01538444615 | Y34: 0.08250184833 | Z34: 0.2945831793 | AA34: 0.5985971165 | AB34: 0.8576905921 | AC34: 0.9949108463 | AD34: 1 | AE34: 0.8998393176 | AF34: 0.7382908915 | AG34: 0.5594301585 | AH34: 0.3954640491 | AI34: 0.2629465591 | AJ34: 0.1655779924 | AK34: 0.09941192953 | AL34: 0.05744673624 | AM34: 0.03252786394 | AN34: 0.0187066228 | AO34: 0.01159977576 | AP34: 0.008249348162 | AQ34: 0.006806743564 | AR34: 0.006207900696 | AS34: 0.005905235743 | AT34: 0.005669729209 | AU34: 0.005454717256 | AV34: 0.005306957756 | AW34: 0.005311293641 | AX34: 0.005558091694 | AY34: 0.006125599724 | AZ34: 0.007071778382 | BA34: 0.008431937223 | BB34: 0.01021974437 | BC34: 0.01243002546 | BD34: 0.01504233987 | BE34: 0.01802470724 | BF34: 0.02133711611 | BG34: 0.02493461775 | BH34: =$E$25 -> 192 | BJ34: =1.2*BJ32 -> 608693160 | BK34: =$E$25 -> 192 | BL34: =$F$12 -> 175.4
A35: 3 | B35: =OFFSET(InputPriceData!B$15,CalculationsAndCharts!$A35+$A$11,0,1,1) -> 2015-12-29 | C35: =OFFSET(InputPriceData!G$15,CalculationsAndCharts!$A35+$A$11,IF($C$7,8,0),1,1) -> 92640700 | D35: =OFFSET(InputPriceData!C$15,CalculationsAndCharts!$A35+$A$11,IF($C$7,8,0),1,1) -> 204.39 | E35: =OFFSET(InputPriceData!D$15,CalculationsAndCharts!$A35+$A$11,IF($C$7,8,0),1,1) -> 205.65 | F35: =OFFSET(InputPriceData!E$15,CalculationsAndCharts!$A35+$A$11,IF($C$7,8,0),1,1) -> 204.35 | G35: =OFFSET(InputPriceData!F$15,CalculationsAndCharts!$A35+$A$11,IF($C$7,8,0),1,1) -> 205.27 | H35: 92640700 | J35: 18.6764765 | K35: 0 | L35: 0 | M35: 0 | N35: 0.000216550239 | O35: 0.000477069545 | P35: 0.02503629457 | Q35: 0.1968467319 | R35: 0.04126770521 | S35: 0.01182282044 | T35: 0.1532740102 | U35: 0.07083736661 | V35: 0.04906030626 | W35: 0.009210004019 | X35: 0.01236407245 | Y35: 0.08315508292 | Z35: 0.3188771858 | AA35: 0.6418073746 | AB35: 0.8905285608 | AC35: 1 | AD35: 0.9823426739 | AE35: 0.8736144953 | AF35: 0.7146360724 | AG35: 0.5430712238 | AH35: 0.3864971543 | AI35: 0.2594752556 | AJ35: 0.165450921 | AK35: 0.1009637001 | AL35: 0.05963418904 | AM35: 0.03481075015 | AN35: 0.02087034178 | AO35: 0.01360374863 | AP35: 0.01012346143 | AQ35: 0.008592166965 | AR35: 0.007930443055 | AS35: 0.007569100692 | AT35: 0.007262020638 | AU35: 0.006954061194 | AV35: 0.006692245013 | AW35: 0.0065685265 | AX35: 0.006684640732 | AY35: 0.007131959703 | AZ35: 0.007981300861 | BA35: 0.009279146866 | BB35: 0.01104782304 | BC35: 0.01328795003 | BD35: 0.01598203581 | BE35: 0.01909845999 | BF35: 0.02259537999 | BG35: 0.02642428299
A36: 4 | B36: =OFFSET(InputPriceData!B$15,CalculationsAndCharts!$A36+$A$11,0,1,1) -> 2015-12-28 | C36: =OFFSET(InputPriceData!G$15,CalculationsAndCharts!$A36+$A$11,IF($C$7,8,0),1,1) -> 65899900 | D36: =OFFSET(InputPriceData!C$15,CalculationsAndCharts!$A36+$A$11,IF($C$7,8,0),1,1) -> 202.75 | E36: =OFFSET(InputPriceData!D$15,CalculationsAndCharts!$A36+$A$11,IF($C$7,8,0),1,1) -> 203.15 | F36: =OFFSET(InputPriceData!E$15,CalculationsAndCharts!$A36+$A$11,IF($C$7,8,0),1,1) -> 201.84 | G36: =OFFSET(InputPriceData!F$15,CalculationsAndCharts!$A36+$A$11,IF($C$7,8,0),1,1) -> 203.1 | H36: 65899900 | J36: 18.60390365 | K36: 0 | L36: 0 | M36: 0 | N36: 0.0001492066692 | O36: 0.0005472751809 | P36: 0.01840250098 | Q36: 0.195433076 | R36: 0.0380170353 | S36: 0.01332875595 | T36: 0.1258348142 | U36: 0.07304911018 | V36: 0.06018830679 | W36: 0.01051578603 | X36: 0.01090487646 | Y36: 0.08377050122 | Z36: 0.3380239502 | AA36: 0.6761052338 | AB36: 0.9154760081 | AC36: 1 | AD36: 0.9592947628 | AE36: 0.8376890356 | AF36: 0.675714985 | AG36: 0.5076923479 | AH36: 0.3579070142 | AI36: 0.2385373882 | AJ36: 0.1515612119 | AK36: 0.09278860526 | AL36: 0.05564431086 | AM36: 0.03361237497 | AN36: 0.02136280677 | AO36: 0.01501099373 | AP36: 0.01195264619 | AQ36: 0.01056282565 | AR36: 0.009902523325 | AS36: 0.009484128374 | AT36: 0.009101624239 | AU36: 0.008714437517 | AV36: 0.008370806887 | AW36: 0.008158651987 | AX36: 0.008175097344 | AY36: 0.008508534492 | AZ36: 0.009229071069 | BA36: 0.01038453238 | BB36: 0.01200004772 | BC36: 0.01407983576 | BD36: 0.01661021074 | BE36: 0.01956312684 | BF36: 0.02289979998 | BG36: 0.02657411223
A37: 5 | B37: =OFFSET(InputPriceData!B$15,CalculationsAndCharts!$A37+$A$11,0,1,1) -> 2015-12-24 | C37: =OFFSET(InputPriceData!G$15,CalculationsAndCharts!$A37+$A$11,IF($C$7,8,0),1,1) -> 48542200 | D37: =OFFSET(InputPriceData!C$15,CalculationsAndCharts!$A37+$A$11,IF($C$7,8,0),1,1) -> 203.61 | E37: =OFFSET(InputPriceData!D$15,CalculationsAndCharts!$A37+$A$11,IF($C$7,8,0),1,1) -> 204.21 | F37: =OFFSET(InputPriceData!E$15,CalculationsAndCharts!$A37+$A$11,IF($C$7,8,0),1,1) -> 203.31 | G37: =OFFSET(InputPriceData!F$15,CalculationsAndCharts!$A37+$A$11,IF($C$7,8,0),1,1) -> 203.57 | I37: 48542200 | J37: 18.55810124 | K37: 0 | L37: 0 | M37: 0 | N37: 0.0001720482165 | O37: 0.0006340604419 | P37: 0.01451215409 | Q37: 0.1550653401 | R37: 0.02141033299 | S37: 0.01208245082 | T37: 0.07835863128 | U37: 0.07828542882 | V37: 0.07016560525 | W37: 0.01099602287 | X37: 0.006419724777 | Y37: 0.07601074951 | Z37: 0.3439978016 | AA37: 0.6987825541 | AB37: 0.9355431436 | AC37: 1 | AD37: 0.9345789797 | AE37: 0.7927258667 | AF37: 0.6186417695 | AG37: 0.447051859 | AH37: 0.3008378014 | AI37: 0.1898152429 | AJ37: 0.1134026853 | AK37: 0.06527177865 | AL37: 0.03744323656 | AM37: 0.0227430718 | AN37: 0.01575720686 | AO37: 0.01286408498 | AP37: 0.01187138323 | AQ37: 0.0115784374 | AR37: 0.01140771966 | AS37: 0.01114178647 | AT37: 0.01075396801 | AU37: 0.01030726818 | AV37: 0.009897562701 | AW37: 0.009623480345 | AX37: 0.009571547012 | AY37: 0.009809773213 | AZ37: 0.01038582842 | BA37: 0.01132768371 | BB37: 0.01264555893 | BC37: 0.0143345138 | BD37: 0.01637728701 | BE37: 0.01874713176 | BF37: 0.02141048513 | BG37: 0.02432936862
A38: 6 | B38: =OFFSET(InputPriceData!B$15,CalculationsAndCharts!$A38+$A$11,0,1,1) -> 2015-12-23 | C38: =OFFSET(InputPriceData!G$15,CalculationsAndCharts!$A38+$A$11,IF($C$7,8,0),1,1) -> 110987200 | D38: =OFFSET(InputPriceData!C$15,CalculationsAndCharts!$A38+$A$11,IF($C$7,8,0),1,1) -> 202.59 | E38: =OFFSET(InputPriceData!D$15,CalculationsAndCharts!$A38+$A$11,IF($C$7,8,0),1,1) -> 203.95 | F38: =OFFSET(InputPriceData!E$15,CalculationsAndCharts!$A38+$A$11,IF($C$7,8,0),1,1) -> 202.48 | G38: =OFFSET(InputPriceData!F$15,CalculationsAndCharts!$A38+$A$11,IF($C$7,8,0),1,1) -> 203.9 | H38: 110987200 | J38: 18.34869715 | K38: 0 | L38: 0 | M38: 0 | N38: 0.0002147821083 | O38: 0.0007908805085 | P38: 0.01020570356 | Q38: 0.1455571735 | R38: 0.01611625586 | S38: 0.01334232542 | T38: 0.04075736705 | U38: 0.08375907957 | V38: 0.08576054493 | W38: 0.01266747999 | X38: 0.004793680625 | Y38: 0.0798588005 | Z38: 0.3791493915 | AA38: 0.7586854994 | AB38: 0.9793088725 | AC38: 1 | AD38: 0.8919660222 | AE38: 0.7240608157 | AF38: 0.5417775686 | AG38: 0.3749885065 | AH38: 0.240823889 | AI38: 0.1444210549 | AJ38: 0.08204585654 | AK38: 0.04564826054 | AL38: 0.02664683141 | AM38: 0.01800000777 | AN38: 0.01480379775 | AO38: 0.01405685263 | AP38: 0.01413477554 | AQ38: 0.01427906563 | AR38: 0.01421515218 | AS38: 0.01390825321 | AT38: 0.01342505188 | AU38: 0.01286356488 | AV38: 0.01232162453 | AW38: 0.01188480466 | AX38: 0.01162298484 | AY38: 0.01159020694 | AZ38: 0.01182555447 | BA38: 0.01235428881 | BB38: 0.01318908929 | BC38: 0.01433141929 | BD38: 0.01577304052 | BE38: 0.01749765123 | BF38: 0.01948258561 | BG38: 0.02170049531
A39: 7 | B39: =OFFSET(InputPriceData!B$15,CalculationsAndCharts!$A39+$A$11,0,1,1) -> 2015-12-22 | C39: =OFFSET(InputPriceData!G$15,CalculationsAndCharts!$A39+$A$11,IF($C$7,8,0),1,1) -> 111026200 | D39: =OFFSET(InputPriceData!C$15,CalculationsAndCharts!$A39+$A$11,IF($C$7,8,0),1,1) -> 200.64 | E39: =OFFSET(InputPriceData!D$15,CalculationsAndCharts!$A39+$A$11,IF($C$7,8,0),1,1) -> 201.75 | F39: =OFFSET(InputPriceData!E$15,CalculationsAndCharts!$A39+$A$11,IF($C$7,8,0),1,1) -> 199.48 | G39: =OFFSET(InputPriceData!F$15,CalculationsAndCharts!$A39+$A$11,IF($C$7,8,0),1,1) -> 201.41 | H39: 111026200 | J39: 18.06830448 | K39: 0 | L39: 0 | M39: 0 | N39: 0.0002084413953 | O39: 0.0007728101148 | P39: 0.009364708227 | Q39: 0.1451989669 | R39: 0.01614640237 | S39: 0.01458130286 | T39: 0.02499108007 | U39: 0.08507072469 | V39: 0.09597634939 | W39: 0.01401248439 | X39: 0.004909548075 | Y39: 0.08720806783 | Z39: 0.4115363046 | AA39: 0.8034146775 | AB39: 1 | AC39: 0.9794995661 | AD39: 0.840612018 | AE39: 0.6620213203 | AF39: 0.48462453 | AG39: 0.3300179957 | AH39: 0.2091814055 | AI39: 0.1241724917 | AJ39: 0.07032097035 | AK39: 0.03973489426 | AL39: 0.0244010141 | AM39: 0.0179034022 | AN39: 0.01587104164 | AO39: 0.01569854271 | AP39: 0.01602607646 | AQ39: 0.01625415204 | AR39: 0.01619211629 | AS39: 0.01584141504 | AT39: 0.01527851268 | AU39: 0.01459939596 | AV39: 0.01389698931 | AW39: 0.01325372244 | AX39: 0.0127398565 | AY39: 0.01241339471 | AZ39: 0.012320164 | BA39: 0.01249386357 | BB39: 0.01295625382 | BC39: 0.01371766756 | BD39: 0.01477791776 | BE39: 0.01612756824 | BF39: 0.01774946557 | BG39: 0.0196204035
A40: 8 | B40: =OFFSET(InputPriceData!B$15,CalculationsAndCharts!$A40+$A$11,0,1,1) -> 2015-12-21 | C40: =OFFSET(InputPriceData!G$15,CalculationsAndCharts!$A40+$A$11,IF($C$7,8,0),1,1) -> 99094300 | D40: =OFFSET(InputPriceData!C$15,CalculationsAndCharts!$A40+$A$11,IF($C$7,8,0),1,1) -> 199.34 | E40: =OFFSET(InputPriceData!D$15,CalculationsAndCharts!$A40+$A$11,IF($C$7,8,0),1,1) -> 199.81 | F40: =OFFSET(InputPriceData!E$15,CalculationsAndCharts!$A40+$A$11,IF($C$7,8,0),1,1) -> 198.03 | G40: =OFFSET(InputPriceData!F$15,CalculationsAndCharts!$A40+$A$11,IF($C$7,8,0),1,1) -> 199.6 | H40: 99094300 | J40: 17.86588518 | K40: 0 | L40: 0 | M40: 0 | N40: 0.0001334947746 | O40: 0.0008543875887 | P40: 0.005069581052 | Q40: 0.1285231736 | R40: 0.01233947502 | S40: 0.01483184393 | T40: 0.01371780318 | U40: 0.0746738259 | V40: 0.1033378792 | W40: 0.0155990424 | X40: 0.005410685708 | Y40: 0.09788286702 | Z40: 0.4541880936 | AA40: 0.8531532375 | AB40: 1 | AC40: 0.9096187628 | AD40: 0.727443943 | AE40: 0.5447647157 | AF40: 0.3889478867 | AG40: 0.2636581531 | AH40: 0.1686510995 | AI40: 0.1021289421 | AJ40: 0.05984274541 | AK40: 0.0358045383 | AL40: 0.02389459522 | AM40: 0.01907690549 | AN40: 0.01783164159 | AO40: 0.01801827416 | AP40: 0.01850432091 | AQ40: 0.01878902494 | AR40: 0.01871914535 | AS40: 0.01830910712 | AT40: 0.0176418751 | AU40: 0.01682079915 | AV40: 0.01594896626 | AW40: 0.0151212815 | AX40: 0.0144214739 | AY40: 0.01392063362 | AZ40: 0.01367620125 | BA40: 0.01373130387 | BB40: 0.01411459372 | BC40: 0.01484070439 | BD40: 0.01591131774 | BE40: 0.01731673117 | BF40: 0.01903775896 | BG40: 0.02104778992
A41: 9 | B41: =OFFSET(InputPriceData!B$15,CalculationsAndCharts!$A41+$A$11,0,1,1) -> 2015-12-18 | C41: =OFFSET(InputPriceData!G$15,CalculationsAndCharts!$A41+$A$11,IF($C$7,8,0),1,1) -> 251393500 | D41: =OFFSET(InputPriceData!C$15,CalculationsAndCharts!$A41+$A$11,IF($C$7,8,0),1,1) -> 200.69 | E41: =OFFSET(InputPriceData!D$15,CalculationsAndCharts!$A41+$A$11,IF($C$7,8,0),1,1) -> 200.84 | F41: =OFFSET(InputPriceData!E$15,CalculationsAndCharts!$A41+$A$11,IF($C$7,8,0),1,1) -> 197.78 | G41: =OFFSET(InputPriceData!F$15,CalculationsAndCharts!$A41+$A$11,IF($C$7,8,0),1,1) -> 197.96 | I41: 251393500 | J41: 17.56133238 | K41: 0 | L41: 0 | M41: 0 | N41: 9.895167204e-05 | O41: 0.0008955009014 | P41: 0.004136534294 | Q41: 0.1164884043 | R41: 0.008897862323 | S41: 0.01450725719 | T41: 0.008054435233 | U41: 0.07311593201 | V41: 0.1134421066 | W41: 0.01752236001 | X41: 0.006110495154 | Y41: 0.1136453974 | Z41: 0.5182648758 | AA41: 0.9298546267 | AB41: 1 | AC41: 0.7947177545 | AD41: 0.5354227816 | AE41: 0.3403000127 | AF41: 0.2186414686 | AG41: 0.1441799359 | AH41: 0.09568616979 | AI41: 0.06298225953 | AJ41: 0.04175394743 | AK41: 0.02930653149 | AL41: 0.02312614957 | AM41: 0.02088693843 | AN41: 0.02072882675 | AO41: 0.02137272001 | AP41: 0.02205998638 | AQ41: 0.02241500021 | AR41: 0.02230804096 | AS41: 0.02175125765 | AT41: 0.02083083385 | AU41: 0.0196665872 | AV41: 0.01838883567 | AW41: 0.01712497992 | AX41: 0.01599133141 | AY41: 0.01508795876 | AZ41: 0.01449558751 | BA41: 0.01427414594 | BB41: 0.01446271382 | BC41: 0.0150806311 | BD41: 0.01612948684 | BE41: 0.01759569119 | BF41: 0.01945334747 | BG41: 0.02166718206
A42: 10 | B42: =OFFSET(InputPriceData!B$15,CalculationsAndCharts!$A42+$A$11,0,1,1) -> 2015-12-17 | C42: =OFFSET(InputPriceData!G$15,CalculationsAndCharts!$A42+$A$11,IF($C$7,8,0),1,1) -> 173092500 | D42: =OFFSET(InputPriceData!C$15,CalculationsAndCharts!$A42+$A$11,IF($C$7,8,0),1,1) -> 205.04 | E42: =OFFSET(InputPriceData!D$15,CalculationsAndCharts!$A42+$A$11,IF($C$7,8,0),1,1) -> 205.12 | F42: =OFFSET(InputPriceData!E$15,CalculationsAndCharts!$A42+$A$11,IF($C$7,8,0),1,1) -> 201.54 | G42: =OFFSET(InputPriceData!F$15,CalculationsAndCharts!$A42+$A$11,IF($C$7,8,0),1,1) -> 201.55 | I42: 173092500 | J42: 17.34319135 | K42: 0 | L42: 0 | M42: 0 | N42: 9.91990587e-05 | O42: 0.0008818073147 | P42: 0.002680443397 | Q42: 0.1020093238 | R42: 0.007920140267 | S42: 0.01450163192 | T42: 0.005473211404 | U42: 0.05810729965 | V42: 0.1096834332 | W42: 0.01761125359 | X42: 0.005934900318 | Y42: 0.1149211289 | Z42: 0.5265952463 | AA42: 0.940728917 | AB42: 1 | AC42: 0.7772807396 | AD42: 0.5049108092 | AE42: 0.305462704 | AF42: 0.1865184991 | AG42: 0.1182297233 | AH42: 0.07654720172 | AI42: 0.04981339488 | AJ42: 0.03322661869 | AK42: 0.02412612622 | AL42: 0.0202316569 | AM42: 0.01948508663 | AN42: 0.0202606911 | AO42: 0.0214617012 | AP42: 0.02246180431 | AQ42: 0.02297671609 | AR42: 0.02293722767 | AS42: 0.0223941481 | AT42: 0.02145757832 | AU42: 0.02026174071 | AV42: 0.01894546881 | AW42: 0.01764116457 | AX42: 0.0164681001 | AY42: 0.01552812772 | AZ42: 0.01490305713 | BA42: 0.01465344992 | BB42: 0.01481869295 | BC42: 0.01541817132 | BD42: 0.0164532972 | BE42: 0.01791011535 | BF42: 0.01976220944 | BG42: 0.02197366828
A43: 11 | B43: =OFFSET(InputPriceData!B$15,CalculationsAndCharts!$A43+$A$11,0,1,1) -> 2015-12-16 | C43: =OFFSET(InputPriceData!G$15,CalculationsAndCharts!$A43+$A$11,IF($C$7,8,0),1,1) -> 197017000 | D43: =OFFSET(InputPriceData!C$15,CalculationsAndCharts!$A43+$A$11,IF($C$7,8,0),1,1) -> 203.04 | E43: =OFFSET(InputPriceData!D$15,CalculationsAndCharts!$A43+$A$11,IF($C$7,8,0),1,1) -> 205.03 | F43: =OFFSET(InputPriceData!E$15,CalculationsAndCharts!$A43+$A$11,IF($C$7,8,0),1,1) -> 201.5 | G43: =OFFSET(InputPriceData!F$15,CalculationsAndCharts!$A43+$A$11,IF($C$7,8,0),1,1) -> 204.67 | H43: 197017000 | J43: 16.99398573 | K43: 0 | L43: 0 | M43: 0 | N43: 0.0001131975993 | O43: 0.0008313737067 | P43: 0.001474519255 | Q43: 0.08116330634 | R43: 0.00587297984 | S43: 0.01424964233 | T43: 0.002643744071 | U43: 0.04064780489 | V43: 0.1186652876 | W43: 0.02008847509 | X43: 0.005831930702 | Y43: 0.1219988046 | Z43: 0.5652806346 | AA43: 0.9879508999 | AB43: 1 | AC43: 0.7117836451 | AD43: 0.3993917386 | AE43: 0.19491136 | AF43: 0.09287465387 | AG43: 0.04829271504 | AH43: 0.02834904598 | AI43: 0.01846516822 | AJ43: 0.01393027194 | AK43: 0.01312061253 | AL43: 0.0148087193 | AM43: 0.01774905774 | AN43: 0.02089398655 | AO43: 0.02355327549 | AP43: 0.02538917006 | AQ43: 0.02632307144 | AR43: 0.02643112517 | AS43: 0.02586493357 | AT43: 0.02480284599 | AU43: 0.02342419454 | AV43: 0.02189698182 | AW43: 0.02037209837 | AX43: 0.01898027319 | AY43: 0.01783019383 | AZ43: 0.01700741413 | BA43: 0.01657410145 | BB43: 0.01656971003 | BC43: 0.01701255365 | BD43: 0.01790212732 | BE43: 0.01922194973 | BF43: 0.02094267505 | BG43: 0.02302524147
A44: 12 | B44: =OFFSET(InputPriceData!B$15,CalculationsAndCharts!$A44+$A$11,0,1,1) -> 2015-12-15 | C44: =OFFSET(InputPriceData!G$15,CalculationsAndCharts!$A44+$A$11,IF($C$7,8,0),1,1) -> 154069600 | D44: =OFFSET(InputPriceData!C$15,CalculationsAndCharts!$A44+$A$11,IF($C$7,8,0),1,1) -> 201.4 | E44: =OFFSET(InputPriceData!D$15,CalculationsAndCharts!$A44+$A$11,IF($C$7,8,0),1,1) -> 202.78 | F44: =OFFSET(InputPriceData!E$15,CalculationsAndCharts!$A44+$A$11,IF($C$7,8,0),1,1) -> 199.6 | G44: =OFFSET(InputPriceData!F$15,CalculationsAndCharts!$A44+$A$11,IF($C$7,8,0),1,1) -> 201.72 | H44: 154069600 | J44: 16.70149325 | K44: 0 | L44: 0 | M44: 0 | N44: 0.0001217830754 | O44: 0.0008084464054 | P44: 0.001174896709 | Q44: 0.07006071319 | R44: 0.004865930985 | S44: 0.01256517884 | T44: 0.002061608403 | U44: 0.03385608574 | V44: 0.1260560217 | W44: 0.02180078772 | X44: 0.005845583723 | Y44: 0.1244338982 | Z44: 0.579797236 | AA44: 1 | AB44: 0.9841480213 | AC44: 0.6659110606 | AD44: 0.3408751201 | AE44: 0.1408980894 | AF44: 0.05124335091 | AG44: 0.01938387515 | AH44: 0.009380897381 | AI44: 0.00641410385 | AJ44: 0.006539014174 | AK44: 0.008916791601 | AL44: 0.01284586962 | AM44: 0.01737984134 | AN44: 0.02163937562 | AO44: 0.02504262413 | AP44: 0.02733555347 | AQ44: 0.02851093307 | AR44: 0.02870604244 | AS44: 0.02812275995 | AT44: 0.02697854609 | AU44: 0.02548137072 | AV44: 0.02381884518 | AW44: 0.02215420619 | AX44: 0.02062501785 | AY44: 0.01934283798 | AZ44: 0.01839339361 | BA44: 0.0178373146 | BB44: 0.01771154459 | BC44: 0.01803144613 | BD44: 0.01879349341 | BE44: 0.01997836244 | BF44: 0.02155419801 | BG44: 0.02347984958
A45: 13 | B45: =OFFSET(InputPriceData!B$15,CalculationsAndCharts!$A45+$A$11,0,1,1) -> 2015-12-14 | C45: =OFFSET(InputPriceData!G$15,CalculationsAndCharts!$A45+$A$11,IF($C$7,8,0),1,1) -> 182385200 | D45: =OFFSET(InputPriceData!C$15,CalculationsAndCharts!$A45+$A$11,IF($C$7,8,0),1,1) -> 198.81 | E45: =OFFSET(InputPriceData!D$15,CalculationsAndCharts!$A45+$A$11,IF($C$7,8,0),1,1) -> 199.77 | F45: =OFFSET(InputPriceData!E$15,CalculationsAndCharts!$A45+$A$11,IF($C$7,8,0),1,1) -> 196.72 | G45: =OFFSET(InputPriceData!F$15,CalculationsAndCharts!$A45+$A$11,IF($C$7,8,0),1,1) -> 199.63 | H45: 182385200 | J45: 16.86963753 | K45: 0 | L45: 0 | M45: 0 | N45: 0.0001358014061 | O45: 0.000804540769 | P45: 0.001162544396 | Q45: 0.06750263985 | R45: 0.00351506124 | S45: 0.01073896446 | T45: 0.002227046058 | U45: 0.02454625207 | V45: 0.1238439525 | W45: 0.02334453414 | X45: 0.006268196332 | Y45: 0.1238030067 | Z45: 0.580049756 | AA45: 1 | AB45: 0.9774808838 | AC45: 0.6517920303 | AD45: 0.3245470928 | AE45: 0.1273109089 | AF45: 0.04203600103 | AG45: 0.01378463768 | AH45: 0.005995573702 | AI45: 0.004242044763 | AJ45: 0.005153194208 | AK45: 0.008257208172 | AL45: 0.01297233114 | AM45: 0.01831966789 | AN45: 0.02333564429 | AO45: 0.02736425503 | AP45: 0.03011127807 | AQ45: 0.03156361143 | AR45: 0.03187720816 | AS45: 0.03128565794 | AT45: 0.03004182564 | AU45: 0.02838666919 | AV45: 0.02653518262 | AW45: 0.02467131765 | AX45: 0.02294694353 | AY45: 0.02148245268 | AZ45: 0.0203681218 | BA45: 0.01966601651 | BB45: 0.0194124242 | BC45: 0.01962078109 | BD45: 0.02028498428 | BE45: 0.02138292099 | BF45: 0.0228800267 | BG45: 0.02473269794
A46: 14 | B46: =OFFSET(InputPriceData!B$15,CalculationsAndCharts!$A46+$A$11,0,1,1) -> 2015-12-11 | C46: =OFFSET(InputPriceData!G$15,CalculationsAndCharts!$A46+$A$11,IF($C$7,8,0),1,1) -> 211173300 | D46: =OFFSET(InputPriceData!C$15,CalculationsAndCharts!$A46+$A$11,IF($C$7,8,0),1,1) -> 200.07 | E46: =OFFSET(InputPriceData!D$15,CalculationsAndCharts!$A46+$A$11,IF($C$7,8,0),1,1) -> 200.85 | F46: =OFFSET(InputPriceData!E$15,CalculationsAndCharts!$A46+$A$11,IF($C$7,8,0),1,1) -> 198.26 | G46: =OFFSET(InputPriceData!F$15,CalculationsAndCharts!$A46+$A$11,IF($C$7,8,0),1,1) -> 198.62 | I46: 211173300 | J46: 16.53746479 | K46: 0 | L46: 0 | M46: 0 | N46: 0.0001695828263 | O46: 0.0008692390056 | P46: 0.001226462155 | Q46: 0.07221915194 | R46: 0.002591459296 | S46: 0.008497841517 | T46: 0.002796576779 | U46: 0.01902058612 | V46: 0.1283122076 | W46: 0.02703578592 | X46: 0.007418746738 | Y46: 0.1228235127 | Z46: 0.5785058963 | AA46: 1 | AB46: 0.9719760073 | AC46: 0.6375868031 | AD46: 0.3067388732 | AE46: 0.1122326849 | AF46: 0.03222198178 | AG46: 0.008376812274 | AH46: 0.003127614849 | AI46: 0.002634180417 | AJ46: 0.004444966934 | AK46: 0.008660236959 | AL46: 0.01482358239 | AM46: 0.02180187418 | AN46: 0.028392448 | AO46: 0.03374030466 | AP46: 0.03744043824 | AQ46: 0.03945484754 | AR46: 0.03997573858 | AS46: 0.03930569159 | AT46: 0.03777630657 | AU46: 0.0357020435 | AV46: 0.03335843523 | AW46: 0.03097454743 | AX46: 0.02873271071 | AY46: 0.02677152125 | AZ46: 0.02519012775 | BA46: 0.02405294987 | BB46: 0.02339449754 | BC46: 0.02322415172 | BD46: 0.0235308131 | BE46: 0.02428732424 | BF46: 0.02545457028 | BG46: 0.02698517498
A47: 15 | B47: =OFFSET(InputPriceData!B$15,CalculationsAndCharts!$A47+$A$11,0,1,1) -> 2015-12-10 | C47: =OFFSET(InputPriceData!G$15,CalculationsAndCharts!$A47+$A$11,IF($C$7,8,0),1,1) -> 116128900 | D47: =OFFSET(InputPriceData!C$15,CalculationsAndCharts!$A47+$A$11,IF($C$7,8,0),1,1) -> 202.11 | E47: =OFFSET(InputPriceData!D$15,CalculationsAndCharts!$A47+$A$11,IF($C$7,8,0),1,1) -> 204.08 | F47: =OFFSET(InputPriceData!E$15,CalculationsAndCharts!$A47+$A$11,IF($C$7,8,0),1,1) -> 201.83 | G47: =OFFSET(InputPriceData!F$15,CalculationsAndCharts!$A47+$A$11,IF($C$7,8,0),1,1) -> 202.55 | H47: 116128900 | J47: 16.54854954 | K47: 0 | L47: 0 | M47: 0 | N47: 0.0002258652608 | O47: 0.00101643001 | P47: 0.0006556678445 | Q47: 0.07986626169 | R47: 0.002059966112 | S47: 0.00824753337 | T47: 0.003647738523 | U47: 0.01605989803 | V47: 0.126146366 | W47: 0.02997712963 | X47: 0.009387428221 | Y47: 0.12230254 | Z47: 0.5718025713 | AA47: 1 | AB47: 0.9807126897 | AC47: 0.645010441 | AD47: 0.3079807761 | AE47: 0.1098780758 | AF47: 0.02983947856 | AG47: 0.00720851362 | AH47: 0.002827303618 | AI47: 0.002812569084 | AJ47: 0.00531442952 | AK47: 0.01085328044 | AL47: 0.01896655733 | AM47: 0.02822029513 | AN47: 0.0370341221 | AO47: 0.0442504523 | AP47: 0.04929500557 | AQ47: 0.05208620103 | AR47: 0.05286126481 | AS47: 0.05201533988 | AT47: 0.04998754323 | AU47: 0.04719395031 | AV47: 0.04399524755 | AW47: 0.04068590265 | AX47: 0.03749491866 | AY47: 0.03459191261 | AZ47: 0.03209507233 | BA47: 0.03007932108 | BB47: 0.02858399247 | BC47: 0.02761978391 | BD47: 0.02717494619 | BE47: 0.02722072812 | BF47: 0.02771610669 | BG47: 0.02861183399
A48: 16 | B48: =OFFSET(InputPriceData!B$15,CalculationsAndCharts!$A48+$A$11,0,1,1) -> 2015-12-09 | C48: =OFFSET(InputPriceData!G$15,CalculationsAndCharts!$A48+$A$11,IF($C$7,8,0),1,1) -> 162401500 | D48: =OFFSET(InputPriceData!C$15,CalculationsAndCharts!$A48+$A$11,IF($C$7,8,0),1,1) -> 202.86 | E48: =OFFSET(InputPriceData!D$15,CalculationsAndCharts!$A48+$A$11,IF($C$7,8,0),1,1) -> 205.31 | F48: =OFFSET(InputPriceData!E$15,CalculationsAndCharts!$A48+$A$11,IF($C$7,8,0),1,1) -> 200.89 | G48: =OFFSET(InputPriceData!F$15,CalculationsAndCharts!$A48+$A$11,IF($C$7,8,0),1,1) -> 202.03 | I48: 162401500 | J48: 16.40392588 | K48: 0 | L48: 0 | M48: 0 | N48: 0.0003221272071 | O48: 0.001389290902 | P48: 0.0003172664787 | Q48: 0.0913164404 | R48: 0.002415049763 | S48: 0.009190188097 | T48: 0.004990867157 | U48: 0.01706446387 | V48: 0.1319815401 | W48: 0.03150291741 | X48: 0.01335624541 | Y48: 0.1418308207 | Z48: 0.5975799786 | AA48: 1 | AB48: 0.9558133943 | AC48: 0.6156692125 | AD48: 0.2868422722 | AE48: 0.09863823078 | AF48: 0.02549861935 | AG48: 0.006332941117 | AH48: 0.003177104909 | AI48: 0.00368430871 | AJ48: 0.007225238256 | AK48: 0.01490259462 | AL48: 0.02619996524 | AM48: 0.03921952323 | AN48: 0.0517889891 | AO48: 0.06224454871 | AP48: 0.06969520148 | AQ48: 0.0739432387 | AR48: 0.07526758337 | AS48: 0.07420197368 | AT48: 0.07136486301 | AU48: 0.0673513327 | AV48: 0.06267640641 | AW48: 0.05775377308 | AX48: 0.05289567234 | AY48: 0.04832360417 | AZ48: 0.04418328565 | BA48: 0.04056012129 | BB48: 0.03749333295 | BC48: 0.03498801709 | BD48: 0.03302500489 | BE48: 0.03156869124 | BF48: 0.03057311161 | BG48: 0.02998656536
A49: 17 | B49: =OFFSET(InputPriceData!B$15,CalculationsAndCharts!$A49+$A$11,0,1,1) -> 2015-12-08 | C49: =OFFSET(InputPriceData!G$15,CalculationsAndCharts!$A49+$A$11,IF($C$7,8,0),1,1) -> 103372400 | D49: =OFFSET(InputPriceData!C$15,CalculationsAndCharts!$A49+$A$11,IF($C$7,8,0),1,1) -> 203.16 | E49: =OFFSET(InputPriceData!D$15,CalculationsAndCharts!$A49+$A$11,IF($C$7,8,0),1,1) -> 204.93 | F49: =OFFSET(InputPriceData!E$15,CalculationsAndCharts!$A49+$A$11,IF($C$7,8,0),1,1) -> 202.46 | G49: =OFFSET(InputPriceData!F$15,CalculationsAndCharts!$A49+$A$11,IF($C$7,8,0),1,1) -> 203.61 | H49: 103372400 | J49: 16.30296888 | K49: 0 | L49: 0 | M49: 0 | N49: 0.0004318276723 | O49: 0.001741893314 | P49: 0.0002430145344 | Q49: 0.09777867718 | R49: 0.002885226289 | S49: 0.01144494785 | T49: 0.006144266624 | U49: 0.02002662102 | V49: 0.1441619948 | W49: 0.03153150335 | X49: 0.0179393385 | Y49: 0.1684691429 | Z49: 0.6373534476 | AA49: 1 | AB49: 0.9138946917 | AC49: 0.5672611775 | AD49: 0.2544328924 | AE49: 0.08363811837 | AF49: 0.02101327384 | AG49: 0.006130568131 | AH49: 0.004052240716 | AI49: 0.004978108541 | AJ49: 0.00976760365 | AK49: 0.02004716072 | AL49: 0.03511745306 | AM49: 0.05250647997 | AN49: 0.06937266101 | AO49: 0.08349715516 | AP49: 0.09364698921 | AQ49: 0.09950225332 | AR49: 0.1013917167 | AS49: 0.1000045088 | AT49: 0.09615857936 | AU49: 0.09064745176 | AV49: 0.08415671524 | AW49: 0.07723133303 | AX49: 0.07027482503 | AY49: 0.06356544273 | AZ49: 0.05727921942 | BA49: 0.05151380832 | BB49: 0.04630993122 | BC49: 0.04166913858 | BD49: 0.0375676757 | BE49: 0.03396680964 | BF49: 0.03082020002 | BG49: 0.02807893798
A50: 18 | B50: =OFFSET(InputPriceData!B$15,CalculationsAndCharts!$A50+$A$11,0,1,1) -> 2015-12-07 | C50: =OFFSET(InputPriceData!G$15,CalculationsAndCharts!$A50+$A$11,IF($C$7,8,0),1,1) -> 102027100 | D50: =OFFSET(InputPriceData!C$15,CalculationsAndCharts!$A50+$A$11,IF($C$7,8,0),1,1) -> 205.85 | E50: =OFFSET(InputPriceData!D$15,CalculationsAndCharts!$A50+$A$11,IF($C$7,8,0),1,1) -> 206.35 | F50: =OFFSET(InputPriceData!E$15,CalculationsAndCharts!$A50+$A$11,IF($C$7,8,0),1,1) -> 203.86 | G50: =OFFSET(InputPriceData!F$15,CalculationsAndCharts!$A50+$A$11,IF($C$7,8,0),1,1) -> 204.99 | I50: 102027100 | J50: 16.30936705 | K50: 0 | L50: 0 | M50: 0 | N50: 0.0003442273695 | O50: 0.001705180217 | P50: 0.0001787799214 | Q50: 0.09531412722 | R50: 0.002877964152 | S50: 0.01103970516 | T50: 0.006091526766 | U50: 0.01863922957 | V50: 0.1399048577 | W50: 0.03112931656 | X50: 0.01804818856 | Y50: 0.1687615293 | Z50: 0.6373206136 | AA50: 1 | AB50: 0.9142606298 | AC50: 0.5676911046 | AD50: 0.254667373 | AE50: 0.08370190442 | AF50: 0.02101877674 | AG50: 0.006135898091 | AH50: 0.004063476838 | AI50: 0.004993637604 | AJ50: 0.00980004175 | AK50: 0.02011969344 | AL50: 0.03525158415 | AM50: 0.05271322336 | AN50: 0.06965029821 | AO50: 0.08383375098 | AP50: 0.09402480782 | AQ50: 0.0999019915 | AR50: 0.1017955735 | AS50: 0.1003979151 | AT50: 0.09653082322 | AU50: 0.09099156117 | AV50: 0.0844689316 | AW50: 0.07751042409 | AX50: 0.0705213945 | AY50: 0.06378132148 | AZ50: 0.05746697229 | BA50: 0.05167636047 | BB50: 0.04645030155 | BC50: 0.04179026123 | BD50: 0.03767228983 | BE50: 0.03405739936 | BF50: 0.03089896956 | BG50: 0.02814781029
A51: 19 | B51: =OFFSET(InputPriceData!B$15,CalculationsAndCharts!$A51+$A$11,0,1,1) -> 2015-12-04 | C51: =OFFSET(InputPriceData!G$15,CalculationsAndCharts!$A51+$A$11,IF($C$7,8,0),1,1) -> 192913900 | D51: =OFFSET(InputPriceData!C$15,CalculationsAndCharts!$A51+$A$11,IF($C$7,8,0),1,1) -> 202.29 | E51: =OFFSET(InputPriceData!D$15,CalculationsAndCharts!$A51+$A$11,IF($C$7,8,0),1,1) -> 206.58 | F51: =OFFSET(InputPriceData!E$15,CalculationsAndCharts!$A51+$A$11,IF($C$7,8,0),1,1) -> 202.29 | G51: =OFFSET(InputPriceData!F$15,CalculationsAndCharts!$A51+$A$11,IF($C$7,8,0),1,1) -> 206.24 | H51: 192913900 | J51: 16.52874304 | K51: 0 | L51: 0 | M51: 0 | N51: 0.0002753781582 | O51: 0.001661734083 | P51: 0.000183921491 | Q51: 0.0945202253 | R51: 0.00301594126 | S51: 0.01005435515 | T51: 0.005675908259 | U51: 0.01408290946 | V51: 0.1222379258 | W51: 0.0310280304 | X51: 0.01953305831 | Y51: 0.1696626118 | Z51: 0.6327098952 | AA51: 1 | AB51: 0.9224716354 | AC51: 0.576771334 | AD51: 0.2596763649 | AE51: 0.08526485666 | AF51: 0.02130062164 | AG51: 0.00628646232 | AH51: 0.004283635145 | AI51: 0.005315778549 | AJ51: 0.01047041092 | AK51: 0.02154205336 | AL51: 0.03778596825 | AM51: 0.05653300297 | AN51: 0.07470885509 | AO51: 0.08990972981 | AP51: 0.1007980721 | AQ51: 0.1070257549 | AR51: 0.1089486531 | AS51: 0.1073143845 | AT51: 0.1030111005 | AU51: 0.09690098313 | AV51: 0.08972937248 | AW51: 0.08208908099 | AX51: 0.07441936504 | AY51: 0.06702339663 | AZ51: 0.06009323895 | BA51: 0.0537357038 | BB51: 0.04799563101 | BC51: 0.04287517252 | BD51: 0.03834885449 | BE51: 0.03437479988 | BF51: 0.03090274366 | BG51: 0.02787951747
A52: 20 | B52: =OFFSET(InputPriceData!B$15,CalculationsAndCharts!$A52+$A$11,0,1,1) -> 2015-12-03 | C52: =OFFSET(InputPriceData!G$15,CalculationsAndCharts!$A52+$A$11,IF($C$7,8,0),1,1) -> 166224200 | D52: =OFFSET(InputPriceData!C$15,CalculationsAndCharts!$A52+$A$11,IF($C$7,8,0),1,1) -> 205.46 | E52: =OFFSET(InputPriceData!D$15,CalculationsAndCharts!$A52+$A$11,IF($C$7,8,0),1,1) -> 205.78 | F52: =OFFSET(InputPriceData!E$15,CalculationsAndCharts!$A52+$A$11,IF($C$7,8,0),1,1) -> 201.45 | G52: =OFFSET(InputPriceData!F$15,CalculationsAndCharts!$A52+$A$11,IF($C$7,8,0),1,1) -> 202.29 | I52: 166224200 | J52: 18.15191254 | K52: 0 | L52: 0 | M52: 0 | N52: 0.0003251776978 | O52: 0.001519657709 | P52: 0.0002207846043 | Q52: 0.08761311674 | R52: 0.003758807271 | S52: 0.006675544518 | T52: 0.004417722381 | U52: 0.006916426719 | V52: 0.09011279435 | W52: 0.03403584182 | X52: 0.02400640573 | Y52: 0.1645728287 | Z52: 0.6082189029 | AA52: 1 | AB52: 0.9554060083 | AC52: 0.6122961154 | AD52: 0.2794887979 | AE52: 0.09192753746 | AF52: 0.0228002961 | AG52: 0.006956314635 | AH52: 0.005044593904 | AI52: 0.006349743297 | AJ52: 0.01254851449 | AK52: 0.02589502822 | AL52: 0.04549102235 | AM52: 0.0680785004 | AN52: 0.08990117139 | AO52: 0.1080230806 | AP52: 0.1208161964 | AQ52: 0.1278678219 | AR52: 0.1296304024 | AS52: 0.1270372635 | AT52: 0.121192969 | AU52: 0.1131679098 | AV52: 0.1038861964 | AW52: 0.09408174449 | AX52: 0.08429722788 | AY52: 0.07490592638 | AZ52: 0.06614285649 | BA52: 0.05813697981 | BB52: 0.05094019827 | BC52: 0.04455137758 | BD52: 0.03893511698 | BE52: 0.03403574021 | BF52: 0.0297872926 | BG52: 0.02612038565
A53: 21 | B53: =OFFSET(InputPriceData!B$15,CalculationsAndCharts!$A53+$A$11,0,1,1) -> 2015-12-02 | C53: =OFFSET(InputPriceData!G$15,CalculationsAndCharts!$A53+$A$11,IF($C$7,8,0),1,1) -> 108441300 | D53: =OFFSET(InputPriceData!C$15,CalculationsAndCharts!$A53+$A$11,IF($C$7,8,0),1,1) -> 207.22 | E53: =OFFSET(InputPriceData!D$15,CalculationsAndCharts!$A53+$A$11,IF($C$7,8,0),1,1) -> 207.6 | F53: =OFFSET(InputPriceData!E$15,CalculationsAndCharts!$A53+$A$11,IF($C$7,8,0),1,1) -> 204.87 | G53: =OFFSET(InputPriceData!F$15,CalculationsAndCharts!$A53+$A$11,IF($C$7,8,0),1,1) -> 205.17 | I53: 108441300 | J53: 19.23674724 | K53: 0 | L53: 0 | M53: 0 | N53: 0.0003700953446 | O53: 0.001579887376 | P53: 0.0002414023279 | Q53: 0.07442403557 | R53: 0.004372399596 | S53: 0.003902316391 | T53: 0.003384636908 | U53: 0.002802704436 | V53: 0.06830101313 | W53: 0.0367861069 | X53: 0.02748902314 | Y53: 0.1581514141 | Z53: 0.5855905616 | AA53: 1 | AB53: 0.9846468358 | AC53: 0.6442112365 | AD53: 0.2979115934 | AE53: 0.09865981811 | AF53: 0.0246008913 | AG53: 0.007709156894 | AH53: 0.005735091393 | AI53: 0.007202137091 | AJ53: 0.01415625701 | AK53: 0.02918178966 | AL53: 0.05126141804 | AM53: 0.07668917473 | AN53: 0.1011910506 | AO53: 0.1214301509 | AP53: 0.1355645011 | AQ53: 0.1431412373 | AR53: 0.144695333 | AS53: 0.141308999 | AT53: 0.1342566519 | AU53: 0.1247696105 | AV53: 0.1139080263 | AW53: 0.1025111823 | AX53: 0.09119701299 | AY53: 0.08038785114 | AZ53: 0.07034673123 | BA53: 0.06121481121 | BB53: 0.05304498753 | BC53: 0.04582969711 | BD53: 0.03952260059 | BE53: 0.03405471173 | BF53: 0.02934589188 | BG53: 0.02531269089
A54: 22 | B54: =OFFSET(InputPriceData!B$15,CalculationsAndCharts!$A54+$A$11,0,1,1) -> 2015-12-01 | C54: =OFFSET(InputPriceData!G$15,CalculationsAndCharts!$A54+$A$11,IF($C$7,8,0),1,1) -> 97858400 | D54: =OFFSET(InputPriceData!C$15,CalculationsAndCharts!$A54+$A$11,IF($C$7,8,0),1,1) -> 206.06 | E54: =OFFSET(InputPriceData!D$15,CalculationsAndCharts!$A54+$A$11,IF($C$7,8,0),1,1) -> 207.42 | F54: =OFFSET(InputPriceData!E$15,CalculationsAndCharts!$A54+$A$11,IF($C$7,8,0),1,1) -> 205.74 | G54: =OFFSET(InputPriceData!F$15,CalculationsAndCharts!$A54+$A$11,IF($C$7,8,0),1,1) -> 207.28 | H54: 97858400 | J54: 20.13721546 | K54: 0 | L54: 0 | M54: 0 | N54: 0.0004522499169 | O54: 0.00189733936 | P54: 0.0001842291293 | Q54: 0.0593492756 | R54: 0.005506333917 | S54: 0.002822453754 | T54: 0.002206109422 | U54: 0.00104731812 | V54: 0.04652446467 | W54: 0.03750708074 | X54: 0.03401432086 | Y54: 0.1659312803 | Z54: 0.5778086116 | AA54: 0.9964536509 | AB54: 1 | AC54: 0.6653539435 | AD54: 0.3118213007 | AE54: 0.104534746 | AF54: 0.02676213128 | AG54: 0.009057528686 | AH54: 0.006998762044 | AI54: 0.008446027447 | AJ54: 0.01574960066 | AK54: 0.03181764148 | AL54: 0.05558645785 | AM54: 0.08300987063 | AN54: 0.1093992673 | AO54: 0.1310949305 | AP54: 0.1460885567 | AQ54: 0.1539066765 | AR54: 0.1551640681 | AS54: 0.1510733935 | AT54: 0.1430509247 | AU54: 0.1324564872 | AV54: 0.1204533529 | AW54: 0.107955468 | AX54: 0.09562919033 | AY54: 0.08392372692 | AZ54: 0.07311276871 | BA54: 0.06333685939 | BB54: 0.05464111302 | BC54: 0.04700615908 | BD54: 0.0403720794 | BE54: 0.03465605148 | BF54: 0.02976478553 | BG54: 0.02560289122
A55: 23 | B55: =OFFSET(InputPriceData!B$15,CalculationsAndCharts!$A55+$A$11,0,1,1) -> 2015-11-30 | C55: =OFFSET(InputPriceData!G$15,CalculationsAndCharts!$A55+$A$11,IF($C$7,8,0),1,1) -> 112822700 | D55: =OFFSET(InputPriceData!C$15,CalculationsAndCharts!$A55+$A$11,IF($C$7,8,0),1,1) -> 206.37 | E55: =OFFSET(InputPriceData!D$15,CalculationsAndCharts!$A55+$A$11,IF($C$7,8,0),1,1) -> 206.5 | F55: =OFFSET(InputPriceData!E$15,CalculationsAndCharts!$A55+$A$11,IF($C$7,8,0),1,1) -> 205.2 | G55: =OFFSET(InputPriceData!F$15,CalculationsAndCharts!$A55+$A$11,IF($C$7,8,0),1,1) -> 205.32 | I55: 112822700 | J55: 19.70657572 | K55: 0 | L55: 0 | M55: 0 | N55: 0.0005473565562 | O55: 0.00192253598 | P55: 0.0001873824888 | Q55: 0.05943607777 | R55: 0.006784297592 | S55: 0.003073711294 | T55: 0.001621176852 | U55: 0.0008827045347 | V55: 0.03442664496 | W55: 0.03364846345 | X55: 0.04286533847 | Y55: 0.1948291715 | Z55: 0.6102261989 | AA55: 1 | AB55: 0.9808346479 | AC55: 0.646255477 | AD55: 0.3026030753 | AE55: 0.1028084499 | AF55: 0.02796990529 | AG55: 0.01085676178 | AH55: 0.008770588772 | AI55: 0.009926526362 | AJ55: 0.01646275687 | AK55: 0.03118915569 | AL55: 0.05322607528 | AM55: 0.07886978128 | AN55: 0.1037628838 | AO55: 0.1244631038 | AP55: 0.1390414078 | AQ55: 0.1469903341 | AR55: 0.1488204309 | AS55: 0.1456108814 | AT55: 0.1386453386 | AU55: 0.1291696998 | AV55: 0.1182597329 | AW55: 0.1067691627 | AX55: 0.0953283375 | AY55: 0.08436986552 | AZ55: 0.07416513512 | BA55: 0.06486204642 | BB55: 0.05651891678 | BC55: 0.04913251676 | BD55: 0.0426599298 | BE55: 0.03703481356 | BF55: 0.03217899721 | BG55: 0.02801040815
A56: 24 | B56: =OFFSET(InputPriceData!B$15,CalculationsAndCharts!$A56+$A$11,0,1,1) -> 2015-11-27 | C56: =OFFSET(InputPriceData!G$15,CalculationsAndCharts!$A56+$A$11,IF($C$7,8,0),1,1) -> 37317800 | D56: =OFFSET(InputPriceData!C$15,CalculationsAndCharts!$A56+$A$11,IF($C$7,8,0),1,1) -> 206.05 | E56: =OFFSET(InputPriceData!D$15,CalculationsAndCharts!$A56+$A$11,IF($C$7,8,0),1,1) -> 206.42 | F56: =OFFSET(InputPriceData!E$15,CalculationsAndCharts!$A56+$A$11,IF($C$7,8,0),1,1) -> 205.49 | G56: =OFFSET(InputPriceData!F$15,CalculationsAndCharts!$A56+$A$11,IF($C$7,8,0),1,1) -> 206.18 | H56: 37317800 | J56: 18.58838696 | K56: 0 | L56: 0 | M56: 0 | N56: 0.0007034779405 | O56: 0.001700536004 | P56: 0.0002181424062 | Q56: 0.06180008524 | R56: 0.008984221682 | S56: 0.003080927363 | T56: 0.001243190271 | U56: 0.0007806092096 | V56: 0.02421671301 | W56: 0.03247212731 | X56: 0.05753830309 | Y56: 0.2423157258 | Z56: 0.6632216495 | AA56: 1 | AB56: 0.9370054193 | AC56: 0.6030896255 | AD56: 0.2813150236 | AE56: 0.09862118951 | AF56: 0.03034699308 | AG56: 0.01416581005 | AH56: 0.01188853632 | AI56: 0.01292935432 | AJ56: 0.01881903292 | AK56: 0.03172071405 | AL56: 0.05075992301 | AM56: 0.07277601901 | AN56: 0.09412577709 | AO56: 0.1119595058 | AP56: 0.1246890066 | AQ56: 0.1318946879 | AR56: 0.133986822 | AS56: 0.1318370386 | AT56: 0.1264834449 | AU56: 0.1189362238 | AV56: 0.1100720521 | AW56: 0.1005927435 | AX56: 0.09102384798 | AY56: 0.08173436982 | AZ56: 0.07296494423 | BA56: 0.06485695386 | BB56: 0.05747871831 | BC56: 0.0508472119 | BD56: 0.04494509298 | BE56: 0.03973349236 | BF56: 0.03516126985 | BG56: 0.03117148524
A57: 25 | B57: =OFFSET(InputPriceData!B$15,CalculationsAndCharts!$A57+$A$11,0,1,1) -> 2015-11-25 | C57: =OFFSET(InputPriceData!G$15,CalculationsAndCharts!$A57+$A$11,IF($C$7,8,0),1,1) -> 51980100 | D57: =OFFSET(InputPriceData!C$15,CalculationsAndCharts!$A57+$A$11,IF($C$7,8,0),1,1) -> 206.12 | E57: =OFFSET(InputPriceData!D$15,CalculationsAndCharts!$A57+$A$11,IF($C$7,8,0),1,1) -> 206.36 | F57: =OFFSET(InputPriceData!E$15,CalculationsAndCharts!$A57+$A$11,IF($C$7,8,0),1,1) -> 205.64 | G57: =OFFSET(InputPriceData!F$15,CalculationsAndCharts!$A57+$A$11,IF($C$7,8,0),1,1) -> 205.94 | I57: 51980100 | J57: 16.34539909 | K57: 0 | L57: 0 | M57: 0 | N57: 0.0009123352112 | O57: 0.001416693535 | P57: 0.000286277893 | Q57: 0.05529047322 | R57: 0.01228729331 | S57: 0.001151978185 | T57: 0.001309371298 | U57: 0.0002974128922 | V57: 0.01806122273 | W57: 0.03677591009 | X57: 0.07903046114 | Y57: 0.3099900073 | Z57: 0.7403929177 | AA57: 1 | AB57: 0.8648273934 | AC57: 0.5256953847 | AD57: 0.2383184908 | AE57: 0.086918377 | AF57: 0.03258151982 | AG57: 0.01903655484 | AH57: 0.0164982452 | AI57: 0.01776958841 | AJ57: 0.02379391228 | AK57: 0.03516330649 | AL57: 0.05023520669 | AM57: 0.06620027862 | AN57: 0.08045371095 | AO57: 0.09132328827 | AP57: 0.09816608464 | AQ57: 0.101125976 | AR57: 0.1008044867 | AS57: 0.09798134364 | AT57: 0.09342851889 | AU57: 0.08781148182 | AV57: 0.08165329005 | AW57: 0.07533631996 | AX57: 0.06912231352 | AY57: 0.06317831592 | AZ57: 0.05760167886 | BA57: 0.05244109788 | BB57: 0.04771288895 | BC57: 0.04341284629 | BD57: 0.03952447724 | BE57: 0.03602448992 | BF57: 0.0328863126 | BG57: 0.03008226615
A58: 26 | B58: =OFFSET(InputPriceData!B$15,CalculationsAndCharts!$A58+$A$11,0,1,1) -> 2015-11-24 | C58: =OFFSET(InputPriceData!G$15,CalculationsAndCharts!$A58+$A$11,IF($C$7,8,0),1,1) -> 98874400 | D58: =OFFSET(InputPriceData!C$15,CalculationsAndCharts!$A58+$A$11,IF($C$7,8,0),1,1) -> 204.52 | E58: =OFFSET(InputPriceData!D$15,CalculationsAndCharts!$A58+$A$11,IF($C$7,8,0),1,1) -> 206.44 | F58: =OFFSET(InputPriceData!E$15,CalculationsAndCharts!$A58+$A$11,IF($C$7,8,0),1,1) -> 204.06 | G58: =OFFSET(InputPriceData!F$15,CalculationsAndCharts!$A58+$A$11,IF($C$7,8,0),1,1) -> 205.97 | H58: 98874400 | J58: 16.34508626 | K58: 0 | L58: 0 | M58: 0 | N58: 0.000688459858 | O58: 0.001389428121 | P58: 0.0002860851596 | Q58: 0.05457458584 | R58: 0.01220791939 | S58: 0.001129136943 | T58: 0.001303716803 | U58: 0.0002814105353 | V58: 0.01779838073 | W58: 0.03646131376 | X58: 0.07898069471 | Y58: 0.3101232494 | Z58: 0.7405733352 | AA58: 1 | AB58: 0.864667162 | AC58: 0.5255328 | AD58: 0.2382349306 | AE58: 0.08690246308 | AF58: 0.03259545502 | AG58: 0.01905598135 | AH58: 0.01651662061 | AI58: 0.01778930122 | AJ58: 0.02381843915 | AK58: 0.03519385445 | AL58: 0.05027054302 | AM58: 0.0662378203 | AN58: 0.08049066621 | AO58: 0.09135738776 | AP58: 0.09819587166 | AQ58: 0.10115079 | AR58: 0.1008242922 | AS58: 0.09799651563 | AT58: 0.09343964931 | AU58: 0.08781923364 | AV58: 0.08165830212 | AW58: 0.07533915487 | AX58: 0.069123437 | AY58: 0.06317809643 | AZ58: 0.0576003985 | BA58: 0.05243896811 | BB58: 0.04771006712 | BC58: 0.04340945056 | BD58: 0.03952059902 | BE58: 0.03602020331 | BF58: 0.0328816813 | BG58: 0.03007734802
A59: 27 | B59: =OFFSET(InputPriceData!B$15,CalculationsAndCharts!$A59+$A$11,0,1,1) -> 2015-11-23 | C59: =OFFSET(InputPriceData!G$15,CalculationsAndCharts!$A59+$A$11,IF($C$7,8,0),1,1) -> 64931200 | D59: =OFFSET(InputPriceData!C$15,CalculationsAndCharts!$A59+$A$11,IF($C$7,8,0),1,1) -> 206 | E59: =OFFSET(InputPriceData!D$15,CalculationsAndCharts!$A59+$A$11,IF($C$7,8,0),1,1) -> 206.59 | F59: =OFFSET(InputPriceData!E$15,CalculationsAndCharts!$A59+$A$11,IF($C$7,8,0),1,1) -> 205.16 | G59: =OFFSET(InputPriceData!F$15,CalculationsAndCharts!$A59+$A$11,IF($C$7,8,0),1,1) -> 205.7 | I59: 64931200 | J59: 16.32434476 | K59: 0 | L59: 0 | M59: 0 | N59: 0.0007787374636 | O59: 0.001630683463 | P59: 0.0003313659098 | Q59: 0.05796486189 | R59: 0.01163664728 | S59: 0.001115513773 | T59: 0.001148011434 | U59: 0.0002543118624 | V59: 0.01310195456 | W59: 0.03602660774 | X59: 0.08612849407 | Y59: 0.3262570581 | Z59: 0.7532231771 | AA59: 1 | AB59: 0.857106131 | AC59: 0.5187551743 | AD59: 0.2361450551 | AE59: 0.088775427 | AF59: 0.03602992538 | AG59: 0.02242545469 | AH59: 0.01958311257 | AI59: 0.02105179886 | AJ59: 0.02766961685 | AK59: 0.03949205401 | AL59: 0.05437100895 | AM59: 0.0692645923 | AN59: 0.08162941069 | AO59: 0.09005033713 | AP59: 0.09421442294 | AQ59: 0.09457337028 | AR59: 0.09196188243 | AS59: 0.08730225331 | AT59: 0.08142598277 | AU59: 0.07499387598 | AV59: 0.06848159217 | AW59: 0.06220053736 | AX59: 0.05633271919 | AY59: 0.05096684862 | AZ59: 0.04612947699 | BA59: 0.04180907697 | BB59: 0.0379732165 | BC59: 0.03457996387 | BD59: 0.0315849237 | BE59: 0.02894520061 | BF59: 0.02662134042 | BG59: 0.02457802824
A60: 28 | B60: =OFFSET(InputPriceData!B$15,CalculationsAndCharts!$A60+$A$11,0,1,1) -> 2015-11-20 | C60: =OFFSET(InputPriceData!G$15,CalculationsAndCharts!$A60+$A$11,IF($C$7,8,0),1,1) -> 94011500 | D60: =OFFSET(InputPriceData!C$15,CalculationsAndCharts!$A60+$A$11,IF($C$7,8,0),1,1) -> 206.07 | E60: =OFFSET(InputPriceData!D$15,CalculationsAndCharts!$A60+$A$11,IF($C$7,8,0),1,1) -> 206.73 | F60: =OFFSET(InputPriceData!E$15,CalculationsAndCharts!$A60+$A$11,IF($C$7,8,0),1,1) -> 205.49 | G60: =OFFSET(InputPriceData!F$15,CalculationsAndCharts!$A60+$A$11,IF($C$7,8,0),1,1) -> 205.93 | I60: 94011500 | J60: 16.30469685 | K60: 0 | L60: 0 | M60: 0 | N60: 0.0007963944038 | O60: 0.001924172139 | P60: 0.0004007808179 | Q60: 0.06009966804 | R60: 0.01079297984 | S60: 0.001183678749 | T60: 0.001110716446 | U60: 0.0002911384398 | V60: 0.009150546061 | W60: 0.0322944243 | X60: 0.0889404347 | Y60: 0.3384999999 | Z60: 0.7652197292 | AA60: 1 | AB60: 0.8477605425 | AC60: 0.5099207756 | AD60: 0.2334786127 | AE60: 0.09148568308 | AF60: 0.0408034446 | AG60: 0.02705021596 | AH60: 0.0237813637 | AI60: 0.02550953404 | AJ60: 0.03288918735 | AK60: 0.04526494581 | AL60: 0.05986044442 | AM60: 0.07337398104 | AN60: 0.08337014045 | AO60: 0.0887702802 | AP60: 0.08967000396 | AQ60: 0.0868882259 | AR60: 0.08152782823 | AS60: 0.07466706945 | AT60: 0.06719486625 | AU60: 0.05975612285 | AV60: 0.05276392779 | AW60: 0.04644317329 | AX60: 0.04088228715 | AY60: 0.03608042798 | AZ60: 0.03198492882 | BA60: 0.02851816073 | BB60: 0.02559514309 | BC60: 0.02313398636 | BD60: 0.02106125748 | BE60: 0.01931402613 | BF60: 0.01783992431 | BG60: 0.01659615178
A61: 29 | B61: =OFFSET(InputPriceData!B$15,CalculationsAndCharts!$A61+$A$11,0,1,1) -> 2015-11-19 | C61: =OFFSET(InputPriceData!G$15,CalculationsAndCharts!$A61+$A$11,IF($C$7,8,0),1,1) -> 88220500 | D61: =OFFSET(InputPriceData!C$15,CalculationsAndCharts!$A61+$A$11,IF($C$7,8,0),1,1) -> 205.22 | E61: =OFFSET(InputPriceData!D$15,CalculationsAndCharts!$A61+$A$11,IF($C$7,8,0),1,1) -> 205.68 | F61: =OFFSET(InputPriceData!E$15,CalculationsAndCharts!$A61+$A$11,IF($C$7,8,0),1,1) -> 204.84 | G61: =OFFSET(InputPriceData!F$15,CalculationsAndCharts!$A61+$A$11,IF($C$7,8,0),1,1) -> 205.19 | I61: 88220500 | J61: 16.2625949 | K61: 0 | L61: 0 | M61: 0 | N61: 0.0008105276629 | O61: 0.001836025112 | P61: 0.000494851586 | Q61: 0.05420462358 | R61: 0.01139198562 | S61: 0.0009793327569 | T61: 0.001227360776 | U61: 0.0003562854281 | V61: 0.006903348652 | W61: 0.02320648569 | X61: 0.08533499252 | Y61: 0.3537357881 | Z61: 0.7883056855 | AA61: 1 | AB61: 0.8234341455 | AC61: 0.4847824248 | AD61: 0.2223998276 | AE61: 0.09272318675 | AF61: 0.04683047903 | AG61: 0.03320439444 | AH61: 0.02936309041 | AI61: 0.03139740458 | AJ61: 0.03950214674 | AK61: 0.05196272577 | AL61: 0.06531169682 | AM61: 0.07617885367 | AN61: 0.08251840187 | AO61: 0.08382590164 | AP61: 0.0807399518 | AQ61: 0.07447779897 | AR61: 0.06636745126 | AS61: 0.05756091025 | AT61: 0.04891175159 | AU61: 0.04096418967 | AV61: 0.03400116452 | AW61: 0.02811324672 | AX61: 0.02326579796 | AY61: 0.01935390305 | AZ61: 0.01624224431 | BA61: 0.01379113975 | BB61: 0.01187160824 | BC61: 0.01037258844 | BD61: 0.009203040953 | BE61: 0.008291039967 | BF61: 0.007581340562 | BG61: 0.007032388492
A62: 30 | B62: =OFFSET(InputPriceData!B$15,CalculationsAndCharts!$A62+$A$11,0,1,1) -> 2015-11-18 | C62: =OFFSET(InputPriceData!G$15,CalculationsAndCharts!$A62+$A$11,IF($C$7,8,0),1,1) -> 121342500 | D62: =OFFSET(InputPriceData!C$15,CalculationsAndCharts!$A62+$A$11,IF($C$7,8,0),1,1) -> 202.72 | E62: =OFFSET(InputPriceData!D$15,CalculationsAndCharts!$A62+$A$11,IF($C$7,8,0),1,1) -> 205.53 | F62: =OFFSET(InputPriceData!E$15,CalculationsAndCharts!$A62+$A$11,IF($C$7,8,0),1,1) -> 202.67 | G62: =OFFSET(InputPriceData!F$15,CalculationsAndCharts!$A62+$A$11,IF($C$7,8,0),1,1) -> 205.36 | H62: 121342500 | J62: 16.23049027 | K62: 0 | L62: 0 | M62: 0 | N62: 0.0009937307533 | O62: 0.001735779543 | P62: 0.0006485874786 | Q62: 0.0545064658 | R62: 0.01357673162 | S62: 0.000615093942 | T62: 0.001490417189 | U62: 0.0004695050234 | V62: 0.004885380773 | W62: 0.01747724928 | X62: 0.08870861824 | Y62: 0.3800537827 | Z62: 0.8171268559 | AA62: 1 | AB62: 0.8045262081 | AC62: 0.4732065745 | AD62: 0.2264764695 | AE62: 0.1052061122 | AF62: 0.05967198021 | AG62: 0.04379626742 | AH62: 0.03876207455 | AI62: 0.04102334188 | AJ62: 0.04953718063 | AK62: 0.06143043288 | AL62: 0.07282040268 | AM62: 0.08058348532 | AN62: 0.08324211522 | AO62: 0.08088080234 | AP62: 0.07458084665 | AQ62: 0.06580766295 | AR62: 0.05596538697 | AS62: 0.04616079297 | AT62: 0.0371332143 | AU62: 0.02928535516 | AV62: 0.02275945245 | AW62: 0.01752210626 | AX62: 0.01343835304 | AY62: 0.01032766596 | AZ62: 0.008001603574 | BA62: 0.006286122446 | BB62: 0.005032548281 | BC62: 0.004120965659 | BD62: 0.003459052535 | BE62: 0.002978554907 | BF62: 0.002630861068 | BG62: 0.002382560695
A63: 31 | B63: =OFFSET(InputPriceData!B$15,CalculationsAndCharts!$A63+$A$11,0,1,1) -> 2015-11-17 | C63: =OFFSET(InputPriceData!G$15,CalculationsAndCharts!$A63+$A$11,IF($C$7,8,0),1,1) -> 121123700 | D63: =OFFSET(InputPriceData!C$15,CalculationsAndCharts!$A63+$A$11,IF($C$7,8,0),1,1) -> 202.67 | E63: =OFFSET(InputPriceData!D$15,CalculationsAndCharts!$A63+$A$11,IF($C$7,8,0),1,1) -> 203.7 | F63: =OFFSET(InputPriceData!E$15,CalculationsAndCharts!$A63+$A$11,IF($C$7,8,0),1,1) -> 201.57 | G63: =OFFSET(InputPriceData!F$15,CalculationsAndCharts!$A63+$A$11,IF($C$7,8,0),1,1) -> 202.16 | I63: 121123700 | J63: 16.33865133 | K63: 0 | L63: 0 | M63: 0 | N63: 0.001312442682 | O63: 0.001465853451 | P63: 0.0007952079381 | Q63: 0.06154911785 | R63: 0.01676652836 | S63: 0.0003801471656 | T63: 0.001896222053 | U63: 0.000618743016 | V63: 0.003517574596 | W63: 0.01642480985 | X63: 0.09965098629 | Y63: 0.4136686201 | Z63: 0.8453568253 | AA63: 1 | AB63: 0.7960896904 | AC63: 0.4784545139 | AD63: 0.2451227843 | AE63: 0.1267254945 | AF63: 0.07757853693 | AG63: 0.05785428465 | AH63: 0.05115573102 | AI63: 0.05320989969 | AJ63: 0.06146836328 | AK63: 0.07215317528 | AL63: 0.08129310775 | AM63: 0.08616907323 | AN63: 0.08583068659 | AO63: 0.08078592222 | AP63: 0.07235861699 | AQ63: 0.06209031467 | AR63: 0.05134583447 | AS63: 0.04113056831 | AT63: 0.03206146148 | AU63: 0.024423663 | AV63: 0.01825981115 | AW63: 0.0134592643 | AX63: 0.009831472358 | AY63: 0.007158818676 | AZ63: 0.005230326559 | BA63: 0.00386016795 | BB63: 0.00289538981 | BC63: 0.002216741357 | BD63: 0.001735595728 | BE63: 0.001389061646 | BF63: 0.001134627559 | BG63: 0.0009451143321
A64: 32 | B64: =OFFSET(InputPriceData!B$15,CalculationsAndCharts!$A64+$A$11,0,1,1) -> 2015-11-16 | C64: =OFFSET(InputPriceData!G$15,CalculationsAndCharts!$A64+$A$11,IF($C$7,8,0),1,1) -> 117645200 | D64: =OFFSET(InputPriceData!C$15,CalculationsAndCharts!$A64+$A$11,IF($C$7,8,0),1,1) -> 199.06 | E64: =OFFSET(InputPriceData!D$15,CalculationsAndCharts!$A64+$A$11,IF($C$7,8,0),1,1) -> 202.37 | F64: =OFFSET(InputPriceData!E$15,CalculationsAndCharts!$A64+$A$11,IF($C$7,8,0),1,1) -> 198.92 | G64: =OFFSET(InputPriceData!F$15,CalculationsAndCharts!$A64+$A$11,IF($C$7,8,0),1,1) -> 202.3 | H64: 117645200 | J64: 16.35299701 | K64: 0 | L64: 0 | M64: 0 | N64: 0.0009865546 | O64: 0.001493753298 | P64: 0.0008720555525 | Q64: 0.06415044525 | R64: 0.01700885448 | S64: 0.0004144870899 | T64: 0.002079316665 | U64: 0.0006866306131 | V64: 0.0038475974 | W64: 0.01778284692 | X64: 0.1043370275 | Y64: 0.4215438701 | Z64: 0.8494061449 | AA64: 1 | AB64: 0.7988852396 | AC64: 0.4866919499 | AD64: 0.255888589 | AE64: 0.1366410597 | AF64: 0.08545010339 | AG64: 0.0640707236 | AH64: 0.05638650148 | AI64: 0.05777699097 | AJ64: 0.06535825854 | AK64: 0.07524333872 | AL64: 0.08352329208 | AM64: 0.08759522362 | AN64: 0.08659962331 | AO64: 0.08108336906 | AP64: 0.07236380974 | AQ64: 0.06194914183 | AR64: 0.05116157545 | AS64: 0.04096641064 | AT64: 0.0319487906 | AU64: 0.02437178215 | AV64: 0.01826463668 | AW64: 0.01350999142 | AX64: 0.009915097746 | AY64: 0.007262845799 | AZ64: 0.005344123213 | BA64: 0.003975428736 | BB64: 0.003006069685 | BC64: 0.002318724333 | BD64: 0.001826271253 | BE64: 0.001466909964 | BF64: 0.001198865049 | BG64: 0.0009954173804
A65: 33 | B65: =OFFSET(InputPriceData!B$15,CalculationsAndCharts!$A65+$A$11,0,1,1) -> 2015-11-13 | C65: =OFFSET(InputPriceData!G$15,CalculationsAndCharts!$A65+$A$11,IF($C$7,8,0),1,1) -> 153577100 | D65: =OFFSET(InputPriceData!C$15,CalculationsAndCharts!$A65+$A$11,IF($C$7,8,0),1,1) -> 201.05 | E65: =OFFSET(InputPriceData!D$15,CalculationsAndCharts!$A65+$A$11,IF($C$7,8,0),1,1) -> 201.37 | F65: =OFFSET(InputPriceData!E$15,CalculationsAndCharts!$A65+$A$11,IF($C$7,8,0),1,1) -> 199.17 | G65: =OFFSET(InputPriceData!F$15,CalculationsAndCharts!$A65+$A$11,IF($C$7,8,0),1,1) -> 199.27 | I65: 153577100 | J65: 16.30588567 | K65: 0 | L65: 0 | M65: 0 | N65: 0.001219442697 | O65: 0.00163455253 | P65: 0.001247936902 | Q65: 0.0754534496 | R65: 0.02123541728 | S65: 0.0005944612313 | T65: 0.00294737206 | U65: 0.0009780460978 | V65: 0.005395722042 | W65: 0.02491736557 | X65: 0.1293024069 | Y65: 0.4601079311 | Z65: 0.867158699 | AA65: 1 | AB65: 0.8127252692 | AC65: 0.5237591953 | AD65: 0.3024347407 | AE65: 0.1787938915 | AF65: 0.1188494139 | AG65: 0.09032987133 | AH65: 0.07785277609 | AI65: 0.0754739253 | AJ65: 0.07931794732 | AK65: 0.0853852497 | AL65: 0.09014795777 | AM65: 0.09140889561 | AN65: 0.08850278681 | AO65: 0.08193877009 | AP65: 0.07284772747 | AQ65: 0.06250038455 | AR65: 0.05200063014 | AS65: 0.04214929491 | AT65: 0.03342820811 | AU65: 0.0260498537 | AV65: 0.02003105669 | AW65: 0.01526546073 | AX65: 0.01158278441 | AY65: 0.008791459526 | AZ65: 0.006705904963 | BA65: 0.005161616856 | BB65: 0.00402159444 | BC65: 0.003177187704 | BD65: 0.002545748789 | BE65: 0.002066761818 | BF65: 0.001697532456 | BG65: 0.001409070937
A66: 34 | B66: =OFFSET(InputPriceData!B$15,CalculationsAndCharts!$A66+$A$11,0,1,1) -> 2015-11-12 | C66: =OFFSET(InputPriceData!G$15,CalculationsAndCharts!$A66+$A$11,IF($C$7,8,0),1,1) -> 121315200 | D66: =OFFSET(InputPriceData!C$15,CalculationsAndCharts!$A66+$A$11,IF($C$7,8,0),1,1) -> 203.17 | E66: =OFFSET(InputPriceData!D$15,CalculationsAndCharts!$A66+$A$11,IF($C$7,8,0),1,1) -> 203.72 | F66: =OFFSET(InputPriceData!E$15,CalculationsAndCharts!$A66+$A$11,IF($C$7,8,0),1,1) -> 201.52 | G66: =OFFSET(InputPriceData!F$15,CalculationsAndCharts!$A66+$A$11,IF($C$7,8,0),1,1) -> 201.54 | I66: 121315200 | J66: 16.65499177 | K66: 0 | L66: 0 | M66: 0 | N66: 0.001820030759 | O66: 0.001554816546 | P66: 0.001876507936 | Q66: 0.08467355859 | R66: 0.02851152123 | S66: 0.0008915534176 | T66: 0.004348158838 | U66: 0.00140017598 | V66: 0.008076121688 | W66: 0.03686963385 | X66: 0.1683296091 | Y66: 0.5171798766 | Z66: 0.8935340149 | AA66: 1 | AB66: 0.8297197713 | AC66: 0.5721844001 | AD66: 0.3655011804 | AE66: 0.2380635956 | AF66: 0.1672449772 | AG66: 0.1283764547 | AH66: 0.1075305487 | AI66: 0.09779653498 | AJ66: 0.09466513314 | AK66: 0.09437223011 | AL66: 0.09398333685 | AM66: 0.09172234995 | AN66: 0.08696749308 | AO66: 0.07995078389 | AP66: 0.07136526467 | AQ66: 0.06203242857 | AR66: 0.05268859451 | AS66: 0.04388456131 | AT66: 0.03596589507 | AU66: 0.02909866429 | AV66: 0.02331358565 | AW66: 0.01855174594 | AX66: 0.01470344595 | AY66: 0.01163729464 | AZ66: 0.009219808721 | BA66: 0.007327178427 | BB66: 0.00585123074 | BC66: 0.00470146301 | BD66: 0.003804650734 | BE66: 0.003103129932 | BF66: 0.002552499755 | BG66: 0.002119212936
A67: 35 | B67: =OFFSET(InputPriceData!B$15,CalculationsAndCharts!$A67+$A$11,0,1,1) -> 2015-11-11 | C67: =OFFSET(InputPriceData!G$15,CalculationsAndCharts!$A67+$A$11,IF($C$7,8,0),1,1) -> 67846000 | D67: =OFFSET(InputPriceData!C$15,CalculationsAndCharts!$A67+$A$11,IF($C$7,8,0),1,1) -> 205.51 | E67: =OFFSET(InputPriceData!D$15,CalculationsAndCharts!$A67+$A$11,IF($C$7,8,0),1,1) -> 205.57 | F67: =OFFSET(InputPriceData!E$15,CalculationsAndCharts!$A67+$A$11,IF($C$7,8,0),1,1) -> 204.31 | G67: =OFFSET(InputPriceData!F$15,CalculationsAndCharts!$A67+$A$11,IF($C$7,8,0),1,1) -> 204.39 | I67: 67846000 | J67: 16.90294707 | K67: 0 | L67: 0 | M67: 0 | N67: 0.002631701019 | O67: 0.001161213323 | P67: 0.002803097327 | Q67: 0.09236888757 | R67: 0.03946323824 | S67: 0.001260350533 | T67: 0.006409821863 | U67: 0.00199033295 | V67: 0.01207323238 | W67: 0.0537047936 | X67: 0.2172621028 | Y67: 0.5886519158 | Z67: 0.9310578988 | AA67: 1 | AB67: 0.8390055867 | AC67: 0.6144844282 | AD67: 0.428988049 | AE67: 0.3031034998 | AF67: 0.2229331923 | AG67: 0.1718968496 | AH67: 0.1390941248 | AI67: 0.1180525983 | AJ67: 0.104515492 | AK67: 0.0953806977 | AL67: 0.08841766914 | AM67: 0.08218819447 | AN67: 0.07592609121 | AO67: 0.06935754912 | AP67: 0.0625126995 | AQ67: 0.05556999172 | AR67: 0.04874897553 | AS67: 0.04224830113 | AT67: 0.03621761755 | AU67: 0.03075111798 | AV67: 0.02589283999 | AW67: 0.02164696131 | AX67: 0.01798905542 | AY67: 0.01487623334 | AZ67: 0.01225534302 | BA67: 0.01006909992 | BB67: 0.008260366194 | BC67: 0.006774924662 | BD67: 0.005563106873 | BE67: 0.004580593941 | BF67: 0.003788649098 | BG67: 0.003153980755
A68: 36 | B68: =OFFSET(InputPriceData!B$15,CalculationsAndCharts!$A68+$A$11,0,1,1) -> 2015-11-10 | C68: =OFFSET(InputPriceData!G$15,CalculationsAndCharts!$A68+$A$11,IF($C$7,8,0),1,1) -> 75874600 | D68: =OFFSET(InputPriceData!C$15,CalculationsAndCharts!$A68+$A$11,IF($C$7,8,0),1,1) -> 204.16 | E68: =OFFSET(InputPriceData!D$15,CalculationsAndCharts!$A68+$A$11,IF($C$7,8,0),1,1) -> 205.23 | F68: =OFFSET(InputPriceData!E$15,CalculationsAndCharts!$A68+$A$11,IF($C$7,8,0),1,1) -> 203.85 | G68: =OFFSET(InputPriceData!F$15,CalculationsAndCharts!$A68+$A$11,IF($C$7,8,0),1,1) -> 205.2 | H68: 75874600 | J68: 17.41517483 | K68: 0 | L68: 0 | M68: 0 | N68: 0.002678579611 | O68: 0.0006751009652 | P68: 0.004237958653 | Q68: 0.1132401124 | R68: 0.05465004191 | S68: 0.001877310396 | T68: 0.009713313673 | U68: 0.003080222744 | V68: 0.01867727765 | W68: 0.07989916051 | X68: 0.2726302123 | Y68: 0.638570599 | Z68: 0.9388803607 | AA68: 1 | AB68: 0.877316866 | AC68: 0.6946126449 | AD68: 0.5271980019 | AE68: 0.3972908787 | AF68: 0.3024164619 | AG68: 0.2343685962 | AH68: 0.1858915057 | AI68: 0.151621191 | AJ68: 0.1275737194 | AK68: 0.1106709727 | AL68: 0.09851602311 | AM68: 0.0893026391 | AN68: 0.08175190437 | AO68: 0.07503338613 | AP68: 0.06866984508 | AQ68: 0.06243893563 | AR68: 0.05628480296 | AS68: 0.05024693844 | AT68: 0.04440823067 | AU68: 0.03886055608 | AV68: 0.03368452791 | AW68: 0.02893962692 | AX68: 0.02466129668 | AY68: 0.02086226432 | AZ68: 0.01753607951 | BA68: 0.01466151196 | BB68: 0.01220696177 | BC68: 0.01013441154 | BD68: 0.00840270538 | BE68: 0.006970102024 | BF68: 0.005796143504 | BG68: 0.004842928748
A69: 37 | B69: =OFFSET(InputPriceData!B$15,CalculationsAndCharts!$A69+$A$11,0,1,1) -> 2015-11-09 | C69: =OFFSET(InputPriceData!G$15,CalculationsAndCharts!$A69+$A$11,IF($C$7,8,0),1,1) -> 131008700 | D69: =OFFSET(InputPriceData!C$15,CalculationsAndCharts!$A69+$A$11,IF($C$7,8,0),1,1) -> 205.93 | E69: =OFFSET(InputPriceData!D$15,CalculationsAndCharts!$A69+$A$11,IF($C$7,8,0),1,1) -> 206.11 | F69: =OFFSET(InputPriceData!E$15,CalculationsAndCharts!$A69+$A$11,IF($C$7,8,0),1,1) -> 203.61 | G69: =OFFSET(InputPriceData!F$15,CalculationsAndCharts!$A69+$A$11,IF($C$7,8,0),1,1) -> 204.72 | I69: 131008700 | J69: 17.72034669 | K69: 0 | L69: 0 | M69: 0 | N69: 0.003880829702 | O69: 0.000646426185 | P69: 0.006836979842 | Q69: 0.1399946411 | R69: 0.07381997645 | S69: 0.003037140433 | T69: 0.01582020148 | U69: 0.005111423336 | V69: 0.0309366492 | W69: 0.126776351 | X69: 0.3580296473 | Y69: 0.7036293674 | Z69: 0.9450395928 | AA69: 1 | AB69: 0.9295682041 | AC69: 0.8043347558 | AD69: 0.666131401 | AE69: 0.5365059233 | AF69: 0.4253739665 | AG69: 0.3356221215 | AH69: 0.2662382615 | AI69: 0.2144413222 | AJ69: 0.1768765839 | AK69: 0.1502028205 | AL69: 0.1313882666 | AM69: 0.1178735844 | AN69: 0.1076484456 | AO69: 0.099254012 | AP69: 0.09172666629 | AQ69: 0.08450591661 | AR69: 0.07733001567 | AS69: 0.0701373833 | AT69: 0.06298438155 | AU69: 0.05598333839 | AV69: 0.04926016196 | AW69: 0.04292844556 | AX69: 0.0370761111 | AY69: 0.03176076759 | AZ69: 0.0270105732 | BA69: 0.02282815421 | BB69: 0.01919586156 | BC69: 0.0160812521 | BD69: 0.01344214186 | BE69: 0.01123090493 | BF69: 0.009397905897 | BG69: 0.007894084868
A70: 38 | B70: =OFFSET(InputPriceData!B$15,CalculationsAndCharts!$A70+$A$11,0,1,1) -> 2015-11-06 | C70: =OFFSET(InputPriceData!G$15,CalculationsAndCharts!$A70+$A$11,IF($C$7,8,0),1,1) -> 110471500 | D70: =OFFSET(InputPriceData!C$15,CalculationsAndCharts!$A70+$A$11,IF($C$7,8,0),1,1) -> 206.36 | E70: =OFFSET(InputPriceData!D$15,CalculationsAndCharts!$A70+$A$11,IF($C$7,8,0),1,1) -> 206.93 | F70: =OFFSET(InputPriceData!E$15,CalculationsAndCharts!$A70+$A$11,IF($C$7,8,0),1,1) -> 205.1 | G70: =OFFSET(InputPriceData!F$15,CalculationsAndCharts!$A70+$A$11,IF($C$7,8,0),1,1) -> 206.65 | H70: 110471500 | J70: 18.47991036 | K70: 0 | L70: 0 | M70: 0 | N70: 0.005223919667 | O70: 0.0002961324421 | P70: 0.0109329134 | Q70: 0.1594740808 | R70: 0.09411167564 | S70: 0.004465719283 | T70: 0.02529929608 | U70: 0.008173703976 | V70: 0.04922490569 | W70: 0.1865395665 | X70: 0.4479303405 | Y70: 0.7819498118 | Z70: 0.972772142 | AA70: 1 | AB70: 0.9532317189 | AC70: 0.8769354392 | AD70: 0.7794056211 | AE70: 0.6681534382 | AF70: 0.5554738198 | AG70: 0.4524335138 | AH70: 0.3654310351 | AI70: 0.2963409211 | AJ70: 0.2439863383 | AK70: 0.2055990488 | AL70: 0.1778890701 | AM70: 0.157719712 | AN70: 0.1424673264 | AO70: 0.1301524373 | AP70: 0.1194222914 | AQ70: 0.1094523419 | AR70: 0.09981724441 | AS70: 0.09036408765 | AT70: 0.08110523642 | AU70: 0.07213704685 | AV70: 0.0635838759 | AW70: 0.05556338321 | AX70: 0.04816800091 | AY70: 0.04145764817 | AZ70: 0.03545958562 | BA70: 0.03017229876 | BB70: 0.02557123118 | BC70: 0.0216149554 | BD70: 0.01825094847 | BE70: 0.01542054671 | BF70: 0.01306292222 | BG70: 0.01111808754
A71: 39 | B71: =OFFSET(InputPriceData!B$15,CalculationsAndCharts!$A71+$A$11,0,1,1) -> 2015-11-05 | C71: =OFFSET(InputPriceData!G$15,CalculationsAndCharts!$A71+$A$11,IF($C$7,8,0),1,1) -> 78408700 | D71: =OFFSET(InputPriceData!C$15,CalculationsAndCharts!$A71+$A$11,IF($C$7,8,0),1,1) -> 207.03 | E71: =OFFSET(InputPriceData!D$15,CalculationsAndCharts!$A71+$A$11,IF($C$7,8,0),1,1) -> 207.58 | F71: =OFFSET(InputPriceData!E$15,CalculationsAndCharts!$A71+$A$11,IF($C$7,8,0),1,1) -> 205.72 | G71: =OFFSET(InputPriceData!F$15,CalculationsAndCharts!$A71+$A$11,IF($C$7,8,0),1,1) -> 206.76 | I71: 78408700 | J71: 19.03765108 | K71: 0 | L71: 0 | M71: 0 | N71: 0.008027354116 | O71: 0.0003751503412 | P71: 0.01692964721 | Q71: 0.1785101155 | R71: 0.1108905858 | S71: 0.004859834329 | T71: 0.03954024035 | U71: 0.0127250951 | V71: 0.07694546478 | W71: 0.2615777447 | X71: 0.4742873426 | Y71: 0.6986092503 | Z71: 0.8278974823 | AA71: 0.8963913513 | AB71: 0.9623917483 | AC71: 1 | AD71: 0.9720900545 | AE71: 0.8805156896 | AF71: 0.7529350334 | AG71: 0.6182177098 | AH71: 0.4953209821 | AI71: 0.3929728295 | AJ71: 0.3129424274 | AK71: 0.25319603 | AL71: 0.2100510921 | AM71: 0.1794627522 | AN71: 0.1577248324 | AO71: 0.1417961054 | AP71: 0.1293910355 | AQ71: 0.1189312206 | AR71: 0.1094263417 | AS71: 0.1003319585 | AT71: 0.09141351716 | AU71: 0.08263179449 | AV71: 0.07405505861 | AW71: 0.06579712256 | AX71: 0.05797737041 | AY71: 0.05069777316 | AZ71: 0.044032053 | BA71: 0.0380228815 | BB71: 0.03268391603 | BC71: 0.02800436481 | BD71: 0.02395452226 | BE71: 0.0204913004 | BF71: 0.01756320714 | BG71: 0.01511451383
A72: 40 | B72: =OFFSET(InputPriceData!B$15,CalculationsAndCharts!$A72+$A$11,0,1,1) -> 2015-11-04 | C72: =OFFSET(InputPriceData!G$15,CalculationsAndCharts!$A72+$A$11,IF($C$7,8,0),1,1) -> 96224500 | D72: =OFFSET(InputPriceData!C$15,CalculationsAndCharts!$A72+$A$11,IF($C$7,8,0),1,1) -> 207.94 | E72: =OFFSET(InputPriceData!D$15,CalculationsAndCharts!$A72+$A$11,IF($C$7,8,0),1,1) -> 208.09 | F72: =OFFSET(InputPriceData!E$15,CalculationsAndCharts!$A72+$A$11,IF($C$7,8,0),1,1) -> 206.34 | G72: =OFFSET(InputPriceData!F$15,CalculationsAndCharts!$A72+$A$11,IF($C$7,8,0),1,1) -> 206.97 | I72: 96224500 | J72: 19.27687997 | K72: 0 | L72: 0 | M72: 0 | N72: 0.009096468289 | O72: 0.0003242322462 | P72: 0.01888544867 | Q72: 0.1408192406 | R72: 0.09613139442 | S72: 0.003770809614 | T72: 0.04465564937 | U72: 0.01431490542 | V72: 0.08718109103 | W72: 0.2770056011 | X72: 0.3906129528 | Y72: 0.4882552391 | Z72: 0.5867193201 | AA72: 0.712013685 | AB72: 0.8659243396 | AC72: 0.979976804 | AD72: 1 | AE72: 0.929192058 | AF72: 0.8039277465 | AG72: 0.6617593381 | AH72: 0.5276470079 | AI72: 0.4137201176 | AJ72: 0.3234106674 | AK72: 0.2553616128 | AL72: 0.2060414432 | AM72: 0.1712767981 | AN72: 0.1470866847 | AO72: 0.1300899365 | AP72: 0.1176507905 | AQ72: 0.1078671166 | AR72: 0.09947306867 | AS72: 0.09170609175 | AT72: 0.08417085732 | AU72: 0.07671871813 | AV72: 0.06935089693 | AW72: 0.06214677523 | AX72: 0.0552147623 | AY72: 0.04866150351 | AZ72: 0.04257485049 | BA72: 0.0370164434 | BB72: 0.03202051244 | BC72: 0.02759632915 | BD72: 0.02373248437 | BE72: 0.0204017823 | BF72: 0.01756600584 | BG72: 0.0151801438
A73: 41 | B73: =OFFSET(InputPriceData!B$15,CalculationsAndCharts!$A73+$A$11,0,1,1) -> 2015-11-03 | C73: =OFFSET(InputPriceData!G$15,CalculationsAndCharts!$A73+$A$11,IF($C$7,8,0),1,1) -> 95246100 | D73: =OFFSET(InputPriceData!C$15,CalculationsAndCharts!$A73+$A$11,IF($C$7,8,0),1,1) -> 206.58 | E73: =OFFSET(InputPriceData!D$15,CalculationsAndCharts!$A73+$A$11,IF($C$7,8,0),1,1) -> 208.25 | F73: =OFFSET(InputPriceData!E$15,CalculationsAndCharts!$A73+$A$11,IF($C$7,8,0),1,1) -> 206.32 | G73: =OFFSET(InputPriceData!F$15,CalculationsAndCharts!$A73+$A$11,IF($C$7,8,0),1,1) -> 207.6 | H73: 95246100 | J73: 19.57794467 | K73: 0 | L73: 0 | M73: 0 | N73: 0.009418268037 | O73: 0.0003724017302 | P73: 0.01918965396 | Q73: 0.1296122398 | R73: 0.08982095837 | S73: 0.003967942917 | T73: 0.05122468728 | U73: 0.01644090776 | V73: 0.1003334026 | W73: 0.3002528727 | X73: 0.3210429557 | Y73: 0.2928343083 | Z73: 0.345479347 | AA73: 0.504909571 | AB73: 0.7316261238 | AC73: 0.9214530913 | AD73: 1 | AE73: 0.9645410882 | AF73: 0.8543071391 | AG73: 0.7130937657 | AH73: 0.5720341816 | AI73: 0.4477899575 | AJ73: 0.3464400916 | AK73: 0.2678399425 | AL73: 0.2088584945 | AM73: 0.1654026141 | AN73: 0.1335226285 | AO73: 0.10991016 | AP73: 0.09203271094 | AQ73: 0.07807737152 | AR73: 0.06681490502 | AS73: 0.05744874497 | AT73: 0.04948098543 | AU73: 0.04260716109 | AV73: 0.03664045784 | AW73: 0.03146090484 | AX73: 0.02698358624 | AY73: 0.02314022187 | AZ73: 0.01986951662 | BA73: 0.01711287217 | BB73: 0.01481311431 | BC73: 0.0129147209 | BD73: 0.01136463609 | BE73: 0.01011316396 | BF73: 0.009114694407 | BG73: 0.008328170274
A74: 42 | B74: =OFFSET(InputPriceData!B$15,CalculationsAndCharts!$A74+$A$11,0,1,1) -> 2015-11-02 | C74: =OFFSET(InputPriceData!G$15,CalculationsAndCharts!$A74+$A$11,IF($C$7,8,0),1,1) -> 86270800 | D74: =OFFSET(InputPriceData!C$15,CalculationsAndCharts!$A74+$A$11,IF($C$7,8,0),1,1) -> 204.96 | E74: =OFFSET(InputPriceData!D$15,CalculationsAndCharts!$A74+$A$11,IF($C$7,8,0),1,1) -> 207.22 | F74: =OFFSET(InputPriceData!E$15,CalculationsAndCharts!$A74+$A$11,IF($C$7,8,0),1,1) -> 204.81 | G74: =OFFSET(InputPriceData!F$15,CalculationsAndCharts!$A74+$A$11,IF($C$7,8,0),1,1) -> 207 | H74: 86270800 | J74: 19.58767155 | K74: 0 | L74: 0 | M74: 0 | N74: 0.008900440195 | O74: 0.0002184699548 | P74: 0.0166755021 | Q74: 0.1278427048 | R74: 0.08795448063 | S74: 0.003821644218 | T74: 0.05118439579 | U74: 0.0164817972 | V74: 0.1005338769 | W74: 0.2982029441 | X74: 0.3168833809 | Y74: 0.2899978036 | Z74: 0.3438970231 | AA74: 0.5037757989 | AB74: 0.7307171161 | AC74: 0.9209195968 | AD74: 1 | AE74: 0.9650174808 | AF74: 0.8550327161 | AG74: 0.7138211294 | AH74: 0.5725908868 | AI74: 0.4480949062 | AJ74: 0.3464808125 | AK74: 0.2676444193 | AL74: 0.2084742451 | AM74: 0.1648836317 | AN74: 0.1329216032 | AO74: 0.1092738901 | AP74: 0.09139960143 | AQ74: 0.0774764704 | AR74: 0.06626609457 | AS74: 0.05696372819 | AT74: 0.04906472201 | AU74: 0.04225945942 | AV74: 0.03635750748 | AW74: 0.03123661664 | AX74: 0.02681067754 | AY74: 0.02301103621 | AZ74: 0.01977659953 | BA74: 0.0170493411 | BB74: 0.01477286632 | BC74: 0.01289251987 | BD74: 0.01135611593 | BE74: 0.01011477742 | BF74: 0.009123630205 | BG74: 0.008342255226
A75: 43 | B75: =OFFSET(InputPriceData!B$15,CalculationsAndCharts!$A75+$A$11,0,1,1) -> 2015-10-30 | C75: =OFFSET(InputPriceData!G$15,CalculationsAndCharts!$A75+$A$11,IF($C$7,8,0),1,1) -> 131076900 | D75: =OFFSET(InputPriceData!C$15,CalculationsAndCharts!$A75+$A$11,IF($C$7,8,0),1,1) -> 205.69 | E75: =OFFSET(InputPriceData!D$15,CalculationsAndCharts!$A75+$A$11,IF($C$7,8,0),1,1) -> 206.06 | F75: =OFFSET(InputPriceData!E$15,CalculationsAndCharts!$A75+$A$11,IF($C$7,8,0),1,1) -> 204.39 | G75: =OFFSET(InputPriceData!F$15,CalculationsAndCharts!$A75+$A$11,IF($C$7,8,0),1,1) -> 204.58 | I75: 131076900 | J75: 20.10949866 | K75: 0 | L75: 0 | M75: 0 | N75: 0.008253873936 | O75: 0.0002628695831 | P75: 0.01009727729 | Q75: 0.09532692066 | R75: 0.07713263823 | S75: 0.00312968132 | T75: 0.0633342544 | U75: 0.02047733208 | V75: 0.1241727242 | W75: 0.333427042 | X75: 0.2682459843 | Y75: 0.1603773158 | Z75: 0.1642385341 | AA75: 0.3056750631 | AB75: 0.5616183877 | AC75: 0.8199595043 | AD75: 0.9759720192 | AE75: 1 | AF75: 0.9211966367 | AG75: 0.7870618233 | AH75: 0.637716076 | AI75: 0.4980997062 | AJ75: 0.379765742 | AK75: 0.2854538733 | AL75: 0.2132342694 | AM75: 0.1593231459 | AN75: 0.1196712782 | AO75: 0.09070084511 | AP75: 0.06954342665 | AQ75: 0.05402817186 | AR75: 0.04256979268 | AS75: 0.03403489408 | AT75: 0.02762155139 | AU75: 0.02276344414 | AV75: 0.01905869587 | AW75: 0.01621930152 | AX75: 0.01403615183 | AY75: 0.01235521442 | AZ75: 0.01106140577 | BA75: 0.01006764185 | BB75: 0.009307329443 | BC75: 0.008729134402 | BD75: 0.008293262522 | BE75: 0.007968757727 | BF75: 0.007731497174 | BG75: 0.007562675332
A76: 44 | B76: =OFFSET(InputPriceData!B$15,CalculationsAndCharts!$A76+$A$11,0,1,1) -> 2015-10-29 | C76: =OFFSET(InputPriceData!G$15,CalculationsAndCharts!$A76+$A$11,IF($C$7,8,0),1,1) -> 90525500 | D76: =OFFSET(InputPriceData!C$15,CalculationsAndCharts!$A76+$A$11,IF($C$7,8,0),1,1) -> 204.99 | E76: =OFFSET(InputPriceData!D$15,CalculationsAndCharts!$A76+$A$11,IF($C$7,8,0),1,1) -> 205.89 | F76: =OFFSET(InputPriceData!E$15,CalculationsAndCharts!$A76+$A$11,IF($C$7,8,0),1,1) -> 204.85 | G76: =OFFSET(InputPriceData!F$15,CalculationsAndCharts!$A76+$A$11,IF($C$7,8,0),1,1) -> 205.46 | H76: 90525500 | J76: 20.05107969 | K76: 0 | L76: 0 | M76: 0 | N76: 0.00842295892 | O76: 0.0001813604517 | P76: 0.006370031966 | Q76: 0.07987191665 | R76: 0.07128484105 | S76: 0.002548706251 | T76: 0.06402161968 | U76: 0.02089117252 | V76: 0.1262722105 | W76: 0.3327021889 | X76: 0.2540751484 | Y76: 0.137610846 | Z76: 0.1382025617 | AA76: 0.2794428905 | AB76: 0.5393678537 | AC76: 0.8051975205 | AD76: 0.9694606828 | AE76: 1 | AF76: 0.9249790982 | AG76: 0.7921943583 | AH76: 0.6425964243 | AI76: 0.5019290641 | AJ76: 0.3823029888 | AK76: 0.2867677424 | AL76: 0.2135297185 | AM76: 0.1588418462 | AN76: 0.1186428527 | AO76: 0.08932286334 | AP76: 0.06797581342 | AQ76: 0.05239423404 | AR76: 0.04096006622 | AS76: 0.03251204459 | AT76: 0.02622548427 | AU76: 0.02151618387 | AV76: 0.01796878746 | AW76: 0.01528560352 | AX76: 0.01325097238 | AY76: 0.0117068032 | AZ76: 0.01053585609 | BA76: 0.009650280752 | BB76: 0.008983683621 | BC76: 0.008485558544 | BD76: 0.0081173094 | BE76: 0.007849358225 | BF76: 0.007659006473 | BG76: 0.007528829653
A77: 45 | B77: =OFFSET(InputPriceData!B$15,CalculationsAndCharts!$A77+$A$11,0,1,1) -> 2015-10-28 | C77: =OFFSET(InputPriceData!G$15,CalculationsAndCharts!$A77+$A$11,IF($C$7,8,0),1,1) -> 135906700 | D77: =OFFSET(InputPriceData!C$15,CalculationsAndCharts!$A77+$A$11,IF($C$7,8,0),1,1) -> 203.66 | E77: =OFFSET(InputPriceData!D$15,CalculationsAndCharts!$A77+$A$11,IF($C$7,8,0),1,1) -> 205.61 | F77: =OFFSET(InputPriceData!E$15,CalculationsAndCharts!$A77+$A$11,IF($C$7,8,0),1,1) -> 202.88 | G77: =OFFSET(InputPriceData!F$15,CalculationsAndCharts!$A77+$A$11,IF($C$7,8,0),1,1) -> 205.58 | H77: 135906700 | J77: 20.26332576 | K77: 0 | L77: 0 | M77: 0 | N77: 0.009425449558 | O77: 0.0002027660688 | P77: 0.002095272542 | Q77: 0.06100503128 | R77: 0.06458037845 | S77: 0.002229750696 | T77: 0.06985741239 | U77: 0.02449596773 | V77: 0.1424949939 | W77: 0.3316499674 | X77: 0.2112916837 | Y77: 0.09388696472 | Z77: 0.09963705242 | AA77: 0.2425297638 | AB77: 0.5077222665 | AC77: 0.7837018466 | AD77: 0.9599034202 | AE77: 1 | AF77: 0.929627893 | AG77: 0.7966295575 | AH77: 0.6436605416 | AI77: 0.4984775062 | AJ77: 0.3746876429 | AK77: 0.2761176283 | AL77: 0.2011747726 | AM77: 0.1459709671 | AN77: 0.1061584271 | AO77: 0.07781997112 | AP77: 0.05778414144 | AQ77: 0.04364184995 | AR77: 0.0336367229 | AS77: 0.02652217354 | AT77: 0.02142820035 | AU77: 0.01775315166 | AV77: 0.01508217834 | AW77: 0.01312862134 | AX77: 0.01169316141 | AY77: 0.01063591132 | AZ77: 0.009857575879 | BA77: 0.009286801995 | BB77: 0.008871683419 | BC77: 0.008574026849 | BD77: 0.008365445986 | BE77: 0.008224667328 | BF77: 0.00813564404 | BG77: 0.00808621433
A78: 46 | B78: =OFFSET(InputPriceData!B$15,CalculationsAndCharts!$A78+$A$11,0,1,1) -> 2015-10-27 | C78: =OFFSET(InputPriceData!G$15,CalculationsAndCharts!$A78+$A$11,IF($C$7,8,0),1,1) -> 77905800 | D78: =OFFSET(InputPriceData!C$15,CalculationsAndCharts!$A78+$A$11,IF($C$7,8,0),1,1) -> 202.87 | E78: =OFFSET(InputPriceData!D$15,CalculationsAndCharts!$A78+$A$11,IF($C$7,8,0),1,1) -> 203.66 | F78: =OFFSET(InputPriceData!E$15,CalculationsAndCharts!$A78+$A$11,IF($C$7,8,0),1,1) -> 202.47 | G78: =OFFSET(InputPriceData!F$15,CalculationsAndCharts!$A78+$A$11,IF($C$7,8,0),1,1) -> 203.27 | H78: 77905800 | J78: 19.89178086 | K78: 0 | L78: 0 | M78: 0 | N78: 0.009493326429 | O78: 0.0002500715553 | P78: 0.001059371403 | Q78: 0.06045272394 | R78: 0.06775233979 | S78: 0.002786902199 | T78: 0.07736492474 | U78: 0.03069019811 | V78: 0.1658847722 | W78: 0.3453392196 | X78: 0.1929635992 | Y78: 0.08005903641 | Z78: 0.1002519028 | AA78: 0.2664541644 | AB78: 0.5576199163 | AC78: 0.8392834465 | AD78: 0.9944245806 | AE78: 1 | AF78: 0.898019386 | AG78: 0.7452306462 | AH78: 0.5852571958 | AI78: 0.4425643732 | AJ78: 0.3265463538 | AK78: 0.2376212464 | AL78: 0.1720483479 | AM78: 0.1248778042 | AN78: 0.09143010249 | AO78: 0.06786222941 | AP78: 0.05125552642 | AQ78: 0.03949774574 | AR78: 0.03110590032 | AS78: 0.02505723298 | AT78: 0.02065220012 | AU78: 0.01741257418 | AV78: 0.01500954398 | AW78: 0.01321465943 | AX78: 0.01186705188 | AY78: 0.01085176687 | AZ78: 0.01008547536 | BA78: 0.009507000774 | BB78: 0.009070963462 | BC78: 0.008743442647 | BD78: 0.008498954205 | BE78: 0.008318299206 | BF78: 0.008187000744 | BG78: 0.00809414798
A79: 47 | B79: =OFFSET(InputPriceData!B$15,CalculationsAndCharts!$A79+$A$11,0,1,1) -> 2015-10-26 | C79: =OFFSET(InputPriceData!G$15,CalculationsAndCharts!$A79+$A$11,IF($C$7,8,0),1,1) -> 69033000 | D79: =OFFSET(InputPriceData!C$15,CalculationsAndCharts!$A79+$A$11,IF($C$7,8,0),1,1) -> 203.96 | E79: =OFFSET(InputPriceData!D$15,CalculationsAndCharts!$A79+$A$11,IF($C$7,8,0),1,1) -> 204.02 | F79: =OFFSET(InputPriceData!E$15,CalculationsAndCharts!$A79+$A$11,IF($C$7,8,0),1,1) -> 203.23 | G79: =OFFSET(InputPriceData!F$15,CalculationsAndCharts!$A79+$A$11,IF($C$7,8,0),1,1) -> 203.66 | I79: 69033000 | J79: 19.65536008 | K79: 0 | L79: 0 | M79: 0 | N79: 0.00807063289 | O79: 0.0002901000885 | P79: 0.0006043419771 | Q79: 0.05040810182 | R79: 0.05991000431 | S79: 0.003428527229 | T79: 0.08322694244 | U79: 0.03886538308 | V79: 0.1904068828 | W79: 0.3711736022 | X79: 0.1906570804 | Y79: 0.07188774195 | Z79: 0.09831620576 | AA79: 0.2815706931 | AB79: 0.5910230208 | AC79: 0.8703847001 | AD79: 1 | AE79: 0.9723610456 | AF79: 0.8449972724 | AG79: 0.680938236 | AH79: 0.5222240341 | AI79: 0.3884955245 | AJ79: 0.2844612414 | AK79: 0.2073506109 | AL79: 0.1517925671 | AM79: 0.1123244519 | AN79: 0.08438607218 | AO79: 0.06452619024 | AP79: 0.05027565098 | AQ79: 0.0399244751 | AR79: 0.03230752201 | AS79: 0.02663376559 | AT79: 0.02236268542 | AU79: 0.01911972164 | AV79: 0.01664044627 | AW79: 0.0147344137 | AX79: 0.01326190077 | AY79: 0.01211884644 | AZ79: 0.01122692368 | BA79: 0.01052681215 | BB79: 0.009973486648 | BC79: 0.009532805101 | BD79: 0.009178964734 | BE79: 0.008892563154 | BF79: 0.008659099475 | BG79: 0.008467807301
A80: 48 | B80: =OFFSET(InputPriceData!B$15,CalculationsAndCharts!$A80+$A$11,0,1,1) -> 2015-10-23 | C80: =OFFSET(InputPriceData!G$15,CalculationsAndCharts!$A80+$A$11,IF($C$7,8,0),1,1) -> 144442300 | D80: =OFFSET(InputPriceData!C$15,CalculationsAndCharts!$A80+$A$11,IF($C$7,8,0),1,1) -> 203.91 | E80: =OFFSET(InputPriceData!D$15,CalculationsAndCharts!$A80+$A$11,IF($C$7,8,0),1,1) -> 204.6 | F80: =OFFSET(InputPriceData!E$15,CalculationsAndCharts!$A80+$A$11,IF($C$7,8,0),1,1) -> 202.97 | G80: =OFFSET(InputPriceData!F$15,CalculationsAndCharts!$A80+$A$11,IF($C$7,8,0),1,1) -> 204.16 | H80: 144442300 | J80: 19.48174774 | K80: 0 | L80: 0 | M80: 0 | N80: 0.007117250473 | O80: 0.0003783725076 | P80: 0.0006583097487 | Q80: 0.0371274788 | R80: 0.04796113072 | S80: 0.00423065861 | T80: 0.07601187917 | U80: 0.05145449678 | V80: 0.2164629935 | W80: 0.3686283578 | X80: 0.1695394262 | Y80: 0.05399997595 | Z80: 0.08261878633 | AA80: 0.2744692529 | AB80: 0.5989672404 | AC80: 0.8828738279 | AD80: 1 | AE80: 0.9510632293 | AF80: 0.8046125976 | AG80: 0.6296734771 | AH80: 0.4688385763 | AI80: 0.3394080926 | AJ80: 0.243140672 | AK80: 0.1748734683 | AL80: 0.1277113392 | AM80: 0.09542579453 | AN80: 0.07321389806 | AO80: 0.05768465989 | AP80: 0.04657182496 | AQ80: 0.03841086307 | AR80: 0.03227044224 | AS80: 0.02755766856 | AT80: 0.02388805917 | AU80: 0.02100362775 | AV80: 0.01872346731 | AW80: 0.01691486049 | AX80: 0.01547668859 | AY80: 0.01432988609 | AZ80: 0.01341177904 | BA80: 0.01267250212 | BB80: 0.01207251518 | BC80: 0.01158071617 | BD80: 0.01117290635 | BE80: 0.01083049596 | BF80: 0.0105394004 | BG80: 0.0102891031
A81: 49 | B81: =OFFSET(InputPriceData!B$15,CalculationsAndCharts!$A81+$A$11,0,1,1) -> 2015-10-22 | C81: =OFFSET(InputPriceData!G$15,CalculationsAndCharts!$A81+$A$11,IF($C$7,8,0),1,1) -> 174911700 | D81: =OFFSET(InputPriceData!C$15,CalculationsAndCharts!$A81+$A$11,IF($C$7,8,0),1,1) -> 199.71 | E81: =OFFSET(InputPriceData!D$15,CalculationsAndCharts!$A81+$A$11,IF($C$7,8,0),1,1) -> 202.19 | F81: =OFFSET(InputPriceData!E$15,CalculationsAndCharts!$A81+$A$11,IF($C$7,8,0),1,1) -> 198.59 | G81: =OFFSET(InputPriceData!F$15,CalculationsAndCharts!$A81+$A$11,IF($C$7,8,0),1,1) -> 201.95 | H81: 174911700 | J81: 19.37602022 | K81: 0 | L81: 0 | M81: 0 | N81: 0.007436903978 | O81: 0.0003967860331 | P81: 0.0006843084491 | Q81: 0.03002647627 | R81: 0.04162336307 | S81: 0.004077512328 | T81: 0.06024178852 | U81: 0.05399141634 | V81: 0.2143683141 | W81: 0.3444696678 | X81: 0.1556985554 | Y81: 0.04806793262 | Z81: 0.07658417834 | AA81: 0.2672156305 | AB81: 0.5934312668 | AC81: 0.8807758259 | AD81: 1 | AE81: 0.9507880416 | AF81: 0.8026057642 | AG81: 0.6257813997 | AH81: 0.4637017944 | AI81: 0.3338693746 | AJ81: 0.2378925511 | AK81: 0.1703419308 | AL81: 0.1240764552 | AM81: 0.09269340297 | AN81: 0.07128969825 | AO81: 0.0564312308 | AP81: 0.04584531265 | AQ81: 0.03808089531 | AR81: 0.03222848332 | AS81: 0.02771843184 | AT81: 0.02418733527 | AU81: 0.02139467548 | AV81: 0.01917318922 | AW81: 0.01740036501 | AX81: 0.0159824659 | AY81: 0.01484562095 | AZ81: 0.01393072816 | BA81: 0.01319032999 | BB81: 0.01258648168 | BC81: 0.01208912303 | BD81: 0.01167472782 | BE81: 0.01132513701 | BF81: 0.0110265411 | BG81: 0.0107685999
A82: 50 | B82: =OFFSET(InputPriceData!B$15,CalculationsAndCharts!$A82+$A$11,0,1,1) -> 2015-10-21 | C82: =OFFSET(InputPriceData!G$15,CalculationsAndCharts!$A82+$A$11,IF($C$7,8,0),1,1) -> 102038000 | D82: =OFFSET(InputPriceData!C$15,CalculationsAndCharts!$A82+$A$11,IF($C$7,8,0),1,1) -> 200.33 | E82: =OFFSET(InputPriceData!D$15,CalculationsAndCharts!$A82+$A$11,IF($C$7,8,0),1,1) -> 200.5 | F82: =OFFSET(InputPriceData!E$15,CalculationsAndCharts!$A82+$A$11,IF($C$7,8,0),1,1) -> 198.4 | G82: =OFFSET(InputPriceData!F$15,CalculationsAndCharts!$A82+$A$11,IF($C$7,8,0),1,1) -> 198.59 | I82: 102038000 | J82: 19.49175743 | K82: 0 | L82: 0 | M82: 0 | N82: 0.007131641072 | O82: 0.0005403263466 | P82: 0.0008910322557 | Q82: 0.03091732225 | R82: 0.03997210973 | S82: 0.004868656313 | T82: 0.0458221891 | U82: 0.07293613138 | V82: 0.2558189033 | W82: 0.3446199812 | X82: 0.1439346815 | Y82: 0.03868526588 | Z82: 0.06218882396 | AA82: 0.2483186274 | AB82: 0.5787037369 | AC82: 0.8746960034 | AD82: 1 | AE82: 0.9523527535 | AF82: 0.8031064827 | AG82: 0.6249176658 | AH82: 0.4624177094 | AI82: 0.3333022099 | AJ82: 0.2388233257 | AK82: 0.1730647917 | AL82: 0.1284886609 | AM82: 0.09845466315 | AN82: 0.07796905149 | AO82: 0.0636103896 | AP82: 0.05317597222 | AQ82: 0.0453059324 | AR82: 0.03917987186 | AS82: 0.03430300555 | AT82: 0.03036830645 | AU82: 0.02717368031 | AV82: 0.02457521084 | AW82: 0.02246229067 | AX82: 0.02074512635 | AY82: 0.01934873795 | AZ82: 0.01821007475 | BA82: 0.01727644961 | BB82: 0.01650442438 | BC82: 0.01585878699 | BD82: 0.01531151378 | BE82: 0.01484072115 | BF82: 0.01442964636 | BG82: 0.0140656984
A83: 51 | B83: =OFFSET(InputPriceData!B$15,CalculationsAndCharts!$A83+$A$11,0,1,1) -> 2015-10-20 | C83: =OFFSET(InputPriceData!G$15,CalculationsAndCharts!$A83+$A$11,IF($C$7,8,0),1,1) -> 78448500 | D83: =OFFSET(InputPriceData!C$15,CalculationsAndCharts!$A83+$A$11,IF($C$7,8,0),1,1) -> 199.58 | E83: =OFFSET(InputPriceData!D$15,CalculationsAndCharts!$A83+$A$11,IF($C$7,8,0),1,1) -> 200.55 | F83: =OFFSET(InputPriceData!E$15,CalculationsAndCharts!$A83+$A$11,IF($C$7,8,0),1,1) -> 199.28 | G83: =OFFSET(InputPriceData!F$15,CalculationsAndCharts!$A83+$A$11,IF($C$7,8,0),1,1) -> 199.83 | H83: 78448500 | J83: 19.52191109 | K83: 0 | L83: 0 | M83: 0 | N83: 0.007501443179 | O83: 0.0005774959285 | P83: 0.0009587604575 | Q83: 0.03022226756 | R83: 0.03503125364 | S83: 0.003174213079 | T83: 0.03430174156 | U83: 0.07809312265 | V83: 0.2666497031 | W83: 0.3415298896 | X83: 0.13672329 | Y83: 0.03177910347 | Z83: 0.05158415465 | AA83: 0.233516507 | AB83: 0.5654670522 | AC83: 0.8679207173 | AD83: 1 | AE83: 0.9566857605 | AF83: 0.8091665766 | AG83: 0.6310641399 | AH83: 0.4679670487 | AI83: 0.3381470237 | AJ83: 0.2430903831 | AK83: 0.1769168019 | AL83: 0.1320444269 | AM83: 0.1017764836 | AN83: 0.0810777208 | AO83: 0.0665053542 | AP83: 0.05585108211 | AQ83: 0.0477585766 | AR83: 0.04141456054 | AS83: 0.03633137552 | AT83: 0.03220734284 | AU83: 0.02884340667 | AV83: 0.02609656474 | AW83: 0.02385550081 | AX83: 0.02202865637 | AY83: 0.02053873078 | AZ83: 0.01932017986 | BA83: 0.01831791038 | BB83: 0.01748632027 | BC83: 0.01678834997 | BD83: 0.01619446325 | BE83: 0.01568158232 | BF83: 0.01523203254 | BG83: 0.0148325491
A84: 52 | B84: =OFFSET(InputPriceData!B$15,CalculationsAndCharts!$A84+$A$11,0,1,1) -> 2015-10-19 | C84: =OFFSET(InputPriceData!G$15,CalculationsAndCharts!$A84+$A$11,IF($C$7,8,0),1,1) -> 76523900 | D84: =OFFSET(InputPriceData!C$15,CalculationsAndCharts!$A84+$A$11,IF($C$7,8,0),1,1) -> 199.23 | E84: =OFFSET(InputPriceData!D$15,CalculationsAndCharts!$A84+$A$11,IF($C$7,8,0),1,1) -> 200.09 | F84: =OFFSET(InputPriceData!E$15,CalculationsAndCharts!$A84+$A$11,IF($C$7,8,0),1,1) -> 198.87 | G84: =OFFSET(InputPriceData!F$15,CalculationsAndCharts!$A84+$A$11,IF($C$7,8,0),1,1) -> 200.09 | H84: 76523900 | J84: 19.58575536 | K84: 0 | L84: 0 | M84: 0 | N84: 0.009636995118 | O84: 0.0007729718247 | P84: 0.001332589507 | Q84: 0.03355887903 | R84: 0.03771018282 | S84: 0.004049589 | T84: 0.03170594311 | U84: 0.1080887488 | V84: 0.3498847337 | W84: 0.3694817699 | X84: 0.118828972 | Y84: 0.02245784908 | Z84: 0.04748145782 | AA84: 0.2417795403 | AB84: 0.5822943998 | AC84: 0.8787517008 | AD84: 1 | AE84: 0.9520836676 | AF84: 0.8078755984 | AG84: 0.6370756405 | AH84: 0.4812959864 | AI84: 0.356835379 | AJ84: 0.2648556246 | AK84: 0.199905484 | AL84: 0.1549792804 | AM84: 0.1238573486 | AN84: 0.1018410796 | AO84: 0.08571387571 | AP84: 0.07342003711 | AQ84: 0.06370743002 | AR84: 0.05583268856 | AS84: 0.04935173427 | AT84: 0.04398561434 | AU84: 0.03954188364 | AV84: 0.03587247246 | AW84: 0.03285333665 | AX84: 0.03037591178 | AY84: 0.02834423545 | AZ84: 0.02667430582 | BA84: 0.02529396318 | BB84: 0.02414257899 | BC84: 0.02317036069 | BD84: 0.02233731954 | BE84: 0.02161203064 | BF84: 0.02097031843 | BG84: 0.0203939738
A85: 53 | B85: =OFFSET(InputPriceData!B$15,CalculationsAndCharts!$A85+$A$11,0,1,1) -> 2015-10-16 | C85: =OFFSET(InputPriceData!G$15,CalculationsAndCharts!$A85+$A$11,IF($C$7,8,0),1,1) -> 109692900 | D85: =OFFSET(InputPriceData!C$15,CalculationsAndCharts!$A85+$A$11,IF($C$7,8,0),1,1) -> 199.56 | E85: =OFFSET(InputPriceData!D$15,CalculationsAndCharts!$A85+$A$11,IF($C$7,8,0),1,1) -> 200.01 | F85: =OFFSET(InputPriceData!E$15,CalculationsAndCharts!$A85+$A$11,IF($C$7,8,0),1,1) -> 198.66 | G85: =OFFSET(InputPriceData!F$15,CalculationsAndCharts!$A85+$A$11,IF($C$7,8,0),1,1) -> 199.99 | H85: 109692900 | J85: 19.62245586 | K85: 0 | L85: 0 | M85: 0 | N85: 0.01312002904 | O85: 0.001239754079 | P85: 0.002128536605 | Q85: 0.04187865275 | R85: 0.03979303859 | S85: 0.004918444832 | T85: 0.03405567224 | U85: 0.1727553248 | V85: 0.5289445772 | W85: 0.43970258 | X85: 0.08353879076 | Y85: 0.008135762802 | Z85: 0.05394394112 | AA85: 0.2997079756 | AB85: 0.6761442735 | AC85: 0.9427982244 | AD85: 1 | AE85: 0.9047955702 | AF85: 0.7491076688 | AG85: 0.5937060105 | AH85: 0.4638941814 | AI85: 0.3642410078 | AJ85: 0.2907734937 | AK85: 0.2373261765 | AL85: 0.1981405773 | AM85: 0.1686890993 | AN85: 0.1457548633 | AO85: 0.1272239468 | AP85: 0.1117954872 | AQ85: 0.09870731525 | AR85: 0.08751894831 | AS85: 0.07796107028 | AT85: 0.06984312836 | AU85: 0.06300399042 | AV85: 0.05729053493 | AW85: 0.05255205615 | AX85: 0.04864212185 | AY85: 0.04542281722 | AZ85: 0.04276873098 | BA85: 0.04056960061 | BB85: 0.03873142004 | BC85: 0.03717623923 | BD85: 0.03584103309 | BE85: 0.03467601618 | BF85: 0.03364271238 | BG85: 0.0327120037
A86: 54 | B86: =OFFSET(InputPriceData!B$15,CalculationsAndCharts!$A86+$A$11,0,1,1) -> 2015-10-15 | C86: =OFFSET(InputPriceData!G$15,CalculationsAndCharts!$A86+$A$11,IF($C$7,8,0),1,1) -> 134142200 | D86: =OFFSET(InputPriceData!C$15,CalculationsAndCharts!$A86+$A$11,IF($C$7,8,0),1,1) -> 196.85 | E86: =OFFSET(InputPriceData!D$15,CalculationsAndCharts!$A86+$A$11,IF($C$7,8,0),1,1) -> 199.1 | F86: =OFFSET(InputPriceData!E$15,CalculationsAndCharts!$A86+$A$11,IF($C$7,8,0),1,1) -> 196.42 | G86: =OFFSET(InputPriceData!F$15,CalculationsAndCharts!$A86+$A$11,IF($C$7,8,0),1,1) -> 199.09 | H86: 134142200 | J86: 19.57070436 | K86: 0 | L86: 0 | M86: 0 | N86: 0.01298413024 | O86: 0.0007509874376 | P86: 0.0020954031 | Q86: 0.04209674326 | R86: 0.04063370053 | S86: 0.005084614331 | T86: 0.0348456995 | U86: 0.1804982095 | V86: 0.5501779624 | W86: 0.4496370664 | X86: 0.08225086056 | Y86: 0.007799799708 | Z86: 0.0556100156 | AA86: 0.3076625001 | AB86: 0.688081399 | AC86: 0.9508512895 | AD86: 1 | AE86: 0.8982210116 | AF86: 0.7397205968 | AG86: 0.5846488478 | AH86: 0.4568186257 | AI86: 0.3596096791 | AJ86: 0.2884041406 | AK86: 0.2367897736 | AL86: 0.1989717397 | AM86: 0.1704736544 | AN86: 0.1481562068 | AO86: 0.1299837251 | AP86: 0.1147248219 | AQ86: 0.1016750786 | AR86: 0.09043969434 | AS86: 0.08078382509 | AT86: 0.07254166958 | AU86: 0.06556890173 | AV86: 0.05972306102 | AW86: 0.05485960023 | AX86: 0.05083512464 | AY86: 0.04751272217 | AZ86: 0.04476675382 | BA86: 0.04248606195 | BB86: 0.04057544933 | BC86: 0.03895570795 | BD86: 0.03756261712 | BE86: 0.03634532091 | BF86: 0.0352644193 | BG86: 0.03429001469
A87: 55 | B87: =OFFSET(InputPriceData!B$15,CalculationsAndCharts!$A87+$A$11,0,1,1) -> 2015-10-14 | C87: =OFFSET(InputPriceData!G$15,CalculationsAndCharts!$A87+$A$11,IF($C$7,8,0),1,1) -> 99106200 | D87: =OFFSET(InputPriceData!C$15,CalculationsAndCharts!$A87+$A$11,IF($C$7,8,0),1,1) -> 196.95 | E87: =OFFSET(InputPriceData!D$15,CalculationsAndCharts!$A87+$A$11,IF($C$7,8,0),1,1) -> 197.63 | F87: =OFFSET(InputPriceData!E$15,CalculationsAndCharts!$A87+$A$11,IF($C$7,8,0),1,1) -> 195.73 | G87: =OFFSET(InputPriceData!F$15,CalculationsAndCharts!$A87+$A$11,IF($C$7,8,0),1,1) -> 196.07 | I87: 99106200 | J87: 19.42338209 | K87: 0 | L87: 0 | M87: 0 | N87: 0.01502078753 | O87: 0.001078573401 | P87: 0.002873797663 | Q87: 0.0462558113 | R87: 0.06014031937 | S87: 0.00570484517 | T87: 0.04336015139 | U87: 0.2701425324 | V87: 0.7980754164 | W87: 0.5813122863 | X87: 0.08307645821 | Y87: 0.006190179866 | Z87: 0.07038197624 | AA87: 0.3752873384 | AB87: 0.7812484663 | AC87: 1 | AD87: 0.975115791 | AE87: 0.8186366877 | AF87: 0.6409354967 | AG87: 0.493818356 | AH87: 0.3871660005 | AI87: 0.3142361619 | AJ87: 0.2652670456 | AK87: 0.2319748786 | AL87: 0.2082924453 | AM87: 0.1901078241 | AN87: 0.1748552701 | AO87: 0.1611157249 | AP87: 0.1482501789 | AQ87: 0.1360880306 | AR87: 0.1246899699 | AS87: 0.1141897717 | AT87: 0.1047046072 | AU87: 0.09629591723 | AV87: 0.0889623075 | AW87: 0.08264934859 | AX87: 0.07726583219 | AY87: 0.07270027904 | AZ87: 0.06883466167 | BA87: 0.06555434528 | BB87: 0.06275438575 | BC87: 0.06034283884 | BD87: 0.05824187326 | BE87: 0.05638742356 | BF87: 0.05472797877 | BG87: 0.05322294676
A88: 56 | B88: =OFFSET(InputPriceData!B$15,CalculationsAndCharts!$A88+$A$11,0,1,1) -> 2015-10-13 | C88: =OFFSET(InputPriceData!G$15,CalculationsAndCharts!$A88+$A$11,IF($C$7,8,0),1,1) -> 88038700 | D88: =OFFSET(InputPriceData!C$15,CalculationsAndCharts!$A88+$A$11,IF($C$7,8,0),1,1) -> 197.41 | E88: =OFFSET(InputPriceData!D$15,CalculationsAndCharts!$A88+$A$11,IF($C$7,8,0),1,1) -> 198.9 | F88: =OFFSET(InputPriceData!E$15,CalculationsAndCharts!$A88+$A$11,IF($C$7,8,0),1,1) -> 196.82 | G88: =OFFSET(InputPriceData!F$15,CalculationsAndCharts!$A88+$A$11,IF($C$7,8,0),1,1) -> 197.02 | I88: 88038700 | J88: 19.88129646 | K88: 0 | L88: 0 | M88: 0 | N88: 0.0177127532 | O88: 0.001417080482 | P88: 0.002514808374 | Q88: 0.04493163019 | R88: 0.07902494734 | S88: 0.005958955995 | T88: 0.04098538849 | U88: 0.3644863644 | V88: 1 | W88: 0.6107959556 | X88: 0.06429028056 | Y88: 0.004829855875 | Z88: 0.07399230274 | AA88: 0.3650203215 | AB88: 0.704102061 | AC88: 0.8450867487 | AD88: 0.7840677665 | AE88: 0.6392551015 | AF88: 0.4988985152 | AG88: 0.3933808333 | AH88: 0.3219409524 | AI88: 0.2755626327 | AJ88: 0.2458624946 | AK88: 0.2266120538 | AL88: 0.213353092 | AM88: 0.2029941477 | AN88: 0.1935774664 | AO88: 0.1840706014 | AP88: 0.1741218375 | AQ88: 0.1638062556 | AR88: 0.1534073365 | AS88: 0.1432598519 | AT88: 0.1336562678 | AU88: 0.1248044716 | AV88: 0.1168200311 | AW88: 0.1097377329 | AX88: 0.103531169 | AY88: 0.09813333664 | AZ88: 0.09345456895 | BA88: 0.08939638147 | BB88: 0.08586115058 | BC88: 0.08275819685 | BD88: 0.08000707563 | BE88: 0.07753887053 | BF88: 0.07529616814 | BG88: 0.0732322411
A89: 57 | B89: =OFFSET(InputPriceData!B$15,CalculationsAndCharts!$A89+$A$11,0,1,1) -> 2015-10-12 | C89: =OFFSET(InputPriceData!G$15,CalculationsAndCharts!$A89+$A$11,IF($C$7,8,0),1,1) -> 56395600 | D89: =OFFSET(InputPriceData!C$15,CalculationsAndCharts!$A89+$A$11,IF($C$7,8,0),1,1) -> 198.17 | E89: =OFFSET(InputPriceData!D$15,CalculationsAndCharts!$A89+$A$11,IF($C$7,8,0),1,1) -> 198.5 | F89: =OFFSET(InputPriceData!E$15,CalculationsAndCharts!$A89+$A$11,IF($C$7,8,0),1,1) -> 197.67 | G89: =OFFSET(InputPriceData!F$15,CalculationsAndCharts!$A89+$A$11,IF($C$7,8,0),1,1) -> 198.27 | H89: 56395600 | J89: 20.24550773 | K89: 0 | L89: 0 | M89: 0 | N89: 0.0179569308 | O89: 0.001325809789 | P89: 0.001538970232 | Q89: 0.04067120319 | R89: 0.0812418746 | S89: 0.004531031601 | T89: 0.03238318388 | U89: 0.3848267214 | V89: 1 | W89: 0.5446225804 | X89: 0.04738348485 | Y89: 0.004283820484 | Z89: 0.06772694992 | AA89: 0.3150618794 | AB89: 0.5849093842 | AC89: 0.6876130145 | AD89: 0.6361747083 | AE89: 0.5269306104 | AF89: 0.4240909167 | AG89: 0.3470357334 | AH89: 0.2939530744 | AI89: 0.2584865723 | AJ89: 0.2351120548 | AK89: 0.2196178049 | AL89: 0.2087499279 | AM89: 0.2000771825 | AN89: 0.1919821116 | AO89: 0.1835943404 | AP89: 0.1746290551 | AQ89: 0.1651814426 | AR89: 0.1555361756 | AS89: 0.1460253823 | AT89: 0.1369419778 | AU89: 0.1284993922 | AV89: 0.1208232163 | AW89: 0.1139610752 | AX89: 0.1079004288 | AY89: 0.1025877278 | AZ89: 0.09794539219 | BA89: 0.09388517129 | BB89: 0.09031770022 | BC89: 0.08715870363 | BD89: 0.08433254256 | BE89: 0.08177381798 | BF89: 0.07942765501 | BG89: 0.0772491624
A90: 58 | B90: =OFFSET(InputPriceData!B$15,CalculationsAndCharts!$A90+$A$11,0,1,1) -> 2015-10-09 | C90: =OFFSET(InputPriceData!G$15,CalculationsAndCharts!$A90+$A$11,IF($C$7,8,0),1,1) -> 107069200 | D90: =OFFSET(InputPriceData!C$15,CalculationsAndCharts!$A90+$A$11,IF($C$7,8,0),1,1) -> 198.13 | E90: =OFFSET(InputPriceData!D$15,CalculationsAndCharts!$A90+$A$11,IF($C$7,8,0),1,1) -> 198.64 | F90: =OFFSET(InputPriceData!E$15,CalculationsAndCharts!$A90+$A$11,IF($C$7,8,0),1,1) -> 197.34 | G90: =OFFSET(InputPriceData!F$15,CalculationsAndCharts!$A90+$A$11,IF($C$7,8,0),1,1) -> 198.08 | I90: 107069200 | J90: 20.49527504 | K90: 0 | L90: 0 | M90: 0 | N90: 0.01654545419 | O90: 0.0014483388 | P90: 0.001391002527 | Q90: 0.03930999982 | R90: 0.08926000259 | S90: 0.003554442823 | T90: 0.03319091128 | U90: 0.4279161688 | V90: 1 | W90: 0.4403883235 | X90: 0.02695104515 | Y90: 0.004592679711 | Z90: 0.06366379543 | AA90: 0.2556155738 | AB90: 0.4350237581 | AC90: 0.4924407213 | AD90: 0.4615251996 | AE90: 0.4050653451 | AF90: 0.3534660975 | AG90: 0.3123612946 | AH90: 0.2802574785 | AI90: 0.2556010775 | AJ90: 0.2372123789 | AK90: 0.2236238545 | AL90: 0.2130749671 | AM90: 0.2039223348 | AN90: 0.1949883985 | AO90: 0.1856679059 | AP90: 0.1758382611 | AQ90: 0.1656852893 | AR90: 0.155531864 | AS90: 0.1457118055 | AT90: 0.1364970774 | AU90: 0.1280686376 | AV90: 0.1205160806 | AW90: 0.1138525981 | AX90: 0.1080355487 | AY90: 0.1029867441 | AZ90: 0.09860952376 | BA90: 0.09480163484 | BB90: 0.09146404792 | BC90: 0.08850635315 | BD90: 0.08584954152 | BE90: 0.08342693619 | BF90: 0.08118391486 | BG90: 0.07907691592
A91: 59 | B91: =OFFSET(InputPriceData!B$15,CalculationsAndCharts!$A91+$A$11,0,1,1) -> 2015-10-08 | C91: =OFFSET(InputPriceData!G$15,CalculationsAndCharts!$A91+$A$11,IF($C$7,8,0),1,1) -> 153055200 | D91: =OFFSET(InputPriceData!C$15,CalculationsAndCharts!$A91+$A$11,IF($C$7,8,0),1,1) -> 195.74 | E91: =OFFSET(InputPriceData!D$15,CalculationsAndCharts!$A91+$A$11,IF($C$7,8,0),1,1) -> 198.3 | F91: =OFFSET(InputPriceData!E$15,CalculationsAndCharts!$A91+$A$11,IF($C$7,8,0),1,1) -> 195.39 | G91: =OFFSET(InputPriceData!F$15,CalculationsAndCharts!$A91+$A$11,IF($C$7,8,0),1,1) -> 197.96 | H91: 153055200 | J91: 21.11718772 | K91: 0 | L91: 0 | M91: 0 | N91: 0.01194693466 | O91: 0.001629475327 | P91: 0.001437757685 | Q91: 0.03117467588 | R91: 0.106826803 | S91: 0.002414045729 | T91: 0.03386399694 | U91: 0.5074759895 | V91: 1 | W91: 0.3499524207 | X91: 0.01669867701 | Y91: 0.00532063089 | Z91: 0.05636488301 | AA91: 0.1963387499 | AB91: 0.3099164253 | AC91: 0.3432113798 | AD91: 0.3343036319 | AE91: 0.3194264135 | AF91: 0.3065427207 | AG91: 0.2927018409 | AH91: 0.2768536365 | AI91: 0.2608347196 | AJ91: 0.2466185719 | AK91: 0.2347988363 | AL91: 0.2247449222 | AM91: 0.2153850851 | AN91: 0.2058411192 | AO91: 0.1956910709 | AP91: 0.1849452844 | AQ91: 0.1738920649 | AR91: 0.1629294372 | AS91: 0.1524393706 | AT91: 0.1427171791 | AU91: 0.1339467821 | AV91: 0.1262058703 | AW91: 0.1194863599 | AX91: 0.1137196756 | AY91: 0.1088006425 | AZ91: 0.1046070364 | BA91: 0.1010139588 | BB91: 0.09790338125 | BC91: 0.09516972331 | BD91: 0.09272246048 | BE91: 0.09048667591 | BF91: 0.08840230604 | BG91: 0.08642264679
A92: 60 | B92: =OFFSET(InputPriceData!B$15,CalculationsAndCharts!$A92+$A$11,0,1,1) -> 2015-10-07 | C92: =OFFSET(InputPriceData!G$15,CalculationsAndCharts!$A92+$A$11,IF($C$7,8,0),1,1) -> 124307300 | D92: =OFFSET(InputPriceData!C$15,CalculationsAndCharts!$A92+$A$11,IF($C$7,8,0),1,1) -> 195.69 | E92: =OFFSET(InputPriceData!D$15,CalculationsAndCharts!$A92+$A$11,IF($C$7,8,0),1,1) -> 196.61 | F92: =OFFSET(InputPriceData!E$15,CalculationsAndCharts!$A92+$A$11,IF($C$7,8,0),1,1) -> 194.29 | G92: =OFFSET(InputPriceData!F$15,CalculationsAndCharts!$A92+$A$11,IF($C$7,8,0),1,1) -> 196.19 | H92: 124307300 | J92: 21.35614221 | K92: 0 | L92: 0 | M92: 0 | N92: 0.01248678374 | O92: 0.001189045028 | P92: 0.001802264756 | Q92: 0.02057935931 | R92: 0.1315609574 | S92: 0.002224898668 | T92: 0.03708804561 | U92: 0.6188426803 | V92: 1 | W92: 0.2919944011 | X92: 0.01508291756 | Y92: 0.006531689829 | Z92: 0.04715905961 | AA92: 0.1508719715 | AB92: 0.2357140853 | AC92: 0.2698803452 | AD92: 0.2826096595 | AE92: 0.2937615417 | AF92: 0.3011565182 | AG92: 0.2991140416 | AH92: 0.2881608996 | AI92: 0.272969141 | AJ92: 0.2578823955 | AK92: 0.2448866713 | AL92: 0.2339202525 | AM92: 0.2240036838 | AN92: 0.2141647676 | AO92: 0.2038672894 | AP92: 0.1930505394 | AQ92: 0.1819800197 | AR92: 0.1710615482 | AS92: 0.1606955469 | AT92: 0.1511924742 | AU92: 0.142741346 | AV92: 0.1354136987 | AW92: 0.1291860566 | AX92: 0.1239685264 | AY92: 0.1196320544 | AZ92: 0.1160307495 | BA92: 0.1130182151 | BB92: 0.1104582561 | BC92: 0.1082309682 | BD92: 0.1062353776 | BE92: 0.104389714 | BF92: 0.1026302002 | BG92: 0.1009090258
A93: 61 | B93: =OFFSET(InputPriceData!B$15,CalculationsAndCharts!$A93+$A$11,0,1,1) -> 2015-10-06 | C93: =OFFSET(InputPriceData!G$15,CalculationsAndCharts!$A93+$A$11,IF($C$7,8,0),1,1) -> 110274500 | D93: =OFFSET(InputPriceData!C$15,CalculationsAndCharts!$A93+$A$11,IF($C$7,8,0),1,1) -> 195.11 | E93: =OFFSET(InputPriceData!D$15,CalculationsAndCharts!$A93+$A$11,IF($C$7,8,0),1,1) -> 195.77 | F93: =OFFSET(InputPriceData!E$15,CalculationsAndCharts!$A93+$A$11,IF($C$7,8,0),1,1) -> 193.82 | G93: =OFFSET(InputPriceData!F$15,CalculationsAndCharts!$A93+$A$11,IF($C$7,8,0),1,1) -> 194.6 | I93: 110274500 | J93: 23.93310985 | K93: 0 | L93: 0 | M93: 0 | N93: 0.01202290491 | O93: 0.0009571019751 | P93: 0.002341894883 | Q93: 0.0161883129 | R93: 0.1572713073 | S93: 0.002798375706 | T93: 0.04456218588 | U93: 0.7618346311 | V93: 1 | W93: 0.2424595862 | X93: 0.01631080385 | Y93: 0.008253677174 | Z93: 0.03546015571 | AA93: 0.107985116 | AB93: 0.1839429135 | AC93: 0.2372234817 | AD93: 0.2780625385 | AE93: 0.31186195 | AF93: 0.3307954138 | AG93: 0.3291445162 | AH93: 0.3105321695 | AI93: 0.283841334 | AJ93: 0.2571078762 | AK93: 0.2346637777 | AL93: 0.2174114297 | AM93: 0.2043470249 | AN93: 0.1939548553 | AO93: 0.1849948816 | AP93: 0.1767492102 | AQ93: 0.1689587126 | AR93: 0.1616499058 | AS93: 0.1549680325 | AT93: 0.1490615693 | AU93: 0.1440220753 | AV93: 0.1398659437 | AW93: 0.1365413779 | AX93: 0.1339469125 | AY93: 0.1319524243 | AZ93: 0.1304176783 | BA93: 0.1292063712 | BB93: 0.1281953989 | BC93: 0.1272799747 | BD93: 0.1263755566 | BE93: 0.1254175569 | BF93: 0.1243596713 | BG93: 0.1231714712
A94: 62 | B94: =OFFSET(InputPriceData!B$15,CalculationsAndCharts!$A94+$A$11,0,1,1) -> 2015-10-05 | C94: =OFFSET(InputPriceData!G$15,CalculationsAndCharts!$A94+$A$11,IF($C$7,8,0),1,1) -> 126320800 | D94: =OFFSET(InputPriceData!C$15,CalculationsAndCharts!$A94+$A$11,IF($C$7,8,0),1,1) -> 193.29 | E94: =OFFSET(InputPriceData!D$15,CalculationsAndCharts!$A94+$A$11,IF($C$7,8,0),1,1) -> 195.53 | F94: =OFFSET(InputPriceData!E$15,CalculationsAndCharts!$A94+$A$11,IF($C$7,8,0),1,1) -> 193.16 | G94: =OFFSET(InputPriceData!F$15,CalculationsAndCharts!$A94+$A$11,IF($C$7,8,0),1,1) -> 195.27 | H94: 126320800 | J94: 22.59865452 | K94: 0 | L94: 0 | M94: 0 | N94: 0.01080463265 | O94: 0.0009902469752 | P94: 0.002823677098 | Q94: 0.01257533079 | R94: 0.1771994083 | S94: 0.003482056985 | T94: 0.05175370657 | U94: 0.8945486537 | V94: 1 | W94: 0.1910916273 | X94: 0.01668549351 | Y94: 0.01027791975 | Z94: 0.02802330702 | AA94: 0.06850407146 | AB94: 0.1245065632 | AC94: 0.186694355 | AD94: 0.2523082462 | AE94: 0.3098179656 | AF94: 0.3419077546 | AG94: 0.3408900419 | AH94: 0.3131510938 | AI94: 0.2721605193 | AJ94: 0.2302401835 | AK94: 0.1946760202 | AL94: 0.1678530946 | AM94: 0.1491113122 | AN94: 0.136588279 | AO94: 0.1283816806 | AP94: 0.1230413682 | AQ94: 0.1196371022 | AR94: 0.1176384442 | AS94: 0.1167564582 | AT94: 0.1168159917 | AU94: 0.1176762106 | AV94: 0.1191928235 | AW94: 0.1212080929 | AX94: 0.1235556355 | AY94: 0.1260707266 | AZ94: 0.1286006291 | BA94: 0.1310123722 | BB94: 0.1331972528 | BC94: 0.1350723304 | BD94: 0.1365796109 | BE94: 0.1376836915 | BF94: 0.1383685544 | BG94: 0.1386340389
A95: 63 | B95: =OFFSET(InputPriceData!B$15,CalculationsAndCharts!$A95+$A$11,0,1,1) -> 2015-10-02 | C95: =OFFSET(InputPriceData!G$15,CalculationsAndCharts!$A95+$A$11,IF($C$7,8,0),1,1) -> 211003300 | D95: =OFFSET(InputPriceData!C$15,CalculationsAndCharts!$A95+$A$11,IF($C$7,8,0),1,1) -> 186.71 | E95: =OFFSET(InputPriceData!D$15,CalculationsAndCharts!$A95+$A$11,IF($C$7,8,0),1,1) -> 191.88 | F95: =OFFSET(InputPriceData!E$15,CalculationsAndCharts!$A95+$A$11,IF($C$7,8,0),1,1) -> 186.07 | G95: =OFFSET(InputPriceData!F$15,CalculationsAndCharts!$A95+$A$11,IF($C$7,8,0),1,1) -> 191.85 | H95: 211003300 | J95: 18.2923069 | K95: 0 | L95: 0 | M95: 0 | N95: 0.008769691814 | O95: 0.0009844772385 | P95: 0.003301931788 | Q95: 0.01024764587 | R95: 0.1862012168 | S95: 0.004120945871 | T95: 0.05091659146 | U95: 0.9849824258 | V95: 1 | W95: 0.1501835885 | X95: 0.01657833626 | Y95: 0.01216961542 | Z95: 0.02606544048 | AA95: 0.04373497338 | AB95: 0.07324251564 | AC95: 0.1231890311 | AD95: 0.1921179826 | AE95: 0.2599443366 | AF95: 0.3004808426 | AG95: 0.301746264 | AH95: 0.2704199676 | AI95: 0.2225289213 | AJ95: 0.1730665956 | AK95: 0.1310872961 | AL95: 0.09974947037 | AM95: 0.07848512545 | AN95: 0.0651923616 | AO95: 0.05763583439 | AP95: 0.05405556193 | AQ95: 0.05327021982 | AR95: 0.05455318014 | AS95: 0.05745838686 | AT95: 0.06167810729 | AU95: 0.06695435285 | AV95: 0.07303706307 | AW95: 0.07967335238 | AX95: 0.08661304566 | AY95: 0.09361997677 | AZ95: 0.100482907 | BA95: 0.1070232504 | BB95: 0.1130989026 | BC95: 0.1186045919 | BD95: 0.1234696275 | BE95: 0.127653987 | BF95: 0.1311435601 | BG95: 0.1339451695
A96: 64 | B96: =OFFSET(InputPriceData!B$15,CalculationsAndCharts!$A96+$A$11,0,1,1) -> 2015-10-01 | C96: =OFFSET(InputPriceData!G$15,CalculationsAndCharts!$A96+$A$11,IF($C$7,8,0),1,1) -> 131079000 | D96: =OFFSET(InputPriceData!C$15,CalculationsAndCharts!$A96+$A$11,IF($C$7,8,0),1,1) -> 188.98 | E96: =OFFSET(InputPriceData!D$15,CalculationsAndCharts!$A96+$A$11,IF($C$7,8,0),1,1) -> 189.38 | F96: =OFFSET(InputPriceData!E$15,CalculationsAndCharts!$A96+$A$11,IF($C$7,8,0),1,1) -> 186.76 | G96: =OFFSET(InputPriceData!F$15,CalculationsAndCharts!$A96+$A$11,IF($C$7,8,0),1,1) -> 189.03 | H96: 131079000 | J96: 14.30685158 | K96: 0 | L96: 0 | M96: 0 | N96: 0.006979985193 | O96: 0.001098191526 | P96: 0.003678206333 | Q96: 0.008624284708 | R96: 0.167070648 | S96: 0.004585959541 | T96: 0.04718305483 | U96: 1 | V96: 0.9149933587 | W96: 0.1191104605 | X96: 0.01798528189 | Y96: 0.0135091847 | Z96: 0.02191775258 | AA96: 0.02276638362 | AB96: 0.0329155291 | AC96: 0.06712954897 | AD96: 0.1266901647 | AE96: 0.1916370857 | AF96: 0.2337684215 | AG96: 0.2387153203 | AH96: 0.2116147471 | AI96: 0.16785543 | AJ96: 0.122258589 | AK96: 0.0838172367 | AL96: 0.05560961349 | AM96: 0.03697945033 | AN96: 0.02577496037 | AO96: 0.01977677286 | AP96: 0.01730497564 | AQ96: 0.01730153962 | AR96: 0.0191797117 | AS96: 0.0226267175 | AT96: 0.02744591325 | AU96: 0.03346055571 | AV96: 0.04047072685 | AW96: 0.04824556226 | AX96: 0.05653402225 | AY96: 0.06508216941 | AZ96: 0.07364982175 | BA96: 0.08202322332 | BB96: 0.0900228061 | BC96: 0.09750644781 | BD96: 0.1043692037 | BE96: 0.1105406111 | BF96: 0.1159805514 | BG96: 0.1206744496
A97: 65 | B97: =OFFSET(InputPriceData!B$15,CalculationsAndCharts!$A97+$A$11,0,1,1) -> 2015-09-30 | C97: =OFFSET(InputPriceData!G$15,CalculationsAndCharts!$A97+$A$11,IF($C$7,8,0),1,1) -> 163452000 | D97: =OFFSET(InputPriceData!C$15,CalculationsAndCharts!$A97+$A$11,IF($C$7,8,0),1,1) -> 187.3 | E97: =OFFSET(InputPriceData!D$15,CalculationsAndCharts!$A97+$A$11,IF($C$7,8,0),1,1) -> 188.74 | F97: =OFFSET(InputPriceData!E$15,CalculationsAndCharts!$A97+$A$11,IF($C$7,8,0),1,1) -> 186.38 | G97: =OFFSET(InputPriceData!F$15,CalculationsAndCharts!$A97+$A$11,IF($C$7,8,0),1,1) -> 188.54 | H97: =IF(G97>=D97,C97,NA()) -> 163452000 | I97: =IF(G97<D97,C97,NA()) ->  | J97: 13.96588224 | K97: 0 | L97: 0 | M97: 0 | N97: 0.007048086248 | O97: 0.001194344169 | P97: 0.00381380114 | Q97: 0.008953704161 | R97: 0.1399461696 | S97: 0.004963441828 | T97: 0.04570635435 | U97: 1 | V97: 0.8641977969 | W97: 0.1099883428 | X97: 0.01952674113 | Y97: 0.01432725302 | Z97: 0.0191252884 | AA97: 0.01365928213 | AB97: 0.0181974762 | AC97: 0.04775476519 | AD97: 0.1041806847 | AE97: 0.168076619 | AF97: 0.210948373 | AG97: 0.2176699586 | AH97: 0.1927143024 | AI97: 0.1510865356 | AJ97: 0.1074402893 | AK97: 0.07070439664 | AL97: 0.04392637232 | AM97: 0.02643049077 | AN97: 0.01605927933 | AO97: 0.01060839961 | AP97: 0.008435562599 | AQ97: 0.008538494975 | AR97: 0.01039608173 | AS97: 0.01376214542 | AT97: 0.01850021209 | AU97: 0.02448243697 | AV97: 0.03154429053 | AW97: 0.03947668093 | AX97: 0.04803808241 | AY97: 0.05697398588 | AZ97: 0.06603602153 | BA97: 0.07499703376 | BB97: 0.08366096608 | BC97: 0.09186785826 | BD97: 0.09949491063 | BE97: 0.1064547405 | BF97: 0.1126918681 | BG97: 0.1181782733
A98: 66 | B98: =OFFSET(InputPriceData!B$15,CalculationsAndCharts!$A98+$A$11,0,1,1) -> 2015-09-29 | C98: =OFFSET(InputPriceData!G$15,CalculationsAndCharts!$A98+$A$11,IF($C$7,8,0),1,1) -> 159045600 | D98: =OFFSET(InputPriceData!C$15,CalculationsAndCharts!$A98+$A$11,IF($C$7,8,0),1,1) -> 185.23 | E98: =OFFSET(InputPriceData!D$15,CalculationsAndCharts!$A98+$A$11,IF($C$7,8,0),1,1) -> 186.68 | F98: =OFFSET(InputPriceData!E$15,CalculationsAndCharts!$A98+$A$11,IF($C$7,8,0),1,1) -> 183.91 | G98: =OFFSET(InputPriceData!F$15,CalculationsAndCharts!$A98+$A$11,IF($C$7,8,0),1,1) -> 185.08 | I98: 159045600 | J98: 14.00741728 | K98: 0 | L98: 0 | M98: 0 | N98: 0.006048444128 | O98: 0.0007630572882 | P98: 0.004188721464 | Q98: 0.01002461046 | R98: 0.1137814546 | S98: 0.005246072581 | T98: 0.05024976064 | U98: 1 | V98: 0.8174939434 | W98: 0.1126663709 | X98: 0.02210525916 | Y98: 0.01435786328 | Z98: 0.016466625 | AA98: 0.01048537102 | AB98: 0.01449699736 | AC98: 0.04158204895 | AD98: 0.09221359203 | AE98: 0.1481456451 | AF98: 0.18443526 | AG98: 0.1887476057 | AH98: 0.1658024318 | AI98: 0.1289892651 | AJ98: 0.0909708579 | AK98: 0.05926957708 | AL98: 0.03632214237 | AM98: 0.02142520666 | AN98: 0.01267477497 | AO98: 0.00817734428 | AP98: 0.006545900371 | AQ98: 0.006946998416 | AR98: 0.008953690429 | AS98: 0.01236477858 | AT98: 0.01706329385 | AU98: 0.02293181308 | AV98: 0.029816039 | AW98: 0.03752025968 | AX98: 0.04581950405 | AY98: 0.05447750147 | AZ98: 0.06326395771 | BA98: 0.07196805001 | BB98: 0.08040724426 | BC98: 0.08843175781 | BD98: 0.09592553441 | BE98: 0.1028047299 | BF98: 0.1090146229 | BG98: 0.1145256897
A99: 67 | B99: =OFFSET(InputPriceData!B$15,CalculationsAndCharts!$A99+$A$11,0,1,1) -> 2015-09-28 | C99: =OFFSET(InputPriceData!G$15,CalculationsAndCharts!$A99+$A$11,IF($C$7,8,0),1,1) -> 178515900 | D99: =OFFSET(InputPriceData!C$15,CalculationsAndCharts!$A99+$A$11,IF($C$7,8,0),1,1) -> 188.69 | E99: =OFFSET(InputPriceData!D$15,CalculationsAndCharts!$A99+$A$11,IF($C$7,8,0),1,1) -> 188.81 | F99: =OFFSET(InputPriceData!E$15,CalculationsAndCharts!$A99+$A$11,IF($C$7,8,0),1,1) -> 184.61 | G99: =OFFSET(InputPriceData!F$15,CalculationsAndCharts!$A99+$A$11,IF($C$7,8,0),1,1) -> 184.98 | I99: 178515900 | J99: 13.212935 | K99: 0 | L99: 0 | M99: 0 | N99: 0.005256854622 | O99: 0.0007932221396 | P99: 0.005009453865 | Q99: 0.01218031329 | R99: 0.08642467665 | S99: 0.006362530088 | T99: 0.060017996 | U99: 1 | V99: 0.7477646341 | W99: 0.121504559 | X99: 0.02745233875 | Y99: 0.01255608706 | Z99: 0.009666260899 | AA99: 0.005795546408 | AB99: 0.01231837815 | AC99: 0.04080647882 | AD99: 0.08880484268 | AE99: 0.1359954685 | AF99: 0.1611307297 | AG99: 0.1576785811 | AH99: 0.1332791831 | AI99: 0.1004742486 | AJ99: 0.0692210761 | AK99: 0.04447794234 | AL99: 0.02718312908 | AM99: 0.01620000594 | AN99: 0.009856372923 | AO99: 0.006742038947 | AP99: 0.005934736386 | AQ99: 0.006928843872 | AR99: 0.00947252808 | AS99: 0.01342092957 | AT99: 0.018641575 | AU99: 0.02497049522 | AV99: 0.03220382004 | AW99: 0.04010867067 | AX99: 0.04844116919 | AY99: 0.05696415493 | AZ99: 0.06546103193 | BA99: 0.07374469384 | BB99: 0.08166186805 | BC99: 0.08909383112 | BD99: 0.09595458439 | BE99: 0.1021874725 | BF99: 0.1077610243 | BG99: 0.1126645798
A100: 68 | B100: =OFFSET(InputPriceData!B$15,CalculationsAndCharts!$A100+$A$11,0,1,1) -> 2015-09-25 | C100: =OFFSET(InputPriceData!G$15,CalculationsAndCharts!$A100+$A$11,IF($C$7,8,0),1,1) -> 155054800 | D100: =OFFSET(InputPriceData!C$15,CalculationsAndCharts!$A100+$A$11,IF($C$7,8,0),1,1) -> 191.5 | E100: =OFFSET(InputPriceData!D$15,CalculationsAndCharts!$A100+$A$11,IF($C$7,8,0),1,1) -> 191.85 | F100: =OFFSET(InputPriceData!E$15,CalculationsAndCharts!$A100+$A$11,IF($C$7,8,0),1,1) -> 188.72 | G100: =OFFSET(InputPriceData!F$15,CalculationsAndCharts!$A100+$A$11,IF($C$7,8,0),1,1) -> 189.76 | I100: 155054800 | J100: 12.48953728 | K100: 0 | L100: 0 | M100: 0 | N100: 0.005205587092 | O100: 0.0009637063698 | P100: 0.006148776409 | Q100: 0.01408004883 | R100: 0.07049542261 | S100: 0.007752704478 | T100: 0.07107036992 | U100: 1 | V100: 0.7001092408 | W100: 0.1335929823 | X100: 0.03343352252 | Y100: 0.009775140821 | Z100: 0.003044803717 | AA100: 0.002500141711 | AB100: 0.01251831857 | AC100: 0.04514466418 | AD100: 0.09479042688 | AE100: 0.1363866288 | AF100: 0.1502989825 | AG100: 0.1360958242 | AH100: 0.1061568033 | AI100: 0.07389347279 | AJ100: 0.04733840219 | AK100: 0.02880427117 | AL100: 0.01724172443 | AM100: 0.01058136895 | AN100: 0.007063646986 | AO100: 0.005642101369 | AP100: 0.005874964849 | AQ100: 0.007657202951 | AR100: 0.01098390299 | AS100: 0.01580768651 | AT100: 0.02198412903 | AU100: 0.02927529055 | AV100: 0.03738139838 | AW100: 0.04597938732 | AX100: 0.05475641521 | AY100: 0.06343358219 | AZ100: 0.07177942167 | BA100: 0.07961486262 | BB100: 0.08681205784 | BC100: 0.09328938016 | BD100: 0.09900445171 | BE100: 0.1039465521 | BF100: 0.1081292789 | BG100: 0.1115839599
A101: 69 | B101: =OFFSET(InputPriceData!B$15,CalculationsAndCharts!$A101+$A$11,0,1,1) -> 2015-09-24 | C101: =OFFSET(InputPriceData!G$15,CalculationsAndCharts!$A101+$A$11,IF($C$7,8,0),1,1) -> 159378800 | D101: =OFFSET(InputPriceData!C$15,CalculationsAndCharts!$A101+$A$11,IF($C$7,8,0),1,1) -> 189.05 | E101: =OFFSET(InputPriceData!D$15,CalculationsAndCharts!$A101+$A$11,IF($C$7,8,0),1,1) -> 190.33 | F101: =OFFSET(InputPriceData!E$15,CalculationsAndCharts!$A101+$A$11,IF($C$7,8,0),1,1) -> 187.49 | G101: =OFFSET(InputPriceData!F$15,CalculationsAndCharts!$A101+$A$11,IF($C$7,8,0),1,1) -> 189.79 | H101: 159378800 | J101: 12.48080287 | K101: 0 | L101: 0 | M101: 0 | N101: 0.004817750367 | O101: 0.001173309524 | P101: 0.007143104301 | Q101: 0.01494021105 | R101: 0.05970374944 | S101: 0.008727034222 | T101: 0.07895279135 | U101: 1 | V101: 0.7201828503 | W101: 0.1557664187 | X101: 0.0409153763 | Y101: 0.01032620233 | Z101: 0.002096158751 | AA101: 0.002146496492 | AB101: 0.01383081492 | AC101: 0.05023273691 | AD101: 0.1028911838 | AE101: 0.1432471375 | AF101: 0.1518854232 | AG101: 0.1314290789 | AH101: 0.09712201159 | AI101: 0.06342400421 | AJ101: 0.0378190263 | AK101: 0.02143309792 | AL101: 0.01217353668 | AM101: 0.007393817612 | AN101: 0.00519779153 | AO101: 0.004669778589 | AP101: 0.005589476476 | AQ101: 0.008046084131 | AR101: 0.01214905788 | AS101: 0.01788014726 | AT101: 0.02505852602 | AU101: 0.03337194301 | AV101: 0.04243374024 | AW101: 0.05184000018 | AX101: 0.06121418456 | AY101: 0.07023562155 | AZ101: 0.0786531977 | BA101: 0.08628771352 | BB101: 0.09302671986 | BC101: 0.09881514547 | BD101: 0.103644213 | BE101: 0.107540327 | BF101: 0.1105549389 | BG101: 0.1127558903
A102: 70 | B102: =OFFSET(InputPriceData!B$15,CalculationsAndCharts!$A102+$A$11,0,1,1) -> 2015-09-23 | C102: =OFFSET(InputPriceData!G$15,CalculationsAndCharts!$A102+$A$11,IF($C$7,8,0),1,1) -> 92790600 | D102: =OFFSET(InputPriceData!C$15,CalculationsAndCharts!$A102+$A$11,IF($C$7,8,0),1,1) -> 190.98 | E102: =OFFSET(InputPriceData!D$15,CalculationsAndCharts!$A102+$A$11,IF($C$7,8,0),1,1) -> 191.53 | F102: =OFFSET(InputPriceData!E$15,CalculationsAndCharts!$A102+$A$11,IF($C$7,8,0),1,1) -> 189.8 | G102: =OFFSET(InputPriceData!F$15,CalculationsAndCharts!$A102+$A$11,IF($C$7,8,0),1,1) -> 190.48 | I102: 92790600 | J102: 12.51247264 | K102: 0 | L102: 0 | M102: 0 | N102: 0.005358163635 | O102: 0.001471597346 | P102: 0.007968072565 | Q102: 0.01481165314 | R102: 0.05020442303 | S102: 0.01009610223 | T102: 0.08360861209 | U102: 1 | V102: 0.746695253 | W102: 0.1825050969 | X102: 0.0510513564 | Y102: 0.01232287351 | Z102: 0.002303723753 | AA102: 0.002565786607 | AB102: 0.01650146136 | AC102: 0.05794412599 | AD102: 0.1146563246 | AE102: 0.1542656357 | AF102: 0.157718072 | AG102: 0.1308721421 | AH102: 0.09190044212 | AI102: 0.05631251538 | AJ102: 0.03106220819 | AK102: 0.01615050665 | AL102: 0.008526408974 | AM102: 0.005042140855 | AN102: 0.003709578482 | AO102: 0.003751742011 | AP102: 0.005148205137 | AQ102: 0.008144007444 | AR102: 0.01292028084 | AS102: 0.01945013124 | AT102: 0.02748861366 | AU102: 0.0366330955 | AV102: 0.04640475114 | AW102: 0.0563221149 | AX102: 0.06595417427 | AY102: 0.07495106659 | AZ102: 0.083055837 | BA102: 0.09010259286 | BB102: 0.09600628726 | BC102: 0.1007483759 | BD102: 0.1043613762 | BE102: 0.106914248 | BF102: 0.1084996438 | BG102: 0.1092234571
A103: 71 | B103: =OFFSET(InputPriceData!B$15,CalculationsAndCharts!$A103+$A$11,0,1,1) -> 2015-09-22 | C103: =OFFSET(InputPriceData!G$15,CalculationsAndCharts!$A103+$A$11,IF($C$7,8,0),1,1) -> 153890900 | D103: =OFFSET(InputPriceData!C$15,CalculationsAndCharts!$A103+$A$11,IF($C$7,8,0),1,1) -> 190.75 | E103: =OFFSET(InputPriceData!D$15,CalculationsAndCharts!$A103+$A$11,IF($C$7,8,0),1,1) -> 191.32 | F103: =OFFSET(InputPriceData!E$15,CalculationsAndCharts!$A103+$A$11,IF($C$7,8,0),1,1) -> 189.45 | G103: =OFFSET(InputPriceData!F$15,CalculationsAndCharts!$A103+$A$11,IF($C$7,8,0),1,1) -> 190.77 | H103: 153890900 | J103: 12.37875881 | K103: 0 | L103: 0 | M103: 0 | N103: 0.005293706572 | O103: 0.001866255682 | P103: 0.009524530172 | Q103: 0.01492385798 | R103: 0.03960921205 | S103: 0.01225084589 | T103: 0.08770428282 | U103: 1 | V103: 0.7254418162 | W103: 0.2041691759 | X103: 0.06398571534 | Y103: 0.01525658756 | Z103: 0.00281008449 | AA103: 0.003278711851 | AB103: 0.02059205545 | AC103: 0.06865726442 | AD103: 0.1284835696 | AE103: 0.1634843598 | AF103: 0.1577063564 | AG103: 0.1226779443 | AH103: 0.0797909226 | AI103: 0.04444107822 | AJ103: 0.02175971104 | AK103: 0.009906636801 | AL103: 0.004751895369 | AM103: 0.00284441411 | AN103: 0.002357277089 | AO103: 0.002822364656 | AP103: 0.004479162451 | AQ103: 0.007710051936 | AR103: 0.01271678751 | AS103: 0.01941679438 | AT103: 0.02747800826 | AU103: 0.03641390348 | AV103: 0.04568550789 | AW103: 0.05478302452 | AX103: 0.06327827652 | AY103: 0.07084980841 | AZ103: 0.07728705385 | BA103: 0.08248085731 | BB103: 0.08640666837 | BC103: 0.08910510825 | BD103: 0.09066298936 | BE103: 0.09119653856 | BF103: 0.09083760619 | BG103: 0.08972300686
A104: 72 | B104: =OFFSET(InputPriceData!B$15,CalculationsAndCharts!$A104+$A$11,0,1,1) -> 2015-09-21 | C104: =OFFSET(InputPriceData!G$15,CalculationsAndCharts!$A104+$A$11,IF($C$7,8,0),1,1) -> 105726200 | D104: =OFFSET(InputPriceData!C$15,CalculationsAndCharts!$A104+$A$11,IF($C$7,8,0),1,1) -> 193.27 | E104: =OFFSET(InputPriceData!D$15,CalculationsAndCharts!$A104+$A$11,IF($C$7,8,0),1,1) -> 194.49 | F104: =OFFSET(InputPriceData!E$15,CalculationsAndCharts!$A104+$A$11,IF($C$7,8,0),1,1) -> 192.06 | G104: =OFFSET(InputPriceData!F$15,CalculationsAndCharts!$A104+$A$11,IF($C$7,8,0),1,1) -> 193.29 | H104: 105726200 | J104: 12.41087773 | K104: 0 | L104: 0 | M104: 0 | N104: 0.006892493087 | O104: 0.002221907522 | P104: 0.01242957402 | Q104: 0.01355465592 | R104: 0.04192917696 | S104: 0.01532008492 | T104: 0.1048242031 | U104: 1 | V104: 0.7158178059 | W104: 0.2465199657 | X104: 0.08429357114 | Y104: 0.01896564041 | Z104: 0.003599323048 | AA104: 0.004518712159 | AB104: 0.02711930467 | AC104: 0.08290883966 | AD104: 0.1427785146 | AE104: 0.1685443205 | AF104: 0.15161155 | AG104: 0.1101205831 | AH104: 0.06675314076 | AI104: 0.03458413478 | AJ104: 0.01590786134 | AK104: 0.007183563756 | AL104: 0.003846821157 | AM104: 0.002742319949 | AN104: 0.002526334818 | AO104: 0.003094468363 | AP104: 0.004844805495 | AQ104: 0.008152475277 | AR104: 0.0131251145 | AS104: 0.01956940615 | AT104: 0.02707002806 | AU104: 0.03510310624 | AV104: 0.04313845555 | AW104: 0.05071150167 | AX104: 0.05746251781 | AY104: 0.06314901793 | AZ104: 0.06763970144 | BA104: 0.0708978421 | BB104: 0.07296025304 | BC104: 0.07391597667 | BD104: 0.07388713489 | BE104: 0.0730130944 | BF104: 0.07143824553 | BG104: 0.06930318256
A105: 73 | B105: =OFFSET(InputPriceData!B$15,CalculationsAndCharts!$A105+$A$11,0,1,1) -> 2015-09-18 | C105: =OFFSET(InputPriceData!G$15,CalculationsAndCharts!$A105+$A$11,IF($C$7,8,0),1,1) -> 223657500 | D105: =OFFSET(InputPriceData!C$15,CalculationsAndCharts!$A105+$A$11,IF($C$7,8,0),1,1) -> 192.55 | E105: =OFFSET(InputPriceData!D$15,CalculationsAndCharts!$A105+$A$11,IF($C$7,8,0),1,1) -> 195.47 | F105: =OFFSET(InputPriceData!E$15,CalculationsAndCharts!$A105+$A$11,IF($C$7,8,0),1,1) -> 191.81 | G105: =OFFSET(InputPriceData!F$15,CalculationsAndCharts!$A105+$A$11,IF($C$7,8,0),1,1) -> 192.3 | I105: 223657500 | J105: 12.26536744 | K105: 0 | L105: 0 | M105: 0 | N105: 0.008541260334 | O105: 0.001824583188 | P105: 0.01466370008 | Q105: 0.01379040291 | R105: 0.04698143532 | S105: 0.01847811921 | T105: 0.1274565048 | U105: 1 | V105: 0.7177741116 | W105: 0.2940793888 | X105: 0.1041934268 | Y105: 0.02082428185 | Z105: 0.004261274141 | AA105: 0.006023120802 | AB105: 0.03502880881 | AC105: 0.09942555545 | AD105: 0.1582255136 | AE105: 0.173084323 | AF105: 0.1446554836 | AG105: 0.09776473374 | AH105: 0.0552991254 | AI105: 0.02710671654 | AJ105: 0.0124354096 | AK105: 0.006327547758 | AL105: 0.004182551072 | AM105: 0.003415709769 | AN105: 0.003261139498 | AO105: 0.00394095474 | AP105: 0.005917442365 | AQ105: 0.009464838884 | AR105: 0.01453349541 | AS105: 0.02079322419 | AT105: 0.02774957238 | AU105: 0.03486402526 | AV105: 0.04164520912 | AW105: 0.04770269711 | AX105: 0.05276799185 | AY105: 0.05669205984 | AZ105: 0.05942896414 | BA105: 0.06101326517 | BB105: 0.06153647109 | BC105: 0.06112567791 | BD105: 0.05992591394 | BE105: 0.0580866124 | BF105: 0.0557519863 | BG105: 0.05305475188
A106: 74 | B106: =OFFSET(InputPriceData!B$15,CalculationsAndCharts!$A106+$A$11,0,1,1) -> 2015-09-17 | C106: =OFFSET(InputPriceData!G$15,CalculationsAndCharts!$A106+$A$11,IF($C$7,8,0),1,1) -> 276046600 | D106: =OFFSET(InputPriceData!C$15,CalculationsAndCharts!$A106+$A$11,IF($C$7,8,0),1,1) -> 195.78 | E106: =OFFSET(InputPriceData!D$15,CalculationsAndCharts!$A106+$A$11,IF($C$7,8,0),1,1) -> 198.58 | F106: =OFFSET(InputPriceData!E$15,CalculationsAndCharts!$A106+$A$11,IF($C$7,8,0),1,1) -> 195.05 | G106: =OFFSET(InputPriceData!F$15,CalculationsAndCharts!$A106+$A$11,IF($C$7,8,0),1,1) -> 195.49 | I106: 276046600 | J106: 11.61000256 | K106: 0 | L106: 0 | M106: 0 | N106: 0.009024658145 | O106: 0.001849353133 | P106: 0.01585006337 | Q106: 0.01434827657 | R106: 0.04178009809 | S106: 0.01996740089 | T106: 0.1361110599 | U106: 1 | V106: 0.7205348558 | W106: 0.3033101083 | X106: 0.1043889219 | Y106: 0.02008761335 | Z106: 0.004742657346 | AA106: 0.006702268679 | AB106: 0.03536664901 | AC106: 0.09315542428 | AD106: 0.1408045637 | AE106: 0.1485036635 | AF106: 0.1211954452 | AG106: 0.08114470875 | AH106: 0.046422381 | AI106: 0.02379734303 | AJ106: 0.01194243179 | AK106: 0.006749186327 | AL106: 0.004686818895 | AM106: 0.003844481581 | AN106: 0.003655126366 | AO106: 0.004240959007 | AP106: 0.005873622864 | AQ106: 0.008684440238 | AR106: 0.01258352804 | AS106: 0.01729900325 | AT106: 0.02246059898 | AU106: 0.02768149948 | AV106: 0.03261792361 | AW106: 0.03700244442 | AX106: 0.04065521118 | AY106: 0.04347992022 | AZ106: 0.04545111161 | BA106: 0.04659789415 | BB106: 0.04698750973 | BC106: 0.04671069607 | BD106: 0.04586973797 | BE106: 0.04456939776 | BF106: 0.04291051149 | BG106: 0.04098584286
A107: 75 | B107: =OFFSET(InputPriceData!B$15,CalculationsAndCharts!$A107+$A$11,0,1,1) -> 2015-09-16 | C107: =OFFSET(InputPriceData!G$15,CalculationsAndCharts!$A107+$A$11,IF($C$7,8,0),1,1) -> 99581600 | D107: =OFFSET(InputPriceData!C$15,CalculationsAndCharts!$A107+$A$11,IF($C$7,8,0),1,1) -> 194.6 | E107: =OFFSET(InputPriceData!D$15,CalculationsAndCharts!$A107+$A$11,IF($C$7,8,0),1,1) -> 196.16 | F107: =OFFSET(InputPriceData!E$15,CalculationsAndCharts!$A107+$A$11,IF($C$7,8,0),1,1) -> 194.2 | G107: =OFFSET(InputPriceData!F$15,CalculationsAndCharts!$A107+$A$11,IF($C$7,8,0),1,1) -> 195.93 | H107: 99581600 | J107: 11.46288115 | K107: 0 | L107: 0 | M107: 0 | N107: 0.01057278437 | O107: 0.002301909809 | P107: 0.02014233863 | Q107: 0.01794152984 | R107: 0.03653679675 | S107: 0.02364911285 | T107: 0.1573400423 | U107: 1 | V107: 0.7610272816 | W107: 0.334618897 | X107: 0.1075032769 | Y107: 0.02063128726 | Z107: 0.006315843262 | AA107: 0.00864890841 | AB107: 0.03786898374 | AC107: 0.08877934817 | AD107: 0.125083844 | AE107: 0.1265244469 | AF107: 0.1015077024 | AG107: 0.06873427476 | AH107: 0.04132220632 | AI107: 0.02339979919 | AJ107: 0.01351213511 | AK107: 0.008612763819 | AL107: 0.006258546385 | AM107: 0.005153143777 | AN107: 0.004871105682 | AO107: 0.005403218296 | AP107: 0.006816675217 | AQ107: 0.009088803195 | AR107: 0.01207167224 | AS107: 0.0155254749 | AT107: 0.0191729947 | AU107: 0.0227483674 | AV107: 0.0260296882 | AW107: 0.02885470948 | AX107: 0.03112325124 | AY107: 0.03279104029 | AZ107: 0.0338591581 | BA107: 0.03436216516 | BB107: 0.03435684037 | BC107: 0.03391256214 | BD107: 0.03310371699 | BE107: 0.03200412181 | BF107: 0.03068323029 | BG107: 0.02920380276
A108: 76 | B108: =OFFSET(InputPriceData!B$15,CalculationsAndCharts!$A108+$A$11,0,1,1) -> 2015-09-15 | C108: =OFFSET(InputPriceData!G$15,CalculationsAndCharts!$A108+$A$11,IF($C$7,8,0),1,1) -> 113806200 | D108: =OFFSET(InputPriceData!C$15,CalculationsAndCharts!$A108+$A$11,IF($C$7,8,0),1,1) -> 192.44 | E108: =OFFSET(InputPriceData!D$15,CalculationsAndCharts!$A108+$A$11,IF($C$7,8,0),1,1) -> 194.77 | F108: =OFFSET(InputPriceData!E$15,CalculationsAndCharts!$A108+$A$11,IF($C$7,8,0),1,1) -> 191.8 | G108: =OFFSET(InputPriceData!F$15,CalculationsAndCharts!$A108+$A$11,IF($C$7,8,0),1,1) -> 194.24 | H108: 113806200 | J108: 10.5578435 | K108: 0 | L108: 0 | M108: 0 | N108: 0.01125365523 | O108: 0.002877281727 | P108: 0.02476464663 | Q108: 0.02401397104 | R108: 0.02489714131 | S108: 0.02778695793 | T108: 0.1878424097 | U108: 1 | V108: 0.7897454754 | W108: 0.3475915978 | X108: 0.1084265931 | Y108: 0.02440244143 | Z108: 0.008629628147 | AA108: 0.01045327267 | AB108: 0.03696719047 | AC108: 0.08258635533 | AD108: 0.1168219198 | AE108: 0.121378033 | AF108: 0.101616707 | AG108: 0.07284760675 | AH108: 0.04698897314 | AI108: 0.02873668213 | AJ108: 0.01771529428 | AK108: 0.01168414989 | AL108: 0.008550413995 | AM108: 0.007039671757 | AN108: 0.0066019909 | AO108: 0.007084068444 | AP108: 0.008447323452 | AQ108: 0.01061306441 | AR108: 0.01341691448 | AS108: 0.01662666364 | AT108: 0.01998354314 | AU108: 0.02324231014 | AV108: 0.02619926702 | AW108: 0.02870621318 | AX108: 0.03067274446 | AY108: 0.03206073792 | AZ108: 0.03287466745 | BA108: 0.03315054367 | BB108: 0.03294530871 | BC108: 0.03232769525 | BD108: 0.03137095973 | BE108: 0.03014751331 | BF108: 0.02872525646 | BG108: 0.02716532537
A109: 77 | B109: =OFFSET(InputPriceData!B$15,CalculationsAndCharts!$A109+$A$11,0,1,1) -> 2015-09-14 | C109: =OFFSET(InputPriceData!G$15,CalculationsAndCharts!$A109+$A$11,IF($C$7,8,0),1,1) -> 79452000 | D109: =OFFSET(InputPriceData!C$15,CalculationsAndCharts!$A109+$A$11,IF($C$7,8,0),1,1) -> 192.77 | E109: =OFFSET(InputPriceData!D$15,CalculationsAndCharts!$A109+$A$11,IF($C$7,8,0),1,1) -> 192.83 | F109: =OFFSET(InputPriceData!E$15,CalculationsAndCharts!$A109+$A$11,IF($C$7,8,0),1,1) -> 191.28 | G109: =OFFSET(InputPriceData!F$15,CalculationsAndCharts!$A109+$A$11,IF($C$7,8,0),1,1) -> 191.85 | I109: 79452000 | J109: 10.52063447 | K109: 0 | L109: 0 | M109: 0 | N109: 0.007644758142 | O109: 0.002078061925 | P109: 0.02701499018 | Q109: 0.02844737079 | R109: 0.01134992402 | S109: 0.03361516886 | T109: 0.204311046 | U109: 1 | V109: 0.7682297837 | W109: 0.3130085171 | X109: 0.09869670893 | Y109: 0.02799823827 | Z109: 0.01093494089 | AA109: 0.01179277793 | AB109: 0.03360341013 | AC109: 0.07146253372 | AD109: 0.1019412576 | AE109: 0.1093632108 | AF109: 0.09600305363 | AG109: 0.07308689186 | AH109: 0.0505257683 | AI109: 0.03313636724 | AJ109: 0.02159854823 | AK109: 0.01467314291 | AL109: 0.01082266141 | AM109: 0.008908434877 | AN109: 0.008276979214 | AO109: 0.008601644674 | AP109: 0.009702387843 | AQ109: 0.01142842732 | AR109: 0.01360976415 | AS109: 0.01605450009 | AT109: 0.01856684123 | AU109: 0.02096844163 | AV109: 0.02311433631 | AW109: 0.02490087917 | AX109: 0.0262664964 | AY109: 0.02718739977 | AZ109: 0.02767052931 | BA109: 0.02774556234 | BB109: 0.02745723933 | BC109: 0.02685872039 | BD109: 0.02600627636 | BE109: 0.02495534569 | BF109: 0.02375782911 | BG109: 0.0224604188
A110: 78 | B110: =OFFSET(InputPriceData!B$15,CalculationsAndCharts!$A110+$A$11,0,1,1) -> 2015-09-11 | C110: =OFFSET(InputPriceData!G$15,CalculationsAndCharts!$A110+$A$11,IF($C$7,8,0),1,1) -> 119691200 | D110: =OFFSET(InputPriceData!C$15,CalculationsAndCharts!$A110+$A$11,IF($C$7,8,0),1,1) -> 191.23 | E110: =OFFSET(InputPriceData!D$15,CalculationsAndCharts!$A110+$A$11,IF($C$7,8,0),1,1) -> 192.64 | F110: =OFFSET(InputPriceData!E$15,CalculationsAndCharts!$A110+$A$11,IF($C$7,8,0),1,1) -> 190.4 | G110: =OFFSET(InputPriceData!F$15,CalculationsAndCharts!$A110+$A$11,IF($C$7,8,0),1,1) -> 192.56 | H110: 119691200 | J110: 10.47470692 | K110: 0 | L110: 0 | M110: 0 | N110: 0.007484146346 | O110: 0.001597157932 | P110: 0.02523212557 | Q110: 0.02907860777 | R110: 0.006678797691 | S110: 0.04027602403 | T110: 0.2182388376 | U110: 1 | V110: 0.7198769204 | W110: 0.2743072105 | X110: 0.0952315586 | Y110: 0.03301016063 | Z110: 0.01356811689 | AA110: 0.01361644085 | AB110: 0.03328710829 | AC110: 0.06731804756 | AD110: 0.09550122745 | AE110: 0.1039644213 | AF110: 0.0939078269 | AG110: 0.07439808451 | AH110: 0.05394010737 | AI110: 0.03715543026 | AJ110: 0.02525294611 | AK110: 0.01762897648 | AL110: 0.01314702484 | AM110: 0.01078307758 | AN110: 0.009810308571 | AO110: 0.00976438499 | AP110: 0.0103500824 | AQ110: 0.01136204689 | AR110: 0.01263798477 | AS110: 0.01403875465 | AT110: 0.01544408363 | AU110: 0.01675454839 | AV110: 0.0178942223 | AW110: 0.01881155515 | AX110: 0.01947802641 | AY110: 0.01988506279 | AZ110: 0.02003999583 | BA110: 0.01996177256 | BB110: 0.01967693493 | BC110: 0.01921617103 | BD110: 0.01861156614 | BE110: 0.01789455937 | BF110: 0.01709453821 | BG110: 0.01623796762
A111: 79 | B111: =OFFSET(InputPriceData!B$15,CalculationsAndCharts!$A111+$A$11,0,1,1) -> 2015-09-10 | C111: =OFFSET(InputPriceData!G$15,CalculationsAndCharts!$A111+$A$11,IF($C$7,8,0),1,1) -> 158611100 | D111: =OFFSET(InputPriceData!C$15,CalculationsAndCharts!$A111+$A$11,IF($C$7,8,0),1,1) -> 190.43 | E111: =OFFSET(InputPriceData!D$15,CalculationsAndCharts!$A111+$A$11,IF($C$7,8,0),1,1) -> 193.03 | F111: =OFFSET(InputPriceData!E$15,CalculationsAndCharts!$A111+$A$11,IF($C$7,8,0),1,1) -> 190.13 | G111: =OFFSET(InputPriceData!F$15,CalculationsAndCharts!$A111+$A$11,IF($C$7,8,0),1,1) -> 191.69 | H111: 158611100 | J111: 10.43016758 | K111: 0 | L111: 0 | M111: 0 | N111: 0.006725275602 | O111: 0.002013377425 | P111: 0.02372980455 | Q111: 0.0310870095 | R111: 0.006218803186 | S111: 0.04993843117 | T111: 0.2565387091 | U111: 1 | V111: 0.6659895576 | W111: 0.2659892039 | X111: 0.1097206127 | Y111: 0.04309766439 | Z111: 0.01817622541 | AA111: 0.01777021686 | AB111: 0.04042530585 | AC111: 0.07843658555 | AD111: 0.1089577865 | AE111: 0.1175346699 | AF111: 0.1062346405 | AG111: 0.08495701231 | AH111: 0.06260063763 | AI111: 0.04397280936 | AJ111: 0.03043200959 | AK111: 0.02148228429 | AL111: 0.01600365516 | AM111: 0.01289361534 | AN111: 0.01129383909 | AO111: 0.01060898156 | AP111: 0.01045154358 | AQ111: 0.01057733754 | AR111: 0.01083426654 | AS111: 0.0111277022 | AT111: 0.01139901509 | AU111: 0.0116127963 | AV111: 0.01174924354 | AW111: 0.0117994182 | AX111: 0.01176205523 | AY111: 0.01164123776 | AZ111: 0.01144460583 | BA111: 0.01118194797 | BB111: 0.0108641037 | BC111: 0.01050213339 | BD111: 0.01010671899 | BE111: 0.009687759779 | BF111: 0.009254126558 | BG111: 0.008813539652
A112: 80 | B112: =OFFSET(InputPriceData!B$15,CalculationsAndCharts!$A112+$A$11,0,1,1) -> 2015-09-09 | C112: =OFFSET(InputPriceData!G$15,CalculationsAndCharts!$A112+$A$11,IF($C$7,8,0),1,1) -> 149347700 | D112: =OFFSET(InputPriceData!C$15,CalculationsAndCharts!$A112+$A$11,IF($C$7,8,0),1,1) -> 195.09 | E112: =OFFSET(InputPriceData!D$15,CalculationsAndCharts!$A112+$A$11,IF($C$7,8,0),1,1) -> 195.24 | F112: =OFFSET(InputPriceData!E$15,CalculationsAndCharts!$A112+$A$11,IF($C$7,8,0),1,1) -> 190.23 | G112: =OFFSET(InputPriceData!F$15,CalculationsAndCharts!$A112+$A$11,IF($C$7,8,0),1,1) -> 190.66 | I112: 149347700 | J112: 11.95214294 | K112: 0 | L112: 0 | M112: 0 | N112: 0.006593399317 | O112: 0.002707928947 | P112: 0.02569451827 | Q112: 0.03238788444 | R112: 0.006484180023 | S112: 0.06217978153 | T112: 0.3258027682 | U112: 1 | V112: 0.5630039761 | W112: 0.2542661236 | X112: 0.1357352581 | Y112: 0.05894749719 | Z112: 0.02503740319 | AA112: 0.02352626847 | AB112: 0.05013951068 | AC112: 0.09587854108 | AD112: 0.1334176801 | AE112: 0.1447006896 | AF112: 0.1316091487 | AG112: 0.1058745052 | AH112: 0.07835355311 | AI112: 0.05509688731 | AJ112: 0.03796059243 | AK112: 0.02645808515 | AL112: 0.01925037696 | AM112: 0.01496262602 | AN112: 0.01250193416 | AO112: 0.01110863281 | AP112: 0.01030039871 | AQ112: 0.009792263517 | AR112: 0.00942655268 | AS112: 0.009121777721 | AT112: 0.008839124392 | AU112: 0.00856212789 | AV112: 0.008285151891 | AW112: 0.008007286802 | AX112: 0.007729362479 | AY112: 0.007452632741 | AZ112: 0.007178288996 | BA112: 0.006907342677 | BB112: 0.00664064372 | BC112: 0.006378929148 | BD112: 0.00612286154 | BE112: 0.005873048182 | BF112: 0.005630044084 | BG112: 0.005394345429
A113: 81 | B113: =OFFSET(InputPriceData!B$15,CalculationsAndCharts!$A113+$A$11,0,1,1) -> 2015-09-08 | C113: =OFFSET(InputPriceData!G$15,CalculationsAndCharts!$A113+$A$11,IF($C$7,8,0),1,1) -> 116025700 | D113: =OFFSET(InputPriceData!C$15,CalculationsAndCharts!$A113+$A$11,IF($C$7,8,0),1,1) -> 191.78 | E113: =OFFSET(InputPriceData!D$15,CalculationsAndCharts!$A113+$A$11,IF($C$7,8,0),1,1) -> 193.42 | F113: =OFFSET(InputPriceData!E$15,CalculationsAndCharts!$A113+$A$11,IF($C$7,8,0),1,1) -> 191.03 | G113: =OFFSET(InputPriceData!F$15,CalculationsAndCharts!$A113+$A$11,IF($C$7,8,0),1,1) -> 193.24 | H113: 116025700 | J113: 13.01691792 | K113: 0 | L113: 0 | M113: 0 | N113: 0.006144218066 | O113: 0.003833438225 | P113: 0.02307908758 | Q113: 0.03733467065 | R113: 0.007600408939 | S113: 0.07792116419 | T113: 0.4486733065 | U113: 1 | V113: 0.4301270996 | W113: 0.2458893538 | X113: 0.1840252433 | Y113: 0.08785267495 | Z113: 0.03752461505 | AA113: 0.03392059159 | AB113: 0.06904271914 | AC113: 0.1319437016 | AD113: 0.1848018943 | AE113: 0.2011376076 | AF113: 0.1827762702 | AG113: 0.146168746 | AH113: 0.1068788601 | AI113: 0.07367347096 | AJ113: 0.04927125033 | AK113: 0.03298290391 | AL113: 0.0228708334 | AM113: 0.01694146746 | AN113: 0.01361168571 | AO113: 0.01178475766 | AP113: 0.01076856342 | AQ113: 0.01015816989 | AR113: 0.009732985884 | AS113: 0.009381864334 | AT113: 0.009054160967 | AU113: 0.008730228296 | AV113: 0.008404855498 | AW113: 0.008078644528 | AX113: 0.007753915609 | AY113: 0.007433015268 | AZ113: 0.007117790261 | BA113: 0.006809557297 | BB113: 0.006509234514 | BC113: 0.006217487052 | BD113: 0.005934834796 | BE113: 0.005661714679 | BF113: 0.005398506938 | BG113: 0.005145538581
A114: 82 | B114: =OFFSET(InputPriceData!B$15,CalculationsAndCharts!$A114+$A$11,0,1,1) -> 2015-09-04 | C114: =OFFSET(InputPriceData!G$15,CalculationsAndCharts!$A114+$A$11,IF($C$7,8,0),1,1) -> 207081000 | D114: =OFFSET(InputPriceData!C$15,CalculationsAndCharts!$A114+$A$11,IF($C$7,8,0),1,1) -> 188.76 | E114: =OFFSET(InputPriceData!D$15,CalculationsAndCharts!$A114+$A$11,IF($C$7,8,0),1,1) -> 189.75 | F114: =OFFSET(InputPriceData!E$15,CalculationsAndCharts!$A114+$A$11,IF($C$7,8,0),1,1) -> 187.54 | G114: =OFFSET(InputPriceData!F$15,CalculationsAndCharts!$A114+$A$11,IF($C$7,8,0),1,1) -> 188.5 | I114: 207081000 | J114: 13.77590657 | K114: 0 | L114: 0 | M114: 0 | N114: 0.003642335243 | O114: 0.004682650472 | P114: 0.01895239543 | Q114: 0.03657546338 | R114: 0.009587181183 | S114: 0.08804339841 | T114: 0.5611312296 | U114: 1 | V114: 0.30412554 | W114: 0.2051827949 | X114: 0.2166639955 | Y114: 0.1153609784 | Z114: 0.04994532756 | AA114: 0.0439485237 | AB114: 0.0850144135 | AC114: 0.1614614049 | AD114: 0.2279852333 | AE114: 0.2502805583 | AF114: 0.2288643129 | AG114: 0.1836272839 | AH114: 0.1342374263 | AI114: 0.0921066053 | AJ114: 0.06096518984 | AK114: 0.0400967168 | AL114: 0.02709814766 | AM114: 0.01944305681 | AN114: 0.01511053138 | AO114: 0.01269906547 | AP114: 0.01132721728 | AQ114: 0.01048309573 | AR114: 0.009890911045 | AS114: 0.009413557203 | AT114: 0.008989204616 | AU114: 0.008593467293 | AV114: 0.008218568463 | AW114: 0.007862841332 | AX114: 0.007526034044 | AY114: 0.007207605975 | AZ114: 0.006906399529 | BA114: 0.006620831158 | BB114: 0.006349192096 | BC114: 0.006089893158 | BD114: 0.005841609631 | BE114: 0.005603335268 | BF114: 0.0053743718 | BG114: 0.005154281106
A115: 83 | B115: =OFFSET(InputPriceData!B$15,CalculationsAndCharts!$A115+$A$11,0,1,1) -> 2015-09-03 | C115: =OFFSET(InputPriceData!G$15,CalculationsAndCharts!$A115+$A$11,IF($C$7,8,0),1,1) -> 152087800 | D115: =OFFSET(InputPriceData!C$15,CalculationsAndCharts!$A115+$A$11,IF($C$7,8,0),1,1) -> 192.09 | E115: =OFFSET(InputPriceData!D$15,CalculationsAndCharts!$A115+$A$11,IF($C$7,8,0),1,1) -> 193.85 | F115: =OFFSET(InputPriceData!E$15,CalculationsAndCharts!$A115+$A$11,IF($C$7,8,0),1,1) -> 190.82 | G115: =OFFSET(InputPriceData!F$15,CalculationsAndCharts!$A115+$A$11,IF($C$7,8,0),1,1) -> 191.4 | I115: 152087800 | J115: 14.07452112 | K115: 0 | L115: 0 | M115: 0 | N115: 0.004684438328 | O115: 0.005734749341 | P115: 0.0192502774 | Q115: 0.03900921078 | R115: 0.01288512071 | S115: 0.08513885162 | T115: 0.7359265152 | U115: 1 | V115: 0.2012758503 | W115: 0.1630435351 | X115: 0.2600868802 | Y115: 0.1606036898 | Z115: 0.07095494827 | AA115: 0.05712905315 | AB115: 0.09092633221 | AC115: 0.1707632156 | AD115: 0.2553741719 | AE115: 0.2966881343 | AF115: 0.2833345306 | AG115: 0.2341451625 | AH115: 0.1740377732 | AI115: 0.1198750604 | AJ115: 0.07847689014 | AK115: 0.05002735167 | AL115: 0.03184747193 | AM115: 0.02078084204 | AN115: 0.01423404294 | AO115: 0.0104074469 | AP115: 0.008175676827 | AQ115: 0.006881210061 | AR115: 0.00615355686 | AS115: 0.00578347134 | AT115: 0.005646775799 | AU115: 0.005662935186 | AV115: 0.00577461707 | AW115: 0.00593849373 | AX115: 0.006121365162 | AY115: 0.006298422756 | AZ115: 0.006452159282 | BA115: 0.006571349397 | BB115: 0.006649964299 | BC115: 0.006686057449 | BD115: 0.006680700259 | BE115: 0.006637034059 | BF115: 0.006559476381 | BG115: 0.006453092982
A116: 84 | B116: =OFFSET(InputPriceData!B$15,CalculationsAndCharts!$A116+$A$11,0,1,1) -> 2015-09-02 | C116: =OFFSET(InputPriceData!G$15,CalculationsAndCharts!$A116+$A$11,IF($C$7,8,0),1,1) -> 160269300 | D116: =OFFSET(InputPriceData!C$15,CalculationsAndCharts!$A116+$A$11,IF($C$7,8,0),1,1) -> 190.49 | E116: =OFFSET(InputPriceData!D$15,CalculationsAndCharts!$A116+$A$11,IF($C$7,8,0),1,1) -> 191.31 | F116: =OFFSET(InputPriceData!E$15,CalculationsAndCharts!$A116+$A$11,IF($C$7,8,0),1,1) -> 188.34 | G116: =OFFSET(InputPriceData!F$15,CalculationsAndCharts!$A116+$A$11,IF($C$7,8,0),1,1) -> 191.26 | H116: 160269300 | J116: 14.40432373 | K116: 0 | L116: 0 | M116: 0 | N116: 0.005419815514 | O116: 0.006365113821 | P116: 0.02255771682 | Q116: 0.03872101131 | R116: 0.01550247803 | S116: 0.09137182483 | T116: 0.8684150002 | U116: 1 | V116: 0.170092789 | W116: 0.1708045585 | X116: 0.3063005397 | Y116: 0.1981774836 | Z116: 0.08917742376 | AA116: 0.0702308867 | AB116: 0.1023091955 | AC116: 0.1835342976 | AD116: 0.2739464522 | AE116: 0.321027994 | AF116: 0.3091491163 | AG116: 0.2567321766 | AH116: 0.190814771 | AI116: 0.1305755827 | AJ116: 0.08420270483 | AK116: 0.05227479942 | AL116: 0.03193654168 | AM116: 0.01966208525 | AN116: 0.01251030914 | AO116: 0.008431511355 | AP116: 0.006147571795 | AQ116: 0.004918000488 | AR116: 0.00433023351 | AS116: 0.0041529597 | AT116: 0.004247841635 | AU116: 0.004522462623 | AV116: 0.004908080311 | AW116: 0.005350434891 | AX116: 0.005806467729 | AY116: 0.006243158423 | AZ116: 0.006636759082 | BA116: 0.006971826896 | BB116: 0.007239981465 | BC116: 0.007438507104 | BD116: 0.007568952331 | BE116: 0.007635845808 | BF116: 0.007645599386 | BG116: 0.007605625804
A117: 85 | B117: =OFFSET(InputPriceData!B$15,CalculationsAndCharts!$A117+$A$11,0,1,1) -> 2015-09-01 | C117: =OFFSET(InputPriceData!G$15,CalculationsAndCharts!$A117+$A$11,IF($C$7,8,0),1,1) -> 256000400 | D117: =OFFSET(InputPriceData!C$15,CalculationsAndCharts!$A117+$A$11,IF($C$7,8,0),1,1) -> 189.02 | E117: =OFFSET(InputPriceData!D$15,CalculationsAndCharts!$A117+$A$11,IF($C$7,8,0),1,1) -> 190.64 | F117: =OFFSET(InputPriceData!E$15,CalculationsAndCharts!$A117+$A$11,IF($C$7,8,0),1,1) -> 186.68 | G117: =OFFSET(InputPriceData!F$15,CalculationsAndCharts!$A117+$A$11,IF($C$7,8,0),1,1) -> 187.7 | I117: 256000400 | J117: 14.46617913 | K117: 0 | L117: 0 | M117: 0 | N117: 0.003932741856 | O117: 0.004660646997 | P117: 0.02336053227 | Q117: 0.03862173852 | R117: 0.01622302844 | S117: 0.08975973535 | T117: 0.9122077989 | U117: 1 | V117: 0.1580174326 | W117: 0.1694389549 | X117: 0.3157591505 | Y117: 0.207464785 | Z117: 0.09417992703 | AA117: 0.07412042043 | AB117: 0.1070261125 | AC117: 0.1910140678 | AD117: 0.2852931938 | AE117: 0.3350841666 | AF117: 0.3234139783 | AG117: 0.2690512963 | AH117: 0.2001902459 | AI117: 0.1370336921 | AJ117: 0.08830575642 | AK117: 0.05470433137 | AL117: 0.03327339034 | AM117: 0.02032347016 | AN117: 0.0127676963 | AO117: 0.008453027188 | AP117: 0.006037052285 | AQ117: 0.004742111036 | AR117: 0.004134360376 | AS117: 0.003969401471 | AT117: 0.004099673947 | AU117: 0.004425390461 | AV117: 0.00487156592 | AW117: 0.005378677971 | AX117: 0.005899413032 | AY117: 0.00639752226 | AZ117: 0.006847008785 | BA117: 0.007231050142 | BB117: 0.007540606612 | BC117: 0.007772861656 | BD117: 0.007929666466 | BE117: 0.008016120048 | BF117: 0.008039360978 | BG117: 0.008007599195
A118: 86 | B118: =OFFSET(InputPriceData!B$15,CalculationsAndCharts!$A118+$A$11,0,1,1) -> 2015-08-31 | C118: =OFFSET(InputPriceData!G$15,CalculationsAndCharts!$A118+$A$11,IF($C$7,8,0),1,1) -> 163298800 | D118: =OFFSET(InputPriceData!C$15,CalculationsAndCharts!$A118+$A$11,IF($C$7,8,0),1,1) -> 193.91 | E118: =OFFSET(InputPriceData!D$15,CalculationsAndCharts!$A118+$A$11,IF($C$7,8,0),1,1) -> 194.9 | F118: =OFFSET(InputPriceData!E$15,CalculationsAndCharts!$A118+$A$11,IF($C$7,8,0),1,1) -> 192.83 | G118: =OFFSET(InputPriceData!F$15,CalculationsAndCharts!$A118+$A$11,IF($C$7,8,0),1,1) -> 193.48 | I118: 163298800 | J118: 14.00521756 | K118: 0 | L118: 0 | M118: 0 | N118: 0.002826595897 | O118: 0.005403728145 | P118: 0.02657184842 | Q118: 0.03529295431 | R118: 0.01907494509 | S118: 0.09086498531 | T118: 1 | U118: 0.9666546344 | V118: 0.1181500804 | W118: 0.1550049131 | X118: 0.3271929216 | Y118: 0.2304077173 | Z118: 0.1119333823 | AA118: 0.08878614371 | AB118: 0.1208161749 | AC118: 0.1957166039 | AD118: 0.2732892716 | AE118: 0.3082826725 | AF118: 0.29039081 | AG118: 0.238291598 | AH118: 0.1763841653 | AI118: 0.1210592741 | AJ118: 0.07882692771 | AK118: 0.04971141468 | AL118: 0.03097363234 | AM118: 0.01944792237 | AN118: 0.01254894642 | AO118: 0.008484587876 | AP118: 0.006129636862 | AQ118: 0.004818828638 | AR118: 0.004168091684 | AS118: 0.003951406243 | AT118: 0.004026911468 | AU118: 0.004297106565 | AV118: 0.004689402717 | AW118: 0.00514741754 | AX118: 0.00562724164 | AY118: 0.006095624677 | AZ118: 0.006528681665 | BA118: 0.006910609245 | BB118: 0.007232317993 | BC118: 0.00749004353 | BD118: 0.007684029877 | BE118: 0.007817358461 | BF118: 0.007894963158 | BG118: 0.007922842248
A119: 87 | B119: =OFFSET(InputPriceData!B$15,CalculationsAndCharts!$A119+$A$11,0,1,1) -> 2015-08-28 | C119: =OFFSET(InputPriceData!G$15,CalculationsAndCharts!$A119+$A$11,IF($C$7,8,0),1,1) -> 160414400 | D119: =OFFSET(InputPriceData!C$15,CalculationsAndCharts!$A119+$A$11,IF($C$7,8,0),1,1) -> 194.29 | E119: =OFFSET(InputPriceData!D$15,CalculationsAndCharts!$A119+$A$11,IF($C$7,8,0),1,1) -> 195.6 | F119: =OFFSET(InputPriceData!E$15,CalculationsAndCharts!$A119+$A$11,IF($C$7,8,0),1,1) -> 193.72 | G119: =OFFSET(InputPriceData!F$15,CalculationsAndCharts!$A119+$A$11,IF($C$7,8,0),1,1) -> 195.05 | H119: 160414400 | J119: 13.83780671 | K119: 0 | L119: 0 | M119: 0 | N119: 0.002011594213 | O119: 0.006123554841 | P119: 0.02796551745 | Q119: 0.03357451331 | R119: 0.02075535391 | S119: 0.07526333051 | T119: 1 | U119: 0.8010747234 | V119: 0.0598225583 | W119: 0.09542198659 | X119: 0.2681693625 | Y119: 0.2259234413 | Z119: 0.1254877983 | AA119: 0.1009551122 | AB119: 0.1262124271 | AC119: 0.1755672083 | AD119: 0.2197345042 | AE119: 0.2344694299 | AF119: 0.2166115342 | AG119: 0.1785183196 | AH119: 0.1349939877 | AI119: 0.0959111702 | AJ119: 0.06531446589 | AK119: 0.04337565294 | AL119: 0.02853060738 | AM119: 0.01885702062 | AN119: 0.01270528131 | AO119: 0.008866483226 | AP119: 0.006528722556 | AQ119: 0.005171204542 | AR119: 0.004463958268 | AS119: 0.004194085223 | AT119: 0.004218426322 | AU119: 0.004435831976 | AV119: 0.004771899687 | AW119: 0.005170804294 | AX119: 0.005590788876 | AY119: 0.006001376483 | AZ119: 0.00638132835 | BA119: 0.006716925919 | BB119: 0.007000432977 | BC119: 0.007228714469 | BD119: 0.007402026142 | BE119: 0.007522990045 | BF119: 0.007595759189 | BG119: 0.007625362041
A120: 88 | B120: =OFFSET(InputPriceData!B$15,CalculationsAndCharts!$A120+$A$11,0,1,1) -> 2015-08-27 | C120: =OFFSET(InputPriceData!G$15,CalculationsAndCharts!$A120+$A$11,IF($C$7,8,0),1,1) -> 274143900 | D120: =OFFSET(InputPriceData!C$15,CalculationsAndCharts!$A120+$A$11,IF($C$7,8,0),1,1) -> 192.84 | E120: =OFFSET(InputPriceData!D$15,CalculationsAndCharts!$A120+$A$11,IF($C$7,8,0),1,1) -> 195.19 | F120: =OFFSET(InputPriceData!E$15,CalculationsAndCharts!$A120+$A$11,IF($C$7,8,0),1,1) -> 191.07 | G120: =OFFSET(InputPriceData!F$15,CalculationsAndCharts!$A120+$A$11,IF($C$7,8,0),1,1) -> 195.04 | H120: 274143900 | J120: 13.4299645 | K120: 0 | L120: 0 | M120: 0 | N120: 0.001929036932 | O120: 0.007333849454 | P120: 0.02823768212 | Q120: 0.03154634077 | R120: 0.02467107022 | S120: 0.06976095469 | T120: 1 | U120: 0.6275638412 | V120: 0.02616435125 | W120: 0.04634956094 | X120: 0.2159701684 | Y120: 0.2324546932 | Z120: 0.1474553128 | AA120: 0.1197281198 | AB120: 0.1366177159 | AC120: 0.1653581256 | AD120: 0.1891176218 | AE120: 0.1962981773 | AF120: 0.1834437588 | AG120: 0.1559097379 | AH120: 0.1225570264 | AI120: 0.0907074631 | AJ120: 0.06428490734 | AK120: 0.04430592519 | AL120: 0.03012291095 | AM120: 0.02047866023 | AN120: 0.01411639189 | AO120: 0.01002524748 | AP120: 0.007477062303 | AQ120: 0.00597637624 | AR120: 0.005192281053 | AS120: 0.004900942462 | AT120: 0.004945714314 | AU120: 0.005212507854 | AV120: 0.005615676093 | AW120: 0.006090169823 | AX120: 0.006587016632 | AY120: 0.0070703759 | AZ120: 0.007515273228 | BA120: 0.007905628986 | BB120: 0.008232460916 | BC120: 0.008492254511 | BD120: 0.008685527556 | BE120: 0.00881561112 | BF120: 0.00888765334 | BG120: 0.008907836276
A121: 89 | B121: =OFFSET(InputPriceData!B$15,CalculationsAndCharts!$A121+$A$11,0,1,1) -> 2015-08-26 | C121: =OFFSET(InputPriceData!G$15,CalculationsAndCharts!$A121+$A$11,IF($C$7,8,0),1,1) -> 339257000 | D121: =OFFSET(InputPriceData!C$15,CalculationsAndCharts!$A121+$A$11,IF($C$7,8,0),1,1) -> 188 | E121: =OFFSET(InputPriceData!D$15,CalculationsAndCharts!$A121+$A$11,IF($C$7,8,0),1,1) -> 190.66 | F121: =OFFSET(InputPriceData!E$15,CalculationsAndCharts!$A121+$A$11,IF($C$7,8,0),1,1) -> 184.37 | G121: =OFFSET(InputPriceData!F$15,CalculationsAndCharts!$A121+$A$11,IF($C$7,8,0),1,1) -> 190.33 | H121: 339257000 | J121: 13.45307985 | K121: 0 | L121: 0 | M121: 0 | N121: 0.001553762378 | O121: 0.00701125416 | P121: 0.02696015062 | Q121: 0.02934937122 | R121: 0.02506024776 | S121: 0.06758845369 | T121: 1 | U121: 0.6023440057 | V121: 0.02108830915 | W121: 0.04057858184 | X121: 0.2075244219 | Y121: 0.2301191014 | Z121: 0.148778787 | AA121: 0.121496787 | AB121: 0.1382757444 | AC121: 0.1661440198 | AD121: 0.1886745894 | AE121: 0.1951222964 | AF121: 0.1822499612 | AG121: 0.1551091773 | AH121: 0.1222100669 | AI121: 0.09069213363 | AJ121: 0.06444757383 | AK121: 0.04453107788 | AL121: 0.03034491259 | AM121: 0.02066958245 | AN121: 0.0142703799 | AO121: 0.0101468947 | AP121: 0.007574595099 | AQ121: 0.006058288399 | AR121: 0.00526594721 | AS121: 0.004972206837 | AT121: 0.005018900824 | AU121: 0.00529058756 | AV121: 0.005700480371 | AW121: 0.006182606328 | AX121: 0.006687272009 | AY121: 0.007178098535 | AZ121: 0.007629732631 | BA121: 0.008025850165 | BB121: 0.008357333587 | BC121: 0.008620618344 | BD121: 0.008816235702 | BE121: 0.008947574958 | BF121: 0.009019871641 | BG121: 0.009039411982
A122: 90 | B122: =OFFSET(InputPriceData!B$15,CalculationsAndCharts!$A122+$A$11,0,1,1) -> 2015-08-25 | C122: =OFFSET(InputPriceData!G$15,CalculationsAndCharts!$A122+$A$11,IF($C$7,8,0),1,1) -> 369833100 | D122: =OFFSET(InputPriceData!C$15,CalculationsAndCharts!$A122+$A$11,IF($C$7,8,0),1,1) -> 191.28 | E122: =OFFSET(InputPriceData!D$15,CalculationsAndCharts!$A122+$A$11,IF($C$7,8,0),1,1) -> 191.3 | F122: =OFFSET(InputPriceData!E$15,CalculationsAndCharts!$A122+$A$11,IF($C$7,8,0),1,1) -> 182.95 | G122: =OFFSET(InputPriceData!F$15,CalculationsAndCharts!$A122+$A$11,IF($C$7,8,0),1,1) -> 183.3 | I122: 369833100 | J122: 13.63083729 | K122: 0 | L122: 0 | M122: 0 | N122: 0.001175856348 | O122: 0.008781310814 | P122: 0.02534738516 | Q122: 0.02314423768 | R122: 0.03110540542 | S122: 0.08146482404 | T122: 1 | U122: 0.5028778069 | V122: 0.01846830674 | W122: 0.03957655427 | X122: 0.2008042218 | Y122: 0.2312070103 | Z122: 0.1569648661 | AA122: 0.1323001413 | AB122: 0.1473416417 | AC122: 0.1680189511 | AD122: 0.1830958957 | AE122: 0.1866624516 | AF122: 0.1755346115 | AG122: 0.1521845393 | AH122: 0.1228283764 | AI122: 0.09359625744 | AJ122: 0.06834950674 | AK122: 0.04852233783 | AL122: 0.0339343449 | AM122: 0.02367516167 | AN122: 0.01669472243 | AO122: 0.01208331 | AP122: 0.009148531335 | AQ122: 0.007395270647 | AR122: 0.006476116305 | AS122: 0.006144301825 | AT122: 0.00621930834 | AU122: 0.006564981929 | AV122: 0.007076682495 | AW122: 0.00767388772 | AX122: 0.00829565567 | AY122: 0.008897397613 | AZ122: 0.009448188487 | BA122: 0.009928313137 | BB122: 0.01032698516 | BC122: 0.01064026884 | BD122: 0.01086925143 | BE122: 0.01101849719 | BF122: 0.01109478994 | BG122: 0.01110614964
A123: 91 | B123: =OFFSET(InputPriceData!B$15,CalculationsAndCharts!$A123+$A$11,0,1,1) -> 2015-08-24 | C123: =OFFSET(InputPriceData!G$15,CalculationsAndCharts!$A123+$A$11,IF($C$7,8,0),1,1) -> 507244300 | D123: =OFFSET(InputPriceData!C$15,CalculationsAndCharts!$A123+$A$11,IF($C$7,8,0),1,1) -> 183.51 | E123: =OFFSET(InputPriceData!D$15,CalculationsAndCharts!$A123+$A$11,IF($C$7,8,0),1,1) -> 193.29 | F123: =OFFSET(InputPriceData!E$15,CalculationsAndCharts!$A123+$A$11,IF($C$7,8,0),1,1) -> 178.53 | G123: =OFFSET(InputPriceData!F$15,CalculationsAndCharts!$A123+$A$11,IF($C$7,8,0),1,1) -> 185.48 | H123: 507244300 | J123: 13.88766936 | K123: 0 | L123: 0 | M123: 0 | N123: 0.0005762337575 | O123: 0.0109604714 | P123: 0.02390745723 | Q123: 0.02138602332 | R123: 0.04004189783 | S123: 0.1009770418 | T123: 1 | U123: 0.4184993502 | V123: 0.01694481347 | W123: 0.03681731 | X123: 0.1824762046 | Y123: 0.2179906921 | Z123: 0.1634349449 | AA123: 0.1544885182 | AB123: 0.1773301605 | AC123: 0.196508279 | AD123: 0.2036663747 | AE123: 0.1982259064 | AF123: 0.1805241912 | AG123: 0.1537445299 | AH123: 0.1232589735 | AI123: 0.09407884252 | AJ123: 0.06925632541 | AK123: 0.04980726243 | AL123: 0.03541222822 | AM123: 0.02517110196 | AN123: 0.01810119246 | AO123: 0.01336600748 | AP123: 0.01032967807 | AQ123: 0.008530988377 | AR123: 0.007636042918 | AS123: 0.007396531731 | AT123: 0.007621023544 | AU123: 0.008157891408 | AV123: 0.008885981098 | AW123: 0.009709478477 | AX123: 0.01055460486 | AY123: 0.0113668695 | AZ123: 0.01210836416 | BA123: 0.01275500544 | BB123: 0.01329381315 | BC123: 0.0137203562 | BD123: 0.01403647454 | BE123: 0.01424834042 | BF123: 0.01436487838 | BG123: 0.01439652979
A124: 92 | B124: =OFFSET(InputPriceData!B$15,CalculationsAndCharts!$A124+$A$11,0,1,1) -> 2015-08-21 | C124: =OFFSET(InputPriceData!G$15,CalculationsAndCharts!$A124+$A$11,IF($C$7,8,0),1,1) -> 346588500 | D124: =OFFSET(InputPriceData!C$15,CalculationsAndCharts!$A124+$A$11,IF($C$7,8,0),1,1) -> 197.45 | E124: =OFFSET(InputPriceData!D$15,CalculationsAndCharts!$A124+$A$11,IF($C$7,8,0),1,1) -> 199.61 | F124: =OFFSET(InputPriceData!E$15,CalculationsAndCharts!$A124+$A$11,IF($C$7,8,0),1,1) -> 193.33 | G124: =OFFSET(InputPriceData!F$15,CalculationsAndCharts!$A124+$A$11,IF($C$7,8,0),1,1) -> 193.63 | I124: 346588500 | J124: 14.76987706 | K124: 0 | L124: 0 | M124: 0 | N124: 0.0006190966497 | O124: 0.01364604979 | P124: 0.02631888521 | Q124: 0.01686109767 | R124: 0.05126335884 | S124: 0.1236734063 | T124: 1 | U124: 0.3397796466 | V124: 0.01806441398 | W124: 0.02625540487 | X124: 0.1200210483 | Y124: 0.1687016438 | Z124: 0.1694628324 | AA124: 0.196473446 | AB124: 0.2360134562 | AC124: 0.2585060677 | AD124: 0.2579221516 | AE124: 0.2385147496 | AF124: 0.2059925915 | AG124: 0.1668625816 | AH124: 0.1275964549 | AI124: 0.0929595107 | AJ124: 0.06522164542 | AK124: 0.04455744157 | AL124: 0.02996088897 | AM124: 0.02005631934 | AN124: 0.01357390134 | AO124: 0.009526646261 | AP124: 0.007212189278 | AQ124: 0.006145969606 | AR124: 0.005987611566 | AS124: 0.006485206867 | AT124: 0.007441047566 | AU124: 0.008693786393 | AV124: 0.01011048127 | AW124: 0.01158335857 | AX124: 0.01302810954 | AY124: 0.01438215959 | AZ124: 0.01560239604 | BA124: 0.01666238763 | BB124: 0.01754934268 | BC124: 0.01826107977 | BD124: 0.01880322626 | BE124: 0.01918677901 | BF124: 0.01942608672 | BG124: 0.01953725734
A125: 93 | B125: =OFFSET(InputPriceData!B$15,CalculationsAndCharts!$A125+$A$11,0,1,1) -> 2015-08-20 | C125: =OFFSET(InputPriceData!G$15,CalculationsAndCharts!$A125+$A$11,IF($C$7,8,0),1,1) -> 194327900 | D125: =OFFSET(InputPriceData!C$15,CalculationsAndCharts!$A125+$A$11,IF($C$7,8,0),1,1) -> 202.13 | E125: =OFFSET(InputPriceData!D$15,CalculationsAndCharts!$A125+$A$11,IF($C$7,8,0),1,1) -> 203.87 | F125: =OFFSET(InputPriceData!E$15,CalculationsAndCharts!$A125+$A$11,IF($C$7,8,0),1,1) -> 199.57 | G125: =OFFSET(InputPriceData!F$15,CalculationsAndCharts!$A125+$A$11,IF($C$7,8,0),1,1) -> 199.64 | I125: 194327900 | J125: 15.01707122 | K125: 0 | L125: 0 | M125: 0 | N125: 0.0008109602312 | O125: 0.01441536246 | P125: 0.02558669638 | Q125: 0.01641430274 | R125: 0.06754681573 | S125: 0.1581042494 | T125: 1 | U125: 0.2410186445 | V125: 0.01792213991 | W125: 0.01704679566 | X125: 0.06656625897 | Y125: 0.1240793683 | Z125: 0.1796787648 | AA125: 0.2512427024 | AB125: 0.314317716 | AC125: 0.3406755834 | AD125: 0.3278971964 | AE125: 0.2881026303 | AF125: 0.2351260773 | AG125: 0.1802161879 | AH125: 0.1309764 | AI125: 0.09119073564 | AJ125: 0.06149547566 | AK125: 0.04061078894 | AL125: 0.02653982995 | AM125: 0.01736081431 | AN125: 0.01157292711 | AO125: 0.008137934809 | AP125: 0.006381219362 | AQ125: 0.005864378808 | AR125: 0.006282571888 | AS125: 0.007399831915 | AT125: 0.009016354289 | AU125: 0.01095633032 | AV125: 0.01306616276 | AW125: 0.01521623678 | AX125: 0.01730257791 | AY125: 0.01924695502 | AZ125: 0.02099526792 | BA125: 0.02251464313 | BB125: 0.02378981872 | BC125: 0.02481934028 | BD125: 0.02561194887 | BE125: 0.02618339322 | BF125: 0.02655377448 | BG125: 0.02674544313
A126: 94 | B126: =OFFSET(InputPriceData!B$15,CalculationsAndCharts!$A126+$A$11,0,1,1) -> 2015-08-19 | C126: =OFFSET(InputPriceData!G$15,CalculationsAndCharts!$A126+$A$11,IF($C$7,8,0),1,1) -> 172946000 | D126: =OFFSET(InputPriceData!C$15,CalculationsAndCharts!$A126+$A$11,IF($C$7,8,0),1,1) -> 204.65 | E126: =OFFSET(InputPriceData!D$15,CalculationsAndCharts!$A126+$A$11,IF($C$7,8,0),1,1) -> 205.55 | F126: =OFFSET(InputPriceData!E$15,CalculationsAndCharts!$A126+$A$11,IF($C$7,8,0),1,1) -> 202.95 | G126: =OFFSET(InputPriceData!F$15,CalculationsAndCharts!$A126+$A$11,IF($C$7,8,0),1,1) -> 203.9 | I126: 172946000 | J126: 15.42040436 | K126: 0 | L126: 0 | M126: 0 | N126: 0.001019195253 | O126: 0.009750974137 | P126: 0.0241399874 | Q126: 0.0194330009 | R126: 0.08425849918 | S126: 0.1981569478 | T126: 1 | U126: 0.1783470279 | V126: 0.01787037554 | W126: 0.01218678223 | X126: 0.04045920782 | Y126: 0.1028769229 | Z126: 0.1979066254 | AA126: 0.3133464871 | AB126: 0.4047173803 | AC126: 0.4373333117 | AD126: 0.4121763029 | AE126: 0.350247742 | AF126: 0.2742739828 | AG126: 0.2010092532 | AH126: 0.1397647961 | AI126: 0.09352620377 | AJ126: 0.06115848767 | AK126: 0.03967370936 | AL126: 0.02587120968 | AM126: 0.01716785217 | AN126: 0.01180195925 | AO126: 0.008702299862 | AP126: 0.007254585208 | AQ126: 0.007093101573 | AR126: 0.007961244686 | AS126: 0.009638175144 | AT126: 0.01191163879 | AU126: 0.01457615279 | AV126: 0.01744126317 | AW126: 0.0203408973 | AX126: 0.02313972966 | AY126: 0.02573553396 | AZ126: 0.02805804853 | BA126: 0.03006544882 | BB126: 0.03173954274 | BC126: 0.03308058531 | BD126: 0.03410232658 | BE126: 0.03482765044 | BF126: 0.03528496398 | BG126: 0.03550536252
A127: 95 | B127: =OFFSET(InputPriceData!B$15,CalculationsAndCharts!$A127+$A$11,0,1,1) -> 2015-08-18 | C127: =OFFSET(InputPriceData!G$15,CalculationsAndCharts!$A127+$A$11,IF($C$7,8,0),1,1) -> 71692700 | D127: =OFFSET(InputPriceData!C$15,CalculationsAndCharts!$A127+$A$11,IF($C$7,8,0),1,1) -> 205.8 | E127: =OFFSET(InputPriceData!D$15,CalculationsAndCharts!$A127+$A$11,IF($C$7,8,0),1,1) -> 206.21 | F127: =OFFSET(InputPriceData!E$15,CalculationsAndCharts!$A127+$A$11,IF($C$7,8,0),1,1) -> 205.25 | G127: =OFFSET(InputPriceData!F$15,CalculationsAndCharts!$A127+$A$11,IF($C$7,8,0),1,1) -> 205.52 | I127: 71692700 | J127: 15.70268192 | K127: 0 | L127: 0 | M127: 0 | N127: 0.001250790881 | O127: 0.01172917817 | P127: 0.02592790299 | Q127: 0.01650495385 | R127: 0.08402927283 | S127: 0.2273098907 | T127: 1 | U127: 0.1966481566 | V127: 0.02169447079 | W127: 0.01287435942 | X127: 0.04438388174 | Y127: 0.1192770553 | Z127: 0.2355149709 | AA127: 0.3773637524 | AB127: 0.4891787623 | AC127: 0.5278940937 | AD127: 0.4951480331 | AE127: 0.4175222572 | AF127: 0.323519208 | AG127: 0.2339052856 | AH127: 0.1599610797 | AI127: 0.1050145855 | AJ127: 0.06730633855 | AK127: 0.04287541979 | AL127: 0.02761193103 | AM127: 0.01826953933 | AN127: 0.01268713593 | AO127: 0.009595444309 | AP127: 0.008303741537 | AQ127: 0.008426450821 | AR127: 0.00970256342 | AS127: 0.01190221824 | AT127: 0.01479358596 | AU127: 0.0181426748 | AV127: 0.02172606229 | AW127: 0.02534484723 | AX127: 0.02883450037 | AY127: 0.03206927184 | AZ127: 0.0349618416 | BA127: 0.0374596451 | BB127: 0.03953934339 | BC127: 0.04120062715 | BD127: 0.0424601802 | BE127: 0.0433462941 | BF127: 0.04389436707 | BG127: 0.04414334157
A128: 96 | B128: =OFFSET(InputPriceData!B$15,CalculationsAndCharts!$A128+$A$11,0,1,1) -> 2015-08-17 | C128: =OFFSET(InputPriceData!G$15,CalculationsAndCharts!$A128+$A$11,IF($C$7,8,0),1,1) -> 79072600 | D128: =OFFSET(InputPriceData!C$15,CalculationsAndCharts!$A128+$A$11,IF($C$7,8,0),1,1) -> 204.28 | E128: =OFFSET(InputPriceData!D$15,CalculationsAndCharts!$A128+$A$11,IF($C$7,8,0),1,1) -> 206.12 | F128: =OFFSET(InputPriceData!E$15,CalculationsAndCharts!$A128+$A$11,IF($C$7,8,0),1,1) -> 203.74 | G128: =OFFSET(InputPriceData!F$15,CalculationsAndCharts!$A128+$A$11,IF($C$7,8,0),1,1) -> 206.12 | H128: 79072600 | J128: 16.49111486 | K128: 0 | L128: 0 | M128: 0 | N128: 0.001539087895 | O128: 0.01479764206 | P128: 0.02957224831 | Q128: 0.01866501581 | R128: 0.09189181952 | S128: 0.3316569012 | T128: 1 | U128: 0.1951384542 | V128: 0.03218689944 | W128: 0.0147780353 | X128: 0.03998827124 | Y128: 0.1363894068 | Z128: 0.3276957925 | AA128: 0.5803718086 | AB128: 0.7825537228 | AC128: 0.8529066452 | AD128: 0.7953156643 | AE128: 0.6594900736 | AF128: 0.4977692248 | AG128: 0.3472270349 | AH128: 0.2268566499 | AI128: 0.1410249441 | AJ128: 0.08520735669 | AK128: 0.05144580703 | AL128: 0.03203845375 | AM128: 0.02122119801 | AN128: 0.01539892295 | AO128: 0.01266106394 | AP128: 0.01212959811 | AQ128: 0.01342171425 | AR128: 0.01630968525 | AS128: 0.02055521997 | AT128: 0.02586061368 | AU128: 0.03188151384 | AV128: 0.03826213752 | AW128: 0.04467051043 | AX128: 0.05082384445 | AY128: 0.05650186276 | AZ128: 0.06154973813 | BA128: 0.0658736824 | BB128: 0.06943223766 | BC128: 0.07222573422 | BD128: 0.0742856415 | BE128: 0.07566486593 | BF128: 0.07642952751 | BG128: 0.07665238415
A129: 97 | B129: =OFFSET(InputPriceData!B$15,CalculationsAndCharts!$A129+$A$11,0,1,1) -> 2015-08-14 | C129: =OFFSET(InputPriceData!G$15,CalculationsAndCharts!$A129+$A$11,IF($C$7,8,0),1,1) -> 72786500 | D129: =OFFSET(InputPriceData!C$15,CalculationsAndCharts!$A129+$A$11,IF($C$7,8,0),1,1) -> 204.01 | E129: =OFFSET(InputPriceData!D$15,CalculationsAndCharts!$A129+$A$11,IF($C$7,8,0),1,1) -> 205.06 | F129: =OFFSET(InputPriceData!E$15,CalculationsAndCharts!$A129+$A$11,IF($C$7,8,0),1,1) -> 203.84 | G129: =OFFSET(InputPriceData!F$15,CalculationsAndCharts!$A129+$A$11,IF($C$7,8,0),1,1) -> 204.98 | H129: 72786500 | J129: 17.21706562 | K129: 0 | L129: 0 | M129: 0 | N129: 0.0009996596423 | O129: 0.01559238178 | P129: 0.02717475164 | Q129: 0.01696634799 | R129: 0.06020889746 | S129: 0.3602298473 | T129: 0.7274977093 | U129: 0.09540309195 | V129: 0.03165844627 | W129: 0.01403838878 | X129: 0.01609535675 | Y129: 0.09790890316 | Z129: 0.3281181546 | AA129: 0.6515787607 | AB129: 0.9104605416 | AC129: 1 | AD129: 0.9285869138 | AE129: 0.7619271327 | AF129: 0.5666505732 | AG129: 0.3881207464 | AH129: 0.2481974756 | AI129: 0.1506806553 | AJ129: 0.08896331163 | AK129: 0.05282865855 | AL129: 0.03282294115 | AM129: 0.02211191403 | AN129: 0.0166015005 | AO129: 0.01424612738 | AP129: 0.01420574963 | AQ129: 0.01617804703 | AR129: 0.01999000855 | AS129: 0.02540972454 | AT129: 0.03210142418 | AU129: 0.03965336857 | AV129: 0.04762989442 | AW129: 0.05562041937 | AX129: 0.06327396971 | AY129: 0.07031725552 | AZ129: 0.07655893615 | BA129: 0.081884251 | BB129: 0.08624406439 | BC129: 0.08964154251 | BD129: 0.09211869231 | BE129: 0.0937441124 | BF129: 0.09460263106 | BG129: 0.09478704127
A130: 98 | B130: =OFFSET(InputPriceData!B$15,CalculationsAndCharts!$A130+$A$11,0,1,1) -> 2015-08-13 | C130: =OFFSET(InputPriceData!G$15,CalculationsAndCharts!$A130+$A$11,IF($C$7,8,0),1,1) -> 89383300 | D130: =OFFSET(InputPriceData!C$15,CalculationsAndCharts!$A130+$A$11,IF($C$7,8,0),1,1) -> 204.3 | E130: =OFFSET(InputPriceData!D$15,CalculationsAndCharts!$A130+$A$11,IF($C$7,8,0),1,1) -> 205.1 | F130: =OFFSET(InputPriceData!E$15,CalculationsAndCharts!$A130+$A$11,IF($C$7,8,0),1,1) -> 203.6 | G130: =OFFSET(InputPriceData!F$15,CalculationsAndCharts!$A130+$A$11,IF($C$7,8,0),1,1) -> 204.23 | I130: 89383300 | J130: 17.24913379 | K130: 0 | L130: 0 | M130: 0 | N130: 0.0007013860741 | O130: 0.01548874717 | P130: 0.02634551923 | Q130: 0.01647754522 | R130: 0.05768528909 | S130: 0.3586225382 | T130: 0.7021976714 | U130: 0.08814735808 | V130: 0.03116992109 | W130: 0.01380637567 | X130: 0.01483448679 | Y130: 0.09561574199 | Z130: 0.3261761566 | AA130: 0.6505936304 | AB130: 0.9101754948 | AC130: 1 | AD130: 0.9285958587 | AE130: 0.7618383259 | AF130: 0.5664724488 | AG130: 0.3879078644 | AH130: 0.2480013694 | AI130: 0.1505297331 | AJ130: 0.08886337059 | AK130: 0.05277172543 | AL130: 0.0327961944 | AM130: 0.02210345294 | AN130: 0.01660283881 | AO130: 0.01425247122 | AP130: 0.01421519094 | AQ130: 0.01619046568 | AR130: 0.02000610573 | AS130: 0.0254303424 | AT130: 0.03212715536 | AU130: 0.0396843935 | AV130: 0.04766596959 | AW130: 0.05566094962 | AX130: 0.06331811517 | AY130: 0.07036404183 | AZ130: 0.07660735061 | BA130: 0.08193331719 | BB130: 0.08629289413 | BC130: 0.0896893674 | BD130: 0.09216487863 | BE130: 0.09378816346 | BF130: 0.09464418079 | BG130: 0.09482584229
A131: 99 | B131: =OFFSET(InputPriceData!B$15,CalculationsAndCharts!$A131+$A$11,0,1,1) -> 2015-08-12 | C131: =OFFSET(InputPriceData!G$15,CalculationsAndCharts!$A131+$A$11,IF($C$7,8,0),1,1) -> 172123700 | D131: =OFFSET(InputPriceData!C$15,CalculationsAndCharts!$A131+$A$11,IF($C$7,8,0),1,1) -> 202.71 | E131: =OFFSET(InputPriceData!D$15,CalculationsAndCharts!$A131+$A$11,IF($C$7,8,0),1,1) -> 204.7 | F131: =OFFSET(InputPriceData!E$15,CalculationsAndCharts!$A131+$A$11,IF($C$7,8,0),1,1) -> 201 | G131: =OFFSET(InputPriceData!F$15,CalculationsAndCharts!$A131+$A$11,IF($C$7,8,0),1,1) -> 204.49 | H131: 172123700 | J131: 17.28946599 | K131: 0 | L131: 0 | M131: 0 | N131: 0.0005969603758 | O131: 0.01532643358 | P131: 0.0252955864 | Q131: 0.01564745603 | R131: 0.05422909857 | S131: 0.3531655992 | T131: 0.6813502109 | U131: 0.07838689579 | V131: 0.02903502488 | W131: 0.01374399367 | X131: 0.01253781791 | Y131: 0.0852691995 | Z131: 0.3124078874 | AA131: 0.6413804515 | AB131: 0.9067729094 | AC131: 1 | AD131: 0.9298107363 | AE131: 0.7631263536 | AF131: 0.5674179909 | AG131: 0.3884674877 | AH131: 0.2482779067 | AI131: 0.1506460338 | AJ131: 0.08890878944 | AK131: 0.05279435264 | AL131: 0.03281489394 | AM131: 0.02212247263 | AN131: 0.01662179335 | AO131: 0.0142709783 | AP131: 0.01423396212 | AQ131: 0.01621081442 | AR131: 0.02002914964 | AS131: 0.02545647113 | AT131: 0.03215588045 | AU131: 0.03971448732 | AV131: 0.04769574988 | AW131: 0.05568858974 | AX131: 0.06334190663 | AY131: 0.070382577 | AZ131: 0.0766196225 | BA131: 0.08193874907 | BB131: 0.08629131765 | BC131: 0.08968096833 | BD131: 0.09215012611 | BE131: 0.09376773491 | BF131: 0.09461889048 | BG131: 0.09479657845
A132: 100 | B132: =OFFSET(InputPriceData!B$15,CalculationsAndCharts!$A132+$A$11,0,1,1) -> 2015-08-11 | C132: =OFFSET(InputPriceData!G$15,CalculationsAndCharts!$A132+$A$11,IF($C$7,8,0),1,1) -> 126081400 | D132: =OFFSET(InputPriceData!C$15,CalculationsAndCharts!$A132+$A$11,IF($C$7,8,0),1,1) -> 204.54 | E132: =OFFSET(InputPriceData!D$15,CalculationsAndCharts!$A132+$A$11,IF($C$7,8,0),1,1) -> 205.02 | F132: =OFFSET(InputPriceData!E$15,CalculationsAndCharts!$A132+$A$11,IF($C$7,8,0),1,1) -> 203.35 | G132: =OFFSET(InputPriceData!F$15,CalculationsAndCharts!$A132+$A$11,IF($C$7,8,0),1,1) -> 204.23 | I132: 126081400 | J132: 17.60736216 | K132: 0 | L132: 0 | M132: 0 | N132: 0.0005630200289 | O132: 0.01284325586 | P132: 0.0192926904 | Q132: 0.008050675844 | R132: 0.03055780052 | S132: 0.3111032077 | T132: 0.5333034448 | U132: 0.06088452049 | V132: 0.01980990373 | W132: 0.01417459396 | X132: 0.009669202654 | Y132: 0.05376746662 | Z132: 0.2478538544 | AA132: 0.582917268 | AB132: 0.8794400277 | AC132: 1 | AD132: 0.9435251664 | AE132: 0.7800517055 | AF132: 0.5824812757 | AG132: 0.4002446847 | AH132: 0.25699037 | AI132: 0.1569645751 | AJ132: 0.09346515829 | AK132: 0.0560734319 | AL132: 0.03518198818 | AM132: 0.02386630349 | AN132: 0.0179785865 | AO132: 0.01543196785 | AP132: 0.01534660643 | AQ132: 0.01738076334 | AR132: 0.0213252467 | AS132: 0.02691813716 | AT132: 0.03380125438 | AU132: 0.0415478924 | AV132: 0.04971365794 | AW132: 0.05788383772 | AX132: 0.06570631203 | AY132: 0.07290829228 | AZ132: 0.079299614 | BA132: 0.08476674538 | BB132: 0.08926149513 | BC132: 0.09278755801 | BD132: 0.09538705423 | BE132: 0.09712835401 | BF132: 0.0980958199 | BG132: 0.0983816496
A133: 101 | B133: =OFFSET(InputPriceData!B$15,CalculationsAndCharts!$A133+$A$11,0,1,1) -> 2015-08-10 | C133: =OFFSET(InputPriceData!G$15,CalculationsAndCharts!$A133+$A$11,IF($C$7,8,0),1,1) -> 80270700 | D133: =OFFSET(InputPriceData!C$15,CalculationsAndCharts!$A133+$A$11,IF($C$7,8,0),1,1) -> 204.84 | E133: =OFFSET(InputPriceData!D$15,CalculationsAndCharts!$A133+$A$11,IF($C$7,8,0),1,1) -> 206.2 | F133: =OFFSET(InputPriceData!E$15,CalculationsAndCharts!$A133+$A$11,IF($C$7,8,0),1,1) -> 204.84 | G133: =OFFSET(InputPriceData!F$15,CalculationsAndCharts!$A133+$A$11,IF($C$7,8,0),1,1) -> 206.1 | H133: 80270700 | J133: 17.90229763 | K133: 0 | L133: 0 | M133: 0 | N133: 0.0005469662267 | O133: 0.0108661501 | P133: 0.01763289239 | Q133: 0.004009089264 | R133: 0.01973070948 | S133: 0.2734061036 | T133: 0.4368139478 | U133: 0.05327390423 | V133: 0.01053280788 | W133: 0.01502286577 | X133: 0.008657017259 | Y133: 0.02620111846 | Z133: 0.1807958555 | AA133: 0.516064783 | AB133: 0.8456818741 | AC133: 1 | AD133: 0.963248533 | AE133: 0.8063804096 | AF133: 0.6076164147 | AG133: 0.420859684 | AH133: 0.2724254841 | AI133: 0.1678271608 | AJ133: 0.1007902527 | AK133: 0.06089805388 | AL133: 0.03836964786 | AM133: 0.02606426754 | AN133: 0.01963660216 | AO133: 0.01684344333 | AP133: 0.01669265468 | AQ133: 0.01876831667 | AR133: 0.02281623671 | AS133: 0.02854972269 | AT133: 0.03559848023 | AU133: 0.04353064077 | AV133: 0.05189971572 | AW133: 0.06028960758 | AX133: 0.06834631229 | AY133: 0.07579422062 | AZ133: 0.08243944214 | BA133: 0.08816408245 | BB133: 0.0929153021 | BC133: 0.09669220143 | BD133: 0.09953263834 | BE133: 0.1015012519 | BF133: 0.1026793247 | BG133: 0.1031566769
A134: 102 | B134: =OFFSET(InputPriceData!B$15,CalculationsAndCharts!$A134+$A$11,0,1,1) -> 2015-08-07 | C134: =OFFSET(InputPriceData!G$15,CalculationsAndCharts!$A134+$A$11,IF($C$7,8,0),1,1) -> 117858000 | D134: =OFFSET(InputPriceData!C$15,CalculationsAndCharts!$A134+$A$11,IF($C$7,8,0),1,1) -> 203.74 | E134: =OFFSET(InputPriceData!D$15,CalculationsAndCharts!$A134+$A$11,IF($C$7,8,0),1,1) -> 203.92 | F134: =OFFSET(InputPriceData!E$15,CalculationsAndCharts!$A134+$A$11,IF($C$7,8,0),1,1) -> 202.48 | G134: =OFFSET(InputPriceData!F$15,CalculationsAndCharts!$A134+$A$11,IF($C$7,8,0),1,1) -> 203.54 | I134: 117858000 | J134: 18.14149452 | K134: 0 | L134: 0 | M134: 0 | N134: 0.0005546058832 | O134: 0.01230279932 | P134: 0.01080443915 | Q134: 0.003786805471 | R134: 0.0190439863 | S134: 0.2795092714 | T134: 0.3562115527 | U134: 0.05317902688 | V134: 0.009742809037 | W134: 0.01540903643 | X134: 0.009644552089 | Y134: 0.02291582962 | Z134: 0.1600841618 | AA134: 0.4800588893 | AB134: 0.8179357624 | AC134: 1 | AD134: 0.9923227179 | AE134: 0.8527198544 | AF134: 0.6570143878 | AG134: 0.463596071 | AH134: 0.3046882299 | AI134: 0.1900079724 | AJ134: 0.1151723148 | AK134: 0.07001642316 | AL134: 0.04425402485 | AM134: 0.03009246482 | AN134: 0.02266859267 | AO134: 0.01941479655 | AP134: 0.01916674206 | AQ134: 0.02142480065 | AR134: 0.02588867659 | AS134: 0.03223355701 | AT134: 0.04004693749 | AU134: 0.04884930065 | AV134: 0.05814456487 | AW134: 0.06746963684 | AX134: 0.07642978159 | AY134: 0.08471707133 | AZ134: 0.09211439515 | BA134: 0.09848931702 | BB134: 0.1037820276 | BC134: 0.1079907943 | BD134: 0.1111572812 | BE134: 0.1133531792 | BF134: 0.1146688707 | BG134: 0.1152043543
A135: 103 | B135: =OFFSET(InputPriceData!B$15,CalculationsAndCharts!$A135+$A$11,0,1,1) -> 2015-08-06 | C135: =OFFSET(InputPriceData!G$15,CalculationsAndCharts!$A135+$A$11,IF($C$7,8,0),1,1) -> 116030800 | D135: =OFFSET(InputPriceData!C$15,CalculationsAndCharts!$A135+$A$11,IF($C$7,8,0),1,1) -> 205.83 | E135: =OFFSET(InputPriceData!D$15,CalculationsAndCharts!$A135+$A$11,IF($C$7,8,0),1,1) -> 205.95 | F135: =OFFSET(InputPriceData!E$15,CalculationsAndCharts!$A135+$A$11,IF($C$7,8,0),1,1) -> 203.24 | G135: =OFFSET(InputPriceData!F$15,CalculationsAndCharts!$A135+$A$11,IF($C$7,8,0),1,1) -> 203.93 | I135: 116030800 | J135: 21.29886346 | K135: 0 | L135: 0 | M135: 0 | N135: 0.0003394903408 | O135: 0.01429503501 | P135: 0.009495574606 | Q135: 0.004107053126 | R135: 0.01982292845 | S135: 0.3020067247 | T135: 0.2624083906 | U135: 0.05393158399 | V135: 0.008323112572 | W135: 0.0154429596 | X135: 0.01170195417 | Y135: 0.01762696676 | Z135: 0.107617586 | AA135: 0.3589878102 | AB135: 0.6832480949 | AC135: 0.9241145962 | AD135: 1 | AE135: 0.9209524682 | AF135: 0.7475447861 | AG135: 0.547572995 | AH135: 0.3692656741 | AI135: 0.2341828377 | AJ135: 0.1433768396 | AK135: 0.08759850643 | AL135: 0.05544570185 | AM135: 0.03763697106 | AN135: 0.02816959248 | AO135: 0.02381602209 | AP135: 0.02311088979 | AQ135: 0.02544616844 | AR135: 0.03048002005 | AS135: 0.03784405496 | AT135: 0.04705562671 | AU135: 0.05753980456 | AV135: 0.06869194625 | AW135: 0.07994092617 | AX135: 0.09079526144 | AY135: 0.1008680597 | AZ135: 0.1098835981 | BA135: 0.1176708144 | BB135: 0.1241490481 | BC135: 0.1293103573 | BD135: 0.1332014558 | BE135: 0.1359071379 | BF135: 0.1375361496 | BG135: 0.1382098291
A136: 104 | B136: =OFFSET(InputPriceData!B$15,CalculationsAndCharts!$A136+$A$11,0,1,1) -> 2015-08-05 | C136: =OFFSET(InputPriceData!G$15,CalculationsAndCharts!$A136+$A$11,IF($C$7,8,0),1,1) -> 85786800 | D136: =OFFSET(InputPriceData!C$15,CalculationsAndCharts!$A136+$A$11,IF($C$7,8,0),1,1) -> 205.98 | E136: =OFFSET(InputPriceData!D$15,CalculationsAndCharts!$A136+$A$11,IF($C$7,8,0),1,1) -> 206.83 | F136: =OFFSET(InputPriceData!E$15,CalculationsAndCharts!$A136+$A$11,IF($C$7,8,0),1,1) -> 205.28 | G136: =OFFSET(InputPriceData!F$15,CalculationsAndCharts!$A136+$A$11,IF($C$7,8,0),1,1) -> 205.61 | I136: 85786800 | J136: 23.36093196 | K136: 0 | L136: 0 | M136: 0 | N136: 0.0004077168864 | O136: 0.01462866869 | P136: 0.009875526417 | Q136: 0.003231405711 | R136: 0.01595369694 | S136: 0.3579274906 | T136: 0.1700780489 | U136: 0.04172198536 | V136: 0.008288525373 | W136: 0.01360153221 | X136: 0.01320872386 | Y136: 0.01389709744 | Z136: 0.05661275381 | AA136: 0.2085768157 | AB136: 0.48133907 | AC136: 0.7826155553 | AD136: 0.9791139709 | AE136: 1 | AF136: 0.8701457804 | AG136: 0.6665904387 | AH136: 0.4621526875 | AI136: 0.2978339614 | AJ136: 0.1838308329 | AK136: 0.1125734713 | AL136: 0.0710242212 | AM136: 0.04769770866 | AN136: 0.03496306237 | AO136: 0.02870663796 | AP136: 0.027098815 | AQ136: 0.02942024085 | AR136: 0.03528175743 | AS136: 0.04423822119 | AT136: 0.05567605989 | AU136: 0.06884709689 | AV136: 0.08295575325 | AW136: 0.09724607716 | AX136: 0.1110650378 | AY136: 0.1238969135 | AZ136: 0.1353727732 | BA136: 0.1452622733 | BB136: 0.1534549924 | BC136: 0.1599371248 | BD136: 0.1647676117 | BE136: 0.1680562093 | BF136: 0.1699447739 | BG136: 0.1705921967
A137: 105 | B137: =OFFSET(InputPriceData!B$15,CalculationsAndCharts!$A137+$A$11,0,1,1) -> 2015-08-04 | C137: =OFFSET(InputPriceData!G$15,CalculationsAndCharts!$A137+$A$11,IF($C$7,8,0),1,1) -> 81820800 | D137: =OFFSET(InputPriceData!C$15,CalculationsAndCharts!$A137+$A$11,IF($C$7,8,0),1,1) -> 205.25 | E137: =OFFSET(InputPriceData!D$15,CalculationsAndCharts!$A137+$A$11,IF($C$7,8,0),1,1) -> 205.79 | F137: =OFFSET(InputPriceData!E$15,CalculationsAndCharts!$A137+$A$11,IF($C$7,8,0),1,1) -> 204.37 | G137: =OFFSET(InputPriceData!F$15,CalculationsAndCharts!$A137+$A$11,IF($C$7,8,0),1,1) -> 204.94 | I137: 81820800 | J137: 24.93600153 | K137: 0 | L137: 0 | M137: 0 | N137: 0.0005162768895 | O137: 0.01477690486 | P137: 0.01150921993 | Q137: 0.002397936662 | R137: 0.01056063567 | S137: 0.3969372577 | T137: 0.09225438797 | U137: 0.02470532443 | V137: 0.009899795767 | W137: 0.01428129409 | X137: 0.01453136137 | Y137: 0.01295097735 | Z137: 0.02925808574 | AA137: 0.1008968571 | AB137: 0.2936336616 | AC137: 0.5980617291 | AD137: 0.8784529897 | AE137: 1 | AF137: 0.9369639562 | AG137: 0.755797583 | AH137: 0.5435789068 | AI137: 0.3595566728 | AJ137: 0.2259043389 | AK137: 0.1398217288 | AL137: 0.08858427638 | AM137: 0.05932799368 | AN137: 0.04295679983 | AO137: 0.03438176786 | AP137: 0.03129897234 | AQ137: 0.03283129711 | AR137: 0.03856338898 | AS137: 0.04803633473 | AT137: 0.06058262013 | AU137: 0.07535220236 | AV137: 0.09141426673 | AW137: 0.1078652091 | AX137: 0.1239105512 | AY137: 0.1389121742 | AZ137: 0.1524045411 | BA137: 0.1640882641 | BB137: 0.1738097958 | BC137: 0.181534518 | BD137: 0.1873184324 | BE137: 0.1912817234 | BF137: 0.1935859348 | BG137: 0.1944154225
A138: 106 | B138: =OFFSET(InputPriceData!B$15,CalculationsAndCharts!$A138+$A$11,0,1,1) -> 2015-08-03 | C138: =OFFSET(InputPriceData!G$15,CalculationsAndCharts!$A138+$A$11,IF($C$7,8,0),1,1) -> 113965700 | D138: =OFFSET(InputPriceData!C$15,CalculationsAndCharts!$A138+$A$11,IF($C$7,8,0),1,1) -> 205.99 | E138: =OFFSET(InputPriceData!D$15,CalculationsAndCharts!$A138+$A$11,IF($C$7,8,0),1,1) -> 206.06 | F138: =OFFSET(InputPriceData!E$15,CalculationsAndCharts!$A138+$A$11,IF($C$7,8,0),1,1) -> 204.22 | G138: =OFFSET(InputPriceData!F$15,CalculationsAndCharts!$A138+$A$11,IF($C$7,8,0),1,1) -> 205.34 | I138: 113965700 | J138: 25.05483509 | K138: 0 | L138: 0 | M138: 0 | N138: 0.0004658250787 | O138: 0.0139737896 | P138: 0.01167929507 | Q138: 0.002181917178 | R138: 0.009614315164 | S138: 0.3951970444 | T138: 0.08109576762 | U138: 0.0221625756 | V138: 0.009858060302 | W138: 0.01448455878 | X138: 0.01477375414 | Y138: 0.01204053025 | Z138: 0.02104645962 | AA138: 0.07761279006 | AB138: 0.2596092243 | AC138: 0.5679997492 | AD138: 0.8631897686 | AE138: 1 | AF138: 0.946180858 | AG138: 0.7676618488 | AH138: 0.5540481302 | AI138: 0.3672399987 | AJ138: 0.2309867091 | AK138: 0.1430311897 | AL138: 0.09061147871 | AM138: 0.0606368631 | AN138: 0.04380338166 | AO138: 0.03489746078 | AP138: 0.03156492938 | AQ138: 0.03292190842 | AR138: 0.03856198282 | AS138: 0.04803386762 | AT138: 0.06066927776 | AU138: 0.07560835625 | AV138: 0.09190391332 | AW138: 0.1086327453 | AX138: 0.1249805122 | AY138: 0.14029108 | AZ138: 0.1540839517 | BA138: 0.1660483044 | BB138: 0.1760226273 | BC138: 0.1839674433 | BD138: 0.189936477 | BE138: 0.1940496536 | BF138: 0.1964697412 | BG138: 0.1973833348
A139: 107 | B139: =OFFSET(InputPriceData!B$15,CalculationsAndCharts!$A139+$A$11,0,1,1) -> 2015-07-31 | C139: =OFFSET(InputPriceData!G$15,CalculationsAndCharts!$A139+$A$11,IF($C$7,8,0),1,1) -> 103266900 | D139: =OFFSET(InputPriceData!C$15,CalculationsAndCharts!$A139+$A$11,IF($C$7,8,0),1,1) -> 206.93 | E139: =OFFSET(InputPriceData!D$15,CalculationsAndCharts!$A139+$A$11,IF($C$7,8,0),1,1) -> 206.96 | F139: =OFFSET(InputPriceData!E$15,CalculationsAndCharts!$A139+$A$11,IF($C$7,8,0),1,1) -> 205.7 | G139: =OFFSET(InputPriceData!F$15,CalculationsAndCharts!$A139+$A$11,IF($C$7,8,0),1,1) -> 206.03 | I139: 103266900 | J139: 24.94875574 | K139: 0 | L139: 0 | M139: 0 | N139: 0.0005940864999 | O139: 0.01628373075 | P139: 0.00827821681 | Q139: 0.002506375664 | R139: 0.007597578697 | S139: 0.4461734218 | T139: 0.07775333178 | U139: 0.01559744275 | V139: 0.0118743119 | W139: 0.01869467701 | X139: 0.01759771914 | Y139: 0.01295037114 | Z139: 0.02003656635 | AA139: 0.06609702636 | AB139: 0.2273206691 | AC139: 0.522774867 | AD139: 0.830068133 | AE139: 1 | AF139: 0.9822131955 | AG139: 0.8274181924 | AH139: 0.6207014237 | AI139: 0.4278331679 | AJ139: 0.2792691402 | AK139: 0.1783166773 | AL139: 0.1152520557 | AM139: 0.07781481303 | AN139: 0.05623447115 | AO139: 0.04436528302 | AP139: 0.03897304254 | AQ139: 0.03856704265 | AR139: 0.04243417103 | AS139: 0.0500499647 | AT139: 0.06081485153 | AU139: 0.07399889596 | AV139: 0.08878935018 | AW139: 0.1043695337 | AX139: 0.1199902992 | AY139: 0.1350185726 | AZ139: 0.1489610126 | BA139: 0.161467219 | BB139: 0.1723188813 | BC139: 0.1814109069 | BD139: 0.1887292735 | BE139: 0.1943288769 | BF139: 0.1983133547 | BG139: 0.2008178791
A140: 108 | B140: =OFFSET(InputPriceData!B$15,CalculationsAndCharts!$A140+$A$11,0,1,1) -> 2015-07-30 | C140: =OFFSET(InputPriceData!G$15,CalculationsAndCharts!$A140+$A$11,IF($C$7,8,0),1,1) -> 91304400 | D140: =OFFSET(InputPriceData!C$15,CalculationsAndCharts!$A140+$A$11,IF($C$7,8,0),1,1) -> 205.7 | E140: =OFFSET(InputPriceData!D$15,CalculationsAndCharts!$A140+$A$11,IF($C$7,8,0),1,1) -> 206.54 | F140: =OFFSET(InputPriceData!E$15,CalculationsAndCharts!$A140+$A$11,IF($C$7,8,0),1,1) -> 204.98 | G140: =OFFSET(InputPriceData!F$15,CalculationsAndCharts!$A140+$A$11,IF($C$7,8,0),1,1) -> 206.35 | H140: 91304400 | J140: 23.99075501 | K140: 0 | L140: 0 | M140: 0 | N140: 0.0007417002704 | O140: 0.01527157026 | P140: 0.007028708075 | Q140: 0.00321788882 | R140: 0.007628741801 | S140: 0.4851400725 | T140: 0.06367733272 | U140: 0.009648057285 | V140: 0.01396823405 | W140: 0.02494260198 | X140: 0.02151189258 | Y140: 0.01132746878 | Z140: 0.01405646312 | AA140: 0.04625686066 | AB140: 0.1825044573 | AC140: 0.4588526595 | AD140: 0.772144399 | AE140: 0.9746686585 | AF140: 1 | AG140: 0.8802052422 | AH140: 0.6907680463 | AI140: 0.4982406643 | AJ140: 0.3394806665 | AK140: 0.2247180508 | AL140: 0.1489173488 | AM140: 0.1017992517 | AN140: 0.07360798914 | AO140: 0.05725356843 | AP140: 0.0483796039 | AQ140: 0.04462434435 | AR140: 0.04479441354 | AS140: 0.04824135672 | AT140: 0.05448933492 | AU140: 0.06306179839 | AV140: 0.07343335682 | AW140: 0.08504513011 | AX140: 0.09734253204 | AY140: 0.1098127654 | AZ140: 0.1220121276 | BA140: 0.1335808354 | BB140: 0.1442468768 | BC140: 0.1538218014 | BD140: 0.1621914612 | BE140: 0.1693042286 | BF140: 0.1751585447 | BG140: 0.1797910234
A141: 109 | B141: =OFFSET(InputPriceData!B$15,CalculationsAndCharts!$A141+$A$11,0,1,1) -> 2015-07-29 | C141: =OFFSET(InputPriceData!G$15,CalculationsAndCharts!$A141+$A$11,IF($C$7,8,0),1,1) -> 105791300 | D141: =OFFSET(InputPriceData!C$15,CalculationsAndCharts!$A141+$A$11,IF($C$7,8,0),1,1) -> 205.03 | E141: =OFFSET(InputPriceData!D$15,CalculationsAndCharts!$A141+$A$11,IF($C$7,8,0),1,1) -> 206.56 | F141: =OFFSET(InputPriceData!E$15,CalculationsAndCharts!$A141+$A$11,IF($C$7,8,0),1,1) -> 204.87 | G141: =OFFSET(InputPriceData!F$15,CalculationsAndCharts!$A141+$A$11,IF($C$7,8,0),1,1) -> 206.3 | H141: 105791300 | J141: 21.67293771 | K141: 0 | L141: 0 | M141: 0 | N141: 0.0007278559198 | O141: 0.01331416299 | P141: 0.00626581477 | Q141: 0.003805577627 | R141: 0.008708540318 | S141: 0.4703919323 | T141: 0.03630389862 | U141: 0.006693660231 | V141: 0.01571428434 | W141: 0.03120973319 | X141: 0.02485371574 | Y141: 0.005665569143 | Z141: 0.002124093294 | AA141: 0.02200214295 | AB141: 0.1399684694 | AC141: 0.4035333367 | AD141: 0.720227733 | AE141: 0.9440407385 | AF141: 1 | AG141: 0.9080609369 | AH141: 0.7356467114 | AI141: 0.5479155798 | AJ141: 0.3850172169 | AK141: 0.261849435 | AL141: 0.1770969322 | AM141: 0.1224456497 | AN141: 0.08858279291 | AO141: 0.06796623898 | AP141: 0.0554845944 | AQ141: 0.04810335687 | AR141: 0.04421045989 | AS141: 0.04301405968 | AT141: 0.04411207092 | AU141: 0.04723498396 | AV141: 0.0521196838 | AW141: 0.05846630162 | AX141: 0.06593958568 | AY141: 0.07418891758 | AZ141: 0.08287192168 | BA141: 0.09167427864 | BB141: 0.1003231087 | BC141: 0.1085938823 | BD141: 0.1163119946 | BE141: 0.1233504941 | BF141: 0.1296253778 | BG141: 0.1350896099
A142: 110 | B142: =OFFSET(InputPriceData!B$15,CalculationsAndCharts!$A142+$A$11,0,1,1) -> 2015-07-28 | C142: =OFFSET(InputPriceData!G$15,CalculationsAndCharts!$A142+$A$11,IF($C$7,8,0),1,1) -> 123544800 | D142: =OFFSET(InputPriceData!C$15,CalculationsAndCharts!$A142+$A$11,IF($C$7,8,0),1,1) -> 203.38 | E142: =OFFSET(InputPriceData!D$15,CalculationsAndCharts!$A142+$A$11,IF($C$7,8,0),1,1) -> 205.05 | F142: =OFFSET(InputPriceData!E$15,CalculationsAndCharts!$A142+$A$11,IF($C$7,8,0),1,1) -> 202.41 | G142: =OFFSET(InputPriceData!F$15,CalculationsAndCharts!$A142+$A$11,IF($C$7,8,0),1,1) -> 204.89 | H142: 123544800 | J142: 21.68391581 | K142: 0 | L142: 0 | M142: 0 | N142: 0.0006106146434 | O142: 0.01330261871 | P142: 0.004897371099 | Q142: 0.003742915038 | R142: 0.008653812789 | S142: 0.4652379134 | T142: 0.03613258021 | U142: 0.006309163239 | V142: 0.01551897384 | W142: 0.03120845198 | X142: 0.02471748802 | Y142: 0.005510614489 | Z142: 0.002090465847 | AA142: 0.02201972722 | AB142: 0.1400745597 | AC142: 0.4036883052 | AD142: 0.7203162738 | AE142: 0.9440428903 | AF142: 1 | AG142: 0.9081451206 | AH142: 0.7358391569 | AI142: 0.5481839254 | AJ142: 0.3853086655 | AK142: 0.262120245 | AL142: 0.1773239799 | AM142: 0.1226245274 | AN142: 0.08872045666 | AO142: 0.06807380309 | AP142: 0.05557257841 | AQ142: 0.04817952488 | AR142: 0.04427948834 | AS142: 0.04307815747 | AT142: 0.04417189706 | AU142: 0.04729048703 | AV142: 0.0521707073 | AW142: 0.05851293477 | AX142: 0.06598230493 | AY142: 0.07422858444 | AZ142: 0.08290969853 | BA142: 0.09171151015 | BB142: 0.1003612008 | BC142: 0.1086341973 | BD142: 0.1163557707 | BE142: 0.1233987909 | BF142: 0.1296790456 | BG142: 0.1351492798
A143: 111 | B143: =OFFSET(InputPriceData!B$15,CalculationsAndCharts!$A143+$A$11,0,1,1) -> 2015-07-27 | C143: =OFFSET(InputPriceData!G$15,CalculationsAndCharts!$A143+$A$11,IF($C$7,8,0),1,1) -> 132361100 | D143: =OFFSET(InputPriceData!C$15,CalculationsAndCharts!$A143+$A$11,IF($C$7,8,0),1,1) -> 202.55 | E143: =OFFSET(InputPriceData!D$15,CalculationsAndCharts!$A143+$A$11,IF($C$7,8,0),1,1) -> 203.15 | F143: =OFFSET(InputPriceData!E$15,CalculationsAndCharts!$A143+$A$11,IF($C$7,8,0),1,1) -> 201.88 | G143: =OFFSET(InputPriceData!F$15,CalculationsAndCharts!$A143+$A$11,IF($C$7,8,0),1,1) -> 202.4 | I143: 132361100 | J143: 21.65814068 | K143: 0 | L143: 0 | M143: 0 | N143: 0.0004898710303 | O143: 0.01231825151 | P143: 0.002392412041 | Q143: 0.003401134309 | R143: 0.009786334131 | S143: 0.3794589754 | T143: 0.03591486675 | U143: 0.004012947407 | V143: 0.0177729412 | W143: 0.03643740981 | X143: 0.02701677967 | Y143: 0.005527646572 | Z143: 0.00128938776 | AA143: 0.01526570117 | AB143: 0.1174955942 | AC143: 0.3660823804 | AD143: 0.6827153939 | AE143: 0.9222923514 | AF143: 1 | AG143: 0.9259774993 | AH143: 0.7633989073 | AI143: 0.5780548039 | AJ143: 0.4128163919 | AK143: 0.285271782 | AL143: 0.1959009169 | AM143: 0.1372605021 | AN143: 0.1002744014 | AO143: 0.0773093945 | AP143: 0.06304833205 | AQ143: 0.05425081728 | AR143: 0.04914438852 | AS143: 0.04683005021 | AT143: 0.04684326634 | AU143: 0.04888400016 | AV143: 0.05267894997 | AW143: 0.05792971846 | AX143: 0.06430837874 | AY143: 0.07147393313 | AZ143: 0.07909391122 | BA143: 0.08686314622 | BB143: 0.09451669279 | BC143: 0.1018365859 | BD143: 0.1086534248 | BE143: 0.1148441857 | BF143: 0.120327633 | BG143: 0.1250584637
A144: 112 | B144: =OFFSET(InputPriceData!B$15,CalculationsAndCharts!$A144+$A$11,0,1,1) -> 2015-07-24 | C144: =OFFSET(InputPriceData!G$15,CalculationsAndCharts!$A144+$A$11,IF($C$7,8,0),1,1) -> 117755000 | D144: =OFFSET(InputPriceData!C$15,CalculationsAndCharts!$A144+$A$11,IF($C$7,8,0),1,1) -> 205.84 | E144: =OFFSET(InputPriceData!D$15,CalculationsAndCharts!$A144+$A$11,IF($C$7,8,0),1,1) -> 205.91 | F144: =OFFSET(InputPriceData!E$15,CalculationsAndCharts!$A144+$A$11,IF($C$7,8,0),1,1) -> 203.19 | G144: =OFFSET(InputPriceData!F$15,CalculationsAndCharts!$A144+$A$11,IF($C$7,8,0),1,1) -> 203.59 | I144: 117755000 | J144: 21.48186838 | K144: 0 | L144: 0 | M144: 0 | N144: 0.0004978739214 | O144: 0.01127794371 | P144: 0.00205937243 | Q144: 0.002689284317 | R144: 0.0115126956 | S144: 0.2862325004 | T144: 0.03952408677 | U144: 0.002398140106 | V144: 0.01990540471 | W144: 0.04367505901 | X144: 0.03096496849 | Y144: 0.006253727042 | Z144: 0.001242828316 | AA144: 0.01134738834 | AB144: 0.1003981691 | AC144: 0.3344108609 | AD144: 0.6490529561 | AE144: 0.9019354515 | AF144: 1 | AG144: 0.9440061252 | AH144: 0.7924419618 | AI144: 0.6110247573 | AJ144: 0.444782394 | AK144: 0.313708561 | AL144: 0.2200407411 | AM144: 0.1573182085 | AN144: 0.1168680387 | AO144: 0.09112250503 | AP144: 0.07467330299 | AQ144: 0.06413922336 | AR144: 0.05760964419 | AS144: 0.05407028855 | AT144: 0.05296858873 | AU144: 0.0539415649 | AV144: 0.05667390751 | AW144: 0.06084186578 | AX144: 0.06610500645 | AY144: 0.07211944095 | AZ144: 0.0785567207 | BA144: 0.08512037372 | BB144: 0.09155699308 | BC144: 0.09766153639 | BD144: 0.1032777839 | BE144: 0.1082953217 | BF144: 0.1126443785 | BG144: 0.1162896102
A145: 113 | B145: =OFFSET(InputPriceData!B$15,CalculationsAndCharts!$A145+$A$11,0,1,1) -> 2015-07-23 | C145: =OFFSET(InputPriceData!G$15,CalculationsAndCharts!$A145+$A$11,IF($C$7,8,0),1,1) -> 90509100 | D145: =OFFSET(InputPriceData!C$15,CalculationsAndCharts!$A145+$A$11,IF($C$7,8,0),1,1) -> 207.04 | E145: =OFFSET(InputPriceData!D$15,CalculationsAndCharts!$A145+$A$11,IF($C$7,8,0),1,1) -> 207.16 | F145: =OFFSET(InputPriceData!E$15,CalculationsAndCharts!$A145+$A$11,IF($C$7,8,0),1,1) -> 205.3 | G145: =OFFSET(InputPriceData!F$15,CalculationsAndCharts!$A145+$A$11,IF($C$7,8,0),1,1) -> 205.72 | I145: 90509100 | J145: 21.88677355 | K145: 0 | L145: 0 | M145: 0 | N145: 0.0005731087269 | O145: 0.01074774374 | P145: 0.002103296914 | Q145: 0.002212612768 | R145: 0.01434365842 | S145: 0.2263640333 | T145: 0.04426958902 | U145: 0.001473172362 | V145: 0.02024637112 | W145: 0.05505685782 | X145: 0.03847230502 | Y145: 0.007760528313 | Z145: 0.001625488799 | AA145: 0.01169743797 | AB145: 0.09878461561 | AC145: 0.327760281 | AD145: 0.6382996425 | AE145: 0.8930844329 | AF145: 1 | AG145: 0.9566530874 | AH145: 0.8172816187 | AI145: 0.644637579 | AJ145: 0.4827426107 | AK145: 0.3520819999 | AL145: 0.2561005682 | AM145: 0.1896299125 | AN145: 0.1450270488 | AO145: 0.115381788 | AP145: 0.09560285462 | AQ145: 0.08237700783 | AR145: 0.07371149792 | AS145: 0.06844113557 | AT145: 0.0658498221 | AU145: 0.06543127845 | AV145: 0.06676214539 | AW145: 0.06944902374 | AX145: 0.0731165352 | AY145: 0.07741365288 | AZ145: 0.08202487097 | BA145: 0.08667954774 | BB145: 0.09115698594 | BC145: 0.0952871117 | BD145: 0.098947642 | BE145: 0.1020589221 | BF145: 0.1045775318 | BG145: 0.1064895266
A146: 114 | B146: =OFFSET(InputPriceData!B$15,CalculationsAndCharts!$A146+$A$11,0,1,1) -> 2015-07-22 | C146: =OFFSET(InputPriceData!G$15,CalculationsAndCharts!$A146+$A$11,IF($C$7,8,0),1,1) -> 88667900 | D146: =OFFSET(InputPriceData!C$15,CalculationsAndCharts!$A146+$A$11,IF($C$7,8,0),1,1) -> 206.45 | E146: =OFFSET(InputPriceData!D$15,CalculationsAndCharts!$A146+$A$11,IF($C$7,8,0),1,1) -> 207.28 | F146: =OFFSET(InputPriceData!E$15,CalculationsAndCharts!$A146+$A$11,IF($C$7,8,0),1,1) -> 206.41 | G146: =OFFSET(InputPriceData!F$15,CalculationsAndCharts!$A146+$A$11,IF($C$7,8,0),1,1) -> 206.88 | H146: 88667900 | J146: 22.5127309 | K146: 0 | L146: 0 | M146: 0 | N146: 0.0006661635993 | O146: 0.009274223677 | P146: 0.001424326823 | Q146: 0.001952808782 | R146: 0.01926123079 | S146: 0.1812553948 | T146: 0.04904334301 | U146: 0.0008124603094 | V146: 0.01975352336 | W146: 0.07576212272 | X146: 0.05217003651 | Y146: 0.01017179672 | Z146: 0.0023596353 | AA146: 0.01493292051 | AB146: 0.1102558561 | AC146: 0.3431609856 | AD146: 0.6466747055 | AE146: 0.8923874513 | AF146: 1 | AG146: 0.9697566293 | AH146: 0.8500072937 | AI146: 0.6956496611 | AJ146: 0.5456418829 | AK146: 0.4192441414 | AL146: 0.3213280197 | AM146: 0.2491608219 | AN146: 0.1973711312 | AO146: 0.1606262447 | AP146: 0.1346555151 | AQ146: 0.1163785755 | AR146: 0.1036764544 | AS146: 0.0950961221 | AT146: 0.0896074858 | AU146: 0.08643955603 | AV146: 0.08498388537 | AW146: 0.08474353322 | AX146: 0.08530824343 | AY146: 0.08634241395 | AZ146: 0.08757795966 | BA146: 0.08880814816 | BB146: 0.08988092507 | BC146: 0.09069152659 | BD146: 0.09117472067 | BE146: 0.09129714936 | BF146: 0.09105018103 | BG146: 0.09044354868
A147: 115 | B147: =OFFSET(InputPriceData!B$15,CalculationsAndCharts!$A147+$A$11,0,1,1) -> 2015-07-21 | C147: =OFFSET(InputPriceData!G$15,CalculationsAndCharts!$A147+$A$11,IF($C$7,8,0),1,1) -> 77965000 | D147: =OFFSET(InputPriceData!C$15,CalculationsAndCharts!$A147+$A$11,IF($C$7,8,0),1,1) -> 207.92 | E147: =OFFSET(InputPriceData!D$15,CalculationsAndCharts!$A147+$A$11,IF($C$7,8,0),1,1) -> 208.23 | F147: =OFFSET(InputPriceData!E$15,CalculationsAndCharts!$A147+$A$11,IF($C$7,8,0),1,1) -> 206.9 | G147: =OFFSET(InputPriceData!F$15,CalculationsAndCharts!$A147+$A$11,IF($C$7,8,0),1,1) -> 207.27 | I147: 77965000 | J147: 23.69718835 | K147: 0 | L147: 0 | M147: 0 | N147: 0.0008872369409 | O147: 0.006068304517 | P147: 0.001302928065 | Q147: 0.001743154787 | R147: 0.02371050179 | S147: 0.1226812208 | T147: 0.0583879823 | U147: 0.000705812792 | V147: 0.0216845485 | W147: 0.1036874082 | X147: 0.06870894065 | Y147: 0.01303406131 | Z147: 0.003465953138 | AA147: 0.0191750179 | AB147: 0.1218540021 | AC147: 0.3527755315 | AD147: 0.6434789528 | AE147: 0.881792644 | AF147: 1 | AG147: 0.996097174 | AH147: 0.9071985827 | AI147: 0.7776427381 | AJ147: 0.6413251701 | AK147: 0.5176921781 | AL147: 0.4146552871 | AM147: 0.333110184 | AN147: 0.2706037847 | AO147: 0.223607175 | AP147: 0.1886607322 | AQ147: 0.1628202134 | AR147: 0.1437446889 | AS147: 0.1296354576 | AT147: 0.1191331326 | AU147: 0.1112184879 | AV147: 0.1051313205 | AW147: 0.1003081927 | AX147: 0.09633558315 | AY147: 0.09291449229 | AZ147: 0.08983332032 | BA147: 0.08694677577 | BB147: 0.08415931284 | BC147: 0.08141208956 | BD147: 0.07867274021 | BE147: 0.07592743274 | BF147: 0.07317478881 | BG147: 0.07042131417
A148: 116 | B148: =OFFSET(InputPriceData!B$15,CalculationsAndCharts!$A148+$A$11,0,1,1) -> 2015-07-20 | C148: =OFFSET(InputPriceData!G$15,CalculationsAndCharts!$A148+$A$11,IF($C$7,8,0),1,1) -> 70446800 | D148: =OFFSET(InputPriceData!C$15,CalculationsAndCharts!$A148+$A$11,IF($C$7,8,0),1,1) -> 208.23 | E148: =OFFSET(InputPriceData!D$15,CalculationsAndCharts!$A148+$A$11,IF($C$7,8,0),1,1) -> 208.66 | F148: =OFFSET(InputPriceData!E$15,CalculationsAndCharts!$A148+$A$11,IF($C$7,8,0),1,1) -> 207.71 | G148: =OFFSET(InputPriceData!F$15,CalculationsAndCharts!$A148+$A$11,IF($C$7,8,0),1,1) -> 208.08 | I148: 70446800 | J148: 23.69988102 | K148: 0 | L148: 0 | M148: 0 | N148: 0.0003753151 | O148: 0.006043208226 | P148: 0.001224552765 | Q148: 0.00162092384 | R148: 0.02370276054 | S148: 0.1141865961 | T148: 0.05838407076 | U148: 0.0005096672135 | V148: 0.02078986488 | W148: 0.1033584092 | X148: 0.0686834971 | Y148: 0.01304106221 | Z148: 0.003469767093 | AA148: 0.01916433412 | AB148: 0.1217806032 | AC148: 0.3526012214 | AD148: 0.6432500524 | AE148: 0.8816242974 | AF148: 1 | AG148: 0.9963116925 | AH148: 0.907607521 | AI148: 0.7781856091 | AJ148: 0.6419314555 | AK148: 0.5183020589 | AL148: 0.4152283489 | AM148: 0.3336254045 | AN148: 0.2710551389 | AO148: 0.2239981234 | AP148: 0.1889993975 | AQ148: 0.1631159225 | AR148: 0.1440058935 | AS148: 0.1298687526 | AT148: 0.1193430197 | AU148: 0.1114075762 | AV148: 0.10530073 | AW148: 0.10045801 | AX148: 0.09646528339 | AY148: 0.09302328355 | AZ148: 0.08992040036 | BA148: 0.08701150498 | BB148: 0.08420131669 | BC148: 0.08143130578 | BD148: 0.07866942594 | BE148: 0.07590214463 | BF148: 0.07312834667 | BG148: 0.07035475608
A149: 117 | B149: =OFFSET(InputPriceData!B$15,CalculationsAndCharts!$A149+$A$11,0,1,1) -> 2015-07-17 | C149: =OFFSET(InputPriceData!G$15,CalculationsAndCharts!$A149+$A$11,IF($C$7,8,0),1,1) -> 89030000 | D149: =OFFSET(InputPriceData!C$15,CalculationsAndCharts!$A149+$A$11,IF($C$7,8,0),1,1) -> 207.78 | E149: =OFFSET(InputPriceData!D$15,CalculationsAndCharts!$A149+$A$11,IF($C$7,8,0),1,1) -> 208.04 | F149: =OFFSET(InputPriceData!E$15,CalculationsAndCharts!$A149+$A$11,IF($C$7,8,0),1,1) -> 207.31 | G149: =OFFSET(InputPriceData!F$15,CalculationsAndCharts!$A149+$A$11,IF($C$7,8,0),1,1) -> 207.96 | H149: 89030000 | J149: 23.63753915 | K149: 0 | L149: 0 | M149: 0 | N149: 0.000414324679 | O149: 0.006671170175 | P149: 0.0008420102944 | Q149: 0.002099094644 | R149: 0.02326819319 | S149: 0.1014580914 | T149: 0.07127693893 | U149: 0.0006322850291 | V149: 0.02589434755 | W149: 0.1242234527 | X149: 0.07570403988 | Y149: 0.01353705566 | Z149: 0.004476219831 | AA149: 0.02380832102 | AB149: 0.1382038625 | AC149: 0.3763279041 | AD149: 0.6613106675 | AE149: 0.888251018 | AF149: 1 | AG149: 0.9981688448 | AH149: 0.9169688878 | AI149: 0.7960117778 | AJ149: 0.6658919729 | AK149: 0.5449123262 | AL149: 0.4413457008 | AM149: 0.3570627063 | AN149: 0.2905923174 | AO149: 0.2391346019 | AP149: 0.1996739438 | AQ149: 0.1694931924 | AR149: 0.1463475366 | AS149: 0.1284708532 | AT149: 0.1145137575 | AU149: 0.103463743 | AV149: 0.09456967366 | AW149: 0.08727839322 | AX149: 0.08118455658 | AY149: 0.07599217472 | AZ149: 0.07148566397 | BA149: 0.06750827516 | BB149: 0.06394612305 | BC149: 0.06071641516 | BD149: 0.05775880978 | BE149: 0.05502909728 | BF149: 0.05249460153 | BG149: 0.05013085135
A150: 118 | B150: =OFFSET(InputPriceData!B$15,CalculationsAndCharts!$A150+$A$11,0,1,1) -> 2015-07-16 | C150: =OFFSET(InputPriceData!G$15,CalculationsAndCharts!$A150+$A$11,IF($C$7,8,0),1,1) -> 106683300 | D150: =OFFSET(InputPriceData!C$15,CalculationsAndCharts!$A150+$A$11,IF($C$7,8,0),1,1) -> 207.37 | E150: =OFFSET(InputPriceData!D$15,CalculationsAndCharts!$A150+$A$11,IF($C$7,8,0),1,1) -> 207.79 | F150: =OFFSET(InputPriceData!E$15,CalculationsAndCharts!$A150+$A$11,IF($C$7,8,0),1,1) -> 207.09 | G150: =OFFSET(InputPriceData!F$15,CalculationsAndCharts!$A150+$A$11,IF($C$7,8,0),1,1) -> 207.79 | H150: 106683300 | J150: 23.28296575 | K150: 0 | L150: 0 | M150: 0 | N150: 0.0002828865521 | O150: 0.0061645461 | P150: 0.0004217064148 | Q150: 0.002693472357 | R150: 0.02238884073 | S150: 0.09135280147 | T150: 0.08128979563 | U150: 0.0007714237022 | V150: 0.02962089051 | W150: 0.1376220662 | X150: 0.08007704331 | Y150: 0.01532562636 | Z150: 0.005763748035 | AA150: 0.02780177672 | AB150: 0.1475730155 | AC150: 0.3860442082 | AD150: 0.6659127203 | AE150: 0.8879818406 | AF150: 0.9989411466 | AG150: 1 | AH150: 0.9228948456 | AI150: 0.8050553411 | AJ150: 0.6760896528 | AK150: 0.5543295803 | AL150: 0.4485806864 | AM150: 0.3613368466 | AN150: 0.2916306413 | AO150: 0.2369912144 | AP150: 0.1945818279 | AQ150: 0.1617621941 | AR150: 0.1363063209 | AS150: 0.1164394664 | AT150: 0.1007938129 | AU150: 0.08833690688 | AV150: 0.07829894049 | AW150: 0.07010948717 | AX150: 0.06334653906 | AY150: 0.05769723446 | AZ150: 0.05292841439 | BA150: 0.04886493515 | BB150: 0.04537387723 | BC150: 0.04235313232 | BD150: 0.03972319138 | BE150: 0.03742124856 | BF150: 0.03539696814 | BG150: 0.03360943966
A151: 119 | B151: =OFFSET(InputPriceData!B$15,CalculationsAndCharts!$A151+$A$11,0,1,1) -> 2015-07-15 | C151: =OFFSET(InputPriceData!G$15,CalculationsAndCharts!$A151+$A$11,IF($C$7,8,0),1,1) -> 97914100 | D151: =OFFSET(InputPriceData!C$15,CalculationsAndCharts!$A151+$A$11,IF($C$7,8,0),1,1) -> 206.26 | E151: =OFFSET(InputPriceData!D$15,CalculationsAndCharts!$A151+$A$11,IF($C$7,8,0),1,1) -> 206.8 | F151: =OFFSET(InputPriceData!E$15,CalculationsAndCharts!$A151+$A$11,IF($C$7,8,0),1,1) -> 205.58 | G151: =OFFSET(InputPriceData!F$15,CalculationsAndCharts!$A151+$A$11,IF($C$7,8,0),1,1) -> 206.14 | I151: 97914100 | J151: 23.09917784 | K151: 0 | L151: 0 | M151: 0 | N151: 0.000116985935 | O151: 0.005281282458 | P151: 0.0004418479267 | Q151: 0.003261431147 | R151: 0.02037246266 | S151: 0.08671233328 | T151: 0.07608065665 | U151: 0.0008506482774 | V151: 0.02806767927 | W151: 0.1304607181 | X151: 0.08039540689 | Y151: 0.01818793139 | Z151: 0.007140137763 | AA151: 0.0285344604 | AB151: 0.1431425031 | AC151: 0.3752369422 | AD151: 0.6537574103 | AE151: 0.8796995927 | AF151: 0.9958202211 | AG151: 1 | AH151: 0.9230137606 | AI151: 0.8030231075 | AJ151: 0.6708840735 | AK151: 0.5459584896 | AL151: 0.4376402642 | AM151: 0.3486292241 | AN151: 0.2779251918 | AO151: 0.2229137878 | AP151: 0.180587408 | AQ151: 0.1481507711 | AR151: 0.1232551614 | AS151: 0.104037096 | AT151: 0.08906919517 | AU151: 0.07728191992 | AV151: 0.06788446432 | AW151: 0.06029624977 | AX151: 0.05409201269 | AY151: 0.04895972467 | AZ151: 0.04466924654 | BA151: 0.04104940975 | BB151: 0.03797146974 | BC151: 0.03533726211 | BD151: 0.0330707738 | BE151: 0.03111216544 | BF151: 0.02941353801 | BG151: 0.02793593249
A152: 120 | B152: =OFFSET(InputPriceData!B$15,CalculationsAndCharts!$A152+$A$11,0,1,1) -> 2015-07-14 | C152: =OFFSET(InputPriceData!G$15,CalculationsAndCharts!$A152+$A$11,IF($C$7,8,0),1,1) -> 81709600 | D152: =OFFSET(InputPriceData!C$15,CalculationsAndCharts!$A152+$A$11,IF($C$7,8,0),1,1) -> 205.27 | E152: =OFFSET(InputPriceData!D$15,CalculationsAndCharts!$A152+$A$11,IF($C$7,8,0),1,1) -> 206.57 | F152: =OFFSET(InputPriceData!E$15,CalculationsAndCharts!$A152+$A$11,IF($C$7,8,0),1,1) -> 205.2 | G152: =OFFSET(InputPriceData!F$15,CalculationsAndCharts!$A152+$A$11,IF($C$7,8,0),1,1) -> 206.21 | H152: 81709600 | J152: 23.19056889 | K152: 0 | L152: 0 | M152: 0 | N152: 7.063160488e-05 | O152: 0.004145171754 | P152: 0.0005181737723 | Q152: 0.003821207532 | R152: 0.0192817588 | S152: 0.07856498547 | T152: 0.05574273075 | U152: 0.0008443295672 | V152: 0.02165257074 | W152: 0.1073809814 | X152: 0.08011816948 | Y152: 0.02208661434 | Z152: 0.008740571015 | AA152: 0.02652974365 | AB152: 0.1323143149 | AC152: 0.3602909609 | AD152: 0.6437879959 | AE152: 0.8777443034 | AF152: 0.9979091925 | AG152: 1 | AH152: 0.9166962183 | AI152: 0.789266678 | AJ152: 0.6509448132 | AK152: 0.5221976864 | AL152: 0.412505938 | AM152: 0.3241012405 | AN152: 0.2553388867 | AO152: 0.2030045559 | AP152: 0.1636270744 | AQ152: 0.1340977341 | AR152: 0.1118819957 | AS152: 0.09502489496 | AT152: 0.08207057571 | AU152: 0.07195925987 | AV152: 0.06393050708 | AW152: 0.05744310054 | AX152: 0.05211302581 | AY152: 0.04766738823 | AZ152: 0.04391108288 | BA152: 0.04070313321 | BB152: 0.0379401193 | BC152: 0.03554469019 | BD152: 0.03345766465 | BE152: 0.03163263448 | BF152: 0.03003229569 | BG152: 0.02862596193
A153: 121 | B153: =OFFSET(InputPriceData!B$15,CalculationsAndCharts!$A153+$A$11,0,1,1) -> 2015-07-13 | C153: =OFFSET(InputPriceData!G$15,CalculationsAndCharts!$A153+$A$11,IF($C$7,8,0),1,1) -> 106069400 | D153: =OFFSET(InputPriceData!C$15,CalculationsAndCharts!$A153+$A$11,IF($C$7,8,0),1,1) -> 204.55 | E153: =OFFSET(InputPriceData!D$15,CalculationsAndCharts!$A153+$A$11,IF($C$7,8,0),1,1) -> 205.45 | F153: =OFFSET(InputPriceData!E$15,CalculationsAndCharts!$A153+$A$11,IF($C$7,8,0),1,1) -> 204.51 | G153: =OFFSET(InputPriceData!F$15,CalculationsAndCharts!$A153+$A$11,IF($C$7,8,0),1,1) -> 205.31 | H153: 106069400 | J153: 23.0700714 | K153: 0 | L153: 0 | M153: 0 | N153: 5.075388461e-05 | O153: 0.00217177643 | P153: 0.0006298330636 | Q153: 0.004458081569 | R153: 0.0168559006 | S153: 0.07471068063 | T153: 0.03122067531 | U153: 0.0009558812209 | V153: 0.01256797353 | W153: 0.07810787427 | X153: 0.0779988416 | Y153: 0.02635234982 | Z153: 0.01056031264 | AA153: 0.02408084936 | AB153: 0.1163317595 | AC153: 0.3336392864 | AD153: 0.61920976 | AE153: 0.8637791876 | AF153: 0.9939194817 | AG153: 1 | AH153: 0.914504502 | AI153: 0.781183014 | AJ153: 0.6360100725 | AK153: 0.5013159645 | AL153: 0.3874240735 | AM153: 0.2966752596 | AN153: 0.2271455281 | AO153: 0.1752077248 | AP153: 0.136989129 | AQ153: 0.1090533233 | AR153: 0.08862599014 | AS153: 0.07359127253 | AT153: 0.06239430441 | AU153: 0.05392086999 | AV153: 0.04738613584 | AW153: 0.04224351805 | AX153: 0.03811483831 | AY153: 0.03473896379 | AZ153: 0.03193507858 | BA153: 0.02957694291 | BB153: 0.02757513266 | BC153: 0.02586494378 | BD153: 0.0243982505 | BE153: 0.02313808543 | BF153: 0.02205507067 | BG153: 0.02112509262
A154: 122 | B154: =OFFSET(InputPriceData!B$15,CalculationsAndCharts!$A154+$A$11,0,1,1) -> 2015-07-10 | C154: =OFFSET(InputPriceData!G$15,CalculationsAndCharts!$A154+$A$11,IF($C$7,8,0),1,1) -> 129456900 | D154: =OFFSET(InputPriceData!C$15,CalculationsAndCharts!$A154+$A$11,IF($C$7,8,0),1,1) -> 202.89 | E154: =OFFSET(InputPriceData!D$15,CalculationsAndCharts!$A154+$A$11,IF($C$7,8,0),1,1) -> 203.57 | F154: =OFFSET(InputPriceData!E$15,CalculationsAndCharts!$A154+$A$11,IF($C$7,8,0),1,1) -> 200.6 | G154: =OFFSET(InputPriceData!F$15,CalculationsAndCharts!$A154+$A$11,IF($C$7,8,0),1,1) -> 203.08 | H154: 129456900 | J154: 23.14140637 | K154: 0 | L154: 0 | M154: 0 | N154: 4.402595337e-05 | O154: 0.001589596528 | P154: 0.0007172963565 | Q154: 0.004630777386 | R154: 0.01749288243 | S154: 0.07174669274 | T154: 0.01314865003 | U154: 0.0009518894137 | V154: 0.005918414921 | W154: 0.03961674749 | X154: 0.0651175191 | Y154: 0.02907602827 | Z154: 0.01199172352 | AA154: 0.01985387224 | AB154: 0.08959894798 | AC154: 0.2829571215 | AD154: 0.5636659247 | AE154: 0.8229903687 | AF154: 0.9753070656 | AG154: 1 | AH154: 0.9250585411 | AI154: 0.7947770872 | AJ154: 0.6477134108 | AK154: 0.5087913138 | AL154: 0.3901482052 | AM154: 0.2951129098 | AN154: 0.222152583 | AO154: 0.1676861756 | AP154: 0.1277269716 | AQ154: 0.09867472037 | AR154: 0.07759647617 | AS154: 0.06224452581 | AT154: 0.05096308238 | AU154: 0.04256452783 | AV154: 0.03621238201 | AW154: 0.03132448058 | AX154: 0.02749841437 | AY154: 0.0244565934 | AZ154: 0.02200695333 | BA154: 0.0200154439 | BB154: 0.01838708111 | BC154: 0.01705307425 | BD154: 0.01596218577 | BE154: 0.01507499781 | BF154: 0.01436014944 | BG154: 0.01379189313
A155: 123 | B155: =OFFSET(InputPriceData!B$15,CalculationsAndCharts!$A155+$A$11,0,1,1) -> 2015-07-09 | C155: =OFFSET(InputPriceData!G$15,CalculationsAndCharts!$A155+$A$11,IF($C$7,8,0),1,1) -> 144113100 | D155: =OFFSET(InputPriceData!C$15,CalculationsAndCharts!$A155+$A$11,IF($C$7,8,0),1,1) -> 202.65 | E155: =OFFSET(InputPriceData!D$15,CalculationsAndCharts!$A155+$A$11,IF($C$7,8,0),1,1) -> 202.95 | F155: =OFFSET(InputPriceData!E$15,CalculationsAndCharts!$A155+$A$11,IF($C$7,8,0),1,1) -> 200.42 | G155: =OFFSET(InputPriceData!F$15,CalculationsAndCharts!$A155+$A$11,IF($C$7,8,0),1,1) -> 200.55 | I155: 144113100 | J155: 23.16892823 | K155: 0 | L155: 0 | M155: 0 | N155: 3.233825778e-05 | O155: 0.001722400283 | P155: 0.0007052906533 | Q155: 0.005059082569 | R155: 0.01717882248 | S155: 0.06957996537 | T155: 0.01117821183 | U155: 0.0006358345748 | V155: 0.005642904984 | W155: 0.03479054725 | X155: 0.06306880512 | Y155: 0.03107820299 | Z155: 0.01335818929 | AA155: 0.02094749068 | AB155: 0.08666956594 | AC155: 0.2730303195 | AD155: 0.5500796627 | AE155: 0.8116277788 | AF155: 0.9696348185 | AG155: 1 | AH155: 0.928746223 | AI155: 0.7999110921 | AJ155: 0.6526910998 | AK155: 0.5128086546 | AL155: 0.3930034887 | AM155: 0.2969406796 | AN155: 0.2232164328 | AO155: 0.1682560811 | AP155: 0.1280236514 | AQ155: 0.09885508923 | AR155: 0.07775946668 | AS155: 0.06244431674 | AT155: 0.0512229627 | AU155: 0.0428885385 | AV155: 0.03659398638 | AW155: 0.03175248015 | AX155: 0.02796066547 | AY155: 0.02494211786 | AZ155: 0.02250695238 | BA155: 0.02052360913 | BB155: 0.01889948736 | BC155: 0.01756785071 | BD155: 0.01647909378 | BE155: 0.01559499558 | BF155: 0.01488498969 | BG155: 0.0143237773
A156: 124 | B156: =OFFSET(InputPriceData!B$15,CalculationsAndCharts!$A156+$A$11,0,1,1) -> 2015-07-08 | C156: =OFFSET(InputPriceData!G$15,CalculationsAndCharts!$A156+$A$11,IF($C$7,8,0),1,1) -> 164020100 | D156: =OFFSET(InputPriceData!C$15,CalculationsAndCharts!$A156+$A$11,IF($C$7,8,0),1,1) -> 202.04 | E156: =OFFSET(InputPriceData!D$15,CalculationsAndCharts!$A156+$A$11,IF($C$7,8,0),1,1) -> 202.37 | F156: =OFFSET(InputPriceData!E$15,CalculationsAndCharts!$A156+$A$11,IF($C$7,8,0),1,1) -> 199.92 | G156: =OFFSET(InputPriceData!F$15,CalculationsAndCharts!$A156+$A$11,IF($C$7,8,0),1,1) -> 200.19 | I156: 164020100 | J156: 23.23965668 | K156: 0 | L156: 0 | M156: 0 | N156: 3.176713594e-05 | O156: 0.001222509617 | P156: 0.0006884455091 | Q156: 0.005834284063 | R156: 0.01890935957 | S156: 0.06505949318 | T156: 0.009514186747 | U156: 0.000704812216 | V156: 0.005416310354 | W156: 0.02540697374 | X156: 0.05762796344 | Y156: 0.03384162098 | Z156: 0.01557896729 | AA156: 0.02297567926 | AB156: 0.0827790284 | AC156: 0.257501796 | AD156: 0.5273706625 | AE156: 0.7915587868 | AF156: 0.9590299936 | AG156: 1 | AH156: 0.9366950192 | AI156: 0.8120969351 | AJ156: 0.666044824 | AK156: 0.5254320461 | AL156: 0.4040298381 | AM156: 0.3061824471 | AN156: 0.2308400965 | AO156: 0.1745600891 | AP156: 0.1333147766 | AQ156: 0.1033935664 | AR156: 0.08174402429 | AS156: 0.06601662176 | AT156: 0.05447928251 | AU156: 0.0458923369 | AV156: 0.03938674965 | AW156: 0.03436198155 | AX156: 0.03040677151 | AY156: 0.02724057784 | AZ156: 0.02467167785 | BA156: 0.02256789662 | BB156: 0.02083654716 | BC156: 0.01941091167 | BD156: 0.01824127504 | BE156: 0.01728907298 | BF156: 0.01652313814 | BG156: 0.01591733651
A157: 125 | B157: =OFFSET(InputPriceData!B$15,CalculationsAndCharts!$A157+$A$11,0,1,1) -> 2015-07-07 | C157: =OFFSET(InputPriceData!G$15,CalculationsAndCharts!$A157+$A$11,IF($C$7,8,0),1,1) -> 173820200 | D157: =OFFSET(InputPriceData!C$15,CalculationsAndCharts!$A157+$A$11,IF($C$7,8,0),1,1) -> 202.57 | E157: =OFFSET(InputPriceData!D$15,CalculationsAndCharts!$A157+$A$11,IF($C$7,8,0),1,1) -> 203.75 | F157: =OFFSET(InputPriceData!E$15,CalculationsAndCharts!$A157+$A$11,IF($C$7,8,0),1,1) -> 199.78 | G157: =OFFSET(InputPriceData!F$15,CalculationsAndCharts!$A157+$A$11,IF($C$7,8,0),1,1) -> 203.6 | H157: 173820200 | J157: 23.43991592 | K157: 0 | L157: 0 | M157: 0 | N157: 4.289139476e-05 | O157: 0.001530514519 | P157: 0.0008602493556 | Q157: 0.007365733494 | R157: 0.021629928 | S157: 0.07994805018 | T157: 0.009511078366 | U157: 0.000801726431 | V157: 0.006930769285 | W157: 0.02980387738 | X157: 0.06464576719 | Y157: 0.03915470982 | Z157: 0.02087219605 | AA157: 0.0310154852 | AB157: 0.1021226827 | AC157: 0.2888891425 | AD157: 0.558853532 | AE157: 0.8115091009 | AF157: 0.9657658591 | AG157: 1 | AH157: 0.9381310913 | AI157: 0.8203206692 | AJ157: 0.6825447513 | AK157: 0.5488960916 | AL157: 0.4319017115 | AM157: 0.335844791 | AN157: 0.2602260441 | AO157: 0.2023201511 | AP157: 0.1587369456 | AQ157: 0.1262320854 | AR157: 0.1020465428 | AS157: 0.08398777156 | AT157: 0.07038814932 | AU157: 0.06001731494 | AV157: 0.0519872115 | AW157: 0.04566692403 | AX157: 0.04061298873 | AY157: 0.03651541023 | AZ157: 0.03315738808 | BA157: 0.0303861162 | BB157: 0.02809210852 | BC157: 0.02619487186 | BD157: 0.02463318132 | BE157: 0.02335861701 | BF157: 0.02233136266 | BG157: 0.02151753862
A158: 126 | B158: =OFFSET(InputPriceData!B$15,CalculationsAndCharts!$A158+$A$11,0,1,1) -> 2015-07-06 | C158: =OFFSET(InputPriceData!G$15,CalculationsAndCharts!$A158+$A$11,IF($C$7,8,0),1,1) -> 117975400 | D158: =OFFSET(InputPriceData!C$15,CalculationsAndCharts!$A158+$A$11,IF($C$7,8,0),1,1) -> 201.4 | E158: =OFFSET(InputPriceData!D$15,CalculationsAndCharts!$A158+$A$11,IF($C$7,8,0),1,1) -> 203.24 | F158: =OFFSET(InputPriceData!E$15,CalculationsAndCharts!$A158+$A$11,IF($C$7,8,0),1,1) -> 201.17 | G158: =OFFSET(InputPriceData!F$15,CalculationsAndCharts!$A158+$A$11,IF($C$7,8,0),1,1) -> 202.33 | H158: 117975400 | J158: 23.85742213 | K158: 0 | L158: 0 | M158: 0 | N158: 7.16592937e-05 | O158: 0.002003739307 | P158: 0.001185819237 | Q158: 0.01175506195 | R158: 0.02964607201 | S158: 0.1103757181 | T158: 0.009680990176 | U158: 0.001250352732 | V158: 0.01114179471 | W158: 0.03830958095 | X158: 0.08003142561 | Y158: 0.0547482038 | Z158: 0.03511849356 | AA158: 0.05176045546 | AB158: 0.1448533871 | AC158: 0.3482688758 | AD158: 0.6101533106 | AE158: 0.8378549086 | AF158: 0.9708365213 | AG158: 1 | AH158: 0.9488135284 | AI158: 0.8498983363 | AJ158: 0.7313315522 | AK158: 0.6122690187 | AL158: 0.503557808 | AM158: 0.4099914755 | AN158: 0.3325641888 | AO158: 0.2701856236 | AP158: 0.2208195421 | AQ158: 0.1821693124 | AR158: 0.1520508281 | AS158: 0.1285661987 | AT158: 0.110158804 | AU158: 0.09560327951 | AV158: 0.08396428831 | AW158: 0.07454437142 | AX158: 0.06683217764 | AY158: 0.06045665136 | AZ158: 0.0551492836 | BA158: 0.05071456759 | BB158: 0.04700780852 | BC158: 0.04391904032 | BD158: 0.04136174629 | BE158: 0.03926519943 | BF158: 0.03756942962 | BG158: 0.03622203132
A159: 127 | B159: =OFFSET(InputPriceData!B$15,CalculationsAndCharts!$A159+$A$11,0,1,1) -> 2015-07-02 | C159: =OFFSET(InputPriceData!G$15,CalculationsAndCharts!$A159+$A$11,IF($C$7,8,0),1,1) -> 104373700 | D159: =OFFSET(InputPriceData!C$15,CalculationsAndCharts!$A159+$A$11,IF($C$7,8,0),1,1) -> 203.65 | E159: =OFFSET(InputPriceData!D$15,CalculationsAndCharts!$A159+$A$11,IF($C$7,8,0),1,1) -> 203.85 | F159: =OFFSET(InputPriceData!E$15,CalculationsAndCharts!$A159+$A$11,IF($C$7,8,0),1,1) -> 202.42 | G159: =OFFSET(InputPriceData!F$15,CalculationsAndCharts!$A159+$A$11,IF($C$7,8,0),1,1) -> 202.92 | I159: 104373700 | J159: 24.5571089 | K159: 0 | L159: 0 | M159: 0 | N159: 0.0001174012323 | O159: 0.002548225966 | P159: 0.0008460286621 | Q159: 0.018497977 | R159: 0.03912925255 | S159: 0.1333385745 | T159: 0.01372424367 | U159: 0.001895459918 | V159: 0.0185327234 | W159: 0.04398525786 | X159: 0.09395705999 | Y159: 0.08093843424 | Z159: 0.05920142708 | AA159: 0.08315535961 | AB159: 0.1885485348 | AC159: 0.3834699236 | AD159: 0.6174563075 | AE159: 0.8212108075 | AF159: 0.9515500913 | AG159: 1 | AH159: 0.9800302358 | AI159: 0.9129254332 | AJ159: 0.8192803508 | AK159: 0.7154627796 | AL159: 0.6128743053 | AM159: 0.5184694081 | AN159: 0.435723663 | AO159: 0.3656622641 | AP159: 0.3077666663 | AQ159: 0.2606851603 | AR159: 0.2227360631 | AS159: 0.1922278188 | AT159: 0.1676361579 | AU159: 0.1476807201 | AV159: 0.1313380467 | AW159: 0.1178192326 | AX159: 0.106531793 | AY159: 0.09703795451 | AZ159: 0.08901611249 | BA159: 0.0822284997 | BB159: 0.07649584539 | BC159: 0.07167856206 | BD159: 0.06766343562 | BE159: 0.06435464115 | BF159: 0.06166797422 | BG159: 0.05952735631
A160: 128 | B160: =OFFSET(InputPriceData!B$15,CalculationsAndCharts!$A160+$A$11,0,1,1) -> 2015-07-01 | C160: =OFFSET(InputPriceData!G$15,CalculationsAndCharts!$A160+$A$11,IF($C$7,8,0),1,1) -> 135979900 | D160: =OFFSET(InputPriceData!C$15,CalculationsAndCharts!$A160+$A$11,IF($C$7,8,0),1,1) -> 203.32 | E160: =OFFSET(InputPriceData!D$15,CalculationsAndCharts!$A160+$A$11,IF($C$7,8,0),1,1) -> 203.62 | F160: =OFFSET(InputPriceData!E$15,CalculationsAndCharts!$A160+$A$11,IF($C$7,8,0),1,1) -> 202.18 | G160: =OFFSET(InputPriceData!F$15,CalculationsAndCharts!$A160+$A$11,IF($C$7,8,0),1,1) -> 203.1 | I160: 135979900 | J160: 24.56606155 | K160: 0 | L160: 0 | M160: 0 | N160: 0.000100299079 | O160: 0.002563008 | P160: 0.0007467616633 | Q160: 0.01772318791 | R160: 0.03733902606 | S160: 0.1314943775 | T160: 0.01380640482 | U160: 0.001717551804 | V160: 0.01864856805 | W160: 0.04404156404 | X160: 0.09314604312 | Y160: 0.08017280463 | Z160: 0.05888273339 | AA160: 0.08285524005 | AB160: 0.1878252504 | AC160: 0.3819850567 | AD160: 0.6154086808 | AE160: 0.8192924575 | AF160: 0.9504397102 | AG160: 1 | AH160: 0.9810487269 | AI160: 0.9146472106 | AJ160: 0.8213450897 | AK160: 0.7175717299 | AL160: 0.6148259923 | AM160: 0.5201526308 | AN160: 0.4370939732 | AO160: 0.3667174488 | AP160: 0.3085276098 | AQ160: 0.2611831618 | AR160: 0.2230054374 | AS160: 0.1923021004 | AT160: 0.1675464608 | AU160: 0.1474552404 | AV160: 0.1310020878 | AW160: 0.1173954157 | AX160: 0.1060402954 | AY160: 0.09649671691 | AZ160: 0.0884410046 | BA160: 0.08163345443 | BB160: 0.07589297524 | BC160: 0.07107826936 | BD160: 0.06707452431 | BE160: 0.06378443352 | BF160: 0.06112243321 | BG160: 0.05901121176
A161: 129 | B161: =OFFSET(InputPriceData!B$15,CalculationsAndCharts!$A161+$A$11,0,1,1) -> 2015-06-30 | C161: =OFFSET(InputPriceData!G$15,CalculationsAndCharts!$A161+$A$11,IF($C$7,8,0),1,1) -> 182925100 | D161: =OFFSET(InputPriceData!C$15,CalculationsAndCharts!$A161+$A$11,IF($C$7,8,0),1,1) -> 202.86 | E161: =OFFSET(InputPriceData!D$15,CalculationsAndCharts!$A161+$A$11,IF($C$7,8,0),1,1) -> 202.92 | F161: =OFFSET(InputPriceData!E$15,CalculationsAndCharts!$A161+$A$11,IF($C$7,8,0),1,1) -> 200.92 | G161: =OFFSET(InputPriceData!F$15,CalculationsAndCharts!$A161+$A$11,IF($C$7,8,0),1,1) -> 201.48 | H161: =IF(G161>=D161,C161,NA()) ->  | I161: =IF(G161<D161,C161,NA()) -> 182925100 | J161: 24.87235543 | K161: 0 | L161: 0 | M161: 0 | N161: 0.0001294259895 | O161: 0.003019128143 | P161: 0.0008701865636 | Q161: 0.01870097078 | R161: 0.03456895876 | S161: 0.1356382532 | T161: 0.01748504221 | U161: 0.001927148067 | V161: 0.02406116989 | W161: 0.04844131706 | X161: 0.09435218416 | Y161: 0.08778655905 | Z161: 0.06721816205 | AA161: 0.08577252396 | AB161: 0.172482343 | AC161: 0.3358668282 | AD161: 0.5449469082 | AE161: 0.7475009636 | AF161: 0.900696064 | AG161: 0.9846345698 | AH161: 1 | AI161: 0.959928515 | AJ161: 0.8823110357 | AK161: 0.7845234626 | AL161: 0.6806239602 | AM161: 0.5804240695 | AN161: 0.4897355621 | AO161: 0.4111939355 | AP161: 0.3452335497 | AQ161: 0.2909669004 | AR161: 0.2468612726 | AS161: 0.2111972826 | AT161: 0.1823411437 | AU161: 0.1588789637 | AV161: 0.1396601484 | AW161: 0.1237878831 | AX161: 0.1105837278 | AY161: 0.09954363617 | AZ161: 0.09029526624 | BA161: 0.08256134268 | BB161: 0.07613065035 | BC161: 0.07083645608 | BD161: 0.06654131032 | BE161: 0.06312690087 | BF161: 0.06048766422 | BG161: 0.05852703995
A162: 130 | B162: =OFFSET(InputPriceData!B$15,CalculationsAndCharts!$A162+$A$11,0,1,1) -> 2015-06-29 | C162: =OFFSET(InputPriceData!G$15,CalculationsAndCharts!$A162+$A$11,IF($C$7,8,0),1,1) -> 202621300 | D162: =OFFSET(InputPriceData!C$15,CalculationsAndCharts!$A162+$A$11,IF($C$7,8,0),1,1) -> 203.63 | E162: =OFFSET(InputPriceData!D$15,CalculationsAndCharts!$A162+$A$11,IF($C$7,8,0),1,1) -> 205.38 | F162: =OFFSET(InputPriceData!E$15,CalculationsAndCharts!$A162+$A$11,IF($C$7,8,0),1,1) -> 200.97 | G162: =OFFSET(InputPriceData!F$15,CalculationsAndCharts!$A162+$A$11,IF($C$7,8,0),1,1) -> 201.06 | I162: 202621300 | J162: 25.14685146 | K162: 0 | L162: 0 | M162: 0 | N162: 0.0001520016107 | O162: 0.00386391578 | P162: 0.001171081963 | Q162: 0.02316474325 | R162: 0.03835479889 | S162: 0.1511154852 | T162: 0.02244474243 | U162: 0.00257658227 | V162: 0.03267442122 | W162: 0.0578060426 | X162: 0.1007369756 | Y162: 0.09650042545 | Z162: 0.07588170634 | AA162: 0.08957288336 | AB162: 0.1607362989 | AC162: 0.2939867588 | AD162: 0.4724512254 | AE162: 0.6632690961 | AF162: 0.8304630365 | AG162: 0.9467945346 | AH162: 1 | AI162: 0.9925392513 | AJ162: 0.9369500827 | AK162: 0.8499603678 | AL162: 0.7477119174 | AM162: 0.6430160927 | AN162: 0.5444725421 | AO162: 0.4568118553 | AP162: 0.3818078658 | AQ162: 0.3192934996 | AR162: 0.2680287683 | AS162: 0.2263316291 | AT162: 0.1924774181 | AU162: 0.1649144775 | AV162: 0.1423526693 | AW162: 0.1237743412 | AX162: 0.1084046752 | AY162: 0.09566585416 | AZ162: 0.08512946539 | BA162: 0.0764744772 | BB162: 0.06945360829 | BC162: 0.06386832274 | BD162: 0.05955139779 | BE162: 0.05635553471 | BF162: 0.05414645654 | BG162: 0.05279912993
A163: 131 | B163: =OFFSET(InputPriceData!B$15,CalculationsAndCharts!$A163+$A$11,0,1,1) -> 2015-06-26 | C163: =OFFSET(InputPriceData!G$15,CalculationsAndCharts!$A163+$A$11,IF($C$7,8,0),1,1) -> 104174800 | D163: =OFFSET(InputPriceData!C$15,CalculationsAndCharts!$A163+$A$11,IF($C$7,8,0),1,1) -> 205.83 | E163: =OFFSET(InputPriceData!D$15,CalculationsAndCharts!$A163+$A$11,IF($C$7,8,0),1,1) -> 206.11 | F163: =OFFSET(InputPriceData!E$15,CalculationsAndCharts!$A163+$A$11,IF($C$7,8,0),1,1) -> 204.72 | G163: =OFFSET(InputPriceData!F$15,CalculationsAndCharts!$A163+$A$11,IF($C$7,8,0),1,1) -> 205.37 | I163: 104174800 | J163: 24.90345627 | K163: 0 | L163: 0 | M163: 0 | N163: 0.0001714000691 | O163: 0.004287023645 | P163: 0.001632270147 | Q163: 0.03004993903 | R163: 0.04619873805 | S163: 0.1676184279 | T163: 0.02907103864 | U163: 0.003467026392 | V163: 0.04525029484 | W163: 0.07295964374 | X163: 0.1100966651 | Y163: 0.1038240093 | Z163: 0.08609567244 | AA163: 0.102890277 | AB163: 0.176164373 | AC163: 0.3028793232 | AD163: 0.4662054783 | AE163: 0.6435046604 | AF163: 0.8073568864 | AG163: 0.9308429961 | AH163: 0.9962638852 | AI163: 1 | AJ163: 0.9509417362 | AK163: 0.8650416076 | AL163: 0.7595687511 | AM163: 0.6491734292 | AN163: 0.5441714603 | AO163: 0.4505044634 | AP163: 0.3705979836 | AQ163: 0.3044909562 | AR163: 0.2508655117 | AS163: 0.2078223077 | AT163: 0.1733826603 | AU163: 0.1457642918 | AV163: 0.1234967446 | AW163: 0.1054375049 | AX163: 0.09073559117 | AY163: 0.07877404862 | AZ163: 0.06911008291 | BA163: 0.06142241911 | BB163: 0.05546957451 | BC163: 0.05105933096 | BD163: 0.04802799968 | BE163: 0.04622744397 | BF163: 0.04551779671 | BG163: 0.0457640726
A164: 132 | B164: =OFFSET(InputPriceData!B$15,CalculationsAndCharts!$A164+$A$11,0,1,1) -> 2015-06-25 | C164: =OFFSET(InputPriceData!G$15,CalculationsAndCharts!$A164+$A$11,IF($C$7,8,0),1,1) -> 97107400 | D164: =OFFSET(InputPriceData!C$15,CalculationsAndCharts!$A164+$A$11,IF($C$7,8,0),1,1) -> 206.62 | E164: =OFFSET(InputPriceData!D$15,CalculationsAndCharts!$A164+$A$11,IF($C$7,8,0),1,1) -> 206.77 | F164: =OFFSET(InputPriceData!E$15,CalculationsAndCharts!$A164+$A$11,IF($C$7,8,0),1,1) -> 205.32 | G164: =OFFSET(InputPriceData!F$15,CalculationsAndCharts!$A164+$A$11,IF($C$7,8,0),1,1) -> 205.41 | I164: 97107400 | J164: 24.26977646 | K164: 0 | L164: 0 | M164: 0 | N164: 0.0001935111262 | O164: 0.004600622831 | P164: 0.002219637551 | Q164: 0.03650872038 | R164: 0.05095029673 | S164: 0.1649667103 | T164: 0.0380297611 | U164: 0.004277514968 | V164: 0.0604152492 | W164: 0.08146585777 | X164: 0.1102558699 | Y164: 0.1127382467 | Z164: 0.09888200802 | AA164: 0.1145789535 | AB164: 0.1848967059 | AC164: 0.3046915252 | AD164: 0.4611429417 | AE164: 0.6373220423 | AF164: 0.8057894256 | AG164: 0.9344298329 | AH164: 1 | AI164: 0.9964346201 | AJ164: 0.9337077787 | AK164: 0.8309496461 | AL164: 0.7089592121 | AM164: 0.5850960219 | AN164: 0.4711269233 | AO164: 0.3732805849 | AP164: 0.2934524878 | AQ164: 0.2307218293 | AR164: 0.1826958204 | AS164: 0.1464904189 | AT164: 0.1193371321 | AU164: 0.09888911368 | AV164: 0.08332107164 | AW164: 0.07130721652 | AX164: 0.0619399395 | AY164: 0.05463006294 | AZ164: 0.04901192367 | BA164: 0.04486422707 | BB164: 0.04204990519 | BC164: 0.04047395798 | BD164: 0.04005631061 | BE164: 0.04071616909 | BF164: 0.04236455836 | BG164: 0.04490226489
A165: 133 | B165: =OFFSET(InputPriceData!B$15,CalculationsAndCharts!$A165+$A$11,0,1,1) -> 2015-06-24 | C165: =OFFSET(InputPriceData!G$15,CalculationsAndCharts!$A165+$A$11,IF($C$7,8,0),1,1) -> 92307300 | D165: =OFFSET(InputPriceData!C$15,CalculationsAndCharts!$A165+$A$11,IF($C$7,8,0),1,1) -> 207.23 | E165: =OFFSET(InputPriceData!D$15,CalculationsAndCharts!$A165+$A$11,IF($C$7,8,0),1,1) -> 207.67 | F165: =OFFSET(InputPriceData!E$15,CalculationsAndCharts!$A165+$A$11,IF($C$7,8,0),1,1) -> 206 | G165: =OFFSET(InputPriceData!F$15,CalculationsAndCharts!$A165+$A$11,IF($C$7,8,0),1,1) -> 206.04 | I165: 92307300 | J165: 23.72798161 | K165: 0 | L165: 0 | M165: 0 | N165: 0.0002380481807 | O165: 0.003218089471 | P165: 0.002591869724 | Q165: 0.04209458161 | R165: 0.0542698851 | S165: 0.1516142116 | T165: 0.04186032186 | U165: 0.005134700158 | V165: 0.07047247273 | W165: 0.07308138214 | X165: 0.1003284717 | Y165: 0.1173829687 | Z165: 0.1038599814 | AA165: 0.1101860907 | AB165: 0.1675609174 | AC165: 0.2768899638 | AD165: 0.4318505694 | AE165: 0.6163582178 | AF165: 0.7972866603 | AG165: 0.9346884861 | AH165: 1 | AI165: 0.9862780774 | AJ165: 0.9062763707 | AK165: 0.783542971 | AL165: 0.6430649715 | AM165: 0.5050882377 | AN165: 0.3826970049 | AO165: 0.2821206939 | AP165: 0.2044001772 | AQ165: 0.1473601276 | AR165: 0.1072990088 | AS165: 0.08018210377 | AT165: 0.06234645185 | AU165: 0.0508250641 | AV165: 0.04341813121 | AW165: 0.03862106551 | AX165: 0.03548893212 | AY165: 0.0334875918 | AZ165: 0.03235901603 | BA165: 0.0320126034 | BB165: 0.03244482208 | BC165: 0.03368446874 | BD165: 0.03575872165 | BE165: 0.03867477424 | BF165: 0.04241233385 | BG165: 0.04692313385
A166: 134 | B166: =OFFSET(InputPriceData!B$15,CalculationsAndCharts!$A166+$A$11,0,1,1) -> 2015-06-23 | C166: =OFFSET(InputPriceData!G$15,CalculationsAndCharts!$A166+$A$11,IF($C$7,8,0),1,1) -> 68476800 | D166: =OFFSET(InputPriceData!C$15,CalculationsAndCharts!$A166+$A$11,IF($C$7,8,0),1,1) -> 207.64 | E166: =OFFSET(InputPriceData!D$15,CalculationsAndCharts!$A166+$A$11,IF($C$7,8,0),1,1) -> 207.93 | F166: =OFFSET(InputPriceData!E$15,CalculationsAndCharts!$A166+$A$11,IF($C$7,8,0),1,1) -> 207.08 | G166: =OFFSET(InputPriceData!F$15,CalculationsAndCharts!$A166+$A$11,IF($C$7,8,0),1,1) -> 207.55 | I166: 68476800 | J166: 23.72293633 | K166: 0 | L166: 0 | M166: 0 | N166: 0.0002418665417 | O166: 0.003098033267 | P166: 0.00245212737 | Q166: 0.04097409637 | R166: 0.05290669901 | S166: 0.1474685789 | T166: 0.04159029969 | U166: 0.005121800696 | V166: 0.07072154247 | W166: 0.07290874505 | X166: 0.1003918831 | Y166: 0.116235958 | Z166: 0.09935109565 | AA166: 0.1020795343 | AB166: 0.1573490249 | AC166: 0.2665062535 | AD166: 0.4229829192 | AE166: 0.6101213194 | AF166: 0.7939473354 | AG166: 0.9336251539 | AH166: 1 | AI166: 0.9860044533 | AJ166: 0.9046657908 | AK166: 0.780005996 | AL166: 0.6374918986 | AM166: 0.4977337654 | AN166: 0.3740241622 | AO166: 0.2726596932 | AP166: 0.1946478812 | AQ166: 0.137723702 | AR166: 0.09807559339 | AS166: 0.07156260893 | AT166: 0.05443246629 | AU166: 0.04365062449 | AV166: 0.03697110874 | AW166: 0.03286140362 | AX166: 0.03036270676 | AY166: 0.02893692397 | AZ166: 0.02832841047 | BA166: 0.0284524883 | BB166: 0.02931306438 | BC166: 0.03094653783 | BD166: 0.0333870353 | BE166: 0.03664762103 | BF166: 0.04071264444 | BG166: 0.04553727561
A167: 135 | B167: =OFFSET(InputPriceData!B$15,CalculationsAndCharts!$A167+$A$11,0,1,1) -> 2015-06-22 | C167: =OFFSET(InputPriceData!G$15,CalculationsAndCharts!$A167+$A$11,IF($C$7,8,0),1,1) -> 70696000 | D167: =OFFSET(InputPriceData!C$15,CalculationsAndCharts!$A167+$A$11,IF($C$7,8,0),1,1) -> 207.41 | E167: =OFFSET(InputPriceData!D$15,CalculationsAndCharts!$A167+$A$11,IF($C$7,8,0),1,1) -> 208.08 | F167: =OFFSET(InputPriceData!E$15,CalculationsAndCharts!$A167+$A$11,IF($C$7,8,0),1,1) -> 207.15 | G167: =OFFSET(InputPriceData!F$15,CalculationsAndCharts!$A167+$A$11,IF($C$7,8,0),1,1) -> 207.39 | I167: 70696000 | J167: 23.69046597 | K167: 0 | L167: 0 | M167: 0 | N167: 0.0002711279166 | O167: 0.00193044605 | P167: 0.001858933522 | Q167: 0.04095689769 | R167: 0.05181202747 | S167: 0.1391530224 | T167: 0.04463318588 | U167: 0.005574508516 | V167: 0.07348196592 | W167: 0.07909088181 | X167: 0.1159087833 | Y167: 0.1323410359 | Z167: 0.1011735754 | AA167: 0.08185144571 | AB167: 0.1140198905 | AC167: 0.2040454837 | AD167: 0.3518694949 | AE167: 0.5451872093 | AF167: 0.7479419033 | AG167: 0.9119501436 | AH167: 1 | AI167: 0.9998982978 | AJ167: 0.9234477696 | AK167: 0.7963342054 | AL167: 0.646945994 | AM167: 0.4987550784 | AN167: 0.3671565053 | AO167: 0.2596216133 | AP167: 0.1775487582 | AQ167: 0.1185398715 | AR167: 0.07837946063 | AS167: 0.0524425567 | AT167: 0.03653085739 | AU167: 0.0272589195 | AV167: 0.0221398327 | AW167: 0.01950030325 | AX167: 0.01831978568 | AY167: 0.01805373081 | AZ167: 0.01847379895 | BA167: 0.01953920333 | BB167: 0.02130196058 | BC167: 0.02384278339 | BD167: 0.02723181352 | BE167: 0.03150792445 | BF167: 0.03667092542 | BG167: 0.04268204033
A168: 136 | B168: =OFFSET(InputPriceData!B$15,CalculationsAndCharts!$A168+$A$11,0,1,1) -> 2015-06-19 | C168: =OFFSET(InputPriceData!G$15,CalculationsAndCharts!$A168+$A$11,IF($C$7,8,0),1,1) -> 130478700 | D168: =OFFSET(InputPriceData!C$15,CalculationsAndCharts!$A168+$A$11,IF($C$7,8,0),1,1) -> 206.97 | E168: =OFFSET(InputPriceData!D$15,CalculationsAndCharts!$A168+$A$11,IF($C$7,8,0),1,1) -> 207.06 | F168: =OFFSET(InputPriceData!E$15,CalculationsAndCharts!$A168+$A$11,IF($C$7,8,0),1,1) -> 205.9 | G168: =OFFSET(InputPriceData!F$15,CalculationsAndCharts!$A168+$A$11,IF($C$7,8,0),1,1) -> 206.34 | I168: 130478700 | J168: 23.90896341 | K168: 0 | L168: 0 | M168: 0 | N168: 0.0003082752773 | O168: 0.002036043209 | P168: 0.001643647469 | Q168: 0.03472855709 | R168: 0.03545468209 | S168: 0.107293378 | T168: 0.04488345306 | U168: 0.003858778296 | V168: 0.06896686323 | W168: 0.08674567359 | X168: 0.1312627558 | Y168: 0.1458067952 | Z168: 0.1000650349 | AA168: 0.0613967416 | AB168: 0.07303356816 | AC168: 0.1431864431 | AD168: 0.2778856071 | AE168: 0.4712051763 | AF168: 0.6876140161 | AG168: 0.8732952975 | AH168: 0.9833880748 | AI168: 1 | AJ168: 0.9326974416 | AK168: 0.8078219395 | AL168: 0.6559209516 | AM168: 0.5028792457 | AN168: 0.3660213029 | AO168: 0.2540146072 | AP168: 0.1687802422 | AQ168: 0.1079627446 | AR168: 0.06711795444 | AS168: 0.04128774032 | AT168: 0.02594497283 | AU168: 0.01743680573 | AV168: 0.01308999381 | AW168: 0.01112274848 | AX168: 0.0104692985 | AY168: 0.01058499836 | AZ168: 0.01126935333 | BA168: 0.01252327645 | BB168: 0.01444398758 | BC168: 0.01715407295 | BD168: 0.0207582951 | BE168: 0.02532116388 | BF168: 0.03085892514 | BG168: 0.03734077766
